Workbook

Sheet Sheet1 (hidden)
C2: Countries | D2: Years | E2: Definition public sector | F2: Guarantees | G2: Long-run values | H2: Fan chart
C3: Choose Country | D3: Choose Year | E3: Choose Sector | F3: Choose Guarantees | G3: Set constant value manually (column C) | H3: Activate shocks
C4: Afghanistan | D4: 2010 | E4: consolidated public sector | F4: Yes | G4: 10-year historical average | H4: On
C5: Albania | D5: 2011 | E5: non-financial public sector | F5: No | G5: 5-year historical average | H5: Off
C6: Algeria | D6: 2012 | E6: general government | G6: 5-year projection average
C7: Angola | D7: 2013 | E7: central government | G7: 10-year projection average
C8: Anguilla | D8: 2014 | E8: other | G8: latest year before projections start
C9: Antigua and Barbuda | D9: 2015 | G9: time-varying values
C10: Argentina | D10: 2016
C11: Armenia | D11: 2017
C12: Australia | D12: 2018
C13: Austria | D13: 2019
C14: Azerbaijan | D14: 2020
C15: Bahamas, The | D15: 2021
C16: Bahrain | D16: 2022
C17: Bangladesh | D17: 2023
C18: Barbados | D18: 2024
C19: Belarus | D19: 2025
C20: Belgium | D20: 2026
C21: Belize | D21: 2027
C22: Benin | D22: 2028
C23: Bhutan | D23: 2029
C24: Bolivia | D24: 2030
C25: Bosnia and Herzegovina | D25: 2031
C26: Botswana | D26: 2032
C27: Brazil | D27: 2033
C28: Brunei Darussalam | D28: 2034
C29: Bulgaria | D29: 2035
C30: Burkina Faso | D30: 2036
C31: Burundi | D31: 2037
C32: Cambodia | D32: 2038
C33: Cameroon | D33: 2039
C34: Canada | D34: 2040
C35: Cabo Verde | D35: 2041
C36: Central African Republic | D36: 2042
C37: Chad | D37: 2043
C38: Chile | D38: 2044
C39: China | D39: 2045
C40: Colombia | D40: 2046
C41: Comoros | D41: 2047
C42: Democratic Republic of the Congo | D42: 2048
C43: Congo, Republic of | D43: 2049
C44: Costa Rica | D44: 2050
C45: Côte d'Ivoire
C46: Croatia
C47: Cyprus
C48: Czech Republic
C49: Czechoslovakia, former
C50: Denmark
C51: Djibouti
C52: Dominica
C53: Dominican Republic
C54: Eastern Caribbean Currency Union
C55: Ecuador
C56: Egypt
C57: El Salvador
C58: Equatorial Guinea
C59: Eritrea
C60: Estonia
C61: Ethiopia
C62: Euro area
C63: Fiji
C64: Finland
C65: France
C66: Gabon
C67: Gambia, The
C68: Georgia
C69: Germany
C70: Ghana
C71: Greece
C72: Grenada
C73: Guatemala
C74: Guinea
C75: Guinea-Bissau
C76: Guyana
C77: Haiti
C78: Honduras
C79: Hong Kong SAR
C80: Hungary
C81: Iceland
C82: India
C83: Indonesia
C84: Iran
C85: Iraq
C86: Ireland
C87: Israel
C88: Italy
C89: Jamaica
C90: Japan
C91: Jordan
C92: Kazakhstan
C93: Kenya
C94: Kiribati
C95: Korea
C96: Kosovo
C97: Kuwait
C98: Kyrgyz Republic
C99: Lao P.D.R.
C100: Latvia
C101: Lebanon
C102: Lesotho
C103: Liberia
C104: Libya
C105: Lithuania
C106: Luxembourg
C107: FYR Macedonia
C108: Macondo
C109: Madagascar
C110: Malawi
C111: Malaysia
C112: Maldives
C113: Mali
C114: Malta
C115: Marshall Islands
C116: Mauritania
C117: Mauritius
C118: Mexico
C119: Micronesia, Fed. States of
C120: Moldova
C121: Mongolia
C122: Montenegro, Rep. of
C123: Montserrat
C124: Morocco
C125: Mozambique
C126: Myanmar
C127: Namibia
C128: Nepal
C129: Netherlands
C130: Netherlands Antilles
C131: New Zealand
C132: Nicaragua
C133: Niger
C134: Nigeria
C135: Norway
C136: Oman
C137: Pakistan
C138: Palau
C139: Panama
C140: Papua New Guinea
C141: Paraguay
C142: Peru
C143: Philippines
C144: Poland
C145: Portugal
C146: Qatar
C147: Romania
C148: Russia
C149: Rwanda
C150: Samoa
C151: San Marino
C152: São Tomé and Príncipe
C153: Saudi Arabia
C154: Senegal
C155: Serbia
C156: Serbia and Montenegro
C157: Seychelles
C158: Sierra Leone
C159: Singapore
C160: Slovak Republic
C161: Slovenia
C162: Solomon Islands
C163: Somalia
C164: South Africa
C165: South Sudan
C166: Spain
C167: Sri Lanka
C168: St. Kitts and Nevis
C169: St. Lucia
C170: St. Vincent and the Grenadines
C171: Sudan
C172: Suriname
C173: Swaziland
C174: Sweden
C175: Switzerland
C176: Syria
C177: Taiwan Province of China
C178: Tajikistan
C179: Tanzania
C180: Thailand
C181: Timor-Leste, Dem. Rep. of
C182: Togo
C183: Tonga
C184: Trinidad and Tobago
C185: Tunisia
C186: Turkey
C187: Turkmenistan
C188: Tuvalu
C189: Uganda
C190: Ukraine
C191: United Arab Emirates
C192: United Kingdom
C193: United States
C194: Uruguay
C195: Uzbekistan
C196: Vanuatu
C197: Venezuela
C198: Vietnam
C199: Yemen, Former P. D. Rep. of
C200: Yemen
C201: Zambia
... 1 more rows

Sheet Readme
A1: ICD Public Debt Dynamics Tool with Gross Financing Needs (DDT_GFN): Prepared by Santiago Acosta-Ormaechea and Leonardo Martinez with inputs from Jorge Restrepo.
A2: This spreadsheet is for capacity development purposes. The accompanying technical note explains in detail how to populate and use the tool.
A3: The material is property of the International Monetary Fund (IMF). Any reuse requires the permission of the IMF Institute for Capacity Development (ICD).
A4: This Version: January 28, 2025
A6: Basic Inputs | C6: Contribution to Debt Changes in Baseline Output Table
A8: Select country | B8: Macondo | D8: Baseline (MAC DSA)
D9: Baseline - MAC SRDSF
A10: First year of projection | B10: 2021 | D10: Baseline - LIC DSF | E10: TRUE
D11: Baseline - mu | E11: TRUE
A12: Year for medium-term indicators | B12: 2026 | E12: TRUE
E13: TRUE
A14: Definition of the public sector | B14: central government
A15: Includes public guarantees? | B15: Yes
A16: =IF(Guarantees="Yes","Specify or define the guarantees","") -> Specify or define the guarantees | B16: outstanding amount of loans guaranteed by the central government
A18: Adjustment Paths Inputs | F18: Baseline Assumptions From "Input - Data" Sheet, Plus "Additions to Baseline" | G18: =FirstYear-1 -> 2020 | H18: =FirstYear -> 2021 | I18: =H18+1 -> 2022 | J18: =I18+1 -> 2023 | K18: 2024 | L18: 2025 | M18: 2026 | N18: 2027 | O18: 2028 | P18: 2029 | Q18: 2030 | R18: 2031 | S18: 2032 | T18: =S18+1 -> 2033 | U18: =T18+1 -> 2034 | V18: =U18+1 -> 2035
A20: Debt target and adjustment period | F20: αt (share excl. guarantees): Share of foreign currency denominated debt in total debt, percent of total debt | G20: ='Input - Data'!K12 -> 60.45 | H20: ='Input - Data'!L12+H32 -> 63.4725 | I20: ='Input - Data'!M12+I32 -> 63.4725 | J20: ='Input - Data'!N12+J32 -> 60.298875 | K20: ='Input - Data'!O12+K32 -> 57.28393125 | L20: ='Input - Data'!P12+L32 -> 57.28393125 | M20: ='Input - Data'!Q12+M32 -> 57.28393125 | N20: ='Input - Data'!R12+N32 -> 60.14812781 | O20: ='Input - Data'!S12+O32 -> 57.14072142 | P20: ='Input - Data'!T12+P32 -> 57.14072142 | Q20: ='Input - Data'!U12+Q32 -> 59.99775749 | R20: ='Input - Data'!V12+R32 -> 56.99786962 | S20: ='Input - Data'!W12+S32 -> 56.99786962 | T20: ='Input - Data'!X12+T32 -> 56.92644372 | U20: ='Input - Data'!Y12+U32 -> 56.58359939 | V20: ='Input - Data'!Z12+V32 -> 56.24075506
F21: et (LCU/US$, avg): Nominal average exchange rate, local currency per unit of foreign currency | G21: ='Input - Data'!K13 -> 24.5823 | H21: ='Input - Data'!L13+H33 -> 24.20516714 | I21: ='Input - Data'!M13+I33 -> 24.38337221 | J21: ='Input - Data'!N13+J33 -> 24.71496283 | K21: ='Input - Data'!O13+K33 -> 25.20875222 | L21: ='Input - Data'!P13+L33 -> 25.71240722 | M21: ='Input - Data'!Q13+M33 -> 26.22639277 | N21: ='Input - Data'!R13+N33 -> 26.75092062 | O21: ='Input - Data'!S13+O33 -> 27.28593903 | P21: ='Input - Data'!T13+P33 -> 27.83165781 | Q21: ='Input - Data'!U13+Q33 -> 28.38829097 | R21: ='Input - Data'!V13+R33 -> 28.95605679 | S21: ='Input - Data'!W13+S33 -> 29.53517793 | T21: ='Input - Data'!X13+T33 -> 30.09737741 | U21: ='Input - Data'!Y13+U33 -> 30.66521003 | V21: ='Input - Data'!Z13+V33 -> 31.23304265
A22: To be completed after "Input - Data" Sheet is populated | F22: et (LCU/US$, eop): Nominal end of period exchange rate, local currency per unit of foreign currency | G22: ='Input - Data'!K14 -> 24.1141 | H22: ='Input - Data'!L14+H34 -> 24.29623427 | I22: ='Input - Data'!M14+I34 -> 24.47051014 | J22: ='Input - Data'!N14+J34 -> 24.95941552 | K22: ='Input - Data'!O14+K34 -> 25.45808893 | L22: ='Input - Data'!P14+L34 -> 25.96672551 | M22: ='Input - Data'!Q14+M34 -> 26.48606002 | N22: ='Input - Data'!R14+N34 -> 27.01578122 | O22: ='Input - Data'!S14+O34 -> 27.55609685 | P22: ='Input - Data'!T14+P34 -> 28.10721878 | Q22: ='Input - Data'!U14+Q34 -> 28.66936316 | R22: ='Input - Data'!V14+R34 -> 29.24275042 | S22: ='Input - Data'!W14+S34 -> 29.82760543 | T22: ='Input - Data'!X14+T34 -> 30.39537125 | U22: ='Input - Data'!Y14+U34 -> 30.96882597 | V22: ='Input - Data'!Z14+V34 -> 31.54228069
F23: itd: Nominal effective interest rate on local currency denominated debt, percent | G23: ='Input - Data'!K15 -> 10.38867089 | H23: ='Input - Data'!L15+H35 -> 9.869237348 | I23: ='Input - Data'!M15+I35 -> 9.37577548 | J23: ='Input - Data'!N15+J35 -> 9.844564254 | K23: ='Input - Data'!O15+K35 -> 10.33679247 | L23: ='Input - Data'!P15+L35 -> 10.33679247 | M23: ='Input - Data'!Q15+M35 -> 10.33679247 | N23: ='Input - Data'!R15+N35 -> 10.33679247 | O23: ='Input - Data'!S15+O35 -> 10.33679247 | P23: ='Input - Data'!T15+P35 -> 10.33679247 | Q23: ='Input - Data'!U15+Q35 -> 10.33679247 | R23: ='Input - Data'!V15+R35 -> 10.33679247 | S23: ='Input - Data'!W15+S35 -> 10.33679247 | T23: ='Input - Data'!X15+T35 -> 10.33679247 | U23: ='Input - Data'!Y15+U35 -> 10.33679247 | V23: ='Input - Data'!Z15+V35 -> 10.33679247
A24: Public debt-to-GDP target (e.g., for 60 percent of GDP write 60) | B24: 50 | F24: itf: Nominal effective interest rate on foreign currency denominated debt, percent | G24: ='Input - Data'!K16 -> 3.60111838 | H24: ='Input - Data'!L16+H36 -> 3.781174299 | I24: ='Input - Data'!M16+I36 -> 3.781174299 | J24: ='Input - Data'!N16+J36 -> 3.592115584 | K24: ='Input - Data'!O16+K36 -> 3.412509804 | L24: ='Input - Data'!P16+L36 -> 3.412509804 | M24: ='Input - Data'!Q16+M36 -> 3.412509804 | N24: ='Input - Data'!R16+N36 -> 3.583135295 | O24: ='Input - Data'!S16+O36 -> 3.40397853 | P24: ='Input - Data'!T16+P36 -> 3.40397853 | Q24: ='Input - Data'!U16+Q36 -> 3.574177456 | R24: ='Input - Data'!V16+R36 -> 3.395468584 | S24: ='Input - Data'!W16+S36 -> 3.395468584 | T24: ='Input - Data'!X16+T36 -> 3.39121361 | U24: ='Input - Data'!Y16+U36 -> 3.370789739 | V24: ='Input - Data'!Z16+V36 -> 3.350365868
A25: Adjustment path starts | B25: 2022 | F25: πt: GDP deflator inflation, percent | G25: ='Input - Data'!K17 -> 4.013079667 | H25: ='Input - Data'!L17+H37 -> 4.041365315 | I25: ='Input - Data'!M17+I37 -> 3.654278014 | J25: ='Input - Data'!N17+J37 -> 3.761262889 | K25: ='Input - Data'!O17+K37 -> 3.737199002 | L25: ='Input - Data'!P17+L37 -> 3.71837475 | M25: ='Input - Data'!Q17+M37 -> 4 | N25: ='Input - Data'!R17+N37 -> 4 | O25: ='Input - Data'!S17+O37 -> 4 | P25: ='Input - Data'!T17+P37 -> 4 | Q25: ='Input - Data'!U17+Q37 -> 4 | R25: ='Input - Data'!V17+R37 -> 4 | S25: ='Input - Data'!W17+S37 -> 4 | T25: ='Input - Data'!X17+T37 -> 4 | U25: ='Input - Data'!Y17+U37 -> 4 | V25: ='Input - Data'!Z17+V37 -> 4
A26: Adjustment path ends | B26: 2028 | F26: gt: Real GDP growth, percent | G26: ='Input - Data'!K18 -> -8.993690565 | H26: ='Input - Data'!L18+H38 -> 4.230933496 | I26: ='Input - Data'!M18+I38 -> 2.746288693 | J26: ='Input - Data'!N18+J38 -> 2.408191185 | K26: ='Input - Data'!O18+K38 -> 2.660486026 | L26: ='Input - Data'!P18+L38 -> 2.835522081 | M26: ='Input - Data'!Q18+M38 -> 2.835491687 | N26: ='Input - Data'!R18+N38 -> 2.835528595 | O26: ='Input - Data'!S18+O38 -> 2.835544872 | P26: ='Input - Data'!T18+P38 -> 3.83549772 | Q26: ='Input - Data'!U18+Q38 -> 3.835523257 | R26: ='Input - Data'!V18+R38 -> 3.835520597 | S26: ='Input - Data'!W18+S38 -> 3.83553137 | T26: ='Input - Data'!X18+T38 -> 3.835542808 | U26: ='Input - Data'!Y18+U38 -> 3.835552637 | V26: ='Input - Data'!Z18+V38 -> 3.835562465
F27: oft (other net debt-creating flows): Other net debt creating flows, percent of GDP | G27: ='Input - Data'!K20 -> 0 | H27: ='Input - Data'!L20+H39 -> 0.9 | I27: ='Input - Data'!M20+I39 -> 0.9 | J27: ='Input - Data'!N20+J39 -> 0.9 | K27: ='Input - Data'!O20+K39 -> 0.9 | L27: ='Input - Data'!P20+L39 -> 0.9 | M27: ='Input - Data'!Q20+M39 -> 0.9 | N27: ='Input - Data'!R20+N39 -> 0.9 | O27: ='Input - Data'!S20+O39 -> 0.9 | P27: ='Input - Data'!T20+P39 -> 0.9 | Q27: ='Input - Data'!U20+Q39 -> 0.9 | R27: ='Input - Data'!V20+R39 -> 0.9 | S27: ='Input - Data'!W20+S39 -> 0.9 | T27: ='Input - Data'!X20+T39 -> 0.9 | U27: ='Input - Data'!Y20+U39 -> 0.9 | V27: ='Input - Data'!Z20+V39 -> 0.9
A28: Public gross financing needs-to-GDP target (e.g., for 20 percent of GDP write 20) | B28: 9 | F28: amtd: Nominal effective amortization rate of local currency denominated debt, percent | G28: ='Input - Data'!K21 -> 12.23437307 | H28: ='Input - Data'!L21+H40 -> 18.71030251 | I28: ='Input - Data'!M21+I40 -> 11.78253661 | J28: ='Input - Data'!N21+J40 -> 12.04987969 | K28: ='Input - Data'!O21+K40 -> 12.39849904 | L28: ='Input - Data'!P21+L40 -> 13.03107885 | M28: ='Input - Data'!Q21+M40 -> 13.20303592 | N28: ='Input - Data'!R21+N40 -> 12.46900064 | O28: ='Input - Data'!S21+O40 -> 12.61600522 | P28: ='Input - Data'!T21+P40 -> 12.7356743 | Q28: ='Input - Data'!U21+Q40 -> 12.80532205 | R28: ='Input - Data'!V21+R40 -> 12.76110612 | S28: ='Input - Data'!W21+S40 -> 12.67624668 | T28: ='Input - Data'!X21+T40 -> 13.67624668 | U28: ='Input - Data'!Y21+U40 -> 14.67624668 | V28: ='Input - Data'!Z21+V40 -> 15.67624668
F29: amtf: Nominal effective amortization rate of foreign currency denominated debt, percent | G29: ='Input - Data'!K22 -> 11.66645637 | H29: ='Input - Data'!L22+H41 -> 17.70601006 | I29: ='Input - Data'!M22+I41 -> 11.35382687 | J29: ='Input - Data'!N22+J41 -> 11.74224664 | K29: ='Input - Data'!O22+K41 -> 12.02893292 | L29: ='Input - Data'!P22+L41 -> 12.54499479 | M29: ='Input - Data'!Q22+M41 -> 12.73682319 | N29: ='Input - Data'!R22+N41 -> 12.05990157 | O29: ='Input - Data'!S22+O41 -> 12.21178753 | P29: ='Input - Data'!T22+P41 -> 12.3102382 | Q29: ='Input - Data'!U22+Q41 -> 12.36808552 | R29: ='Input - Data'!V22+R41 -> 12.33330073 | S29: ='Input - Data'!W22+S41 -> 12.25564513 | T29: ='Input - Data'!X22+T41 -> 13.25564513 | U29: ='Input - Data'!Y22+U41 -> 14.25564513 | V29: ='Input - Data'!Z22+V41 -> 15.25564513
A30: Values of Key Variables for Adjustment Paths (for time-varying values please review cells F30:S41) | F30: Additions to Baseline Assumptions for Fiscal Adjustment Paths (for time-varying values) | G30: =FirstYear-1 -> 2020 | H30: =FirstYear -> 2021 | I30: =H30+1 -> 2022 | J30: =I30+1 -> 2023 | K30: 2024 | L30: 2025 | M30: 2026 | N30: 2027 | O30: 2028 | P30: 2029 | Q30: 2030 | R30: 2031 | S30: 2032 | T30: =S30+1 -> 2033 | U30: =T30+1 -> 2034 | V30: =U30+1 -> 2035
C31: Manually-set constant values | D31: Drop-down menu constant values
A32: α = Share of foreign currency debt | B32: time-varying values | D32: =IF(B32="10-year historical average",AVERAGE('Input - Data'!B12:K12),IF(B32="5-year historical average",AVERAGE('Input - Data'!G12:K12),IF(B32="5-year projection average",AVERAGE('Input - Data'!L12:P12),IF(B32="10-year projection average",AVERAGE('Input - Data'!L12:U12),IF(B32="Latest year before projections start",'Input - Data'!K12,IF(ISNUMBER(C32),C32,"")))))) ->  | F32: αt (share excl. guarantees): Share of foreign currency denominated debt in total debt, percent of total debt
A33: ε = Depreciation rate | B33: time-varying values | D33: =IF(B33="10-year historical average",AVERAGE(Baseline!B16:K16),IF(B33="5-year historical average",AVERAGE(Baseline!G16:K16),IF(B33="5-year projection average",AVERAGE(Baseline!L16:P16),IF(B33="10-year projection average",AVERAGE(Baseline!L16:U16),IF(B33="Latest year before projections start",Baseline!K16,IF(ISNUMBER(C33),C33,"")))))) ->  | F33: et (LCU/US$, avg): Nominal average exchange rate, local currency per unit of foreign currency
A34: id = Local-currency effective interest rate | B34: time-varying values | D34: =IF(B34="10-year historical average",AVERAGE('Input - Data'!B15:K15),IF(B34="5-year historical average",AVERAGE('Input - Data'!G15:K15),IF(B34="5-year projection average",AVERAGE('Input - Data'!L15:P15),IF(B34="10-year projection average",AVERAGE('Input - Data'!L15:U15),IF(B34="Latest year before projections start",'Input - Data'!K15,IF(ISNUMBER(C34),C34,"")))))) ->  | F34: et (LCU/US$, eop): Nominal end of period exchange rate, local currency per unit of foreign currency
A35: if = Foreign-currency effective interest rate | B35: time-varying values | D35: =IF(B35="10-year historical average",AVERAGE('Input - Data'!B16:K16),IF(B35="5-year historical average",AVERAGE('Input - Data'!G16:K16),IF(B35="5-year projection average",AVERAGE('Input - Data'!L16:P16),IF(B35="10-year projection average",AVERAGE('Input - Data'!L16:U16),IF(B35="Latest year before projections start",'Input - Data'!K16,IF(ISNUMBER(C35),C35,"")))))) ->  | F35: itd: Nominal effective interest rate on local currency denominated debt, percent
A36: π = Inflation rate | B36: time-varying values | D36: =IF(B36="10-year historical average",AVERAGE('Input - Data'!B17:K17),IF(B36="5-year historical average",AVERAGE('Input - Data'!G17:K17),IF(B36="5-year projection average",AVERAGE('Input - Data'!L17:P17),IF(B36="10-year projection average",AVERAGE('Input - Data'!L17:U17),IF(B36="Latest year before projections start",'Input - Data'!K17,IF(ISNUMBER(C36),C36,"")))))) ->  | F36: itf: Nominal effective interest rate on foreign currency denominated debt, percent
A37: g = Real GDP growth rate | B37: time-varying values | D37: =IF(B37="10-year historical average",AVERAGE('Input - Data'!B18:K18),IF(B37="5-year historical average",AVERAGE('Input - Data'!G18:K18),IF(B37="5-year projection average",AVERAGE('Input - Data'!L18:P18),IF(B37="10-year projection average",AVERAGE('Input - Data'!L18:U18),IF(B37="Latest year before projections start",'Input - Data'!K18,IF(ISNUMBER(C37),C37,"")))))) ->  | F37: πt: GDP deflator inflation, percent
A38: of = Other net debt-creating flows | B38: time-varying values | D38: =IF(B38="10-year historical average",AVERAGE('Input - Data'!B20:K20),IF(B38="5-year historical average",AVERAGE('Input - Data'!G20:K20),IF(B38="5-year projection average",AVERAGE('Input - Data'!L20:P20),IF(B38="10-year projection average",AVERAGE('Input - Data'!L20:U20),IF(B38="Latest year before projections start",'Input - Data'!K20,IF(ISNUMBER(C38),C38,"")))))) ->  | F38: gt: Real GDP growth, percent | I38: -1 | J38: -1 | K38: -1 | L38: -1 | M38: -1 | N38: -1 | O38: -1
A39: amd = Local-currency effective amortization rate | B39: time-varying values | D39: =IF(B39="10-year historical average",AVERAGE('Input - Data'!B21:K21),IF(B39="5-year historical average",AVERAGE('Input - Data'!G21:K21),IF(B39="5-year projection average",AVERAGE('Input - Data'!L21:P21),IF(B39="10-year projection average",AVERAGE('Input - Data'!L21:U21),IF(B39="Latest year before projections start",'Input - Data'!K21,IF(ISNUMBER(C39),C39,"")))))) ->  | F39: oft (other net debt-creating flows): Other net debt creating flows, percent of GDP
A40: amf = Foreign-currency effective amortization rate | B40: time-varying values | D40: =IF(B40="10-year historical average",AVERAGE('Input - Data'!B22:K22),IF(B40="5-year historical average",AVERAGE('Input - Data'!G22:K22),IF(B40="5-year projection average",AVERAGE('Input - Data'!L22:P22),IF(B40="10-year projection average",AVERAGE('Input - Data'!L22:U22),IF(B40="Latest year before projections start",'Input - Data'!K22,IF(ISNUMBER(C40),C40,"")))))) ->  | F40: amtd: Nominal effective amortization rate of local currency denominated debt, percent
F41: amtf: Nominal effective amortization rate of foreign currency denominated debt, percent
A42: Stress Tests Inputs
A44: Stress testing scenario design: size of shocks | B44: Shock Size (number of historical standard deviations)
A45: Primary balance shock | B45: -1
A46: GDP growth shock | B46: -1
A47: Interest rate shock | B47: 1
A48: Exchange rate depreciation shock | B48: 1
A50: Stress testing scenario design: duration of shocks
A51: Primary balance shock starts | B51: 2022
A52: Primary balance shock ends | B52: 2023
A53: GDP growth shock starts | B53: 2022
A54: GDP growth shock ends | B54: 2023
A55: Interest rate shock starts | B55: 2022
A56: Interest rate shock ends | B56: 2023
A57: Exchange rate depreciation shock starts | B57: 2022
A58: Exchange rate depreciation shock ends | B58: 2023

Sheet Input - Data
A1: Cell codes: Yellow-shaded cells contain historical data to be populate by users. Grey (empty) cells refer to values to be generated by the template in other worksheets.
A4: Historical Data and Forecasts. Variables in percent or percent of GDP, unless otherwise indicated.
A5: ="Country:"&" "&CountryName -> Country: Macondo
L7: First Year of Projection
A8: Year/Variable | B8: =C8-1 -> 2011 | C8: 2012 | D8: 2013 | E8: 2014 | F8: 2015 | G8: 2016 | H8: 2017 | I8: 2018 | J8: 2019 | K8: =L8-1 -> 2020 | L8: =FirstYear -> 2021 | M8: =L8+1 -> 2022 | N8: 2023 | O8: 2024 | P8: 2025 | Q8: 2026 | R8: 2027 | S8: 2028 | T8: 2029 | U8: 2030 | V8: 2031 | W8: 2032 | X8: =W8+1 -> 2033 | Y8: =X8+1 -> 2034 | Z8: =Y8+1 -> 2035
A9: dt (debt including uncalled guarantees): Stock of total gross public debt, percent of GDP | B9: 31.5933688 | C9: 35.33939124 | D9: 43.11561343 | E9: 44.44062131 | F9: 44.32556858 | G9: 45.98041253 | H9: 47.43639858 | I9: 48.5464043 | J9: 48.67164741 | K9: 58.86485128
A10: o/w stock of local-currency guarantees (uncalled): Stock of uncalled guarantees in local currency included in total debt, percent of GDP | B10: 0 | C10: 0 | D10: 0 | E10: 0 | F10: 0 | G10: 0.3558637011 | H10: 0.1351742319 | I10: 0.1125486542 | J10: 0.9540746431 | K10: 0.8204433033 | L10: 0.56925678 | M10: 0.5008202286 | N10: 0.4393407941 | O10: 0.3848479606 | P10: 0.3584565938 | Q10: 0.3584565938 | R10: 0.3672537161 | S10: 0.3613889679 | T10: 0.3623664259 | U10: 0.3636697033 | V10: 0.3624750324 | W10: 0.3624750324 | X10: 0.3625293356 | Y10: 0.3624424505 | Z10: 0.3623555653
A11: o/w stock of foreign-currency guarantees (uncalled): Stock of uncalled guarantees in foreign currency included in total debt, percent of GDP | B11: 0 | C11: 0 | D11: 0 | E11: 0 | F11: 0 | G11: 1.067591103 | H11: 0.4055226956 | I11: 0.3376459625 | J11: 2.862223929 | K11: 2.46132991 | L11: 1.70777034 | M11: 1.502460686 | N11: 1.318022382 | O11: 1.154543882 | P11: 1.075369782 | Q11: 1.075369782 | R11: 1.101761148 | S11: 1.084166904 | T11: 1.087099278 | U11: 1.09100911 | V11: 1.087425097 | W11: 1.087425097 | X11: 1.087588007 | Y11: 1.087327351 | Z11: 1.087066696
A12: αt (share excl. guarantees): Share of foreign currency denominated debt in total debt, percent of total debt | B12: 55.05 | C12: 58.87 | D12: 69.61 | E12: 68.47 | F12: 67.99 | G12: 63.36 | H12: 64.18 | I12: 61.2 | J12: 60.67 | K12: 60.45 | L12: 63.4725 | M12: 63.4725 | N12: 60.298875 | O12: 57.28393125 | P12: 57.28393125 | Q12: 57.28393125 | R12: 60.14812781 | S12: 57.14072142 | T12: 57.14072142 | U12: 59.99775749 | V12: 56.99786962 | W12: 56.99786962 | X12: 56.92644372 | Y12: 56.58359939 | Z12: 56.24075506
A13: et (LCU/FCU, avg): Nominal average exchange rate, local currency per unit of foreign currency | B13: 18.91655317 | C13: 19.50405608 | D13: 20.35654016 | E13: 20.98862077 | F13: 21.9467 | G13: 22.8385 | H13: 23.49258333 | I13: 23.90111647 | J13: 24.50763036 | K13: 24.5823 | L13: 24.20516714 | M13: 24.38337221 | N13: 24.71496283 | O13: 25.20875222 | P13: 25.71240722 | Q13: 26.22639277 | R13: 26.75092062 | S13: 27.28593903 | T13: 27.83165781 | U13: 28.38829097 | V13: 28.95605679 | W13: 29.53517793 | X13: 30.09737741 | Y13: 30.66521003 | Z13: 31.23304265
A14: et (LCU/FCU, eop): Nominal end of period exchange rate, local currency per unit of foreign currency | B14: 19.052 | C14: 19.9623 | D14: 20.5975 | E14: 21.5124 | F14: 22.3676 | G14: 23.5029 | H14: 23.5879 | I14: 24.3388 | J14: 24.635 | K14: 24.1141 | L14: 24.29623427 | M14: 24.47051014 | N14: 24.95941552 | O14: 25.45808893 | P14: 25.96672551 | Q14: 26.48606002 | R14: 27.01578122 | S14: 27.55609685 | T14: 28.10721878 | U14: 28.66936316 | V14: 29.24275042 | W14: 29.82760543 | X14: 30.39537125 | Y14: 30.96882597 | Z14: 31.54228069
A15: itd: Nominal effective interest rate on local currency denominated debt, percent | B15: 8.918758936 | C15: 9.232938599 | D15: 10.53400775 | E15: 10.84946009 | F15: 10.94940995 | G15: 10.10003746 | H15: 9.697729214 | I15: 10.15733532 | J15: 10.20819257 | K15: 10.38867089 | L15: 9.869237348 | M15: 9.37577548 | N15: 9.844564254 | O15: 10.33679247 | P15: 10.33679247 | Q15: 10.33679247 | R15: 10.33679247 | S15: 10.33679247 | T15: 10.33679247 | U15: 10.33679247 | V15: 10.33679247 | W15: 10.33679247 | X15: 10.33679247 | Y15: 10.33679247 | Z15: 10.33679247
A16: itf: Nominal effective interest rate on foreign currency denominated debt, percent | B16: 2.463200262 | C16: 2.03472765 | D16: 2.803817976 | E16: 3.412469993 | F16: 3.506312078 | G16: 3.497051911 | H16: 3.871803137 | I16: 3.611484114 | J16: 3.583462805 | K16: 3.60111838 | L16: 3.781174299 | M16: 3.781174299 | N16: 3.592115584 | O16: 3.412509804 | P16: 3.412509804 | Q16: 3.412509804 | R16: 3.583135295 | S16: 3.40397853 | T16: 3.40397853 | U16: 3.574177456 | V16: 3.395468584 | W16: 3.395468584 | X16: 3.39121361 | Y16: 3.370789739 | Z16: 3.350365868
A17: πt: GDP deflator inflation, percent | B17: 5.6 | C17: 5.39 | D17: 4.916732752 | E17: 5.82 | F17: 2.36 | G17: 3.314724355 | H17: 4.73 | I17: 4.23 | J17: 4.08 | K17: 4.013079667 | L17: 4.041365315 | M17: 3.654278014 | N17: 3.761262889 | O17: 3.737199002 | P17: 3.71837475 | Q17: 4 | R17: 4 | S17: 4 | T17: 4 | U17: 4 | V17: 4 | W17: 4 | X17: 4 | Y17: 4 | Z17: 4
A18: gt: Real GDP growth, percent | B18: 3.835682117 | C18: 4.128725633 | D18: 2.791554075 | E18: 3.058096332 | F18: 3.840046512 | G18: 3.893003331 | H18: 4.842866705 | I18: 3.845025913 | J18: 2.662336047 | K18: -8.993690565 | L18: 4.230933496 | M18: 3.746288693 | N18: 3.408191185 | O18: 3.660486026 | P18: 3.835522081 | Q18: 3.835491687 | R18: 3.835528595 | S18: 3.835544872 | T18: 3.83549772 | U18: 3.835523257 | V18: 3.835520597 | W18: 3.83553137 | X18: 3.835542808 | Y18: 3.835552637 | Z18: 3.835562465
A19: pbt: Primary balance, percent of GDP | B19: -3.283564952 | C19: -4.033543483 | D19: -5.610796375 | E19: -1.880094999 | F19: -0.3516936022 | G19: -0.1264194147 | H19: 0.01847718413 | I19: 0.8537145611 | J19: 0.564213633 | K19: -3.548590878 | L19: -4.040950675 | M19: -1.054812503 | N19: 0.4523486729 | O19: 0.2669914016 | P19: 0.1974697979 | Q19: 0.3056032908 | R19: 0.2566881634 | S19: 0.2532537507 | T19: 0.2718484016 | U19: 0.2605967719 | V19: 0.2618996414 | W19: 0.264781605 | X19: 0.2598072249 | Y19: 0.2578174728 | Z19: 0.2558277208
A20: oft (other net debt-creating flows): Other net debt creating flows, percent of GDP | B20: 0 | C20: 0 | D20: 0 | E20: 0 | F20: 0 | G20: 0 | H20: 0 | I20: 0 | J20: 0 | K20: 0 | L20: 0.9 | M20: 0.9 | N20: 0.9 | O20: 0.9 | P20: 0.9 | Q20: 0.9 | R20: 0.9 | S20: 0.9 | T20: 0.9 | U20: 0.9 | V20: 0.9 | W20: 0.9 | X20: 0.9 | Y20: 0.9 | Z20: 0.9
A21: amtd: Nominal effective amortization rate of local currency denominated debt, percent | B21: 12.5 | C21: 12.86249775 | D21: 13.54261434 | E21: 13.97350834 | F21: 12.12442486 | G21: 11.79007748 | H21: 10.6059941 | I21: 10.56460841 | J21: 9.976907437 | K21: 12.23437307 | L21: 18.71030251 | M21: 11.78253661 | N21: 12.04987969 | O21: 12.39849904 | P21: 13.03107885 | Q21: 13.20303592 | R21: 12.46900064 | S21: 12.61600522 | T21: 12.7356743 | U21: 12.80532205 | V21: 12.76110612 | W21: 12.67624668 | X21: 13.67624668 | Y21: 14.67624668 | Z21: 15.67624668
A22: amtf: Nominal effective amortization rate of foreign currency denominated debt, percent | B22: 13 | C22: 13.10908072 | D22: 13.85027235 | E22: 15.73847383 | F22: 11.17804023 | G22: 10.00832783 | H22: 9.742478028 | I22: 10.49196812 | J22: 9.976850677 | K22: 11.66645637 | L22: 17.70601006 | M22: 11.35382687 | N22: 11.74224664 | O22: 12.02893292 | P22: 12.54499479 | Q22: 12.73682319 | R22: 12.05990157 | S22: 12.21178753 | T22: 12.3102382 | U22: 12.36808552 | V22: 12.33330073 | W22: 12.25564513 | X22: 13.25564513 | Y22: 14.25564513 | Z22: 15.25564513
A23: πft: Foreign GDP deflator inflation, percent | B23: 2.088956 | C23: 1.918108 | D23: 1.75442 | E23: 1.850734 | F23: 0.9517819 | G23: 1.049318 | H23: 1.880033 | I23: 2.400971 | J23: 1.785224 | K23: 1.411731 | L23: 2.209248 | M23: 1.779005 | N23: 1.812309 | O23: 1.912248 | P23: 1.957146 | Q23: 1.957146 | R23: 1.957146 | S23: 1.957146 | T23: 1.957146 | U23: 1.957146 | V23: 1.957146 | W23: 1.957146 | X23: 1.957146 | Y23: 1.957146 | Z23: 1.957146

Sheet CustomizedAdj
A1: Cell code: Yellow cells are values to be inputed by the user. White cells refer to values generated by the template, or constructed to satisfy certain constraints, using formulas (e.g., accounting definitions, solutions to equations).
A4: Debt Target Customized Adjustment Scenario, to reduce debt in k periods. Units of macrofiscal variables are as indicated in "Input - Data".
A5: ="Country:"&" "&CountryName -> Country: Macondo
L7: First Year of Projection
A8: Year | B8: =C8-1 -> 2011 | C8: 2012 | D8: 2013 | E8: 2014 | F8: 2015 | G8: 2016 | H8: 2017 | I8: 2018 | J8: 2019 | K8: =L8-1 -> 2020 | L8: =FirstYear -> 2021 | M8: =L8+1 -> 2022 | N8: 2023 | O8: 2024 | P8: 2025 | Q8: 2026 | R8: 2027 | S8: 2028 | T8: 2029 | U8: 2030 | V8: 2031 | W8: 2032 | X8: =W8+1 -> 2033 | Y8: =X8+1 -> 2034 | Z8: =Y8+1 -> 2035
A9: dt (debt including uncalled guarantees) | B9: ='Input - Data'!B9 -> 31.5933688 | C9: ='Input - Data'!C9 -> 35.33939124 | D9: ='Input - Data'!D9 -> 43.11561343 | E9: ='Input - Data'!E9 -> 44.44062131 | F9: ='Input - Data'!F9 -> 44.32556858 | G9: ='Input - Data'!G9 -> 45.98041253 | H9: ='Input - Data'!H9 -> 47.43639858 | I9: ='Input - Data'!I9 -> 48.5464043 | J9: ='Input - Data'!J9 -> 48.67164741 | K9: ='Input - Data'!K9 -> 58.86485128 | L9: =(K9-K10-K11)*L23-L20*L24+L20*L25+(L10+L11) -> 61.90891752 | M9: 64.2887073 | N9: 65.15430786 | O9: 63.85233526 | P9: 60.46832302 | Q9: 57.00147552 | R9: 53.61607438 | S9: 50 | T9: 46.00716161 | U9: 42.08336639 | V9: 38.04643538 | W9: 34.09693915 | X9: 30.144881 | Y9: 26.20430296 | Z9: 22.27865431
A10: o/w stock of local-currency guarantees (uncalled) | B10: ='Input - Data'!B10 -> 0 | C10: ='Input - Data'!C10 -> 0 | D10: ='Input - Data'!D10 -> 0 | E10: ='Input - Data'!E10 -> 0 | F10: ='Input - Data'!F10 -> 0 | G10: ='Input - Data'!G10 -> 0.3558637011 | H10: ='Input - Data'!H10 -> 0.1351742319 | I10: ='Input - Data'!I10 -> 0.1125486542 | J10: ='Input - Data'!J10 -> 0.9540746431 | K10: ='Input - Data'!K10 -> 0.8204433033 | L10: ='Input - Data'!L10 -> 0.56925678 | M10: ='Input - Data'!M10 -> 0.5008202286 | N10: ='Input - Data'!N10 -> 0.4393407941 | O10: ='Input - Data'!O10 -> 0.3848479606 | P10: ='Input - Data'!P10 -> 0.3584565938 | Q10: ='Input - Data'!Q10 -> 0.3584565938 | R10: ='Input - Data'!R10 -> 0.3672537161 | S10: ='Input - Data'!S10 -> 0.3613889679 | T10: ='Input - Data'!T10 -> 0.3623664259 | U10: ='Input - Data'!U10 -> 0.3636697033 | V10: ='Input - Data'!V10 -> 0.3624750324 | W10: ='Input - Data'!W10 -> 0.3624750324 | X10: ='Input - Data'!X10 -> 0.3625293356 | Y10: ='Input - Data'!Y10 -> 0.3624424505 | Z10: ='Input - Data'!Z10 -> 0.3623555653
A11: o/w stock of foreign-currency guarantees (uncalled) | B11: ='Input - Data'!B11 -> 0 | C11: ='Input - Data'!C11 -> 0 | D11: ='Input - Data'!D11 -> 0 | E11: ='Input - Data'!E11 -> 0 | F11: ='Input - Data'!F11 -> 0 | G11: ='Input - Data'!G11 -> 1.067591103 | H11: ='Input - Data'!H11 -> 0.4055226956 | I11: ='Input - Data'!I11 -> 0.3376459625 | J11: ='Input - Data'!J11 -> 2.862223929 | K11: ='Input - Data'!K11 -> 2.46132991 | L11: ='Input - Data'!L11 -> 1.70777034 | M11: ='Input - Data'!M11 -> 1.502460686 | N11: ='Input - Data'!N11 -> 1.318022382 | O11: ='Input - Data'!O11 -> 1.154543882 | P11: ='Input - Data'!P11 -> 1.075369782 | Q11: ='Input - Data'!Q11 -> 1.075369782 | R11: ='Input - Data'!R11 -> 1.101761148 | S11: ='Input - Data'!S11 -> 1.084166904 | T11: ='Input - Data'!T11 -> 1.087099278 | U11: ='Input - Data'!U11 -> 1.09100911 | V11: ='Input - Data'!V11 -> 1.087425097 | W11: ='Input - Data'!W11 -> 1.087425097 | X11: ='Input - Data'!X11 -> 1.087588007 | Y11: ='Input - Data'!Y11 -> 1.087327351 | Z11: ='Input - Data'!Z11 -> 1.087066696
A12: 1 - αt (share excl. guarantees) | B12: =100-B13 -> 44.95 | C12: =100-C13 -> 41.13 | D12: 30.39 | E12: 31.53 | F12: 32.01 | G12: 36.64 | H12: 35.82 | I12: 38.8 | J12: 39.33 | K12: 39.55 | L12: 36.5275 | M12: 36.5275 | N12: 39.701125 | O12: 42.71606875 | P12: 42.71606875 | Q12: 42.71606875 | R12: 39.85187219 | S12: 42.85927858 | T12: 42.85927858 | U12: 40.00224251 | V12: 43.00213038 | W12: 43.00213038 | X12: 43.07355628 | Y12: 43.41640061 | Z12: 43.75924494
A13: αt (share excl. guarantees) | B13: ='Input - Data'!B12 -> 55.05 | C13: ='Input - Data'!C12 -> 58.87 | D13: ='Input - Data'!D12 -> 69.61 | E13: ='Input - Data'!E12 -> 68.47 | F13: ='Input - Data'!F12 -> 67.99 | G13: ='Input - Data'!G12 -> 63.36 | H13: ='Input - Data'!H12 -> 64.18 | I13: ='Input - Data'!I12 -> 61.2 | J13: ='Input - Data'!J12 -> 60.67 | K13: =IF(OR(K8<$B$49-1,K8>$B$50),'Input - Data'!K12,Readme!G20) -> 60.45 | L13: =IF(OR(L8<$B$54-1,L8>$D$55),'Input - Data'!L12,Readme!H20) -> 63.4725 | M13: =IF(OR(M8<$B$54-1,M8>$D$55),'Input - Data'!M12,Readme!I20) -> 63.4725 | N13: =IF(OR(N8<$B$54-1,N8>$D$55),'Input - Data'!N12,Readme!J20) -> 60.298875 | O13: =IF(OR(O8<$B$54-1,O8>$D$55),'Input - Data'!O12,Readme!K20) -> 57.28393125 | P13: =IF(OR(P8<$B$54-1,P8>$D$55),'Input - Data'!P12,Readme!L20) -> 57.28393125 | Q13: =IF(OR(Q8<$B$54-1,Q8>$D$55),'Input - Data'!Q12,Readme!M20) -> 57.28393125 | R13: =IF(OR(R8<$B$54-1,R8>$D$55),'Input - Data'!R12,Readme!N20) -> 60.14812781 | S13: =IF(OR(S8<$B$54-1,S8>$D$55),'Input - Data'!S12,Readme!O20) -> 57.14072142 | T13: =IF(OR(T8<$B$54-1,T8>$D$55),'Input - Data'!T12,Readme!P20) -> 57.14072142 | U13: =IF(OR(U8<$B$54-1,U8>$D$55),'Input - Data'!U12,Readme!Q20) -> 59.99775749 | V13: =IF(OR(V8<$B$54-1,V8>$D$55),'Input - Data'!V12,Readme!R20) -> 56.99786962 | W13: =IF(OR(W8<$B$54-1,W8>$D$55),'Input - Data'!W12,Readme!S20) -> 56.99786962 | X13: =IF(OR(X8<$B$54-1,X8>$D$55),'Input - Data'!X12,Readme!T20) -> 56.92644372 | Y13: =IF(OR(Y8<$B$54-1,Y8>$D$55),'Input - Data'!Y12,Readme!U20) -> 56.58359939 | Z13: =IF(OR(Z8<$B$54-1,Z8>$D$55),'Input - Data'!Z12,Readme!V20) -> 56.24075506
A14: et (avg) | B14: ='Input - Data'!B13 -> 18.91655317 | C14: ='Input - Data'!C13 -> 19.50405608 | D14: ='Input - Data'!D13 -> 20.35654016 | E14: ='Input - Data'!E13 -> 20.98862077 | F14: ='Input - Data'!F13 -> 21.9467 | G14: ='Input - Data'!G13 -> 22.8385 | H14: ='Input - Data'!H13 -> 23.49258333 | I14: ='Input - Data'!I13 -> 23.90111647 | J14: ='Input - Data'!J13 -> 24.50763036 | K14: ='Input - Data'!K13 -> 24.5823 | L14: =IF(OR(L8<$B$54,L8>$D$55),'Input - Data'!L13,Readme!H21) -> 24.20516714 | M14: =IF(OR(M8<$B$54,M8>$D$55),'Input - Data'!M13,Readme!I21) -> 24.38337221 | N14: =IF(OR(N8<$B$54,N8>$D$55),'Input - Data'!N13,Readme!J21) -> 24.71496283 | O14: =IF(OR(O8<$B$54,O8>$D$55),'Input - Data'!O13,Readme!K21) -> 25.20875222 | P14: =IF(OR(P8<$B$54,P8>$D$55),'Input - Data'!P13,Readme!L21) -> 25.71240722 | Q14: =IF(OR(Q8<$B$54,Q8>$D$55),'Input - Data'!Q13,Readme!M21) -> 26.22639277 | R14: =IF(OR(R8<$B$54,R8>$D$55),'Input - Data'!R13,Readme!N21) -> 26.75092062 | S14: =IF(OR(S8<$B$54,S8>$D$55),'Input - Data'!S13,Readme!O21) -> 27.28593903 | T14: =IF(OR(T8<$B$54,T8>$D$55),'Input - Data'!T13,Readme!P21) -> 27.83165781 | U14: =IF(OR(U8<$B$54,U8>$D$55),'Input - Data'!U13,Readme!Q21) -> 28.38829097 | V14: =IF(OR(V8<$B$54,V8>$D$55),'Input - Data'!V13,Readme!R21) -> 28.95605679 | W14: =IF(OR(W8<$B$54,W8>$D$55),'Input - Data'!W13,Readme!S21) -> 29.53517793 | X14: =IF(OR(X8<$B$54,X8>$D$55),'Input - Data'!X13,Readme!T21) -> 30.09737741 | Y14: =IF(OR(Y8<$B$54,Y8>$D$55),'Input - Data'!Y13,Readme!U21) -> 30.66521003 | Z14: =IF(OR(Z8<$B$54,Z8>$D$55),'Input - Data'!Z13,Readme!V21) -> 31.23304265
A15: et (eop) | B15: ='Input - Data'!B14 -> 19.052 | C15: ='Input - Data'!C14 -> 19.9623 | D15: ='Input - Data'!D14 -> 20.5975 | E15: ='Input - Data'!E14 -> 21.5124 | F15: ='Input - Data'!F14 -> 22.3676 | G15: ='Input - Data'!G14 -> 23.5029 | H15: ='Input - Data'!H14 -> 23.5879 | I15: ='Input - Data'!I14 -> 24.3388 | J15: ='Input - Data'!J14 -> 24.635 | K15: ='Input - Data'!K14 -> 24.1141 | L15: =IF(OR(L8<$B$54,L8>$D$55),'Input - Data'!L14,Readme!H22) -> 24.29623427 | M15: =IF(OR(M8<$B$54,M8>$D$55),'Input - Data'!M14,Readme!I22) -> 24.47051014 | N15: =IF(OR(N8<$B$54,N8>$D$55),'Input - Data'!N14,Readme!J22) -> 24.95941552 | O15: =IF(OR(O8<$B$54,O8>$D$55),'Input - Data'!O14,Readme!K22) -> 25.45808893 | P15: =IF(OR(P8<$B$54,P8>$D$55),'Input - Data'!P14,Readme!L22) -> 25.96672551 | Q15: =IF(OR(Q8<$B$54,Q8>$D$55),'Input - Data'!Q14,Readme!M22) -> 26.48606002 | R15: =IF(OR(R8<$B$54,R8>$D$55),'Input - Data'!R14,Readme!N22) -> 27.01578122 | S15: =IF(OR(S8<$B$54,S8>$D$55),'Input - Data'!S14,Readme!O22) -> 27.55609685 | T15: =IF(OR(T8<$B$54,T8>$D$55),'Input - Data'!T14,Readme!P22) -> 28.10721878 | U15: =IF(OR(U8<$B$54,U8>$D$55),'Input - Data'!U14,Readme!Q22) -> 28.66936316 | V15: =IF(OR(V8<$B$54,V8>$D$55),'Input - Data'!V14,Readme!R22) -> 29.24275042 | W15: =IF(OR(W8<$B$54,W8>$D$55),'Input - Data'!W14,Readme!S22) -> 29.82760543 | X15: =IF(OR(X8<$B$54,X8>$D$55),'Input - Data'!X14,Readme!T22) -> 30.39537125 | Y15: =IF(OR(Y8<$B$54,Y8>$D$55),'Input - Data'!Y14,Readme!U22) -> 30.96882597 | Z15: =IF(OR(Z8<$B$54,Z8>$D$55),'Input - Data'!Z14,Readme!V22) -> 31.54228069
A16: εt | B16: n.a. | C16: =(C15/B15-1)*100 -> 4.777976066 | D16: 3.181998066 | E16: 4.441801189 | F16: 3.97538164 | G16: 5.07564513 | H16: 0.3616574976 | I16: 3.183411834 | J16: 1.216986869 | K16: -2.114471281 | L16: =IF(OR(L$8<$B$54,L$8>$D$55),('Input - Data'!L14/'Input - Data'!K14-1)*100,(Readme!H22/Readme!G22-1)*100) -> 0.755301981 | M16: =IF(OR(M$8<$B$54,M$8>$D$55),('Input - Data'!M14/'Input - Data'!L14-1)*100,(Readme!I22/Readme!H22-1)*100) -> 0.71729577 | N16: =IF(OR(N$8<$B$54,N$8>$D$55),('Input - Data'!N14/'Input - Data'!M14-1)*100,(Readme!J22/Readme!I22-1)*100) -> 1.997937032 | O16: =IF(OR(O$8<$B$54,O$8>$D$55),('Input - Data'!O14/'Input - Data'!N14-1)*100,(Readme!K22/Readme!J22-1)*100) -> 1.997937032 | P16: =IF(OR(P$8<$B$54,P$8>$D$55),('Input - Data'!P14/'Input - Data'!O14-1)*100,(Readme!L22/Readme!K22-1)*100) -> 1.997937032 | Q16: =IF(OR(Q$8<$B$54,Q$8>$D$55),('Input - Data'!Q14/'Input - Data'!P14-1)*100,(Readme!M22/Readme!L22-1)*100) -> 2 | R16: =IF(OR(R$8<$B$54,R$8>$D$55),('Input - Data'!R14/'Input - Data'!Q14-1)*100,(Readme!N22/Readme!M22-1)*100) -> 2 | S16: =IF(OR(S$8<$B$54,S$8>$D$55),('Input - Data'!S14/'Input - Data'!R14-1)*100,(Readme!O22/Readme!N22-1)*100) -> 2 | T16: =IF(OR(T$8<$B$54,T$8>$D$55),('Input - Data'!T14/'Input - Data'!S14-1)*100,(Readme!P22/Readme!O22-1)*100) -> 2 | U16: =IF(OR(U$8<$B$54,U$8>$D$55),('Input - Data'!U14/'Input - Data'!T14-1)*100,(Readme!Q22/Readme!P22-1)*100) -> 2 | V16: =IF(OR(V$8<$B$54,V$8>$D$55),('Input - Data'!V14/'Input - Data'!U14-1)*100,(Readme!R22/Readme!Q22-1)*100) -> 2 | W16: =IF(OR(W$8<$B$54,W$8>$D$55),('Input - Data'!W14/'Input - Data'!V14-1)*100,(Readme!S22/Readme!R22-1)*100) -> 2 | X16: =IF(OR(X$8<$B$54,X$8>$D$55),('Input - Data'!X14/'Input - Data'!W14-1)*100,(Readme!T22/Readme!S22-1)*100) -> 1.903491116 | Y16: =IF(OR(Y$8<$B$54,Y$8>$D$55),('Input - Data'!Y14/'Input - Data'!X14-1)*100,(Readme!U22/Readme!T22-1)*100) -> 1.886651477 | Z16: =IF(OR(Z$8<$B$54,Z$8>$D$55),('Input - Data'!Z14/'Input - Data'!Y14-1)*100,(Readme!V22/Readme!U22-1)*100) -> 1.851716048
A17: itd | B17: ='Input - Data'!B15 -> 8.918758936 | C17: ='Input - Data'!C15 -> 9.232938599 | D17: ='Input - Data'!D15 -> 10.53400775 | E17: ='Input - Data'!E15 -> 10.84946009 | F17: ='Input - Data'!F15 -> 10.94940995 | G17: ='Input - Data'!G15 -> 10.10003746 | H17: ='Input - Data'!H15 -> 9.697729214 | I17: ='Input - Data'!I15 -> 10.15733532 | J17: ='Input - Data'!J15 -> 10.20819257 | K17: ='Input - Data'!K15 -> 10.38867089 | L17: =IF(OR(L$8<$B$54,L$8>$D$55),'Input - Data'!L15,Readme!H23) -> 9.869237348 | M17: =IF(OR(M$8<$B$54,M$8>$D$55),'Input - Data'!M15,Readme!I23) -> 9.37577548 | N17: =IF(OR(N$8<$B$54,N$8>$D$55),'Input - Data'!N15,Readme!J23) -> 9.844564254 | O17: =IF(OR(O$8<$B$54,O$8>$D$55),'Input - Data'!O15,Readme!K23) -> 10.33679247 | P17: =IF(OR(P$8<$B$54,P$8>$D$55),'Input - Data'!P15,Readme!L23) -> 10.33679247 | Q17: =IF(OR(Q$8<$B$54,Q$8>$D$55),'Input - Data'!Q15,Readme!M23) -> 10.33679247 | R17: =IF(OR(R$8<$B$54,R$8>$D$55),'Input - Data'!R15,Readme!N23) -> 10.33679247 | S17: =IF(OR(S$8<$B$54,S$8>$D$55),'Input - Data'!S15,Readme!O23) -> 10.33679247 | T17: =IF(OR(T$8<$B$54,T$8>$D$55),'Input - Data'!T15,Readme!P23) -> 10.33679247 | U17: =IF(OR(U$8<$B$54,U$8>$D$55),'Input - Data'!U15,Readme!Q23) -> 10.33679247 | V17: =IF(OR(V$8<$B$54,V$8>$D$55),'Input - Data'!V15,Readme!R23) -> 10.33679247 | W17: =IF(OR(W$8<$B$54,W$8>$D$55),'Input - Data'!W15,Readme!S23) -> 10.33679247 | X17: =IF(OR(X$8<$B$54,X$8>$D$55),'Input - Data'!X15,Readme!T23) -> 10.33679247 | Y17: =IF(OR(Y$8<$B$54,Y$8>$D$55),'Input - Data'!Y15,Readme!U23) -> 10.33679247 | Z17: =IF(OR(Z$8<$B$54,Z$8>$D$55),'Input - Data'!Z15,Readme!V23) -> 10.33679247
A18: itf | B18: ='Input - Data'!B16 -> 2.463200262 | C18: ='Input - Data'!C16 -> 2.03472765 | D18: ='Input - Data'!D16 -> 2.803817976 | E18: ='Input - Data'!E16 -> 3.412469993 | F18: ='Input - Data'!F16 -> 3.506312078 | G18: ='Input - Data'!G16 -> 3.497051911 | H18: ='Input - Data'!H16 -> 3.871803137 | I18: ='Input - Data'!I16 -> 3.611484114 | J18: ='Input - Data'!J16 -> 3.583462805 | K18: ='Input - Data'!K16 -> 3.60111838 | L18: =IF(OR(L$8<$B$54,L$8>$D$55),'Input - Data'!L16,Readme!H24) -> 3.781174299 | M18: =IF(OR(M$8<$B$54,M$8>$D$55),'Input - Data'!M16,Readme!I24) -> 3.781174299 | N18: =IF(OR(N$8<$B$54,N$8>$D$55),'Input - Data'!N16,Readme!J24) -> 3.592115584 | O18: =IF(OR(O$8<$B$54,O$8>$D$55),'Input - Data'!O16,Readme!K24) -> 3.412509804 | P18: =IF(OR(P$8<$B$54,P$8>$D$55),'Input - Data'!P16,Readme!L24) -> 3.412509804 | Q18: =IF(OR(Q$8<$B$54,Q$8>$D$55),'Input - Data'!Q16,Readme!M24) -> 3.412509804 | R18: =IF(OR(R$8<$B$54,R$8>$D$55),'Input - Data'!R16,Readme!N24) -> 3.583135295 | S18: =IF(OR(S$8<$B$54,S$8>$D$55),'Input - Data'!S16,Readme!O24) -> 3.40397853 | T18: =IF(OR(T$8<$B$54,T$8>$D$55),'Input - Data'!T16,Readme!P24) -> 3.40397853 | U18: =IF(OR(U$8<$B$54,U$8>$D$55),'Input - Data'!U16,Readme!Q24) -> 3.574177456 | V18: =IF(OR(V$8<$B$54,V$8>$D$55),'Input - Data'!V16,Readme!R24) -> 3.395468584 | W18: =IF(OR(W$8<$B$54,W$8>$D$55),'Input - Data'!W16,Readme!S24) -> 3.395468584 | X18: =IF(OR(X$8<$B$54,X$8>$D$55),'Input - Data'!X16,Readme!T24) -> 3.39121361 | Y18: =IF(OR(Y$8<$B$54,Y$8>$D$55),'Input - Data'!Y16,Readme!U24) -> 3.370789739 | Z18: =IF(OR(Z$8<$B$54,Z$8>$D$55),'Input - Data'!Z16,Readme!V24) -> 3.350365868
A19: π t | B19: ='Input - Data'!B17 -> 5.6 | C19: ='Input - Data'!C17 -> 5.39 | D19: ='Input - Data'!D17 -> 4.916732752 | E19: ='Input - Data'!E17 -> 5.82 | F19: ='Input - Data'!F17 -> 2.36 | G19: ='Input - Data'!G17 -> 3.314724355 | H19: ='Input - Data'!H17 -> 4.73 | I19: ='Input - Data'!I17 -> 4.23 | J19: ='Input - Data'!J17 -> 4.08 | K19: ='Input - Data'!K17 -> 4.013079667 | L19: =IF(OR(L$8<$B$54,L$8>$D$55),'Input - Data'!L17,Readme!H25) -> 4.041365315 | M19: =IF(OR(M$8<$B$54,M$8>$D$55),'Input - Data'!M17,Readme!I25) -> 3.654278014 | N19: =IF(OR(N$8<$B$54,N$8>$D$55),'Input - Data'!N17,Readme!J25) -> 3.761262889 | O19: =IF(OR(O$8<$B$54,O$8>$D$55),'Input - Data'!O17,Readme!K25) -> 3.737199002 | P19: =IF(OR(P$8<$B$54,P$8>$D$55),'Input - Data'!P17,Readme!L25) -> 3.71837475 | Q19: =IF(OR(Q$8<$B$54,Q$8>$D$55),'Input - Data'!Q17,Readme!M25) -> 4 | R19: =IF(OR(R$8<$B$54,R$8>$D$55),'Input - Data'!R17,Readme!N25) -> 4 | S19: =IF(OR(S$8<$B$54,S$8>$D$55),'Input - Data'!S17,Readme!O25) -> 4 | T19: =IF(OR(T$8<$B$54,T$8>$D$55),'Input - Data'!T17,Readme!P25) -> 4 | U19: =IF(OR(U$8<$B$54,U$8>$D$55),'Input - Data'!U17,Readme!Q25) -> 4 | V19: =IF(OR(V$8<$B$54,V$8>$D$55),'Input - Data'!V17,Readme!R25) -> 4 | W19: =IF(OR(W$8<$B$54,W$8>$D$55),'Input - Data'!W17,Readme!S25) -> 4 | X19: =IF(OR(X$8<$B$54,X$8>$D$55),'Input - Data'!X17,Readme!T25) -> 4 | Y19: =IF(OR(Y$8<$B$54,Y$8>$D$55),'Input - Data'!Y17,Readme!U25) -> 4 | Z19: =IF(OR(Z$8<$B$54,Z$8>$D$55),'Input - Data'!Z17,Readme!V25) -> 4
A20: µt | B20: =1/(1-B13/100*(1-B14/B15)) -> 1.00392906 | C20: 1.01369901 | D20: 1.008210183 | E20: 1.016953558 | F20: 1.012959754 | G20: 1.018237805 | H20: 1.002600202 | I20: 1.011128039 | J20: 1.003146674 | K20: 0.9883991709 | L20: 1.00238475 | M20: 1.002265336 | N20: 1.00594076 | O20: 1.005642046 | P20: 1.005642046 | Q20: 1.00564779 | R20: 1.005931855 | S20: 1.005633591 | T20: 1.005633591 | U20: 1.005916937 | V20: 1.005619428 | W20: 1.005619428 | X20: =1/(1-X13/100*(1-X14/X15)) -> 1.005612347 | Y20: 1.005578357 | Z20: 1.00554437
A21: rˆtw | B21: n.a. | C21: =(((1+C18/100)*(1+C16/100)*C14/C15*B13/100+(1+C17/100)*B12/100)*C20/(1+C19/100)-1)*100 -> 2.536726589 | D21: 2.994472777 | E21: 2.867307232 | F21: 6.16867726 | G21: 5.546646073 | H21: 1.45430779 | I21: 3.643982912 | J21: 2.737327536 | K21: 0.857444211 | L21: 2.535875184 | M21: 2.553660459 | N21: 3.281040146 | O21: 3.518250325 | P21: 3.709253856 | Q21: 3.429597513 | R21: 3.554297793 | S21: 3.259994832 | T21: 3.431532823 | U21: 3.555681943 | V21: 3.262130961 | W21: 3.433487015 | X21: =(((1+X18/100)*(1+X16/100)*X14/X15*W13/100+(1+X17/100)*W12/100)*X20/(1+X19/100)-1)*100 -> 3.375936372 | Y21: =(((1+Y18/100)*(1+Y16/100)*Y14/Y15*X13/100+(1+Y17/100)*X12/100)*Y20/(1+Y19/100)-1)*100 -> 3.355762369 | Z21: =(((1+Z18/100)*(1+Z16/100)*Z14/Z15*Y13/100+(1+Z17/100)*Y12/100)*Z20/(1+Z19/100)-1)*100 -> 3.341486014
A22: gt | B22: ='Input - Data'!B18 -> 3.835682117 | C22: ='Input - Data'!C18 -> 4.128725633 | D22: ='Input - Data'!D18 -> 2.791554075 | E22: ='Input - Data'!E18 -> 3.058096332 | F22: ='Input - Data'!F18 -> 3.840046512 | G22: ='Input - Data'!G18 -> 3.893003331 | H22: ='Input - Data'!H18 -> 4.842866705 | I22: ='Input - Data'!I18 -> 3.845025913 | J22: ='Input - Data'!J18 -> 2.662336047 | K22: ='Input - Data'!K18 -> -8.993690565 | L22: =IF(OR(L$8<$B$54,L$8>$D$55),'Input - Data'!L18,Readme!H26) -> 4.230933496 | M22: =IF(OR(M$8<$B$54,M$8>$D$55),'Input - Data'!M18,Readme!I26) -> 2.746288693 | N22: =IF(OR(N$8<$B$54,N$8>$D$55),'Input - Data'!N18,Readme!J26) -> 2.408191185 | O22: =IF(OR(O$8<$B$54,O$8>$D$55),'Input - Data'!O18,Readme!K26) -> 2.660486026 | P22: =IF(OR(P$8<$B$54,P$8>$D$55),'Input - Data'!P18,Readme!L26) -> 2.835522081 | Q22: =IF(OR(Q$8<$B$54,Q$8>$D$55),'Input - Data'!Q18,Readme!M26) -> 2.835491687 | R22: =IF(OR(R$8<$B$54,R$8>$D$55),'Input - Data'!R18,Readme!N26) -> 2.835528595 | S22: =IF(OR(S$8<$B$54,S$8>$D$55),'Input - Data'!S18,Readme!O26) -> 2.835544872 | T22: =IF(OR(T$8<$B$54,T$8>$D$55),'Input - Data'!T18,Readme!P26) -> 3.83549772 | U22: =IF(OR(U$8<$B$54,U$8>$D$55),'Input - Data'!U18,Readme!Q26) -> 3.835523257 | V22: =IF(OR(V$8<$B$54,V$8>$D$55),'Input - Data'!V18,Readme!R26) -> 3.835520597 | W22: =IF(OR(W$8<$B$54,W$8>$D$55),'Input - Data'!W18,Readme!S26) -> 3.83553137 | X22: =IF(OR(X$8<$B$54,X$8>$D$55),'Input - Data'!X18,Readme!T26) -> 3.835542808 | Y22: =IF(OR(Y$8<$B$54,Y$8>$D$55),'Input - Data'!Y18,Readme!U26) -> 3.835552637 | Z22: =IF(OR(Z$8<$B$54,Z$8>$D$55),'Input - Data'!Z18,Readme!V26) -> 3.835562465
A23: φˆt | B23: n.a. | C23: =(1+C21/100)/(1+C22/100) -> 0.9847112405 | D23: =(1+D21/100)/(1+D22/100) -> 1.00197408 | E23: 0.9981487228 | F23: 1.022425171 | G23: 1.015916786 | H23: 0.9676796427 | I23: 0.9980640093 | J23: 1.000730467 | K23: 1.108246723 | L23: 0.9837374736 | M23: 0.9981252049 | N23: 1.008523234 | O23: 1.00835535 | P23: 1.0084964 | Q23: 1.005777245 | R23: 1.006989503 | S23: 1.004127464 | T23: 0.9961095684 | U23: 0.9973049559 | V23: 0.9944779047 | W23: 0.9961280657 | X23: =(1+X21/100)/(1+X22/100) -> 0.995573708 | Y23: 0.9953793257 | Z23: 0.9952417415
A24: pbt | B24: ='Input - Data'!B19 -> -3.283564952 | C24: ='Input - Data'!C19 -> -4.033543483 | D24: ='Input - Data'!D19 -> -5.610796375 | E24: ='Input - Data'!E19 -> -1.880094999 | F24: ='Input - Data'!F19 -> -0.3516936022 | G24: ='Input - Data'!G19 -> -0.1264194147 | H24: ='Input - Data'!H19 -> 0.01847718413 | I24: ='Input - Data'!I19 -> 0.8537145611 | J24: ='Input - Data'!J19 -> 0.564213633 | K24: ='Input - Data'!K19 -> -3.548590878 | L24: =IF(L$8<$B$54,'Input - Data'!L19,IF(L$8>=$D$54,$B$57,K24+L27)) -> -4.040950675 | M24: =IF(M$8<$B$54,'Input - Data'!M19,IF(M$8>=$D$54,$B$57,L24+M27)) -> -1.859083312 | N24: =IF(N$8<$B$54,'Input - Data'!N19,IF(N$8>=$D$54,$B$57,M24+N27)) -> 0.3227840522 | O24: =IF(O$8<$B$54,'Input - Data'!O19,IF(O$8>=$D$54,$B$57,N24+O27)) -> 2.504651416 | P24: =IF(P$8<$B$54,'Input - Data'!P19,IF(P$8>=$D$54,$B$57,O24+P27)) -> 4.68651878 | Q24: =IF(Q$8<$B$54,'Input - Data'!Q19,IF(Q$8>=$D$54,$B$57,P24+Q27)) -> 4.68651878 | R24: =IF(R$8<$B$54,'Input - Data'!R19,IF(R$8>=$D$54,$B$57,Q24+R27)) -> 4.68651878 | S24: =IF(S$8<$B$54,'Input - Data'!S19,IF(S$8>=$D$54,$B$57,R24+S27)) -> 4.68651878 | T24: =IF(T$8<$B$54,'Input - Data'!T19,IF(T$8>=$D$54,$B$57,S24+T27)) -> 4.68651878 | U24: =IF(U$8<$B$54,'Input - Data'!U19,IF(U$8>=$D$54,$B$57,T24+U27)) -> 4.68651878 | V24: =IF(V$8<$B$54,'Input - Data'!V19,IF(V$8>=$D$54,$B$57,U24+V27)) -> 4.68651878 | W24: =IF(W$8<$B$54,'Input - Data'!W19,IF(W$8>=$D$54,$B$57,V24+W27)) -> 4.68651878 | X24: =IF(X$8<$B$54,'Input - Data'!X19,IF(X$8>=$D$54,$B$57,W24+X27)) -> 4.68651878 | Y24: =IF(Y$8<$B$54,'Input - Data'!Y19,IF(Y$8>=$D$54,$B$57,X24+Y27)) -> 4.68651878 | Z24: =IF(Z$8<$B$54,'Input - Data'!Z19,IF(Z$8>=$D$54,$B$57,Y24+Z27)) -> 4.68651878
A25: oft (other net debt-creating flows) | B25: ='Input - Data'!B20 -> 0 | C25: ='Input - Data'!C20 -> 0 | D25: ='Input - Data'!D20 -> 0 | E25: ='Input - Data'!E20 -> 0 | F25: ='Input - Data'!F20 -> 0 | G25: ='Input - Data'!G20 -> 0 | H25: ='Input - Data'!H20 -> 0 | I25: ='Input - Data'!I20 -> 0 | J25: ='Input - Data'!J20 -> 0 | K25: ='Input - Data'!K20 -> 0 | L25: =IF(OR(L$8<$B$54,L$8>$D$55),'Input - Data'!L20,Readme!H27) -> 0.9 | M25: =IF(OR(M$8<$B$54,M$8>$D$55),'Input - Data'!M20,Readme!I27) -> 0.9 | N25: =IF(OR(N$8<$B$54,N$8>$D$55),'Input - Data'!N20,Readme!J27) -> 0.9 | O25: =IF(OR(O$8<$B$54,O$8>$D$55),'Input - Data'!O20,Readme!K27) -> 0.9 | P25: =IF(OR(P$8<$B$54,P$8>$D$55),'Input - Data'!P20,Readme!L27) -> 0.9 | Q25: =IF(OR(Q$8<$B$54,Q$8>$D$55),'Input - Data'!Q20,Readme!M27) -> 0.9 | R25: =IF(OR(R$8<$B$54,R$8>$D$55),'Input - Data'!R20,Readme!N27) -> 0.9 | S25: =IF(OR(S$8<$B$54,S$8>$D$55),'Input - Data'!S20,Readme!O27) -> 0.9 | T25: =IF(OR(T$8<$B$54,T$8>$D$55),'Input - Data'!T20,Readme!P27) -> 0.9 | U25: =IF(OR(U$8<$B$54,U$8>$D$55),'Input - Data'!U20,Readme!Q27) -> 0.9 | V25: =IF(OR(V$8<$B$54,V$8>$D$55),'Input - Data'!V20,Readme!R27) -> 0.9 | W25: =IF(OR(W$8<$B$54,W$8>$D$55),'Input - Data'!W20,Readme!S27) -> 0.9 | X25: =IF(OR(X$8<$B$54,X$8>$D$55),'Input - Data'!X20,Readme!T27) -> 0.9 | Y25: =IF(OR(Y$8<$B$54,Y$8>$D$55),'Input - Data'!Y20,Readme!U27) -> 0.9 | Z25: =IF(OR(Z$8<$B$54,Z$8>$D$55),'Input - Data'!Z20,Readme!V27) -> 0.9
A26: sft | B26: n.a. | C26: =((C15-C14)/C15)*((C13/100)*(C9-C10-C11)-(B13/100)*(B9-B10-B11)*(1+C16/100)/((1+C22/100)*(1+C19/100))) -> 0.09638422131 | D26: 0.1182497729 | E26: 0.04104030149 | F26: 0.006986394362 | G26: -0.03592432385 | H26: 0.01734995444 | I26: 0.01335517226 | J26: -0.003459509734 | K26: -0.1059817807 | L26: =((L15-L14)/L15)*((L13/100)*(L9-L10-L11)-(K13/100)*(K9-K10-K11)*(1+L16/100)/((1+L22/100)*(1+L19/100))) -> 0.02485775708 | M26: 0.01331696096 | N26: 0.002734904723 | O26: -0.008984437298 | P26: -0.003114596853 | Q26: -0.004128423133 | R26: 0.009873602424 | S26: -0.02127167789 | T26: -0.007304966054 | U26: 0.003213018589 | V26: -0.02122720197 | W26: -0.01072840306 | X26: -0.0120057843 | Y26: -0.01377291324 | Z26: -0.01467095382
A27: adjt | L27: =IF(L8=$B$54,(SUMIF($B$8:$Z$8,$B$54-1,$B$36:$Z$36)*SUMIF($L$8:$Z$8,$B$55,$L$42:$W$42)-($B$53)+SUMIF($L$8:$Z$8,$B$55,$L$46:$W$46)-(SUMIF($B$8:$Z$8,$B$54-1,$B$24:$W$24)*SUMIF($L$8:$Z$8,$B$55,$L$44:$Z$44)))/SUMIF($L$8:$Z$8,$B$55,$L$49:$W$49),K27) -> 0 | M27: 2.181867364 | N27: 2.181867364 | O27: 2.181867364 | P27: 2.181867364 | Q27: 2.181867364 | R27: 2.181867364 | S27: 2.181867364 | T27: 2.181867364 | U27: 2.181867364 | V27: 2.181867364 | W27: 2.181867364 | X27: 2.181867364 | Y27: 2.181867364 | Z27: 2.181867364
A28: Int paymentst (excl. guarantees) | B28: n.a. | C28: =(B9-B10-B11)*(1/((1+C22/100)*(1+C19/100)))*(B13/100*(1+C16/100)*(C14/C15)*(C18/100)+B12/100*(C17/100)) -> 1.524922734 | D28: 1.971303021 | E28: 2.260499189 | F28: 2.467481432 | G28: 2.337640614 | H28: 2.436932762 | I28: 2.593957444 | J28: 2.776848392 | K28: 2.969233883 | L28: 3.176624919 | M28: =(L9-L10-L11)*(1/((1+M22/100)*(1+M19/100)))*(L13/100*(1+M16/100)*(M14/M15)*(M18/100)+L12/100*(M17/100)) -> 3.266203378 | N28: 3.457616952 | O28: 3.680148798 | P28: 3.733085826 | Q28: 3.527113503 | R28: 3.371271069 | S28: 3.016859156 | T28: 2.875250052 | U28: 2.679102973 | V28: 2.329814467 | W28: 2.168817038 | X28: 1.933459245 | Y28: 1.697503065 | Z28: 1.467037904
A29: ifisct (excl. guarantees), used in final output | B29: n.a. | C29: =(B13/100)*(1+C16/100)*(C14/C15)*C18+(B12/100)*C17 -> 5.296901047 | D29: =(C13/100)*(1+D16/100)*(D14/D15)*D18+(C12/100)*D17 -> 6.01584327 | E29: 5.717677547 | F29: 5.901588475 | G29: 5.660723619 | H29: 6.005345623 | I29: 5.986986041 | J29: 6.169070632 | K29: 6.26598899 | L29: 6.197635278 | M29: 5.833349816 | N29: 5.89875531 | O29: 6.182083745 | P29: 6.389819181 | Q29: 6.389839345 | R29: 6.488557743 | S29: 6.187308973 | T29: 6.394783147 | U29: 6.493008571 | V29: 6.192525847 | W29: 6.399739178 | X29: =(W13/100)*(1+X16/100)*(X14/X15)*X18+(W12/100)*X17 -> 6.395442531 | Y29: =(X13/100)*(1+Y16/100)*(Y14/Y15)*Y18+(X12/100)*Y17 -> 6.388329864 | Z29: =(Y13/100)*(1+Z16/100)*(Z14/Z15)*Z18+(Y12/100)*Z17 -> 6.39979486
A30: φˆobt | B30: n.a. | C30: =((1+C16/100)*C14/C15*B13/100+B12/100)*C20/((1+C19/100)*(1+C22/100)) -> 0.9357828506 | D30: =((1+D16/100)*D14/D15*C13/100+C12/100)*D20/((1+D19/100)*(1+D22/100)) -> 0.9457340677 | E30: 0.9448310843 | F30: 0.9661824963 | G30: 0.9622169891 | H30: 0.9128449007 | I30: 0.94213515 | J30: 0.9428135079 | K30: 1.042818889 | L30: 0.9264502472 | M30: 0.9432283636 | N30: 0.9526809923 | O30: 0.9499785247 | P30: 0.9482497187 | Q30: 0.9456931568 | R30: 0.9459599466 | S30: 0.9459486336 | T30: 0.9365589323 | U30: 0.9368225857 | V30: 0.9368115899 | W30: 0.9365321358 | X30: =((1+X16/100)*X14/X15*W13/100+W12/100)*X20/((1+X19/100)*(1+X22/100)) -> 0.9360182154 | Y30: =((1+Y16/100)*Y14/Y15*X13/100+X12/100)*Y20/((1+Y19/100)*(1+Y22/100)) -> 0.9358920839 | Z30: =((1+Z16/100)*Z14/Z15*Y13/100+Y12/100)*Z20/((1+Z19/100)*(1+Z22/100)) -> 0.9356497591
A31: obt | B31: n.a. | C31: =C24-C28 -> -5.558466217 | D31: =D24-D28 -> -7.582099396 | E31: -4.140594188 | F31: -2.819175034 | G31: -2.464060029 | H31: -2.418455578 | I31: -1.740242883 | J31: -2.212634759 | K31: -6.517824761 | L31: =L24-L28 -> -7.217575594 | M31: -5.12528669 | N31: -3.1348329 | O31: -1.175497382 | P31: 0.9534329542 | Q31: 1.159405277 | R31: 1.31524771 | S31: 1.669659624 | T31: 1.811268728 | U31: 2.007415807 | V31: 2.356704313 | W31: 2.517701742 | X31: 2.753059535 | Y31: 2.989015715 | Z31: 3.219480876
A32: residualt | B32: n.a. | C32: =((C9-C10-C11)-C23*(B9-B10-B11)+C20*C24-C20*C25)/C20 -> 0.138351542 | D32: =((D9-D10-D11)-D23*(C9-C10-C11)+D20*D24-D20*D25)/D20 -> 2.032906839 | E32: -0.4986879269 | F32: -1.449112564 | G32: -0.5920586438 | H32: 3.787517649 | I32: 2.130800767 | J32: -2.70150378 | K32: 2.392616761 | L32: =((L9-L10-L11)-L23*(K9-K10-K11)+L20*L24-L20*L25)/L20 -> -1.882888923e-15 | M32: -5.98165388e-15 | N32: 8.939697897e-15 | O32: -1.103994238e-15 | P32: 2.207988476e-16 | Q32: -3.753558971e-15 | R32: -5.51838089e-16 | S32: -4.526414433e-15 | T32: 9.604830626e-15 | U32: 4.083662417e-15 | V32: 2.318440045e-15 | W32: 2.318440045e-15 | X32: 3.201677846e-15 | Y32: 1.214470576e-15 | Z32: -3.312304432e-16
A33: amtd | B33: n.a. | C33: ='Input - Data'!C21 -> 12.86249775 | D33: ='Input - Data'!D21 -> 13.54261434 | E33: ='Input - Data'!E21 -> 13.97350834 | F33: ='Input - Data'!F21 -> 12.12442486 | G33: ='Input - Data'!G21 -> 11.79007748 | H33: ='Input - Data'!H21 -> 10.6059941 | I33: ='Input - Data'!I21 -> 10.56460841 | J33: ='Input - Data'!J21 -> 9.976907437 | K33: ='Input - Data'!K21 -> 12.23437307 | L33: =IF(OR(L$8<$B$54,L$8>$D$55),'Input - Data'!L21,Readme!H28) -> 18.71030251 | M33: =IF(OR(M$8<$B$54,M$8>$D$55),'Input - Data'!M21,Readme!I28) -> 11.78253661 | N33: =IF(OR(N$8<$B$54,N$8>$D$55),'Input - Data'!N21,Readme!J28) -> 12.04987969 | O33: =IF(OR(O$8<$B$54,O$8>$D$55),'Input - Data'!O21,Readme!K28) -> 12.39849904 | P33: =IF(OR(P$8<$B$54,P$8>$D$55),'Input - Data'!P21,Readme!L28) -> 13.03107885 | Q33: =IF(OR(Q$8<$B$54,Q$8>$D$55),'Input - Data'!Q21,Readme!M28) -> 13.20303592 | R33: =IF(OR(R$8<$B$54,R$8>$D$55),'Input - Data'!R21,Readme!N28) -> 12.46900064 | S33: =IF(OR(S$8<$B$54,S$8>$D$55),'Input - Data'!S21,Readme!O28) -> 12.61600522 | T33: =IF(OR(T$8<$B$54,T$8>$D$55),'Input - Data'!T21,Readme!P28) -> 12.7356743 | U33: =IF(OR(U$8<$B$54,U$8>$D$55),'Input - Data'!U21,Readme!Q28) -> 12.80532205 | V33: =IF(OR(V$8<$B$54,V$8>$D$55),'Input - Data'!V21,Readme!R28) -> 12.76110612 | W33: =IF(OR(W$8<$B$54,W$8>$D$55),'Input - Data'!W21,Readme!S28) -> 12.67624668 | X33: =IF(OR(X$8<$B$54,X$8>$D$55),'Input - Data'!X21,Readme!T28) -> 13.67624668 | Y33: =IF(OR(Y$8<$B$54,Y$8>$D$55),'Input - Data'!Y21,Readme!U28) -> 14.67624668 | Z33: =IF(OR(Z$8<$B$54,Z$8>$D$55),'Input - Data'!Z21,Readme!V28) -> 15.67624668
A34: amtf | B34: n.a. | C34: ='Input - Data'!C22 -> 13.10908072 | D34: ='Input - Data'!D22 -> 13.85027235 | E34: ='Input - Data'!E22 -> 15.73847383 | F34: ='Input - Data'!F22 -> 11.17804023 | G34: ='Input - Data'!G22 -> 10.00832783 | H34: ='Input - Data'!H22 -> 9.742478028 | I34: ='Input - Data'!I22 -> 10.49196812 | J34: ='Input - Data'!J22 -> 9.976850677 | K34: ='Input - Data'!K22 -> 11.66645637 | L34: =IF(OR(L$8<$B$54,L$8>$D$55),'Input - Data'!L22,Readme!H29) -> 17.70601006 | M34: =IF(OR(M$8<$B$54,M$8>$D$55),'Input - Data'!M22,Readme!I29) -> 11.35382687 | N34: =IF(OR(N$8<$B$54,N$8>$D$55),'Input - Data'!N22,Readme!J29) -> 11.74224664 | O34: =IF(OR(O$8<$B$54,O$8>$D$55),'Input - Data'!O22,Readme!K29) -> 12.02893292 | P34: =IF(OR(P$8<$B$54,P$8>$D$55),'Input - Data'!P22,Readme!L29) -> 12.54499479 | Q34: =IF(OR(Q$8<$B$54,Q$8>$D$55),'Input - Data'!Q22,Readme!M29) -> 12.73682319 | R34: =IF(OR(R$8<$B$54,R$8>$D$55),'Input - Data'!R22,Readme!N29) -> 12.05990157 | S34: =IF(OR(S$8<$B$54,S$8>$D$55),'Input - Data'!S22,Readme!O29) -> 12.21178753 | T34: =IF(OR(T$8<$B$54,T$8>$D$55),'Input - Data'!T22,Readme!P29) -> 12.3102382 | U34: =IF(OR(U$8<$B$54,U$8>$D$55),'Input - Data'!U22,Readme!Q29) -> 12.36808552 | V34: =IF(OR(V$8<$B$54,V$8>$D$55),'Input - Data'!V22,Readme!R29) -> 12.33330073 | W34: =IF(OR(W$8<$B$54,W$8>$D$55),'Input - Data'!W22,Readme!S29) -> 12.25564513 | X34: =IF(OR(X$8<$B$54,X$8>$D$55),'Input - Data'!X22,Readme!T29) -> 13.25564513 | Y34: =IF(OR(Y$8<$B$54,Y$8>$D$55),'Input - Data'!Y22,Readme!U29) -> 14.25564513 | Z34: =IF(OR(Z$8<$B$54,Z$8>$D$55),'Input - Data'!Z22,Readme!V29) -> 15.25564513
A35: gfnt | B35: n.a. | C35: =(B9-B10-B11)*(B13/100*(1+C16/100)*(C14/C15)*(C18/100+C34/100)+B12/100*(C17/100+C33/100))/((1+C19/100)*(1+C22/100))-C24 -> 9.34982034 | D35: =(C9-C10-C11)*(C13/100*(1+D16/100)*(D14/D15)*(D18/100+D34/100)+C12/100*(D17/100+D33/100))/((1+D19/100)*(1+D22/100))-D24 -> 12.1319306 | E35: 10.23303171 | F35: 7.682128592 | G35: 6.891762938 | H35: 6.499184497 | I35: 6.336069952 | J35: 6.722531908 | K35: 12.14482022 | L35: =(K9-K10-K11)*(K13/100*(1+L16/100)*(L14/L15)*(L18/100+L34/100)+K12/100*(L17/100+L33/100))/((1+L19/100)*(1+L22/100))-L24 -> 16.51717144 | M35: 11.58466341 | N35: 10.12718253 | O35: 8.466708668 | P35: 6.538900811 | Q35: 6.021367024 | R35: 5.077425739 | S35: 4.399023405 | T35: 3.837325075 | U35: 3.202305782 | V35: 2.375679174 | W35: 1.720599506 | X35: 1.329702688 | Y35: 0.8662688519 | Z35: 0.3363438572
A36: dt (debt excluding uncalled guarantees) | B36: =B9-B10-B11 -> 31.5933688 | C36: =C9-C10-C11 -> 35.33939124 | D36: 43.11561343 | E36: 44.44062131 | F36: 44.32556858 | G36: 44.55695772 | H36: 46.89570166 | I36: 48.09620969 | J36: 44.85534884 | K36: 55.58307807 | L36: =L9-L10-L11 -> 59.6318904 | M36: 62.28542638 | N36: 63.39694469 | O36: 62.31294342 | P36: 59.03449664 | Q36: 55.56764915 | R36: 52.14705952 | S36: 48.55444413 | T36: 44.55769591 | U36: 40.62868758 | V36: 36.59653525 | W36: 32.64703902 | X36: 28.69476365 | Y36: 24.75453316 | Z36: 20.82923205
A37: Π * φˆt | B37: =IF(B$8<$D$54,0,IF(B$8=$D$54,B$23,IF(B$8<=$D$55,B$23*A37,0))) -> 0 | C37: 0 | D37: 0 | E37: 0 | F37: 0 | G37: 0 | H37: 0 | I37: 0 | J37: 0 | K37: 0 | L37: 0 | M37: 0 | N37: 0 | O37: 0 | P37: 0 | Q37: 1.005777245 | R37: 1.012807128 | S37: 1.016987452 | T37: 0 | U37: 0 | V37: 0 | W37: 0 | X37: =IF(X$8<$D$54,0,IF(X$8=$D$54,X$23,IF(X$8<=$D$55,X$23*W37,0))) -> 0 | Y37: =IF(Y$8<$D$54,0,IF(Y$8=$D$54,Y$23,IF(Y$8<=$D$55,Y$23*X37,0))) -> 0 | Z37: =IF(Z$8<$D$54,0,IF(Z$8=$D$54,Z$23,IF(Z$8<=$D$55,Z$23*Y37,0))) -> 0
A38: µt * F(Π * φˆt) | B38: =IF(B$8<$D$54,0,IF(B$8>$D$55,0,B$20/B37*SUMIF($L$8:$Z$8,$D$55,$L$37:$Z$37))) -> 0 | C38: 0 | D38: 0 | E38: 0 | F38: 0 | G38: 0 | H38: 0 | I38: 0 | J38: 0 | K38: 0 | L38: 0 | M38: 0 | N38: 0 | O38: 0 | P38: 0 | Q38: 1.016856554 | R38: 1.010083802 | S38: 1.005633591 | T38: 0 | U38: 0 | V38: 0 | W38: 0 | X38: 0 | Y38: 0 | Z38: 0
A39: Σ (µt * F(Π * φˆt)) | B39: =IF(B$8<$D$54,0,IF(B$8=$D$54,B$38,IF(B$8<=$D$55,B$38+A39,0))) -> 0 | C39: 0 | D39: 0 | E39: 0 | F39: 0 | G39: 0 | H39: 0 | I39: 0 | J39: 0 | K39: 0 | L39: 0 | M39: 0 | N39: 0 | O39: 0 | P39: 0 | Q39: 1.016856554 | R39: 2.026940356 | S39: 3.032573947 | T39: 0 | U39: 0 | V39: 0 | W39: 0 | X39: =IF(X$8<$D$54,0,IF(X$8=$D$54,X$38,IF(X$8<=$D$55,X$38+W39,0))) -> 0 | Y39: =IF(Y$8<$D$54,0,IF(Y$8=$D$54,Y$38,IF(Y$8<=$D$55,Y$38+X39,0))) -> 0 | Z39: =IF(Z$8<$D$54,0,IF(Z$8=$D$54,Z$38,IF(Z$8<=$D$55,Z$38+Y39,0))) -> 0
A40: oft * µt * F(Π * φˆt) | C40: =C25*C38 -> 0 | D40: 0 | E40: 0 | F40: 0 | G40: 0 | H40: 0 | I40: 0 | J40: 0 | K40: 0 | L40: 0 | M40: 0 | N40: 0 | O40: 0 | P40: 0 | Q40: 0.9151708989 | R40: 0.9090754216 | S40: 0.905070232 | T40: 0 | U40: 0 | V40: 0 | W40: 0 | X40: =X25*X38 -> 0 | Y40: 0 | Z40: 0
A41: Σ (oft * µt * F(Π * φˆt)) | C41: =IF(C$8<$D$54,0,IF(C$8=$D$54,C$40,IF(C$8<=$D$55,C$40+B41,0))) -> 0 | D41: 0 | E41: 0 | F41: 0 | G41: 0 | H41: 0 | I41: 0 | J41: 0 | K41: 0 | L41: 0 | M41: 0 | N41: 0 | O41: 0 | P41: 0 | Q41: 0.9151708989 | R41: 1.824246321 | S41: 2.729316552 | T41: 0 | U41: 0 | V41: 0 | W41: 0 | X41: =IF(X$8<$D$54,0,IF(X$8=$D$54,X$40,IF(X$8<=$D$55,X$40+W41,0))) -> 0 | Y41: =IF(Y$8<$D$54,0,IF(Y$8=$D$54,Y$40,IF(Y$8<=$D$55,Y$40+X41,0))) -> 0 | Z41: =IF(Z$8<$D$54,0,IF(Z$8=$D$54,Z$40,IF(Z$8<=$D$55,Z$40+Y41,0))) -> 0
A42: Π * φˆt | B42: =IF(B$8<$B$54,0,IF(B$8=$B$54,B$23,IF(B$8<=$B$55,B$23*A42,0))) -> 0 | C42: 0 | D42: 0 | E42: 0 | F42: 0 | G42: 0 | H42: 0 | I42: 0 | J42: 0 | K42: 0 | L42: 0 | M42: 0.9981252049 | N42: 1.006632459 | O42: 1.015043226 | P42: 1.02366744 | Q42: 0 | R42: 0 | S42: 0 | T42: 0 | U42: 0 | V42: 0 | W42: 0 | X42: =IF(X$8<$B$54,0,IF(X$8=$B$54,X$23,IF(X$8<=$B$55,X$23*W42,0))) -> 0 | Y42: =IF(Y$8<$B$54,0,IF(Y$8=$B$54,Y$23,IF(Y$8<=$B$55,Y$23*X42,0))) -> 0 | Z42: =IF(Z$8<$B$54,0,IF(Z$8=$B$54,Z$23,IF(Z$8<=$B$55,Z$23*Y42,0))) -> 0
A43: µt * F(Π * φˆt) | B43: =IF(B$8<$B$54,0,IF(B$8>$B$55,0,B$20/B42*SUMIF($L$8:$Z$8,$B$55,$L$42:$W$42))) -> 0 | C43: 0 | D43: 0 | E43: 0 | F43: 0 | G43: 0 | H43: 0 | I43: 0 | J43: 0 | K43: 0 | L43: =IF(L$8<$B$54,0,IF(L$8>$B$55,0,L$20/L42*SUMIF($L$8:$Z$8,$B$55,$L$42:$W$42))) -> 0 | M43: =IF(M$8<$B$54,0,IF(M$8>$B$55,0,M$20/M42*SUMIF($L$8:$Z$8,$B$55,$L$42:$W$42))) -> 1.027913517 | N43: =IF(N$8<$B$54,0,IF(N$8>$B$55,0,N$20/N42*SUMIF($L$8:$Z$8,$B$55,$L$42:$W$42))) -> 1.022964035 | O43: 1.014186384 | P43: 1.005642046 | Q43: 0 | R43: 0 | S43: 0 | T43: 0 | U43: 0 | V43: 0 | W43: 0 | X43: 0 | Y43: 0 | Z43: 0
A44: Σ (µt * F(Π * φˆt)) | B44: =IF(B$8<$B$54,0,IF(B$8=$B$54,B$43,IF(B$8<=$B$55,B$43+A44,0))) -> 0 | C44: 0 | D44: 0 | E44: 0 | F44: 0 | G44: 0 | H44: 0 | I44: 0 | J44: 0 | K44: 0 | L44: =IF(L$8<$B$54,0,IF(L$8=$B$54,L$43,IF(L$8<=$B$55,L$43+K44,0))) -> 0 | M44: =IF(M$8<$B$54,0,IF(M$8=$B$54,M$43,IF(M$8<=$B$55,M$43+L44,0))) -> 1.027913517 | N44: =IF(N$8<$B$54,0,IF(N$8=$B$54,N$43,IF(N$8<=$B$55,N$43+M44,0))) -> 2.050877552 | O44: 3.065063936 | P44: 4.070705983 | Q44: 0 | R44: 0 | S44: 0 | T44: 0 | U44: 0 | V44: 0 | W44: 0 | X44: =IF(X$8<$B$54,0,IF(X$8=$B$54,X$43,IF(X$8<=$B$55,X$43+W44,0))) -> 0 | Y44: =IF(Y$8<$B$54,0,IF(Y$8=$B$54,Y$43,IF(Y$8<=$B$55,Y$43+X44,0))) -> 0 | Z44: =IF(Z$8<$B$54,0,IF(Z$8=$B$54,Z$43,IF(Z$8<=$B$55,Z$43+Y44,0))) -> 0
A45: oft * µt * F(Π * φˆt) | C45: =C25*C43 -> 0 | D45: 0 | E45: 0 | F45: 0 | G45: 0 | H45: 0 | I45: 0 | J45: 0 | K45: 0 | L45: =L25*L43 -> 0 | M45: =M25*M43 -> 0.9251221654 | N45: =N25*N43 -> 0.9206676316 | O45: 0.9127677455 | P45: 0.9050778417 | Q45: 0 | R45: 0 | S45: 0 | T45: 0 | U45: 0 | V45: 0 | W45: 0 | X45: =X25*X43 -> 0 | Y45: 0 | Z45: 0
A46: Σ (oft * µt * F(Π * φˆt)) | C46: =IF(C$8<$B$54,0,IF(C$8=$B$54,C$45,IF(C$8<=$B$55,C$45+B46,0))) -> 0 | D46: 0 | E46: 0 | F46: 0 | G46: 0 | H46: 0 | I46: 0 | J46: 0 | K46: 0 | L46: =IF(L$8<$B$54,0,IF(L$8=$B$54,L$45,IF(L$8<=$B$55,L$45+K46,0))) -> 0 | M46: =IF(M$8<$B$54,0,IF(M$8=$B$54,M$45,IF(M$8<=$B$55,M$45+L46,0))) -> 0.9251221654 | N46: =IF(N$8<$B$54,0,IF(N$8=$B$54,N$45,IF(N$8<=$B$55,N$45+M46,0))) -> 1.845789797 | O46: 2.758557543 | P46: 3.663635384 | Q46: 0 | R46: 0 | S46: 0 | T46: 0 | U46: 0 | V46: 0 | W46: 0 | X46: =IF(X$8<$B$54,0,IF(X$8=$B$54,X$45,IF(X$8<=$B$55,X$45+W46,0))) -> 0 | Y46: =IF(Y$8<$B$54,0,IF(Y$8=$B$54,Y$45,IF(Y$8<=$B$55,Y$45+X46,0))) -> 0 | Z46: =IF(Z$8<$B$54,0,IF(Z$8=$B$54,Z$45,IF(Z$8<=$B$55,Z$45+Y46,0))) -> 0
A47: # years of Δ(pb) | C47: =IF(C$8<$B$54,0,IF(C$8=$B$54,1,IF(C$8<=$B$55,1+B47,0))) -> 0 | D47: 0 | E47: 0 | F47: 0 | G47: 0 | H47: 0 | I47: 0 | J47: 0 | K47: 0 | L47: 0 | M47: 1 | N47: 2 | O47: 3 | P47: 4 | Q47: 0 | R47: 0 | S47: 0 | T47: 0 | U47: 0 | V47: 0 | W47: 0 | X47: =IF(X$8<$B$54,0,IF(X$8=$B$54,1,IF(X$8<=$B$55,1+W47,0))) -> 0 | Y47: =IF(Y$8<$B$54,0,IF(Y$8=$B$54,1,IF(Y$8<=$B$55,1+X47,0))) -> 0 | Z47: =IF(Z$8<$B$54,0,IF(Z$8=$B$54,1,IF(Z$8<=$B$55,1+Y47,0))) -> 0
A48: # years of Δ(pb) * µt * F(Π * φˆt) | C48: =IF(C$8<$B$54,0,IF(C$8>$B$55,0,C$20*C47/C42*SUMIF($L$8:$Z$8,$B$55,$L$42:$W$42))) -> 0 | D48: 0 | E48: 0 | F48: 0 | G48: 0 | H48: 0 | I48: 0 | J48: 0 | K48: 0 | L48: =IF(L$8<$B$54,0,IF(L$8>$B$55,0,L$20*L47/L42*SUMIF($L$8:$Z$8,$B$55,$L$42:$W$42))) -> 0 | M48: =IF(M$8<$B$54,0,IF(M$8>$B$55,0,M$20*M47/M42*SUMIF($L$8:$Z$8,$B$55,$L$42:$W$42))) -> 1.027913517 | N48: =IF(N$8<$B$54,0,IF(N$8>$B$55,0,N$20*N47/N42*SUMIF($L$8:$Z$8,$B$55,$L$42:$W$42))) -> 2.04592807 | O48: 3.042559152 | P48: 4.022568185 | Q48: 0 | R48: 0 | S48: 0 | T48: 0 | U48: 0 | V48: 0 | W48: 0 | X48: 0 | Y48: 0 | Z48: 0
A49: Σ (# years of Δ(pb) * µt * F(Π * φˆt)) | C49: =IF(C$8<$B$54,0,IF(C$8=$B$54,C$48,IF(C$8<=$B$55,C$48+B49,0))) -> 0 | D49: 0 | E49: 0 | F49: 0 | G49: 0 | H49: 0 | I49: 0 | J49: 0 | K49: 0 | L49: =IF(L$8<$B$54,0,IF(L$8=$B$54,L$48,IF(L$8<=$B$55,L$48+K49,0))) -> 0 | M49: =IF(M$8<$B$54,0,IF(M$8=$B$54,M$48,IF(M$8<=$B$55,M$48+L49,0))) -> 1.027913517 | N49: =IF(N$8<$B$54,0,IF(N$8=$B$54,N$48,IF(N$8<=$B$55,N$48+M49,0))) -> 3.073841587 | O49: 6.116400739 | P49: 10.13896892 | Q49: 0 | R49: 0 | S49: 0 | T49: 0 | U49: 0 | V49: 0 | W49: 0 | X49: =IF(X$8<$B$54,0,IF(X$8=$B$54,X$48,IF(X$8<=$B$55,X$48+W49,0))) -> 0 | Y49: =IF(Y$8<$B$54,0,IF(Y$8=$B$54,Y$48,IF(Y$8<=$B$55,Y$48+X49,0))) -> 0 | Z49: =IF(Z$8<$B$54,0,IF(Z$8=$B$54,Z$48,IF(Z$8<=$B$55,Z$48+Y49,0))) -> 0
A51: Debt Target
A52: d to start adjustment | B52: =SUMIF($B$8:$Z$8,$B$54-1,$B$36:$Z$36) -> 59.6318904
A53: Sub-target d (by end of first adjustment subperiod) | B53: =($D$53-SUMIF($L$8:$Z$8,$D$55,$L$10:$Z$10)-SUMIF($L$8:$Z$8,$D$55,$L$11:$Z$11))/SUMIF($L$8:$Z$8,$D$55,$L$37:$Z$37)+$B$57*SUMIF($L$8:$Z$8,$D$55,$L$39:$Z$39)/SUMIF($L$8:$Z$8,$D$55,$L$37:$Z$37)-SUMIF($L$8:$Z$8,$D$55,$L$41:$W$41)/SUMIF($L$8:$Z$8,$D$55,$L$37:$Z$37) -> 59.03449664 | C53: Target d (end of adjustment) | D53: =Readme!B24 -> 50
A54: First adjustment subperiod starts | B54: 2022 | C54: Second adjustment subperiod starts | D54: =B55+1 -> 2026
A55: First adjustment subperiod ends | B55: 2025 | C55: Second adjustment subperiod ends | D55: 2028
A56: Years of first adjustment subperiod | B56: =B55-B54+1 -> 4 | C56: Years of first adjustment subperiod | D56: =D55-D54+1 -> 3
A57: pb for second adjustment subperiod | B57: 4.68651878

Sheet CustomizedAdj - GFN
A1: Cell code: Yellow cells are values to be inputed by the user. White cells refer to values generated by the template, or constructed to satisfy certain constraints, using formulas (e.g., accounting definitions, solutions to equations).
A4: Debt Target Customized Adjustment Scenario, to reduce debt in k periods. Units of macrofiscal variables are as indicated in "Input - Data".
A5: ="Country:"&" "&CountryName -> Country: Macondo
L7: First Year of Projection
A8: Year | B8: =C8-1 -> 2011 | C8: 2012 | D8: 2013 | E8: 2014 | F8: 2015 | G8: 2016 | H8: 2017 | I8: 2018 | J8: 2019 | K8: =L8-1 -> 2020 | L8: =FirstYear -> 2021 | M8: =L8+1 -> 2022 | N8: 2023 | O8: 2024 | P8: 2025 | Q8: 2026 | R8: 2027 | S8: 2028 | T8: 2029 | U8: 2030 | V8: 2031 | W8: 2032 | X8: 2033 | Y8: 2034 | Z8: 2035
A9: dt (debt including uncalled guarantees) | B9: ='Input - Data'!B9 -> 31.5933688 | C9: ='Input - Data'!C9 -> 35.33939124 | D9: ='Input - Data'!D9 -> 43.11561343 | E9: ='Input - Data'!E9 -> 44.44062131 | F9: ='Input - Data'!F9 -> 44.32556858 | G9: ='Input - Data'!G9 -> 45.98041253 | H9: ='Input - Data'!H9 -> 47.43639858 | I9: ='Input - Data'!I9 -> 48.5464043 | J9: ='Input - Data'!J9 -> 48.67164741 | K9: ='Input - Data'!K9 -> 58.86485128 | L9: =(K9-K10-K11)*L23-L20*L24+L20*L25+(L10+L11) -> 61.90891752 | M9: 65.05245676 | N9: 67.45766739 | O9: 68.47390796 | P9: 68.19445285 | Q9: 67.26209376 | R9: 66.43896521 | S9: 64.73735132 | T9: 63.17699579 | U9: 61.69744615 | V9: 60.04198676 | W9: 58.49710765 | X9: 56.92681214 | Y9: 55.35216429 | Z9: 53.77741919
A10: o/w stock of local-currency guarantees (uncalled) | B10: ='Input - Data'!B10 -> 0 | C10: ='Input - Data'!C10 -> 0 | D10: ='Input - Data'!D10 -> 0 | E10: ='Input - Data'!E10 -> 0 | F10: ='Input - Data'!F10 -> 0 | G10: ='Input - Data'!G10 -> 0.3558637011 | H10: ='Input - Data'!H10 -> 0.1351742319 | I10: ='Input - Data'!I10 -> 0.1125486542 | J10: ='Input - Data'!J10 -> 0.9540746431 | K10: ='Input - Data'!K10 -> 0.8204433033 | L10: ='Input - Data'!L10 -> 0.56925678 | M10: ='Input - Data'!M10 -> 0.5008202286 | N10: ='Input - Data'!N10 -> 0.4393407941 | O10: ='Input - Data'!O10 -> 0.3848479606 | P10: ='Input - Data'!P10 -> 0.3584565938 | Q10: ='Input - Data'!Q10 -> 0.3584565938 | R10: ='Input - Data'!R10 -> 0.3672537161 | S10: ='Input - Data'!S10 -> 0.3613889679 | T10: ='Input - Data'!T10 -> 0.3623664259 | U10: ='Input - Data'!U10 -> 0.3636697033 | V10: ='Input - Data'!V10 -> 0.3624750324 | W10: ='Input - Data'!W10 -> 0.3624750324 | X10: ='Input - Data'!X10 -> 0.3625293356 | Y10: ='Input - Data'!Y10 -> 0.3624424505 | Z10: ='Input - Data'!Z10 -> 0.3623555653
A11: o/w stock of foreign-currency guarantees (uncalled) | B11: ='Input - Data'!B11 -> 0 | C11: ='Input - Data'!C11 -> 0 | D11: ='Input - Data'!D11 -> 0 | E11: ='Input - Data'!E11 -> 0 | F11: ='Input - Data'!F11 -> 0 | G11: ='Input - Data'!G11 -> 1.067591103 | H11: ='Input - Data'!H11 -> 0.4055226956 | I11: ='Input - Data'!I11 -> 0.3376459625 | J11: ='Input - Data'!J11 -> 2.862223929 | K11: ='Input - Data'!K11 -> 2.46132991 | L11: ='Input - Data'!L11 -> 1.70777034 | M11: ='Input - Data'!M11 -> 1.502460686 | N11: ='Input - Data'!N11 -> 1.318022382 | O11: ='Input - Data'!O11 -> 1.154543882 | P11: ='Input - Data'!P11 -> 1.075369782 | Q11: ='Input - Data'!Q11 -> 1.075369782 | R11: ='Input - Data'!R11 -> 1.101761148 | S11: ='Input - Data'!S11 -> 1.084166904 | T11: ='Input - Data'!T11 -> 1.087099278 | U11: ='Input - Data'!U11 -> 1.09100911 | V11: ='Input - Data'!V11 -> 1.087425097 | W11: ='Input - Data'!W11 -> 1.087425097 | X11: ='Input - Data'!X11 -> 1.087588007 | Y11: ='Input - Data'!Y11 -> 1.087327351 | Z11: ='Input - Data'!Z11 -> 1.087066696
A12: 1 - αt (share excl. guarantees) | B12: =100-B13 -> 44.95 | C12: =100-C13 -> 41.13 | D12: 30.39 | E12: 31.53 | F12: 32.01 | G12: 36.64 | H12: 35.82 | I12: 38.8 | J12: 39.33 | K12: 39.55 | L12: 36.5275 | M12: 36.5275 | N12: 39.701125 | O12: 42.71606875 | P12: 42.71606875 | Q12: 42.71606875 | R12: 39.85187219 | S12: 42.85927858 | T12: 42.85927858 | U12: 40.00224251 | V12: 43.00213038 | W12: 43.00213038 | X12: 43.07355628 | Y12: 43.41640061 | Z12: 43.75924494
A13: αt (share excl. guarantees) | B13: ='Input - Data'!B12 -> 55.05 | C13: ='Input - Data'!C12 -> 58.87 | D13: ='Input - Data'!D12 -> 69.61 | E13: ='Input - Data'!E12 -> 68.47 | F13: ='Input - Data'!F12 -> 67.99 | G13: ='Input - Data'!G12 -> 63.36 | H13: ='Input - Data'!H12 -> 64.18 | I13: ='Input - Data'!I12 -> 61.2 | J13: ='Input - Data'!J12 -> 60.67 | K13: =IF(OR(K8<$B$49-1,K8>$B$50),'Input - Data'!K12,Readme!G20) -> 60.45 | L13: =IF(OR(L8<$B$54-1,L8>$D$55),'Input - Data'!L12,Readme!H20) -> 63.4725 | M13: =IF(OR(M8<$B$54-1,M8>$D$55),'Input - Data'!M12,Readme!I20) -> 63.4725 | N13: =IF(OR(N8<$B$54-1,N8>$D$55),'Input - Data'!N12,Readme!J20) -> 60.298875 | O13: =IF(OR(O8<$B$54-1,O8>$D$55),'Input - Data'!O12,Readme!K20) -> 57.28393125 | P13: =IF(OR(P8<$B$54-1,P8>$D$55),'Input - Data'!P12,Readme!L20) -> 57.28393125 | Q13: =IF(OR(Q8<$B$54-1,Q8>$D$55),'Input - Data'!Q12,Readme!M20) -> 57.28393125 | R13: =IF(OR(R8<$B$54-1,R8>$D$55),'Input - Data'!R12,Readme!N20) -> 60.14812781 | S13: =IF(OR(S8<$B$54-1,S8>$D$55),'Input - Data'!S12,Readme!O20) -> 57.14072142 | T13: =IF(OR(T8<$B$54-1,T8>$D$55),'Input - Data'!T12,Readme!P20) -> 57.14072142 | U13: =IF(OR(U8<$B$54-1,U8>$D$55),'Input - Data'!U12,Readme!Q20) -> 59.99775749 | V13: =IF(OR(V8<$B$54-1,V8>$D$55),'Input - Data'!V12,Readme!R20) -> 56.99786962 | W13: =IF(OR(W8<$B$54-1,W8>$D$55),'Input - Data'!W12,Readme!S20) -> 56.99786962 | X13: =IF(OR(X8<$B$54-1,X8>$D$55),'Input - Data'!X12,Readme!T20) -> 56.92644372 | Y13: =IF(OR(Y8<$B$54-1,Y8>$D$55),'Input - Data'!Y12,Readme!U20) -> 56.58359939 | Z13: =IF(OR(Z8<$B$54-1,Z8>$D$55),'Input - Data'!Z12,Readme!V20) -> 56.24075506
A14: et (avg) | B14: ='Input - Data'!B13 -> 18.91655317 | C14: ='Input - Data'!C13 -> 19.50405608 | D14: ='Input - Data'!D13 -> 20.35654016 | E14: ='Input - Data'!E13 -> 20.98862077 | F14: ='Input - Data'!F13 -> 21.9467 | G14: ='Input - Data'!G13 -> 22.8385 | H14: ='Input - Data'!H13 -> 23.49258333 | I14: ='Input - Data'!I13 -> 23.90111647 | J14: ='Input - Data'!J13 -> 24.50763036 | K14: ='Input - Data'!K13 -> 24.5823 | L14: =IF(OR(L8<$B$54,L8>$D$55),'Input - Data'!L13,Readme!H21) -> 24.20516714 | M14: =IF(OR(M8<$B$54,M8>$D$55),'Input - Data'!M13,Readme!I21) -> 24.38337221 | N14: =IF(OR(N8<$B$54,N8>$D$55),'Input - Data'!N13,Readme!J21) -> 24.71496283 | O14: =IF(OR(O8<$B$54,O8>$D$55),'Input - Data'!O13,Readme!K21) -> 25.20875222 | P14: =IF(OR(P8<$B$54,P8>$D$55),'Input - Data'!P13,Readme!L21) -> 25.71240722 | Q14: =IF(OR(Q8<$B$54,Q8>$D$55),'Input - Data'!Q13,Readme!M21) -> 26.22639277 | R14: =IF(OR(R8<$B$54,R8>$D$55),'Input - Data'!R13,Readme!N21) -> 26.75092062 | S14: =IF(OR(S8<$B$54,S8>$D$55),'Input - Data'!S13,Readme!O21) -> 27.28593903 | T14: =IF(OR(T8<$B$54,T8>$D$55),'Input - Data'!T13,Readme!P21) -> 27.83165781 | U14: =IF(OR(U8<$B$54,U8>$D$55),'Input - Data'!U13,Readme!Q21) -> 28.38829097 | V14: =IF(OR(V8<$B$54,V8>$D$55),'Input - Data'!V13,Readme!R21) -> 28.95605679 | W14: =IF(OR(W8<$B$54,W8>$D$55),'Input - Data'!W13,Readme!S21) -> 29.53517793 | X14: =IF(OR(X8<$B$54,X8>$D$55),'Input - Data'!X13,Readme!T21) -> 30.09737741 | Y14: =IF(OR(Y8<$B$54,Y8>$D$55),'Input - Data'!Y13,Readme!U21) -> 30.66521003 | Z14: =IF(OR(Z8<$B$54,Z8>$D$55),'Input - Data'!Z13,Readme!V21) -> 31.23304265
A15: et (eop) | B15: ='Input - Data'!B14 -> 19.052 | C15: ='Input - Data'!C14 -> 19.9623 | D15: ='Input - Data'!D14 -> 20.5975 | E15: ='Input - Data'!E14 -> 21.5124 | F15: ='Input - Data'!F14 -> 22.3676 | G15: ='Input - Data'!G14 -> 23.5029 | H15: ='Input - Data'!H14 -> 23.5879 | I15: ='Input - Data'!I14 -> 24.3388 | J15: ='Input - Data'!J14 -> 24.635 | K15: ='Input - Data'!K14 -> 24.1141 | L15: =IF(OR(L8<$B$54,L8>$D$55),'Input - Data'!L14,Readme!H22) -> 24.29623427 | M15: =IF(OR(M8<$B$54,M8>$D$55),'Input - Data'!M14,Readme!I22) -> 24.47051014 | N15: =IF(OR(N8<$B$54,N8>$D$55),'Input - Data'!N14,Readme!J22) -> 24.95941552 | O15: =IF(OR(O8<$B$54,O8>$D$55),'Input - Data'!O14,Readme!K22) -> 25.45808893 | P15: =IF(OR(P8<$B$54,P8>$D$55),'Input - Data'!P14,Readme!L22) -> 25.96672551 | Q15: =IF(OR(Q8<$B$54,Q8>$D$55),'Input - Data'!Q14,Readme!M22) -> 26.48606002 | R15: =IF(OR(R8<$B$54,R8>$D$55),'Input - Data'!R14,Readme!N22) -> 27.01578122 | S15: =IF(OR(S8<$B$54,S8>$D$55),'Input - Data'!S14,Readme!O22) -> 27.55609685 | T15: =IF(OR(T8<$B$54,T8>$D$55),'Input - Data'!T14,Readme!P22) -> 28.10721878 | U15: =IF(OR(U8<$B$54,U8>$D$55),'Input - Data'!U14,Readme!Q22) -> 28.66936316 | V15: =IF(OR(V8<$B$54,V8>$D$55),'Input - Data'!V14,Readme!R22) -> 29.24275042 | W15: =IF(OR(W8<$B$54,W8>$D$55),'Input - Data'!W14,Readme!S22) -> 29.82760543 | X15: =IF(OR(X8<$B$54,X8>$D$55),'Input - Data'!X14,Readme!T22) -> 30.39537125 | Y15: =IF(OR(Y8<$B$54,Y8>$D$55),'Input - Data'!Y14,Readme!U22) -> 30.96882597 | Z15: =IF(OR(Z8<$B$54,Z8>$D$55),'Input - Data'!Z14,Readme!V22) -> 31.54228069
A16: εt | B16: n.a. | C16: =(C15/B15-1)*100 -> 4.777976066 | D16: 3.181998066 | E16: 4.441801189 | F16: 3.97538164 | G16: 5.07564513 | H16: 0.3616574976 | I16: 3.183411834 | J16: 1.216986869 | K16: -2.114471281 | L16: =IF(OR(L$8<$B$54,L$8>$D$55),('Input - Data'!L14/'Input - Data'!K14-1)*100,(Readme!H22/Readme!G22-1)*100) -> 0.755301981 | M16: =IF(OR(M$8<$B$54,M$8>$D$55),('Input - Data'!M14/'Input - Data'!L14-1)*100,(Readme!I22/Readme!H22-1)*100) -> 0.71729577 | N16: =IF(OR(N$8<$B$54,N$8>$D$55),('Input - Data'!N14/'Input - Data'!M14-1)*100,(Readme!J22/Readme!I22-1)*100) -> 1.997937032 | O16: =IF(OR(O$8<$B$54,O$8>$D$55),('Input - Data'!O14/'Input - Data'!N14-1)*100,(Readme!K22/Readme!J22-1)*100) -> 1.997937032 | P16: =IF(OR(P$8<$B$54,P$8>$D$55),('Input - Data'!P14/'Input - Data'!O14-1)*100,(Readme!L22/Readme!K22-1)*100) -> 1.997937032 | Q16: =IF(OR(Q$8<$B$54,Q$8>$D$55),('Input - Data'!Q14/'Input - Data'!P14-1)*100,(Readme!M22/Readme!L22-1)*100) -> 2 | R16: =IF(OR(R$8<$B$54,R$8>$D$55),('Input - Data'!R14/'Input - Data'!Q14-1)*100,(Readme!N22/Readme!M22-1)*100) -> 2 | S16: =IF(OR(S$8<$B$54,S$8>$D$55),('Input - Data'!S14/'Input - Data'!R14-1)*100,(Readme!O22/Readme!N22-1)*100) -> 2 | T16: =IF(OR(T$8<$B$54,T$8>$D$55),('Input - Data'!T14/'Input - Data'!S14-1)*100,(Readme!P22/Readme!O22-1)*100) -> 2 | U16: =IF(OR(U$8<$B$54,U$8>$D$55),('Input - Data'!U14/'Input - Data'!T14-1)*100,(Readme!Q22/Readme!P22-1)*100) -> 2 | V16: =IF(OR(V$8<$B$54,V$8>$D$55),('Input - Data'!V14/'Input - Data'!U14-1)*100,(Readme!R22/Readme!Q22-1)*100) -> 2 | W16: =IF(OR(W$8<$B$54,W$8>$D$55),('Input - Data'!W14/'Input - Data'!V14-1)*100,(Readme!S22/Readme!R22-1)*100) -> 2 | X16: =IF(OR(X$8<$B$54,X$8>$D$55),('Input - Data'!X14/'Input - Data'!W14-1)*100,(Readme!T22/Readme!S22-1)*100) -> 1.903491116 | Y16: =IF(OR(Y$8<$B$54,Y$8>$D$55),('Input - Data'!Y14/'Input - Data'!X14-1)*100,(Readme!U22/Readme!T22-1)*100) -> 1.886651477 | Z16: =IF(OR(Z$8<$B$54,Z$8>$D$55),('Input - Data'!Z14/'Input - Data'!Y14-1)*100,(Readme!V22/Readme!U22-1)*100) -> 1.851716048
A17: itd | B17: ='Input - Data'!B15 -> 8.918758936 | C17: ='Input - Data'!C15 -> 9.232938599 | D17: ='Input - Data'!D15 -> 10.53400775 | E17: ='Input - Data'!E15 -> 10.84946009 | F17: ='Input - Data'!F15 -> 10.94940995 | G17: ='Input - Data'!G15 -> 10.10003746 | H17: ='Input - Data'!H15 -> 9.697729214 | I17: ='Input - Data'!I15 -> 10.15733532 | J17: ='Input - Data'!J15 -> 10.20819257 | K17: ='Input - Data'!K15 -> 10.38867089 | L17: =IF(OR(L$8<$B$54,L$8>$D$55),'Input - Data'!L15,Readme!H23) -> 9.869237348 | M17: =IF(OR(M$8<$B$54,M$8>$D$55),'Input - Data'!M15,Readme!I23) -> 9.37577548 | N17: =IF(OR(N$8<$B$54,N$8>$D$55),'Input - Data'!N15,Readme!J23) -> 9.844564254 | O17: =IF(OR(O$8<$B$54,O$8>$D$55),'Input - Data'!O15,Readme!K23) -> 10.33679247 | P17: =IF(OR(P$8<$B$54,P$8>$D$55),'Input - Data'!P15,Readme!L23) -> 10.33679247 | Q17: =IF(OR(Q$8<$B$54,Q$8>$D$55),'Input - Data'!Q15,Readme!M23) -> 10.33679247 | R17: =IF(OR(R$8<$B$54,R$8>$D$55),'Input - Data'!R15,Readme!N23) -> 10.33679247 | S17: =IF(OR(S$8<$B$54,S$8>$D$55),'Input - Data'!S15,Readme!O23) -> 10.33679247 | T17: =IF(OR(T$8<$B$54,T$8>$D$55),'Input - Data'!T15,Readme!P23) -> 10.33679247 | U17: =IF(OR(U$8<$B$54,U$8>$D$55),'Input - Data'!U15,Readme!Q23) -> 10.33679247 | V17: =IF(OR(V$8<$B$54,V$8>$D$55),'Input - Data'!V15,Readme!R23) -> 10.33679247 | W17: =IF(OR(W$8<$B$54,W$8>$D$55),'Input - Data'!W15,Readme!S23) -> 10.33679247 | X17: =IF(OR(X$8<$B$54,X$8>$D$55),'Input - Data'!X15,Readme!T23) -> 10.33679247 | Y17: =IF(OR(Y$8<$B$54,Y$8>$D$55),'Input - Data'!Y15,Readme!U23) -> 10.33679247 | Z17: =IF(OR(Z$8<$B$54,Z$8>$D$55),'Input - Data'!Z15,Readme!V23) -> 10.33679247
A18: itf | B18: ='Input - Data'!B16 -> 2.463200262 | C18: ='Input - Data'!C16 -> 2.03472765 | D18: ='Input - Data'!D16 -> 2.803817976 | E18: ='Input - Data'!E16 -> 3.412469993 | F18: ='Input - Data'!F16 -> 3.506312078 | G18: ='Input - Data'!G16 -> 3.497051911 | H18: ='Input - Data'!H16 -> 3.871803137 | I18: ='Input - Data'!I16 -> 3.611484114 | J18: ='Input - Data'!J16 -> 3.583462805 | K18: ='Input - Data'!K16 -> 3.60111838 | L18: =IF(OR(L$8<$B$54,L$8>$D$55),'Input - Data'!L16,Readme!H24) -> 3.781174299 | M18: =IF(OR(M$8<$B$54,M$8>$D$55),'Input - Data'!M16,Readme!I24) -> 3.781174299 | N18: =IF(OR(N$8<$B$54,N$8>$D$55),'Input - Data'!N16,Readme!J24) -> 3.592115584 | O18: =IF(OR(O$8<$B$54,O$8>$D$55),'Input - Data'!O16,Readme!K24) -> 3.412509804 | P18: =IF(OR(P$8<$B$54,P$8>$D$55),'Input - Data'!P16,Readme!L24) -> 3.412509804 | Q18: =IF(OR(Q$8<$B$54,Q$8>$D$55),'Input - Data'!Q16,Readme!M24) -> 3.412509804 | R18: =IF(OR(R$8<$B$54,R$8>$D$55),'Input - Data'!R16,Readme!N24) -> 3.583135295 | S18: =IF(OR(S$8<$B$54,S$8>$D$55),'Input - Data'!S16,Readme!O24) -> 3.40397853 | T18: =IF(OR(T$8<$B$54,T$8>$D$55),'Input - Data'!T16,Readme!P24) -> 3.40397853 | U18: =IF(OR(U$8<$B$54,U$8>$D$55),'Input - Data'!U16,Readme!Q24) -> 3.574177456 | V18: =IF(OR(V$8<$B$54,V$8>$D$55),'Input - Data'!V16,Readme!R24) -> 3.395468584 | W18: =IF(OR(W$8<$B$54,W$8>$D$55),'Input - Data'!W16,Readme!S24) -> 3.395468584 | X18: =IF(OR(X$8<$B$54,X$8>$D$55),'Input - Data'!X16,Readme!T24) -> 3.39121361 | Y18: =IF(OR(Y$8<$B$54,Y$8>$D$55),'Input - Data'!Y16,Readme!U24) -> 3.370789739 | Z18: =IF(OR(Z$8<$B$54,Z$8>$D$55),'Input - Data'!Z16,Readme!V24) -> 3.350365868
A19: π t | B19: ='Input - Data'!B17 -> 5.6 | C19: ='Input - Data'!C17 -> 5.39 | D19: ='Input - Data'!D17 -> 4.916732752 | E19: ='Input - Data'!E17 -> 5.82 | F19: ='Input - Data'!F17 -> 2.36 | G19: ='Input - Data'!G17 -> 3.314724355 | H19: ='Input - Data'!H17 -> 4.73 | I19: ='Input - Data'!I17 -> 4.23 | J19: ='Input - Data'!J17 -> 4.08 | K19: ='Input - Data'!K17 -> 4.013079667 | L19: =IF(OR(L$8<$B$54,L$8>$D$55),'Input - Data'!L17,Readme!H25) -> 4.041365315 | M19: =IF(OR(M$8<$B$54,M$8>$D$55),'Input - Data'!M17,Readme!I25) -> 3.654278014 | N19: =IF(OR(N$8<$B$54,N$8>$D$55),'Input - Data'!N17,Readme!J25) -> 3.761262889 | O19: =IF(OR(O$8<$B$54,O$8>$D$55),'Input - Data'!O17,Readme!K25) -> 3.737199002 | P19: =IF(OR(P$8<$B$54,P$8>$D$55),'Input - Data'!P17,Readme!L25) -> 3.71837475 | Q19: =IF(OR(Q$8<$B$54,Q$8>$D$55),'Input - Data'!Q17,Readme!M25) -> 4 | R19: =IF(OR(R$8<$B$54,R$8>$D$55),'Input - Data'!R17,Readme!N25) -> 4 | S19: =IF(OR(S$8<$B$54,S$8>$D$55),'Input - Data'!S17,Readme!O25) -> 4 | T19: =IF(OR(T$8<$B$54,T$8>$D$55),'Input - Data'!T17,Readme!P25) -> 4 | U19: =IF(OR(U$8<$B$54,U$8>$D$55),'Input - Data'!U17,Readme!Q25) -> 4 | V19: =IF(OR(V$8<$B$54,V$8>$D$55),'Input - Data'!V17,Readme!R25) -> 4 | W19: =IF(OR(W$8<$B$54,W$8>$D$55),'Input - Data'!W17,Readme!S25) -> 4 | X19: =IF(OR(X$8<$B$54,X$8>$D$55),'Input - Data'!X17,Readme!T25) -> 4 | Y19: =IF(OR(Y$8<$B$54,Y$8>$D$55),'Input - Data'!Y17,Readme!U25) -> 4 | Z19: =IF(OR(Z$8<$B$54,Z$8>$D$55),'Input - Data'!Z17,Readme!V25) -> 4
A20: µt | B20: =1/(1-B13/100*(1-B14/B15)) -> 1.00392906 | C20: 1.01369901 | D20: 1.008210183 | E20: 1.016953558 | F20: 1.012959754 | G20: 1.018237805 | H20: 1.002600202 | I20: 1.011128039 | J20: 1.003146674 | K20: 0.9883991709 | L20: 1.00238475 | M20: 1.002265336 | N20: 1.00594076 | O20: 1.005642046 | P20: 1.005642046 | Q20: 1.00564779 | R20: 1.005931855 | S20: 1.005633591 | T20: 1.005633591 | U20: 1.005916937 | V20: 1.005619428 | W20: 1.005619428 | X20: 1.005612347 | Y20: 1.005578357 | Z20: 1.00554437
A21: rˆtw | B21: n.a. | C21: =(((1+C18/100)*(1+C16/100)*C14/C15*B13/100+(1+C17/100)*B12/100)*C20/(1+C19/100)-1)*100 -> 2.536726589 | D21: 2.994472777 | E21: 2.867307232 | F21: 6.16867726 | G21: 5.546646073 | H21: 1.45430779 | I21: 3.643982912 | J21: 2.737327536 | K21: 0.857444211 | L21: 2.535875184 | M21: 2.553660459 | N21: 3.281040146 | O21: 3.518250325 | P21: 3.709253856 | Q21: 3.429597513 | R21: 3.554297793 | S21: 3.259994832 | T21: 3.431532823 | U21: 3.555681943 | V21: 3.262130961 | W21: 3.433487015 | X21: 3.375936372 | Y21: 3.355762369 | Z21: 3.341486014
A22: gt | B22: ='Input - Data'!B18 -> 3.835682117 | C22: ='Input - Data'!C18 -> 4.128725633 | D22: ='Input - Data'!D18 -> 2.791554075 | E22: ='Input - Data'!E18 -> 3.058096332 | F22: ='Input - Data'!F18 -> 3.840046512 | G22: ='Input - Data'!G18 -> 3.893003331 | H22: ='Input - Data'!H18 -> 4.842866705 | I22: ='Input - Data'!I18 -> 3.845025913 | J22: ='Input - Data'!J18 -> 2.662336047 | K22: ='Input - Data'!K18 -> -8.993690565 | L22: =IF(OR(L$8<$B$54,L$8>$D$55),'Input - Data'!L18,Readme!H26) -> 4.230933496 | M22: =IF(OR(M$8<$B$54,M$8>$D$55),'Input - Data'!M18,Readme!I26) -> 2.746288693 | N22: =IF(OR(N$8<$B$54,N$8>$D$55),'Input - Data'!N18,Readme!J26) -> 2.408191185 | O22: =IF(OR(O$8<$B$54,O$8>$D$55),'Input - Data'!O18,Readme!K26) -> 2.660486026 | P22: =IF(OR(P$8<$B$54,P$8>$D$55),'Input - Data'!P18,Readme!L26) -> 2.835522081 | Q22: =IF(OR(Q$8<$B$54,Q$8>$D$55),'Input - Data'!Q18,Readme!M26) -> 2.835491687 | R22: =IF(OR(R$8<$B$54,R$8>$D$55),'Input - Data'!R18,Readme!N26) -> 2.835528595 | S22: =IF(OR(S$8<$B$54,S$8>$D$55),'Input - Data'!S18,Readme!O26) -> 3.835544872 | T22: =IF(OR(T$8<$B$54,T$8>$D$55),'Input - Data'!T18,Readme!P26) -> 3.83549772 | U22: =IF(OR(U$8<$B$54,U$8>$D$55),'Input - Data'!U18,Readme!Q26) -> 3.835523257 | V22: =IF(OR(V$8<$B$54,V$8>$D$55),'Input - Data'!V18,Readme!R26) -> 3.835520597 | W22: =IF(OR(W$8<$B$54,W$8>$D$55),'Input - Data'!W18,Readme!S26) -> 3.83553137 | X22: =IF(OR(X$8<$B$54,X$8>$D$55),'Input - Data'!X18,Readme!T26) -> 3.835542808 | Y22: =IF(OR(Y$8<$B$54,Y$8>$D$55),'Input - Data'!Y18,Readme!U26) -> 3.835552637 | Z22: =IF(OR(Z$8<$B$54,Z$8>$D$55),'Input - Data'!Z18,Readme!V26) -> 3.835562465
A23: φˆt | B23: n.a. | C23: =(1+C21/100)/(1+C22/100) -> 0.9847112405 | D23: =(1+D21/100)/(1+D22/100) -> 1.00197408 | E23: 0.9981487228 | F23: 1.022425171 | G23: 1.015916786 | H23: 0.9676796427 | I23: 0.9980640093 | J23: 1.000730467 | K23: 1.108246723 | L23: 0.9837374736 | M23: 0.9981252049 | N23: 1.008523234 | O23: 1.00835535 | P23: 1.0084964 | Q23: 1.005777245 | R23: 1.006989503 | S23: 0.9944571 | T23: 0.9961095684 | U23: 0.9973049559 | V23: 0.9944779047 | W23: 0.9961280657 | X23: 0.995573708 | Y23: 0.9953793257 | Z23: 0.9952417415
A24: pbt | B24: ='Input - Data'!B19 -> -3.283564952 | C24: ='Input - Data'!C19 -> -4.033543483 | D24: ='Input - Data'!D19 -> -5.610796375 | E24: ='Input - Data'!E19 -> -1.880094999 | F24: ='Input - Data'!F19 -> -0.3516936022 | G24: ='Input - Data'!G19 -> -0.1264194147 | H24: ='Input - Data'!H19 -> 0.01847718413 | I24: ='Input - Data'!I19 -> 0.8537145611 | J24: ='Input - Data'!J19 -> 0.564213633 | K24: ='Input - Data'!K19 -> -3.548590878 | L24: =IF(L$8<$B$54,'Input - Data'!L19,IF(L$8>=$D$54,$B$57,K24+L27)) -> -4.040950675 | M24: =IF(M$8<$B$54,'Input - Data'!M19,IF(M$8>=$D$54,$B$57,L24+M27)) -> -2.621106539 | N24: =IF(N$8<$B$54,'Input - Data'!N19,IF(N$8>=$D$54,$B$57,M24+N27)) -> -1.201262403 | O24: =IF(O$8<$B$54,'Input - Data'!O19,IF(O$8>=$D$54,$B$57,N24+O27)) -> 0.2185817325 | P24: =IF(P$8<$B$54,'Input - Data'!P19,IF(P$8>=$D$54,$B$57,O24+P27)) -> 1.638425869 | Q24: =IF(Q$8<$B$54,'Input - Data'!Q19,IF(Q$8>=$D$54,$B$57,P24+Q27)) -> 2.210649304 | R24: =IF(R$8<$B$54,'Input - Data'!R19,IF(R$8>=$D$54,$B$57,Q24+R27)) -> 2.210649304 | S24: =IF(S$8<$B$54,'Input - Data'!S19,IF(S$8>=$D$54,$B$57,R24+S27)) -> 2.210649304 | T24: =IF(T$8<$B$54,'Input - Data'!T19,IF(T$8>=$D$54,$B$57,S24+T27)) -> 2.210649304 | U24: =IF(U$8<$B$54,'Input - Data'!U19,IF(U$8>=$D$54,$B$57,T24+U27)) -> 2.210649304 | V24: =IF(V$8<$B$54,'Input - Data'!V19,IF(V$8>=$D$54,$B$57,U24+V27)) -> 2.210649304 | W24: =IF(W$8<$B$54,'Input - Data'!W19,IF(W$8>=$D$54,$B$57,V24+W27)) -> 2.210649304 | X24: =IF(X$8<$B$54,'Input - Data'!X19,IF(X$8>=$D$54,$B$57,W24+X27)) -> 2.210649304 | Y24: =IF(Y$8<$B$54,'Input - Data'!Y19,IF(Y$8>=$D$54,$B$57,X24+Y27)) -> 2.210649304 | Z24: =IF(Z$8<$B$54,'Input - Data'!Z19,IF(Z$8>=$D$54,$B$57,Y24+Z27)) -> 2.210649304
A25: oft (other net debt-creating flows) | B25: ='Input - Data'!B20 -> 0 | C25: ='Input - Data'!C20 -> 0 | D25: ='Input - Data'!D20 -> 0 | E25: ='Input - Data'!E20 -> 0 | F25: ='Input - Data'!F20 -> 0 | G25: ='Input - Data'!G20 -> 0 | H25: ='Input - Data'!H20 -> 0 | I25: ='Input - Data'!I20 -> 0 | J25: ='Input - Data'!J20 -> 0 | K25: ='Input - Data'!K20 -> 0 | L25: =IF(OR(L$8<$B$54,L$8>$D$55),'Input - Data'!L20,Readme!H27) -> 0.9 | M25: =IF(OR(M$8<$B$54,M$8>$D$55),'Input - Data'!M20,Readme!I27) -> 0.9 | N25: =IF(OR(N$8<$B$54,N$8>$D$55),'Input - Data'!N20,Readme!J27) -> 0.9 | O25: =IF(OR(O$8<$B$54,O$8>$D$55),'Input - Data'!O20,Readme!K27) -> 0.9 | P25: =IF(OR(P$8<$B$54,P$8>$D$55),'Input - Data'!P20,Readme!L27) -> 0.9 | Q25: =IF(OR(Q$8<$B$54,Q$8>$D$55),'Input - Data'!Q20,Readme!M27) -> 0.9 | R25: =IF(OR(R$8<$B$54,R$8>$D$55),'Input - Data'!R20,Readme!N27) -> 0.9 | S25: =IF(OR(S$8<$B$54,S$8>$D$55),'Input - Data'!S20,Readme!O27) -> 0.9 | T25: =IF(OR(T$8<$B$54,T$8>$D$55),'Input - Data'!T20,Readme!P27) -> 0.9 | U25: =IF(OR(U$8<$B$54,U$8>$D$55),'Input - Data'!U20,Readme!Q27) -> 0.9 | V25: =IF(OR(V$8<$B$54,V$8>$D$55),'Input - Data'!V20,Readme!R27) -> 0.9 | W25: =IF(OR(W$8<$B$54,W$8>$D$55),'Input - Data'!W20,Readme!S27) -> 0.9 | X25: =IF(OR(X$8<$B$54,X$8>$D$55),'Input - Data'!X20,Readme!T27) -> 0.9 | Y25: =IF(OR(Y$8<$B$54,Y$8>$D$55),'Input - Data'!Y20,Readme!U27) -> 0.9 | Z25: =IF(OR(Z$8<$B$54,Z$8>$D$55),'Input - Data'!Z20,Readme!V27) -> 0.9
A26: sft | B26: n.a. | C26: =((C15-C14)/C15)*((C13/100)*(C9-C10-C11)-(B13/100)*(B9-B10-B11)*(1+C16/100)/((1+C22/100)*(1+C19/100))) -> 0.09638422131 | D26: 0.1182497729 | E26: 0.04104030149 | F26: 0.006986394362 | G26: -0.03592432385 | H26: 0.01734995444 | I26: 0.01335517226 | J26: -0.003459509734 | K26: -0.1059817807 | L26: 0.02485775708 | M26: 0.01504319924 | N26: 0.01178038707 | O26: 0.003916183706 | P26: 0.01543636952 | Q26: 0.01211328017 | R26: 0.03053072948 | S26: -0.00730960295 | T26: 0.01090049465 | U26: 0.02773405765 | V26: -0.007289674842 | W26: 0.009525214543 | X26: 0.008799653691 | Y26: 0.00689807461 | Z26: 0.006501252776
A27: adjt | L27: =IF(L8=$B$54,(SUMIF($B$8:$Z$8,$B$54-1,$B$36:$Z$36)*SUMIF($L$8:$Z$8,$B$55,$L$42:$W$42)-($B$53)+SUMIF($L$8:$Z$8,$B$55,$L$46:$W$46)-(SUMIF($B$8:$Z$8,$B$54-1,$B$24:$W$24)*SUMIF($L$8:$Z$8,$B$55,$L$44:$Z$44)))/SUMIF($L$8:$Z$8,$B$55,$L$49:$W$49),K27) -> 0 | M27: 1.419844136 | N27: 1.419844136 | O27: 1.419844136 | P27: 1.419844136 | Q27: 1.419844136 | R27: 1.419844136 | S27: 1.419844136 | T27: 1.419844136 | U27: 1.419844136 | V27: 1.419844136 | W27: 1.419844136 | X27: 1.419844136 | Y27: 1.419844136 | Z27: 1.419844136
A28: Int paymentst (excl. guarantees) | B28: n.a. | C28: =(B9-B10-B11)*(1/((1+C22/100)*(1+C19/100)))*(B13/100*(1+C16/100)*(C14/C15)*(C18/100)+B12/100*(C17/100)) -> 1.524922734 | D28: 1.971303021 | E28: 2.260499189 | F28: 2.467481432 | G28: 2.337640614 | H28: 2.436932762 | I28: 2.593957444 | J28: 2.776848392 | K28: 2.969233883 | L28: 3.176624919 | M28: 3.266203378 | N28: 3.50001456 | O28: 3.813857226 | P28: 4.009958119 | Q28: 3.98872389 | R28: 3.993779416 | S28: 3.722502115 | T28: 3.747952251 | U28: 3.711466807 | V28: 3.454565707 | W28: 3.472337338 | X28: 3.378513155 | Y28: 3.281848235 | Z28: 3.194439389
A29: ifisct (excl. guarantees), used in final output | B29: n.a. | C29: =(B13/100)*(1+C16/100)*(C14/C15)*C18+(B12/100)*C17 -> 5.296901047 | D29: =(C13/100)*(1+D16/100)*(D14/D15)*D18+(C12/100)*D17 -> 6.01584327 | E29: 5.717677547 | F29: 5.901588475 | G29: 5.660723619 | H29: 6.005345623 | I29: 5.986986041 | J29: 6.169070632 | K29: 6.26598899 | L29: 6.197635278 | M29: 5.833349816 | N29: 5.89875531 | O29: 6.182083745 | P29: 6.389819181 | Q29: 6.389839345 | R29: 6.488557743 | S29: 6.187308973 | T29: 6.394783147 | U29: 6.493008571 | V29: 6.192525847 | W29: 6.399739178 | X29: 6.395442531 | Y29: 6.388329864 | Z29: 6.39979486
A30: φˆobt | B30: n.a. | C30: =((1+C16/100)*C14/C15*B13/100+B12/100)*C20/((1+C19/100)*(1+C22/100)) -> 0.9357828506 | D30: =((1+D16/100)*D14/D15*C13/100+C12/100)*D20/((1+D19/100)*(1+D22/100)) -> 0.9457340677 | E30: 0.9448310843 | F30: 0.9661824963 | G30: 0.9622169891 | H30: 0.9128449007 | I30: 0.94213515 | J30: 0.9428135079 | K30: 1.042818889 | L30: 0.9264502472 | M30: 0.9432283636 | N30: 0.9526809923 | O30: 0.9499785247 | P30: 0.9482497187 | Q30: 0.9456931568 | R30: 0.9459599466 | S30: 0.9368385679 | T30: 0.9365589323 | U30: 0.9368225857 | V30: 0.9368115899 | W30: 0.9365321358 | X30: 0.9360182154 | Y30: 0.9358920839 | Z30: 0.9356497591
A31: obt | B31: n.a. | C31: =C24-C28 -> -5.558466217 | D31: =D24-D28 -> -7.582099396 | E31: -4.140594188 | F31: -2.819175034 | G31: -2.464060029 | H31: -2.418455578 | I31: -1.740242883 | J31: -2.212634759 | K31: -6.517824761 | L31: -7.217575594 | M31: -5.887309917 | N31: -4.701276963 | O31: -3.595275493 | P31: -2.37153225 | Q31: -1.778074586 | R31: -1.783130112 | S31: -1.51185281 | T31: -1.537302947 | U31: -1.500817503 | V31: -1.243916403 | W31: -1.261688034 | X31: -1.167863851 | Y31: -1.071198931 | Z31: -0.9837900851
A32: residualt | B32: n.a. | C32: =((C9-C10-C11)-C23*(B9-B10-B11)+C20*C24-C20*C25)/C20 -> 0.138351542 | D32: =((D9-D10-D11)-D23*(C9-C10-C11)+D20*D24-D20*D25)/D20 -> 2.032906839 | E32: -0.4986879269 | F32: -1.449112564 | G32: -0.5920586438 | H32: 3.787517649 | I32: 2.130800767 | J32: -2.70150378 | K32: 2.392616761 | L32: -1.882888923e-15 | M32: -5.317025671e-15 | N32: -1.335436353e-14 | O32: 1.987189628e-15 | P32: 1.766390781e-15 | Q32: -7.286320355e-15 | R32: 8.277571334e-15 | S32: 4.305613729e-15 | T32: 1.137123626e-14 | U32: 2.317754345e-15 | V32: -3.422459114e-15 | W32: -3.422459114e-15 | X32: -8.280201325e-15 | Y32: 7.728449123e-16 | Z32: -1.004732344e-14
A33: amtd | B33: n.a. | C33: ='Input - Data'!C21 -> 12.86249775 | D33: ='Input - Data'!D21 -> 13.54261434 | E33: ='Input - Data'!E21 -> 13.97350834 | F33: ='Input - Data'!F21 -> 12.12442486 | G33: ='Input - Data'!G21 -> 11.79007748 | H33: ='Input - Data'!H21 -> 10.6059941 | I33: ='Input - Data'!I21 -> 10.56460841 | J33: ='Input - Data'!J21 -> 9.976907437 | K33: ='Input - Data'!K21 -> 12.23437307 | L33: =IF(OR(L$8<$B$54,L$8>$D$55),'Input - Data'!L21,Readme!H28) -> 18.71030251 | M33: =IF(OR(M$8<$B$54,M$8>$D$55),'Input - Data'!M21,Readme!I28) -> 11.78253661 | N33: =IF(OR(N$8<$B$54,N$8>$D$55),'Input - Data'!N21,Readme!J28) -> 12.04987969 | O33: =IF(OR(O$8<$B$54,O$8>$D$55),'Input - Data'!O21,Readme!K28) -> 12.39849904 | P33: =IF(OR(P$8<$B$54,P$8>$D$55),'Input - Data'!P21,Readme!L28) -> 13.03107885 | Q33: =IF(OR(Q$8<$B$54,Q$8>$D$55),'Input - Data'!Q21,Readme!M28) -> 13.20303592 | R33: =IF(OR(R$8<$B$54,R$8>$D$55),'Input - Data'!R21,Readme!N28) -> 12.46900064 | S33: =IF(OR(S$8<$B$54,S$8>$D$55),'Input - Data'!S21,Readme!O28) -> 12.61600522 | T33: =IF(OR(T$8<$B$54,T$8>$D$55),'Input - Data'!T21,Readme!P28) -> 12.7356743 | U33: =IF(OR(U$8<$B$54,U$8>$D$55),'Input - Data'!U21,Readme!Q28) -> 12.80532205 | V33: =IF(OR(V$8<$B$54,V$8>$D$55),'Input - Data'!V21,Readme!R28) -> 12.76110612 | W33: =IF(OR(W$8<$B$54,W$8>$D$55),'Input - Data'!W21,Readme!S28) -> 12.67624668 | X33: =IF(OR(X$8<$B$54,X$8>$D$55),'Input - Data'!X21,Readme!T28) -> 13.67624668 | Y33: =IF(OR(Y$8<$B$54,Y$8>$D$55),'Input - Data'!Y21,Readme!U28) -> 14.67624668 | Z33: =IF(OR(Z$8<$B$54,Z$8>$D$55),'Input - Data'!Z21,Readme!V28) -> 15.67624668
A34: amtf | B34: n.a. | C34: ='Input - Data'!C22 -> 13.10908072 | D34: ='Input - Data'!D22 -> 13.85027235 | E34: ='Input - Data'!E22 -> 15.73847383 | F34: ='Input - Data'!F22 -> 11.17804023 | G34: ='Input - Data'!G22 -> 10.00832783 | H34: ='Input - Data'!H22 -> 9.742478028 | I34: ='Input - Data'!I22 -> 10.49196812 | J34: ='Input - Data'!J22 -> 9.976850677 | K34: ='Input - Data'!K22 -> 11.66645637 | L34: =IF(OR(L$8<$B$54,L$8>$D$55),'Input - Data'!L22,Readme!H29) -> 17.70601006 | M34: =IF(OR(M$8<$B$54,M$8>$D$55),'Input - Data'!M22,Readme!I29) -> 11.35382687 | N34: =IF(OR(N$8<$B$54,N$8>$D$55),'Input - Data'!N22,Readme!J29) -> 11.74224664 | O34: =IF(OR(O$8<$B$54,O$8>$D$55),'Input - Data'!O22,Readme!K29) -> 12.02893292 | P34: =IF(OR(P$8<$B$54,P$8>$D$55),'Input - Data'!P22,Readme!L29) -> 12.54499479 | Q34: =IF(OR(Q$8<$B$54,Q$8>$D$55),'Input - Data'!Q22,Readme!M29) -> 12.73682319 | R34: =IF(OR(R$8<$B$54,R$8>$D$55),'Input - Data'!R22,Readme!N29) -> 12.05990157 | S34: =IF(OR(S$8<$B$54,S$8>$D$55),'Input - Data'!S22,Readme!O29) -> 12.21178753 | T34: =IF(OR(T$8<$B$54,T$8>$D$55),'Input - Data'!T22,Readme!P29) -> 12.3102382 | U34: =IF(OR(U$8<$B$54,U$8>$D$55),'Input - Data'!U22,Readme!Q29) -> 12.36808552 | V34: =IF(OR(V$8<$B$54,V$8>$D$55),'Input - Data'!V22,Readme!R29) -> 12.33330073 | W34: =IF(OR(W$8<$B$54,W$8>$D$55),'Input - Data'!W22,Readme!S29) -> 12.25564513 | X34: =IF(OR(X$8<$B$54,X$8>$D$55),'Input - Data'!X22,Readme!T29) -> 13.25564513 | Y34: =IF(OR(Y$8<$B$54,Y$8>$D$55),'Input - Data'!Y22,Readme!U29) -> 14.25564513 | Z34: =IF(OR(Z$8<$B$54,Z$8>$D$55),'Input - Data'!Z22,Readme!V29) -> 15.25564513
A35: gfnt | B35: n.a. | C35: =(B9-B10-B11)*(B13/100*(1+C16/100)*(C14/C15)*(C18/100+C34/100)+B12/100*(C17/100+C33/100))/((1+C19/100)*(1+C22/100))-C24 -> 9.34982034 | D35: =(C9-C10-C11)*(C13/100*(1+D16/100)*(D14/D15)*(D18/100+D34/100)+C12/100*(D17/100+D33/100))/((1+D19/100)*(1+D22/100))-D24 -> 12.1319306 | E35: 10.23303171 | F35: 7.682128592 | G35: 6.891762938 | H35: 6.499184497 | I35: 6.336069952 | J35: 6.722531908 | K35: 12.14482022 | L35: 16.51717144 | M35: 12.34668664 | N35: 11.77936741 | O35: 11.15139357 | P35: 10.41955097 | Q35: 9.898629255 | R35: 9.356216676 | S35: 9 | T35: 8.900370323 | U35: 8.718049892 | V35: 8.260925672 | W35: 8.047328046 | X35: 8.302053987 | Y35: 8.524769479 | Z35: 8.726512044
A36: dt (debt excluding uncalled guarantees) | B36: =B9-B10-B11 -> 31.5933688 | C36: =C9-C10-C11 -> 35.33939124 | D36: 43.11561343 | E36: 44.44062131 | F36: 44.32556858 | G36: 44.55695772 | H36: 46.89570166 | I36: 48.09620969 | J36: 44.85534884 | K36: 55.58307807 | L36: 59.6318904 | M36: 63.04917585 | N36: 65.70030422 | O36: 66.93451612 | P36: 66.76062647 | Q36: 65.82826739 | R36: 64.96995035 | S36: 63.29179545 | T36: 61.72753008 | U36: 60.24276733 | V36: 58.59208663 | W36: 57.04720752 | X36: 55.4766948 | Y36: 53.90239448 | Z36: 52.32799693
A37: Π * φˆt | B37: =IF(B$8<$D$54,0,IF(B$8=$D$54,B$23,IF(B$8<=$D$55,B$23*A37,0))) -> 0 | C37: 0 | D37: 0 | E37: 0 | F37: 0 | G37: 0 | H37: 0 | I37: 0 | J37: 0 | K37: 0 | L37: 0 | M37: 0 | N37: 0 | O37: 0 | P37: 0 | Q37: 1.005777245 | R37: 1.012807128 | S37: 0 | T37: 0 | U37: 0 | V37: 0 | W37: 0 | X37: 0 | Y37: 0 | Z37: 0
A38: µt * F(Π * φˆt) | B38: =IF(B$8<$D$54,0,IF(B$8>$D$55,0,B$20/B37*SUMIF($L$8:$Z$8,$D$55,$L$37:$Z$37))) -> 0 | C38: 0 | D38: 0 | E38: 0 | F38: 0 | G38: 0 | H38: 0 | I38: 0 | J38: 0 | K38: 0 | L38: 0 | M38: 0 | N38: 0 | O38: 0 | P38: 0 | Q38: 1.012676768 | R38: 1.005931855 | S38: 0 | T38: 0 | U38: 0 | V38: 0 | W38: 0 | X38: 0 | Y38: 0 | Z38: 0
A39: Σ (µt * F(Π * φˆt)) | B39: =IF(B$8<$D$54,0,IF(B$8=$D$54,B$38,IF(B$8<=$D$55,B$38+A39,0))) -> 0 | C39: 0 | D39: 0 | E39: 0 | F39: 0 | G39: 0 | H39: 0 | I39: 0 | J39: 0 | K39: 0 | L39: 0 | M39: 0 | N39: 0 | O39: 0 | P39: 0 | Q39: 1.012676768 | R39: 2.018608623 | S39: 0 | T39: 0 | U39: 0 | V39: 0 | W39: 0 | X39: 0 | Y39: 0 | Z39: 0
A40: oft * µt * F(Π * φˆt) | C40: =C25*C38 -> 0 | D40: 0 | E40: 0 | F40: 0 | G40: 0 | H40: 0 | I40: 0 | J40: 0 | K40: 0 | L40: 0 | M40: 0 | N40: 0 | O40: 0 | P40: 0 | Q40: 0.9114090912 | R40: 0.9053386692 | S40: 0 | T40: 0 | U40: 0 | V40: 0 | W40: 0 | X40: 0 | Y40: 0 | Z40: 0
A41: Σ (oft * µt * F(Π * φˆt)) | C41: =IF(C$8<$D$54,0,IF(C$8=$D$54,C$40,IF(C$8<=$D$55,C$40+B41,0))) -> 0 | D41: 0 | E41: 0 | F41: 0 | G41: 0 | H41: 0 | I41: 0 | J41: 0 | K41: 0 | L41: 0 | M41: 0 | N41: 0 | O41: 0 | P41: 0 | Q41: 0.9114090912 | R41: 1.81674776 | S41: 0 | T41: 0 | U41: 0 | V41: 0 | W41: 0 | X41: 0 | Y41: 0 | Z41: 0
A42: Π * φˆt | B42: =IF(B$8<$B$54,0,IF(B$8=$B$54,B$23,IF(B$8<=$B$55,B$23*A42,0))) -> 0 | C42: 0 | D42: 0 | E42: 0 | F42: 0 | G42: 0 | H42: 0 | I42: 0 | J42: 0 | K42: 0 | L42: 0 | M42: 0.9981252049 | N42: 1.006632459 | O42: 1.015043226 | P42: 1.02366744 | Q42: 0 | R42: 0 | S42: 0 | T42: 0 | U42: 0 | V42: 0 | W42: 0 | X42: 0 | Y42: 0 | Z42: 0
A43: µt * F(Π * φˆt) | B43: =IF(B$8<$B$54,0,IF(B$8>$B$55,0,B$20/B42*SUMIF($L$8:$Z$8,$B$55,$L$42:$W$42))) -> 0 | C43: 0 | D43: 0 | E43: 0 | F43: 0 | G43: 0 | H43: 0 | I43: 0 | J43: 0 | K43: 0 | L43: =IF(L$8<$B$54,0,IF(L$8>$B$55,0,L$20/L42*SUMIF($L$8:$Z$8,$B$55,$L$42:$W$42))) -> 0 | M43: =IF(M$8<$B$54,0,IF(M$8>$B$55,0,M$20/M42*SUMIF($L$8:$Z$8,$B$55,$L$42:$W$42))) -> 1.027913517 | N43: =IF(N$8<$B$54,0,IF(N$8>$B$55,0,N$20/N42*SUMIF($L$8:$Z$8,$B$55,$L$42:$W$42))) -> 1.022964035 | O43: 1.014186384 | P43: 1.005642046 | Q43: 0 | R43: 0 | S43: 0 | T43: 0 | U43: 0 | V43: 0 | W43: 0 | X43: 0 | Y43: 0 | Z43: 0
A44: Σ (µt * F(Π * φˆt)) | B44: =IF(B$8<$B$54,0,IF(B$8=$B$54,B$43,IF(B$8<=$B$55,B$43+A44,0))) -> 0 | C44: 0 | D44: 0 | E44: 0 | F44: 0 | G44: 0 | H44: 0 | I44: 0 | J44: 0 | K44: 0 | L44: =IF(L$8<$B$54,0,IF(L$8=$B$54,L$43,IF(L$8<=$B$55,L$43+K44,0))) -> 0 | M44: =IF(M$8<$B$54,0,IF(M$8=$B$54,M$43,IF(M$8<=$B$55,M$43+L44,0))) -> 1.027913517 | N44: =IF(N$8<$B$54,0,IF(N$8=$B$54,N$43,IF(N$8<=$B$55,N$43+M44,0))) -> 2.050877552 | O44: 3.065063936 | P44: 4.070705983 | Q44: 0 | R44: 0 | S44: 0 | T44: 0 | U44: 0 | V44: 0 | W44: 0 | X44: 0 | Y44: 0 | Z44: 0
A45: oft * µt * F(Π * φˆt) | C45: =C25*C43 -> 0 | D45: 0 | E45: 0 | F45: 0 | G45: 0 | H45: 0 | I45: 0 | J45: 0 | K45: 0 | L45: =L25*L43 -> 0 | M45: =M25*M43 -> 0.9251221654 | N45: =N25*N43 -> 0.9206676316 | O45: 0.9127677455 | P45: 0.9050778417 | Q45: 0 | R45: 0 | S45: 0 | T45: 0 | U45: 0 | V45: 0 | W45: 0 | X45: 0 | Y45: 0 | Z45: 0
A46: Σ (oft * µt * F(Π * φˆt)) | C46: =IF(C$8<$B$54,0,IF(C$8=$B$54,C$45,IF(C$8<=$B$55,C$45+B46,0))) -> 0 | D46: 0 | E46: 0 | F46: 0 | G46: 0 | H46: 0 | I46: 0 | J46: 0 | K46: 0 | L46: =IF(L$8<$B$54,0,IF(L$8=$B$54,L$45,IF(L$8<=$B$55,L$45+K46,0))) -> 0 | M46: =IF(M$8<$B$54,0,IF(M$8=$B$54,M$45,IF(M$8<=$B$55,M$45+L46,0))) -> 0.9251221654 | N46: =IF(N$8<$B$54,0,IF(N$8=$B$54,N$45,IF(N$8<=$B$55,N$45+M46,0))) -> 1.845789797 | O46: 2.758557543 | P46: 3.663635384 | Q46: 0 | R46: 0 | S46: 0 | T46: 0 | U46: 0 | V46: 0 | W46: 0 | X46: 0 | Y46: 0 | Z46: 0
A47: # years of Δ(pb) | C47: =IF(C$8<$B$54,0,IF(C$8=$B$54,1,IF(C$8<=$B$55,1+B47,0))) -> 0 | D47: 0 | E47: 0 | F47: 0 | G47: 0 | H47: 0 | I47: 0 | J47: 0 | K47: 0 | L47: 0 | M47: 1 | N47: 2 | O47: 3 | P47: 4 | Q47: 0 | R47: 0 | S47: 0 | T47: 0 | U47: 0 | V47: 0 | W47: 0 | X47: 0 | Y47: 0 | Z47: 0
A48: # years of Δ(pb) * µt * F(Π * φˆt) | C48: =IF(C$8<$B$54,0,IF(C$8>$B$55,0,C$20*C47/C42*SUMIF($L$8:$Z$8,$B$55,$L$42:$W$42))) -> 0 | D48: 0 | E48: 0 | F48: 0 | G48: 0 | H48: 0 | I48: 0 | J48: 0 | K48: 0 | L48: =IF(L$8<$B$54,0,IF(L$8>$B$55,0,L$20*L47/L42*SUMIF($L$8:$Z$8,$B$55,$L$42:$W$42))) -> 0 | M48: =IF(M$8<$B$54,0,IF(M$8>$B$55,0,M$20*M47/M42*SUMIF($L$8:$Z$8,$B$55,$L$42:$W$42))) -> 1.027913517 | N48: =IF(N$8<$B$54,0,IF(N$8>$B$55,0,N$20*N47/N42*SUMIF($L$8:$Z$8,$B$55,$L$42:$W$42))) -> 2.04592807 | O48: 3.042559152 | P48: 4.022568185 | Q48: 0 | R48: 0 | S48: 0 | T48: 0 | U48: 0 | V48: 0 | W48: 0 | X48: 0 | Y48: 0 | Z48: 0
A49: Σ (# years of Δ(pb) * µt * F(Π * φˆt)) | C49: =IF(C$8<$B$54,0,IF(C$8=$B$54,C$48,IF(C$8<=$B$55,C$48+B49,0))) -> 0 | D49: 0 | E49: 0 | F49: 0 | G49: 0 | H49: 0 | I49: 0 | J49: 0 | K49: 0 | L49: =IF(L$8<$B$54,0,IF(L$8=$B$54,L$48,IF(L$8<=$B$55,L$48+K49,0))) -> 0 | M49: =IF(M$8<$B$54,0,IF(M$8=$B$54,M$48,IF(M$8<=$B$55,M$48+L49,0))) -> 1.027913517 | N49: =IF(N$8<$B$54,0,IF(N$8=$B$54,N$48,IF(N$8<=$B$55,N$48+M49,0))) -> 3.073841587 | O49: 6.116400739 | P49: 10.13896892 | Q49: 0 | R49: 0 | S49: 0 | T49: 0 | U49: 0 | V49: 0 | W49: 0 | X49: 0 | Y49: 0 | Z49: 0
A51: GFN Target
A52: ="d to start adjustment" -> d to start adjustment | B52: =SUMIF($B$8:$Z$8,$B$54-1,$B$36:$Z$36) -> 59.6318904 | C52: Target GFN (end of adjustment) | D52: =Readme!$B$28 -> 9
A53: Sub-target d (by end of first adjustment subperiod) | B53: =($D$53-SUMIF($L$8:$Z$8,$D$55,$L$10:$Z$10)-SUMIF($L$8:$Z$8,$D$55,$L$11:$Z$11))/SUMIF($L$8:$Z$8,$D$55,$L$37:$Z$37)+$B$57*SUMIF($L$8:$Z$8,$D$55,$L$39:$Z$39)/SUMIF($L$8:$Z$8,$D$55,$L$37:$Z$37)-SUMIF($L$8:$Z$8,$D$55,$L$41:$W$41)/SUMIF($L$8:$Z$8,$D$55,$L$37:$Z$37) -> 66.76062647 | C53: Sub-target d (year before adjustment ends) | D53: =(Readme!B28+(INDEX(B8:Z47,17,MATCH(D55+1,B8:Z8,0))))*((1+(INDEX(B8:Z47,15,MATCH(D55+1,B8:Z8,0)))/100)*(1+(INDEX(B8:Z47,12,MATCH(D55+1,B8:Z8,0)))/100))/(((INDEX(B8:Z47,6,MATCH(D55,B8:Z8,0)))/100)*(1+INDEX(B8:Z47,9,MATCH(D55+1,B8:Z8,0))/100)*((INDEX(B8:Z47,7,MATCH(D55+1,B8:Z8,0)))/(INDEX(B8:Z47,8,MATCH(D55+1,B8:Z8,0))))*((INDEX(B8:Z47,11,MATCH(D55+1,B8:Z8,0)))/100+(INDEX(B8:Z47,27,MATCH(D55+1,B8:Z8,0)))/100)+((INDEX(B8:Z47,5,MATCH(D55,B8:Z8,0)))/100)*((INDEX(B8:Z47,10,MATCH(D55+1,B8:Z8,0)))/100+(INDEX(B8:Z47,26,MATCH(D55+1,B8:Z8,0)))/100))+(INDEX(B8:Z47,3,MATCH(D55,B8:Z8,0)))+(INDEX(B8:Z47,4,MATCH(D55,B8:Z8,0))) -> 66.43896521
A54: First adjustment subperiod starts | B54: 2022 | C54: Second adjustment subperiod starts | D54: =B55+1 -> 2026
A55: First adjustment subperiod ends | B55: 2025 | C55: Year before adjustment ends | D55: 2027
A56: Years of first adjustment subperiod | B56: =B55-B54+1 -> 4 | C56: Years of second adjustment subperiod | D56: =D55-D54+1 -> 2
A57: pb for second adjustment subperiod | B57: 2.210649304

Sheet CustomizedSc
A1: Cell code: Yellow cells are values to be inputed by the user. White cells refer to values generated by the template, or constructed to satisfy certain constraints, using formulas (e.g., accounting definitions, solutions to equations).
A4: Customized Scenario. Units of macrofiscal variables are as indicated in "Input - Data".
A5: ="Country:"&" "&CountryName -> Country: Macondo
L7: First Year of Projection
A8: Year | B8: =C8-1 -> 2011 | C8: 2012 | D8: 2013 | E8: 2014 | F8: 2015 | G8: 2016 | H8: 2017 | I8: 2018 | J8: 2019 | K8: =L8-1 -> 2020 | L8: =FirstYear -> 2021 | M8: =L8+1 -> 2022 | N8: 2023 | O8: 2024 | P8: 2025 | Q8: 2026 | R8: 2027 | S8: 2028 | T8: 2029 | U8: 2030 | V8: 2031 | W8: 2032 | X8: =W8+1 -> 2033 | Y8: =X8+1 -> 2034 | Z8: =Y8+1 -> 2035
A9: dt (debt including uncalled guarantees) | B9: ='Input - Data'!B9 -> 31.5933688 | C9: ='Input - Data'!C9 -> 35.33939124 | D9: ='Input - Data'!D9 -> 43.11561343 | E9: ='Input - Data'!E9 -> 44.44062131 | F9: ='Input - Data'!F9 -> 44.32556858 | G9: ='Input - Data'!G9 -> 45.98041253 | H9: ='Input - Data'!H9 -> 47.43639858 | I9: ='Input - Data'!I9 -> 48.5464043 | J9: ='Input - Data'!J9 -> 48.67164741 | K9: ='Input - Data'!K9 -> 58.86485128 | L9: =(K9-K10-K11)*(L23)-L20*L24+L20*L25+(L10+L11) -> 61.90891752 | M9: 62.90890638 | N9: 63.03840961 | O9: 63.37293275 | P9: 63.89866909 | Q9: 64.25224701 | R9: 64.76442435 | S9: 65.04051499 | T9: 65.42870334 | U9: 65.90467611 | V9: 66.18568452 | W9: 66.57381978 | X9: =(W9-W10-W11)*(X23)-X20*X24+X20*X25+(X10+X11) -> 66.92956527 | Y9: =(X9-X10-X11)*(Y23)-Y20*Y24+Y20*Y25+(Y10+Y11) -> 67.27242337 | Z9: =(Y9-Y10-Y11)*(Z23)-Z20*Z24+Z20*Z25+(Z10+Z11) -> 67.60661844
A10: o/w stock of local-currency guarantees (uncalled) | B10: ='Input - Data'!B10 -> 0 | C10: ='Input - Data'!C10 -> 0 | D10: ='Input - Data'!D10 -> 0 | E10: ='Input - Data'!E10 -> 0 | F10: ='Input - Data'!F10 -> 0 | G10: ='Input - Data'!G10 -> 0.3558637011 | H10: ='Input - Data'!H10 -> 0.1351742319 | I10: ='Input - Data'!I10 -> 0.1125486542 | J10: ='Input - Data'!J10 -> 0.9540746431 | K10: ='Input - Data'!K10 -> 0.8204433033 | L10: ='Input - Data'!L10 -> 0.56925678 | M10: ='Input - Data'!M10 -> 0.5008202286 | N10: ='Input - Data'!N10 -> 0.4393407941 | O10: ='Input - Data'!O10 -> 0.3848479606 | P10: ='Input - Data'!P10 -> 0.3584565938 | Q10: ='Input - Data'!Q10 -> 0.3584565938 | R10: ='Input - Data'!R10 -> 0.3672537161 | S10: ='Input - Data'!S10 -> 0.3613889679 | T10: ='Input - Data'!T10 -> 0.3623664259 | U10: ='Input - Data'!U10 -> 0.3636697033 | V10: ='Input - Data'!V10 -> 0.3624750324 | W10: ='Input - Data'!W10 -> 0.3624750324 | X10: ='Input - Data'!X10 -> 0.3625293356 | Y10: ='Input - Data'!Y10 -> 0.3624424505 | Z10: ='Input - Data'!Z10 -> 0.3623555653
A11: o/w stock of foreign-currency guarantees (uncalled) | B11: ='Input - Data'!B11 -> 0 | C11: ='Input - Data'!C11 -> 0 | D11: ='Input - Data'!D11 -> 0 | E11: ='Input - Data'!E11 -> 0 | F11: ='Input - Data'!F11 -> 0 | G11: ='Input - Data'!G11 -> 1.067591103 | H11: ='Input - Data'!H11 -> 0.4055226956 | I11: ='Input - Data'!I11 -> 0.3376459625 | J11: ='Input - Data'!J11 -> 2.862223929 | K11: ='Input - Data'!K11 -> 2.46132991 | L11: ='Input - Data'!L11 -> 1.70777034 | M11: ='Input - Data'!M11 -> 1.502460686 | N11: ='Input - Data'!N11 -> 1.318022382 | O11: ='Input - Data'!O11 -> 1.154543882 | P11: ='Input - Data'!P11 -> 1.075369782 | Q11: ='Input - Data'!Q11 -> 1.075369782 | R11: ='Input - Data'!R11 -> 1.101761148 | S11: ='Input - Data'!S11 -> 1.084166904 | T11: ='Input - Data'!T11 -> 1.087099278 | U11: ='Input - Data'!U11 -> 1.09100911 | V11: ='Input - Data'!V11 -> 1.087425097 | W11: ='Input - Data'!W11 -> 1.087425097 | X11: ='Input - Data'!X11 -> 1.087588007 | Y11: ='Input - Data'!Y11 -> 1.087327351 | Z11: ='Input - Data'!Z11 -> 1.087066696
A12: 1 - αt (share excl. guarantees) | B12: =100-B13 -> 44.95 | C12: =100-C13 -> 41.13 | D12: 30.39 | E12: 31.53 | F12: 32.01 | G12: 36.64 | H12: 35.82 | I12: 38.8 | J12: 39.33 | K12: 39.55 | L12: 36.5275 | M12: 36.5275 | N12: 39.701125 | O12: 42.71606875 | P12: 42.71606875 | Q12: 42.71606875 | R12: 39.85187219 | S12: 42.85927858 | T12: 42.85927858 | U12: 40.00224251 | V12: 43.00213038 | W12: 43.00213038 | X12: 43.07355628 | Y12: 43.41640061 | Z12: 43.75924494
A13: αt (share excl. guarantees) | B13: ='Input - Data'!B12 -> 55.05 | C13: ='Input - Data'!C12 -> 58.87 | D13: ='Input - Data'!D12 -> 69.61 | E13: ='Input - Data'!E12 -> 68.47 | F13: ='Input - Data'!F12 -> 67.99 | G13: ='Input - Data'!G12 -> 63.36 | H13: ='Input - Data'!H12 -> 64.18 | I13: ='Input - Data'!I12 -> 61.2 | J13: ='Input - Data'!J12 -> 60.67 | K13: ='Input - Data'!K12 -> 60.45 | L13: ='Input - Data'!L12 -> 63.4725 | M13: ='Input - Data'!M12 -> 63.4725 | N13: ='Input - Data'!N12 -> 60.298875 | O13: ='Input - Data'!O12 -> 57.28393125 | P13: ='Input - Data'!P12 -> 57.28393125 | Q13: ='Input - Data'!Q12 -> 57.28393125 | R13: ='Input - Data'!R12 -> 60.14812781 | S13: ='Input - Data'!S12 -> 57.14072142 | T13: ='Input - Data'!T12 -> 57.14072142 | U13: ='Input - Data'!U12 -> 59.99775749 | V13: ='Input - Data'!V12 -> 56.99786962 | W13: ='Input - Data'!W12 -> 56.99786962 | X13: ='Input - Data'!X12 -> 56.92644372 | Y13: ='Input - Data'!Y12 -> 56.58359939 | Z13: ='Input - Data'!Z12 -> 56.24075506
A14: et (LCU/US$, avg) | B14: ='Input - Data'!B13 -> 18.91655317 | C14: ='Input - Data'!C13 -> 19.50405608 | D14: ='Input - Data'!D13 -> 20.35654016 | E14: ='Input - Data'!E13 -> 20.98862077 | F14: ='Input - Data'!F13 -> 21.9467 | G14: ='Input - Data'!G13 -> 22.8385 | H14: ='Input - Data'!H13 -> 23.49258333 | I14: ='Input - Data'!I13 -> 23.90111647 | J14: ='Input - Data'!J13 -> 24.50763036 | K14: ='Input - Data'!K13 -> 24.5823 | L14: ='Input - Data'!L13 -> 24.20516714 | M14: ='Input - Data'!M13 -> 24.38337221 | N14: ='Input - Data'!N13 -> 24.71496283 | O14: ='Input - Data'!O13 -> 25.20875222 | P14: ='Input - Data'!P13 -> 25.71240722 | Q14: ='Input - Data'!Q13 -> 26.22639277 | R14: ='Input - Data'!R13 -> 26.75092062 | S14: ='Input - Data'!S13 -> 27.28593903 | T14: ='Input - Data'!T13 -> 27.83165781 | U14: ='Input - Data'!U13 -> 28.38829097 | V14: ='Input - Data'!V13 -> 28.95605679 | W14: ='Input - Data'!W13 -> 29.53517793 | X14: ='Input - Data'!X13 -> 30.09737741 | Y14: ='Input - Data'!Y13 -> 30.66521003 | Z14: ='Input - Data'!Z13 -> 31.23304265
A15: et (LCU/US$, eop) | B15: ='Input - Data'!B14 -> 19.052 | C15: ='Input - Data'!C14 -> 19.9623 | D15: ='Input - Data'!D14 -> 20.5975 | E15: ='Input - Data'!E14 -> 21.5124 | F15: ='Input - Data'!F14 -> 22.3676 | G15: ='Input - Data'!G14 -> 23.5029 | H15: ='Input - Data'!H14 -> 23.5879 | I15: ='Input - Data'!I14 -> 24.3388 | J15: ='Input - Data'!J14 -> 24.635 | K15: ='Input - Data'!K14 -> 24.1141 | L15: ='Input - Data'!L14 -> 24.29623427 | M15: ='Input - Data'!M14 -> 24.47051014 | N15: ='Input - Data'!N14 -> 24.95941552 | O15: ='Input - Data'!O14 -> 25.45808893 | P15: ='Input - Data'!P14 -> 25.96672551 | Q15: ='Input - Data'!Q14 -> 26.48606002 | R15: ='Input - Data'!R14 -> 27.01578122 | S15: ='Input - Data'!S14 -> 27.55609685 | T15: ='Input - Data'!T14 -> 28.10721878 | U15: ='Input - Data'!U14 -> 28.66936316 | V15: ='Input - Data'!V14 -> 29.24275042 | W15: ='Input - Data'!W14 -> 29.82760543 | X15: ='Input - Data'!X14 -> 30.39537125 | Y15: ='Input - Data'!Y14 -> 30.96882597 | Z15: ='Input - Data'!Z14 -> 31.54228069
A16: εt | B16: n.a. | C16: =(C15/B15-1)*100 -> 4.777976066 | D16: 3.181998066 | E16: 4.441801189 | F16: 3.97538164 | G16: 5.07564513 | H16: 0.3616574976 | I16: 3.183411834 | J16: 1.216986869 | K16: -2.114471281 | L16: 0.755301981 | M16: 0.71729577 | N16: 1.997937032 | O16: 1.997937032 | P16: 1.997937032 | Q16: 2 | R16: 2 | S16: 2 | T16: 2 | U16: 2 | V16: 2 | W16: 2 | X16: =(X15/W15-1)*100 -> 1.903491116 | Y16: =(Y15/X15-1)*100 -> 1.886651477 | Z16: =(Z15/Y15-1)*100 -> 1.851716048
A17: itd | B17: ='Input - Data'!B15 -> 8.918758936 | C17: ='Input - Data'!C15 -> 9.232938599 | D17: ='Input - Data'!D15 -> 10.53400775 | E17: ='Input - Data'!E15 -> 10.84946009 | F17: ='Input - Data'!F15 -> 10.94940995 | G17: ='Input - Data'!G15 -> 10.10003746 | H17: ='Input - Data'!H15 -> 9.697729214 | I17: ='Input - Data'!I15 -> 10.15733532 | J17: ='Input - Data'!J15 -> 10.20819257 | K17: ='Input - Data'!K15 -> 10.38867089 | L17: ='Input - Data'!L15 -> 9.869237348 | M17: ='Input - Data'!M15 -> 9.37577548 | N17: ='Input - Data'!N15 -> 9.844564254 | O17: ='Input - Data'!O15 -> 10.33679247 | P17: ='Input - Data'!P15 -> 10.33679247 | Q17: ='Input - Data'!Q15 -> 10.33679247 | R17: ='Input - Data'!R15 -> 10.33679247 | S17: ='Input - Data'!S15 -> 10.33679247 | T17: ='Input - Data'!T15 -> 10.33679247 | U17: ='Input - Data'!U15 -> 10.33679247 | V17: ='Input - Data'!V15 -> 10.33679247 | W17: ='Input - Data'!W15 -> 10.33679247 | X17: ='Input - Data'!X15 -> 10.33679247 | Y17: ='Input - Data'!Y15 -> 10.33679247 | Z17: ='Input - Data'!Z15 -> 10.33679247
A18: itf | B18: ='Input - Data'!B16 -> 2.463200262 | C18: ='Input - Data'!C16 -> 2.03472765 | D18: ='Input - Data'!D16 -> 2.803817976 | E18: ='Input - Data'!E16 -> 3.412469993 | F18: ='Input - Data'!F16 -> 3.506312078 | G18: ='Input - Data'!G16 -> 3.497051911 | H18: ='Input - Data'!H16 -> 3.871803137 | I18: ='Input - Data'!I16 -> 3.611484114 | J18: ='Input - Data'!J16 -> 3.583462805 | K18: ='Input - Data'!K16 -> 3.60111838 | L18: ='Input - Data'!L16 -> 3.781174299 | M18: ='Input - Data'!M16 -> 3.781174299 | N18: ='Input - Data'!N16 -> 3.592115584 | O18: ='Input - Data'!O16 -> 3.412509804 | P18: ='Input - Data'!P16 -> 3.412509804 | Q18: ='Input - Data'!Q16 -> 3.412509804 | R18: ='Input - Data'!R16 -> 3.583135295 | S18: ='Input - Data'!S16 -> 3.40397853 | T18: ='Input - Data'!T16 -> 3.40397853 | U18: ='Input - Data'!U16 -> 3.574177456 | V18: ='Input - Data'!V16 -> 3.395468584 | W18: ='Input - Data'!W16 -> 3.395468584 | X18: ='Input - Data'!X16 -> 3.39121361 | Y18: ='Input - Data'!Y16 -> 3.370789739 | Z18: ='Input - Data'!Z16 -> 3.350365868
A19: π t | B19: ='Input - Data'!B17 -> 5.6 | C19: ='Input - Data'!C17 -> 5.39 | D19: ='Input - Data'!D17 -> 4.916732752 | E19: ='Input - Data'!E17 -> 5.82 | F19: ='Input - Data'!F17 -> 2.36 | G19: ='Input - Data'!G17 -> 3.314724355 | H19: ='Input - Data'!H17 -> 4.73 | I19: ='Input - Data'!I17 -> 4.23 | J19: ='Input - Data'!J17 -> 4.08 | K19: ='Input - Data'!K17 -> 4.013079667 | L19: ='Input - Data'!L17 -> 4.041365315 | M19: ='Input - Data'!M17 -> 3.654278014 | N19: ='Input - Data'!N17 -> 3.761262889 | O19: ='Input - Data'!O17 -> 3.737199002 | P19: ='Input - Data'!P17 -> 3.71837475 | Q19: ='Input - Data'!Q17 -> 4 | R19: ='Input - Data'!R17 -> 4 | S19: ='Input - Data'!S17 -> 4 | T19: ='Input - Data'!T17 -> 4 | U19: ='Input - Data'!U17 -> 4 | V19: ='Input - Data'!V17 -> 4 | W19: ='Input - Data'!W17 -> 4 | X19: ='Input - Data'!X17 -> 4 | Y19: ='Input - Data'!Y17 -> 4 | Z19: ='Input - Data'!Z17 -> 4
A20: µt | B20: =1/(1-B13/100*(1-B14/B15)) -> 1.00392906 | C20: 1.01369901 | D20: 1.008210183 | E20: 1.016953558 | F20: 1.012959754 | G20: 1.018237805 | H20: 1.002600202 | I20: 1.011128039 | J20: 1.003146674 | K20: 0.9883991709 | L20: 1.00238475 | M20: 1.002265336 | N20: 1.00594076 | O20: 1.005642046 | P20: 1.005642046 | Q20: 1.00564779 | R20: 1.005931855 | S20: 1.005633591 | T20: 1.005633591 | U20: 1.005916937 | V20: 1.005619428 | W20: 1.005619428 | X20: =1/(1-X13/100*(1-X14/X15)) -> 1.005612347 | Y20: 1.005578357 | Z20: 1.00554437
A21: rˆtw | B21: n.a. | C21: =(((1+C18/100)*(1+C16/100)*C14/C15*B13/100+(1+C17/100)*B12/100)*C20/(1+C19/100)-1)*100 -> 2.536726589 | D21: 2.994472777 | E21: 2.867307232 | F21: 6.16867726 | G21: 5.546646073 | H21: 1.45430779 | I21: 3.643982912 | J21: 2.737327536 | K21: 0.857444211 | L21: 2.535875184 | M21: 2.553660459 | N21: 3.281040146 | O21: 3.518250325 | P21: 3.709253856 | Q21: 3.429597513 | R21: 3.554297793 | S21: 3.259994832 | T21: 3.431532823 | U21: 3.555681943 | V21: 3.262130961 | W21: 3.433487015 | X21: =(((1+X18/100)*(1+X16/100)*X14/X15*W13/100+(1+X17/100)*W12/100)*X20/(1+X19/100)-1)*100 -> 3.375936372 | Y21: =(((1+Y18/100)*(1+Y16/100)*Y14/Y15*X13/100+(1+Y17/100)*X12/100)*Y20/(1+Y19/100)-1)*100 -> 3.355762369 | Z21: =(((1+Z18/100)*(1+Z16/100)*Z14/Z15*Y13/100+(1+Z17/100)*Y12/100)*Z20/(1+Z19/100)-1)*100 -> 3.341486014
A22: gt | B22: ='Input - Data'!B18 -> 3.835682117 | C22: ='Input - Data'!C18 -> 4.128725633 | D22: ='Input - Data'!D18 -> 2.791554075 | E22: ='Input - Data'!E18 -> 3.058096332 | F22: ='Input - Data'!F18 -> 3.840046512 | G22: ='Input - Data'!G18 -> 3.893003331 | H22: ='Input - Data'!H18 -> 4.842866705 | I22: ='Input - Data'!I18 -> 3.845025913 | J22: ='Input - Data'!J18 -> 2.662336047 | K22: ='Input - Data'!K18 -> -8.993690565 | L22: ='Input - Data'!L18 -> 4.230933496 | M22: ='Input - Data'!M18 -> 3.746288693 | N22: ='Input - Data'!N18 -> 3.408191185 | O22: ='Input - Data'!O18 -> 3.660486026 | P22: ='Input - Data'!P18 -> 3.835522081 | Q22: ='Input - Data'!Q18 -> 3.835491687 | R22: ='Input - Data'!R18 -> 3.835528595 | S22: ='Input - Data'!S18 -> 3.835544872 | T22: ='Input - Data'!T18 -> 3.83549772 | U22: ='Input - Data'!U18 -> 3.835523257 | V22: ='Input - Data'!V18 -> 3.835520597 | W22: ='Input - Data'!W18 -> 3.83553137 | X22: ='Input - Data'!X18 -> 3.835542808 | Y22: ='Input - Data'!Y18 -> 3.835552637 | Z22: ='Input - Data'!Z18 -> 3.835562465
A23: φˆt | B23: n.a. | C23: =(1+C21/100)/(1+C22/100) -> 0.9847112405 | D23: =(1+D21/100)/(1+D22/100) -> 1.00197408 | E23: 0.9981487228 | F23: 1.022425171 | G23: 1.015916786 | H23: 0.9676796427 | I23: 0.9980640093 | J23: 1.000730467 | K23: 1.108246723 | L23: 0.9837374736 | M23: 0.9885043769 | N23: 0.9987703968 | O23: 0.9986278696 | P23: 0.9987839593 | Q23: 0.9960909881 | R23: 0.9972915744 | S23: 0.9944571 | T23: 0.9961095684 | U23: 0.9973049559 | V23: 0.9944779047 | W23: 0.9961280657 | X23: =(1+X21/100)/(1+X22/100) -> 0.995573708 | Y23: 0.9953793257 | Z23: 0.9952417415
A24: pbt | B24: ='Input - Data'!B19 -> -3.283564952 | C24: ='Input - Data'!C19 -> -4.033543483 | D24: ='Input - Data'!D19 -> -5.610796375 | E24: ='Input - Data'!E19 -> -1.880094999 | F24: ='Input - Data'!F19 -> -0.3516936022 | G24: ='Input - Data'!G19 -> -0.1264194147 | H24: ='Input - Data'!H19 -> 0.01847718413 | I24: ='Input - Data'!I19 -> 0.8537145611 | J24: ='Input - Data'!J19 -> 0.564213633 | K24: ='Input - Data'!K19 -> -3.548590878 | L24: ='Input - Data'!L19 -> -4.040950675 | M24: ='Input - Data'!M19 -> -1.054812503 | N24: ='Input - Data'!N19 -> 0.4523486729 | O24: ='Input - Data'!O19 -> 0.2669914016 | P24: ='Input - Data'!P19 -> 0.1974697979 | Q24: ='Input - Data'!Q19 -> 0.3056032908 | R24: ='Input - Data'!R19 -> 0.2566881634 | S24: ='Input - Data'!S19 -> 0.2532537507 | T24: ='Input - Data'!T19 -> 0.2718484016 | U24: ='Input - Data'!U19 -> 0.2605967719 | V24: ='Input - Data'!V19 -> 0.2618996414 | W24: ='Input - Data'!W19 -> 0.264781605 | X24: ='Input - Data'!X19 -> 0.2598072249 | Y24: ='Input - Data'!Y19 -> 0.2578174728 | Z24: ='Input - Data'!Z19 -> 0.2558277208
A25: oft (other net debt-creating flows) | B25: ='Input - Data'!B20 -> 0 | C25: ='Input - Data'!C20 -> 0 | D25: ='Input - Data'!D20 -> 0 | E25: ='Input - Data'!E20 -> 0 | F25: ='Input - Data'!F20 -> 0 | G25: ='Input - Data'!G20 -> 0 | H25: ='Input - Data'!H20 -> 0 | I25: ='Input - Data'!I20 -> 0 | J25: ='Input - Data'!J20 -> 0 | K25: ='Input - Data'!K20 -> 0 | L25: ='Input - Data'!L20 -> 0.9 | M25: ='Input - Data'!M20 -> 0.9 | N25: ='Input - Data'!N20 -> 0.9 | O25: ='Input - Data'!O20 -> 0.9 | P25: ='Input - Data'!P20 -> 0.9 | Q25: ='Input - Data'!Q20 -> 0.9 | R25: ='Input - Data'!R20 -> 0.9 | S25: ='Input - Data'!S20 -> 0.9 | T25: ='Input - Data'!T20 -> 0.9 | U25: ='Input - Data'!U20 -> 0.9 | V25: ='Input - Data'!V20 -> 0.9 | W25: ='Input - Data'!W20 -> 0.9 | X25: ='Input - Data'!X20 -> 0.9 | Y25: ='Input - Data'!Y20 -> 0.9 | Z25: ='Input - Data'!Z20 -> 0.9
A26: sft | B26: n.a. | C26: =((C15-C14)/C15)*((C13/100)*(C9-C10-C11)-(B13/100)*(B9-B10-B11)*(1+C16/100)/((1+C22/100)*(1+C19/100))) -> 0.09638422131 | D26: 0.1182497729 | E26: 0.04104030149 | F26: 0.006986394362 | G26: -0.03592432385 | H26: 0.01734995444 | I26: 0.01335517226 | J26: -0.003459509734 | K26: -0.1059817807 | L26: =((L15-L14)/L15)*((L13/100)*(L9-L10-L11)-(K13/100)*(K9-K10-K11)*(1+L16/100)/((1+L22/100)*(1+L19/100))) -> 0.02485775708 | M26: 0.01142690242 | N26: 0.001987135278 | O26: 0.003637594502 | P26: 0.02189802857 | Q26: 0.02144097791 | R26: 0.040017884 | S26: 0.003715654345 | T26: 0.02191048604 | U26: 0.0405669733 | V26: 0.003666450961 | W26: 0.0222309188 | X26: =((X15-X14)/X15)*((X13/100)*(X9-X10-X11)-(W13/100)*(W9-W10-W11)*(1+X16/100)/((1+X22/100)*(1+X19/100))) -> 0.02203573824 | Y26: =((Y15-Y14)/Y15)*((Y13/100)*(Y9-Y10-Y11)-(X13/100)*(X9-X10-X11)*(1+Y16/100)/((1+Y22/100)*(1+Y19/100))) -> 0.02035369097 | Z26: =((Z15-Z14)/Z15)*((Z13/100)*(Z9-Z10-Z11)-(Y13/100)*(Y9-Y10-Y11)*(1+Z16/100)/((1+Z22/100)*(1+Z19/100))) -> 0.02038423002
A27: adjt | B27: n.a. | C27: =C24-B24 -> -0.749978531 | D27: =D24-C24 -> -1.577252893 | E27: 3.730701376 | F27: 1.528401397 | G27: 0.2252741875 | H27: 0.1448965988 | I27: 0.835237377 | J27: -0.2895009281 | K27: -4.112804511 | L27: -0.492359797 | M27: 2.986138173 | N27: 1.507161176 | O27: -0.1853572713 | P27: -0.06952160368 | Q27: 0.1081334929 | R27: -0.04891512737 | S27: -0.003434412718 | T27: 0.01859465093 | U27: -0.01125162972 | V27: 0.0013028695 | W27: 0.002881963572 | X27: =X24-W24 -> -0.004974380109 | Y27: =Y24-X24 -> -0.001989752043 | Z27: =Z24-Y24 -> -0.001989752043
A28: Int paymentst (excl. guarantees) | B28: n.a. | C28: =(B9-B10-B11)*(1/((1+C22/100)*(1+C19/100)))*(B13/100*(1+C16/100)*(C14/C15)*(C18/100)+B12/100*(C17/100)) -> 1.524922734 | D28: 1.971303021 | E28: 2.260499189 | F28: 2.467481432 | G28: 2.337640614 | H28: 2.436932762 | I28: 2.593957444 | J28: 2.776848392 | K28: 2.969233883 | L28: =(K9-K10-K11)*(1/((1+L22/100)*(1+L19/100)))*(K13/100*(1+L16/100)*(L14/L15)*(L18/100)+K12/100*(L17/100)) -> 3.176624919 | M28: 3.234720773 | N28: 3.348324945 | O28: 3.523005315 | P28: 3.668690137 | Q28: 3.696123099 | R28: 3.77446906 | S28: 3.626558038 | T28: 3.765904704 | U28: 3.846854337 | V28: 3.695825414 | W28: 3.836430723 | X28: =(W9-W10-W11)*(1/((1+X22/100)*(1+X19/100)))*(W13/100*(1+X16/100)*(X14/X15)*(X18/100)+W12/100*(X17/100)) -> 3.856841181 | Y28: =(X9-X10-X11)*(1/((1+Y22/100)*(1+Y19/100)))*(X13/100*(1+Y16/100)*(Y14/Y15)*(Y18/100)+X12/100*(Y17/100)) -> 3.873583518 | Z28: =(Y9-Y10-Y11)*(1/((1+Z22/100)*(1+Z19/100)))*(Y13/100*(1+Z16/100)*(Z14/Z15)*(Z18/100)+Y12/100*(Z17/100)) -> 3.900874521
A29: ifisct (excl. guarantees), used in final output | B29: n.a. | C29: =(B13/100)*(1+C16/100)*(C14/C15)*C18+(B12/100)*C17 -> 5.296901047 | D29: =(C13/100)*(1+D16/100)*(D14/D15)*D18+(C12/100)*D17 -> 6.01584327 | E29: 5.717677547 | F29: 5.901588475 | G29: 5.660723619 | H29: 6.005345623 | I29: 5.986986041 | J29: 6.169070632 | K29: 6.26598899 | L29: 6.197635278 | M29: 5.833349816 | N29: 5.89875531 | O29: 6.182083745 | P29: 6.389819181 | Q29: 6.389839345 | R29: 6.488557743 | S29: 6.187308973 | T29: 6.394783147 | U29: 6.493008571 | V29: 6.192525847 | W29: 6.399739178 | X29: =(W13/100)*(1+X16/100)*(X14/X15)*X18+(W12/100)*X17 -> 6.395442531 | Y29: =(X13/100)*(1+Y16/100)*(Y14/Y15)*Y18+(X12/100)*Y17 -> 6.388329864 | Z29: =(Y13/100)*(1+Z16/100)*(Z14/Z15)*Z18+(Y12/100)*Z17 -> 6.39979486
A30: φˆobt | B30: n.a. | C30: =((1+C16/100)*C14/C15*B13/100+B12/100)*C20/((1+C19/100)*(1+C22/100)) -> 0.9357828506 | D30: =((1+D16/100)*D14/D15*C13/100+C12/100)*D20/((1+D19/100)*(1+D22/100)) -> 0.9457340677 | E30: 0.9448310843 | F30: 0.9661824963 | G30: 0.9622169891 | H30: 0.9128449007 | I30: 0.94213515 | J30: 0.9428135079 | K30: 1.042818889 | L30: 0.9264502472 | M30: 0.9341366807 | N30: 0.9434681729 | O30: 0.9408141984 | P30: 0.9391174902 | Q30: 0.9365855469 | R30: 0.9368497705 | S30: 0.9368385679 | T30: 0.9365589323 | U30: 0.9368225857 | V30: 0.9368115899 | W30: 0.9365321358 | X30: =((1+X16/100)*X14/X15*W13/100+W12/100)*X20/((1+X19/100)*(1+X22/100)) -> 0.9360182154 | Y30: =((1+Y16/100)*Y14/Y15*X13/100+X12/100)*Y20/((1+Y19/100)*(1+Y22/100)) -> 0.9358920839 | Z30: =((1+Z16/100)*Z14/Z15*Y13/100+Y12/100)*Z20/((1+Z19/100)*(1+Z22/100)) -> 0.9356497591
A31: obt | B31: n.a. | C31: =C24-C28 -> -5.558466217 | D31: =D24-D28 -> -7.582099396 | E31: -4.140594188 | F31: -2.819175034 | G31: -2.464060029 | H31: -2.418455578 | I31: -1.740242883 | J31: -2.212634759 | K31: -6.517824761 | L31: -7.217575594 | M31: -4.289533276 | N31: -2.895976272 | O31: -3.256013913 | P31: -3.471220339 | Q31: -3.390519808 | R31: -3.517780897 | S31: -3.373304287 | T31: -3.494056302 | U31: -3.586257565 | V31: -3.433925772 | W31: -3.571649118 | X31: =X24-X28 -> -3.597033957 | Y31: -3.615766045 | Z31: -3.6450468
A32: residualt | B32: n.a. | C32: =((C9-C10-C11)-C23*(B9-B10-B11)+C20*C24-C20*C25)/C20 -> 0.138351542 | D32: =((D9-D10-D11)-D23*(C9-C10-C11)+D20*D24-D20*D25)/D20 -> 2.032906839 | E32: -0.4986879269 | F32: -1.449112564 | G32: -0.5920586438 | H32: 3.787517649 | I32: 2.130800767 | J32: -2.70150378 | K32: 2.392616761 | L32: -1.882888923e-15 | M32: 6.646282089e-15 | N32: 6.511631802e-15 | O32: -4.857574647e-15 | P32: 5.409571766e-15 | Q32: -9.052701047e-15 | R32: 1.004345322e-14 | S32: -1.876805984e-15 | T32: -2.760008801e-15 | U32: -3.200708381e-15 | V32: 4.968085811e-15 | W32: 6.513712507e-15 | X32: =((X9-X10-X11)-X23*(W9-W10-W11)+X20*X24-X20*X25)/X20 -> 7.396979851e-15 | Y32: =((Y9-Y10-Y11)-Y23*(X9-X10-X11)+Y20*Y24-Y20*Y25)/Y20 -> -1.545689825e-14 | Z32: =((Z9-Z10-Z11)-Z23*(Y9-Y10-Y11)+Z20*Z24-Z20*Z25)/Z20 -> 4.526816058e-15
A33: amtd | B33: n.a. | C33: ='Input - Data'!C21 -> 12.86249775 | D33: ='Input - Data'!D21 -> 13.54261434 | E33: ='Input - Data'!E21 -> 13.97350834 | F33: ='Input - Data'!F21 -> 12.12442486 | G33: ='Input - Data'!G21 -> 11.79007748 | H33: ='Input - Data'!H21 -> 10.6059941 | I33: ='Input - Data'!I21 -> 10.56460841 | J33: ='Input - Data'!J21 -> 9.976907437 | K33: ='Input - Data'!K21 -> 12.23437307 | L33: ='Input - Data'!L21 -> 18.71030251 | M33: ='Input - Data'!M21 -> 11.78253661 | N33: ='Input - Data'!N21 -> 12.04987969 | O33: ='Input - Data'!O21 -> 12.39849904 | P33: ='Input - Data'!P21 -> 13.03107885 | Q33: ='Input - Data'!Q21 -> 13.20303592 | R33: ='Input - Data'!R21 -> 12.46900064 | S33: ='Input - Data'!S21 -> 12.61600522 | T33: ='Input - Data'!T21 -> 12.7356743 | U33: ='Input - Data'!U21 -> 12.80532205 | V33: ='Input - Data'!V21 -> 12.76110612 | W33: ='Input - Data'!W21 -> 12.67624668 | X33: ='Input - Data'!X21 -> 13.67624668 | Y33: ='Input - Data'!Y21 -> 14.67624668 | Z33: ='Input - Data'!Z21 -> 15.67624668
A34: amtf | B34: n.a. | C34: ='Input - Data'!C22 -> 13.10908072 | D34: ='Input - Data'!D22 -> 13.85027235 | E34: ='Input - Data'!E22 -> 15.73847383 | F34: ='Input - Data'!F22 -> 11.17804023 | G34: ='Input - Data'!G22 -> 10.00832783 | H34: ='Input - Data'!H22 -> 9.742478028 | I34: ='Input - Data'!I22 -> 10.49196812 | J34: ='Input - Data'!J22 -> 9.976850677 | K34: ='Input - Data'!K22 -> 11.66645637 | L34: ='Input - Data'!L22 -> 17.70601006 | M34: ='Input - Data'!M22 -> 11.35382687 | N34: ='Input - Data'!N22 -> 11.74224664 | O34: ='Input - Data'!O22 -> 12.02893292 | P34: ='Input - Data'!P22 -> 12.54499479 | Q34: ='Input - Data'!Q22 -> 12.73682319 | R34: ='Input - Data'!R22 -> 12.05990157 | S34: ='Input - Data'!S22 -> 12.21178753 | T34: ='Input - Data'!T22 -> 12.3102382 | U34: ='Input - Data'!U22 -> 12.36808552 | V34: ='Input - Data'!V22 -> 12.33330073 | W34: ='Input - Data'!W22 -> 12.25564513 | X34: ='Input - Data'!X22 -> 13.25564513 | Y34: ='Input - Data'!Y22 -> 14.25564513 | Z34: ='Input - Data'!Z22 -> 15.25564513
A35: gfnt | B35: n.a. | C35: =(B9-B10-B11)*(B13/100*(1+C16/100)*(C14/C15)*(C18/100+C34/100)+B12/100*(C17/100+C33/100))/((1+C19/100)*(1+C22/100))-C24 -> 9.34982034 | D35: =(C9-C10-C11)*(C13/100*(1+D16/100)*(D14/D15)*(D18/100+D34/100)+C12/100*(D17/100+D33/100))/((1+D19/100)*(1+D22/100))-D24 -> 12.1319306 | E35: 10.23303171 | F35: 7.682128592 | G35: 6.891762938 | H35: 6.499184497 | I35: 6.336069952 | J35: 6.722531908 | K35: 12.14482022 | L35: 16.51717144 | M35: 10.68664872 | N35: 9.667304329 | O35: 10.23588824 | P35: 10.83431143 | Q35: 10.915375 | R35: 10.67500666 | S35: 10.66845135 | T35: 10.8923923 | U35: 11.06676141 | V35: 10.94098842 | W35: 11.06880025 | X35: =(W9-W10-W11)*(W13/100*(1+X16/100)*(X14/X15)*(X18/100+X34/100)+W12/100*(X17/100+X33/100))/((1+X19/100)*(1+X22/100))-X24 -> 11.74127879 | Y35: =(X9-X10-X11)*(X13/100*(1+Y16/100)*(Y14/Y15)*(Y18/100+Y34/100)+X12/100*(Y17/100+Y33/100))/((1+Y19/100)*(1+Y22/100))-Y24 -> 12.41325635 | Z35: =(Y9-Y10-Y11)*(Y13/100*(1+Z16/100)*(Z14/Z15)*(Z18/100+Z34/100)+Y12/100*(Z17/100+Z33/100))/((1+Z19/100)*(1+Z22/100))-Z24 -> 13.10003503
A37: Note: of = Other Factors refer to below-the-line debt-creating transactions (e.g., realization of contingent liabilities, guarantees). Amount expressed as percentage of GDP. Historical data is just a residual calculated using the debt dynamics equation.
A39: Historic Standard Deviation nominal end of period XR | G39: =STDEV(B15:K15) -> 1.986015612
A40: Historic standard Deviation of inflation | G40: =STDEV(B19:K19) -> 1.075597144

Sheet Fan Chart
A1: 1 - Fan charts are generated based on the calculations of historical averages, variances and covariances of relevant macroeconomic variables.
A2: 2 - As a default, averages, variances and covariances are calculated based on the historical data in the Input - Data worksheet (last 9 years). Users may extend the historical period by populating the yellow-shaded cells in rows 7-10.
A3: 3 - Click on the blue button to generate the fan charts. Individual shocks can be turned off, using cells B42-B45. To generate asymmetric fan charts, specify restrictions on the magnitude of positive shocks can be chosen in cells D42-D45.
A5: Fan Chart | BB5: First Year of projection | FB5: GFN Fan Chart | HG5: First Year of projection
A6: Series | B6: Units | C6: =D6-1 -> 1970 | D6: 1971 | E6: 1972 | F6: 1973 | G6: 1974 | H6: 1975 | I6: 1976 | J6: 1977 | K6: 1978 | L6: 1979 | M6: 1980 | N6: 1981 | O6: 1982 | P6: 1983 | Q6: 1984 | R6: 1985 | S6: =T6-1 -> 1986 | T6: 1987 | U6: 1988 | V6: 1989 | W6: 1990 | X6: 1991 | Y6: 1992 | Z6: 1993 | AA6: 1994 | AB6: 1995 | AC6: 1996 | AD6: 1997 | AE6: 1998 | AF6: 1999 | AG6: 2000 | AH6: 2001 | AI6: 2002 | AJ6: 2003 | AK6: 2004 | AL6: 2005 | AM6: 2006 | AN6: 2007 | AO6: 2008 | AP6: 2009 | AQ6: 2010 | AR6: 2011 | AS6: 2012 | AT6: 2013 | AU6: 2014 | AV6: 2015 | AW6: 2016 | AX6: 2017 | AY6: 2018 | AZ6: 2019 | BA6: 2020 | BB6: =FirstYear -> 2021 | BC6: =BB6+1 -> 2022 | BD6: 2023 | BE6: 2024 | BF6: 2025 | BG6: 2026 | BH6: 2027 | BI6: 2028 | BJ6: 2029 | BK6: 2030 | BL6: 2031 | BM6: 2032 | BN6: =BM6+1 -> 2033 | BO6: 2034 | BP6: 2035 | FB6: Series | FG6: Units | FH6: =FI6-1 -> 1970 | FI6: 1971 | FJ6: 1972 | FK6: 1973 | FL6: 1974 | FM6: 1975 | FN6: 1976 | FO6: 1977 | FP6: 1978 | FQ6: 1979 | FR6: 1980 | FS6: 1981 | FT6: 1982 | FU6: 1983 | FV6: 1984 | FW6: 1985 | FX6: 1986 | FY6: =FZ6-1 -> 1987 | FZ6: 1988 | GA6: 1989 | GB6: 1990 | GC6: 1991 | GD6: 1992 | GE6: 1993 | GF6: 1994 | GG6: 1995 | GH6: 1996 | GI6: 1997 | GJ6: 1998 | GK6: 1999 | GL6: 2000 | GM6: 2001 | GN6: 2002 | GO6: =GP6-1 -> 2003 | GP6: 2004 | GQ6: 2005 | GR6: 2006 | GS6: 2007 | GT6: 2008 | GU6: 2009 | GV6: 2010 | GW6: 2011 | GX6: 2012 | GY6: 2013 | GZ6: =HA6-1 -> 2014 | HA6: 2015 | HB6: 2016 | HC6: 2017 | HD6: 2018 | HE6: 2019 | HF6: 2020 | HG6: =FirstYear -> 2021 | HH6: =HG6+1 -> 2022 | HI6: 2023 | HJ6: 2024 | HK6: 2025 | HL6: 2026 | HM6: =HL6+1 -> 2027 | HN6: 2028 | HO6: 2029 | HP6: 2030 | HQ6: 2031 | HR6: 2032 | HS6: =HR6+1 -> 2033 | HT6: 2034 | HU6: 2035
A7: Real GDP growth rate (g) | B7: Percent | AS7: =IFERROR(Baseline!C22,0) -> 4.128725633 | AT7: =IFERROR(Baseline!D22,0) -> 2.791554075 | AU7: =IFERROR(Baseline!E22,0) -> 3.058096332 | AV7: =IFERROR(Baseline!F22,0) -> 3.840046512 | AW7: =IFERROR(Baseline!G22,0) -> 3.893003331 | AX7: =IFERROR(Baseline!H22,0) -> 4.842866705 | AY7: =IFERROR(Baseline!I22,0) -> 3.845025913 | AZ7: =IFERROR(Baseline!J22,0) -> 2.662336047 | BA7: =IFERROR(Baseline!K22,0) -> -8.993690565 | BB7: =Baseline!L22 -> 4.230933496 | BC7: =Baseline!M22 -> 3.746288693 | BD7: =Baseline!N22 -> 3.408191185 | BE7: =Baseline!O22 -> 3.660486026 | BF7: =Baseline!P22 -> 3.835522081 | BG7: =Baseline!Q22 -> 3.835491687 | BH7: =Baseline!R22 -> 3.835528595 | BI7: =Baseline!S22 -> 3.835544872 | BJ7: =Baseline!T22 -> 3.83549772 | BK7: =Baseline!U22 -> 3.835523257 | BL7: =Baseline!V22 -> 3.835520597 | BM7: =Baseline!W22 -> 3.83553137 | BN7: =Baseline!X22 -> 3.835542808 | BO7: =Baseline!Y22 -> 3.835552637 | BP7: =Baseline!Z22 -> 3.835562465 | FB7: Real GDP growth rate (g) | FG7: Percent | GX7: =IFERROR(Baseline!C22,0) -> 4.128725633 | GY7: =IFERROR(Baseline!D22,0) -> 2.791554075 | GZ7: =IFERROR(Baseline!E22,0) -> 3.058096332 | HA7: =IFERROR(Baseline!F22,0) -> 3.840046512 | HB7: =IFERROR(Baseline!G22,0) -> 3.893003331 | HC7: =IFERROR(Baseline!H22,0) -> 4.842866705 | HD7: =IFERROR(Baseline!I22,0) -> 3.845025913 | HE7: =IFERROR(Baseline!J22,0) -> 2.662336047 | HF7: =IFERROR(Baseline!K22,0) -> -8.993690565 | HG7: =IFERROR(Baseline!L22,0) -> 4.230933496 | HH7: =IFERROR(Baseline!M22,0) -> 3.746288693 | HI7: =IFERROR(Baseline!N22,0) -> 3.408191185 | HJ7: =IFERROR(Baseline!O22,0) -> 3.660486026 | HK7: =IFERROR(Baseline!P22,0) -> 3.835522081 | HL7: =IFERROR(Baseline!Q22,0) -> 3.835491687 | HM7: =IFERROR(Baseline!R22,0) -> 3.835528595 | HN7: =IFERROR(Baseline!S22,0) -> 3.835544872 | HO7: =IFERROR(Baseline!T22,0) -> 3.83549772 | HP7: =IFERROR(Baseline!U22,0) -> 3.835523257 | HQ7: =IFERROR(Baseline!V22,0) -> 3.835520597 | HR7: =IFERROR(Baseline!W22,0) -> 3.83553137 | HS7: =IFERROR(Baseline!X22,0) -> 3.835542808 | HT7: =IFERROR(Baseline!Y22,0) -> 3.835552637 | HU7: =IFERROR(Baseline!Z22,0) -> 3.835562465
A8: Real effective interest rate on local-currency debt | B8: Percent | AS8: =IFERROR(Baseline!C36,0) -> 5.066250837 | AT8: =IFERROR(Baseline!D36,0) -> 6.219007502 | AU8: =IFERROR(Baseline!E36,0) -> 6.528777952 | AV8: =IFERROR(Baseline!F36,0) -> 9.79609911 | AW8: =IFERROR(Baseline!G36,0) -> 8.511174111 | AX8: =IFERROR(Baseline!H36,0) -> 5.015721815 | AY8: =IFERROR(Baseline!I36,0) -> 6.862870959 | AZ8: =IFERROR(Baseline!J36,0) -> 6.221158567 | BA8: =IFERROR(Baseline!K36,0) -> 4.898413867 | BB8: =Baseline!L36 -> 5.853328268 | BC8: =Baseline!M36 -> 5.758826754 | BD8: =Baseline!N36 -> 6.491691988 | BE8: =Baseline!O36 -> 6.961937313 | BF8: =Baseline!P36 -> 6.981350252 | BG8: =Baseline!Q36 -> 6.692261067 | BH8: =Baseline!R36 -> 6.722398352 | BI8: =Baseline!S36 -> 6.69075465 | BJ8: =Baseline!T36 -> 6.69075465 | BK8: =Baseline!U36 -> 6.720815721 | BL8: =Baseline!V36 -> 6.68925204 | BM8: =Baseline!W36 -> 6.68925204 | BN8: =Baseline!X36 -> 6.688500752 | BO8: =Baseline!Y36 -> 6.684894714 | BP8: =Baseline!Z36 -> 6.681288919 | FB8: Real rate at which local-currency debt generates gfn | FG8: Percent | GX8: =Baseline!C38+(Baseline!C19/100/(1+Baseline!C19/100)+(1/(1+Baseline!C19/100))*Baseline!C33/100)*100 -> 20.96540123 | GY8: =Baseline!D38+(Baseline!D19/100/(1+Baseline!D19/100)+(1/(1+Baseline!D19/100))*Baseline!D33/100)*100 -> 22.94831478 | GZ8: =Baseline!E38+(Baseline!E19/100/(1+Baseline!E19/100)+(1/(1+Baseline!E19/100))*Baseline!E33/100)*100 -> 23.45772862 | HA8: =Baseline!F38+(Baseline!F19/100/(1+Baseline!F19/100)+(1/(1+Baseline!F19/100))*Baseline!F33/100)*100 -> 22.54184721 | HB8: =Baseline!G38+(Baseline!G19/100/(1+Baseline!G19/100)+(1/(1+Baseline!G19/100))*Baseline!G33/100)*100 -> 21.18779785 | HC8: =Baseline!H38+(Baseline!H19/100/(1+Baseline!H19/100)+(1/(1+Baseline!H19/100))*Baseline!H33/100)*100 -> 19.38673094 | HD8: =Baseline!I38+(Baseline!I19/100/(1+Baseline!I19/100)+(1/(1+Baseline!I19/100))*Baseline!I33/100)*100 -> 19.88097835 | HE8: =Baseline!J38+(Baseline!J19/100/(1+Baseline!J19/100)+(1/(1+Baseline!J19/100))*Baseline!J33/100)*100 -> 19.39383167 | HF8: =Baseline!K38+(Baseline!K19/100/(1+Baseline!K19/100)+(1/(1+Baseline!K19/100))*Baseline!K33/100)*100 -> 21.75019145 | HG8: =Baseline!L38+(Baseline!L19/100/(1+Baseline!L19/100)+(1/(1+Baseline!L19/100))*Baseline!L33/100)*100 -> 27.46940102 | HH8: =Baseline!M38+(Baseline!M19/100/(1+Baseline!M19/100)+(1/(1+Baseline!M19/100))*Baseline!M33/100)*100 -> 20.41238673 | HI8: =Baseline!N38+(Baseline!N19/100/(1+Baseline!N19/100)+(1/(1+Baseline!N19/100))*Baseline!N33/100)*100 -> 21.10078784 | HJ8: =Baseline!O38+(Baseline!O19/100/(1+Baseline!O19/100)+(1/(1+Baseline!O19/100))*Baseline!O33/100)*100 -> 21.91623807 | HK8: =Baseline!P38+(Baseline!P19/100/(1+Baseline!P19/100)+(1/(1+Baseline!P19/100))*Baseline!P33/100)*100 -> 22.53011713 | HL8: =Baseline!Q38+(Baseline!Q19/100/(1+Baseline!Q19/100)+(1/(1+Baseline!Q19/100))*Baseline!Q33/100)*100 -> 22.63445037 | HM8: =Baseline!R38+(Baseline!R19/100/(1+Baseline!R19/100)+(1/(1+Baseline!R19/100))*Baseline!R33/100)*100 -> 21.92864722 | HN8: =Baseline!S38+(Baseline!S19/100/(1+Baseline!S19/100)+(1/(1+Baseline!S19/100))*Baseline!S33/100)*100 -> 22.06999777 | HO8: =Baseline!T38+(Baseline!T19/100/(1+Baseline!T19/100)+(1/(1+Baseline!T19/100))*Baseline!T33/100)*100 -> 22.1850642 | HP8: =Baseline!U38+(Baseline!U19/100/(1+Baseline!U19/100)+(1/(1+Baseline!U19/100))*Baseline!U33/100)*100 -> 22.25203319 | HQ8: =Baseline!V38+(Baseline!V19/100/(1+Baseline!V19/100)+(1/(1+Baseline!V19/100))*Baseline!V33/100)*100 -> 22.20951787 | HR8: =Baseline!W38+(Baseline!W19/100/(1+Baseline!W19/100)+(1/(1+Baseline!W19/100))*Baseline!W33/100)*100 -> 22.12792226 | HS8: =Baseline!X38+(Baseline!X19/100/(1+Baseline!X19/100)+(1/(1+Baseline!X19/100))*Baseline!X33/100)*100 -> 23.08946072 | HT8: =Baseline!Y38+(Baseline!Y19/100/(1+Baseline!Y19/100)+(1/(1+Baseline!Y19/100))*Baseline!Y33/100)*100 -> 24.05099918 | HU8: =Baseline!Z38+(Baseline!Z19/100/(1+Baseline!Z19/100)+(1/(1+Baseline!Z19/100))*Baseline!Z33/100)*100 -> 25.01253764
A9: Primary balance (pb) augmented | B9: Percent of GDP | AS9: =IFERROR(Baseline!C20*(Baseline!C24-Baseline!C25)-Baseline!C32,0) -> -4.227150579 | AT9: =IFERROR(Baseline!D20*(Baseline!D24-Baseline!D25)-Baseline!D32,0) -> -7.689768882 | AU9: =IFERROR(Baseline!E20*(Baseline!E24-Baseline!E25)-Baseline!E32,0) -> -1.413281372 | AV9: =IFERROR(Baseline!F20*(Baseline!F24-Baseline!F25)-Baseline!F32,0) -> 1.092861099 | AW9: =IFERROR(Baseline!G20*(Baseline!G24-Baseline!G25)-Baseline!G32,0) -> 0.4633336166 | AX9: =IFERROR(Baseline!H20*(Baseline!H24-Baseline!H25)-Baseline!H32,0) -> -3.76899242 | AY9: =IFERROR(Baseline!I20*(Baseline!I24-Baseline!I25)-Baseline!I32,0) -> -1.267586037 | AZ9: =IFERROR(Baseline!J20*(Baseline!J24-Baseline!J25)-Baseline!J32,0) -> 3.267492809 | BA9: =IFERROR(Baseline!K20*(Baseline!K24-Baseline!K25)-Baseline!K32,0) -> -5.900041043 | BB9: =Baseline!L20*(Baseline!L24-Baseline!L25)-Baseline!L32 -> -4.952733605 | BC9: =Baseline!M20*(Baseline!M24-Baseline!M25)-Baseline!M32 -> -1.959240809 | BD9: =Baseline!N20*(Baseline!N24-Baseline!N25)-Baseline!N32 -> -0.4503107163 | BE9: =Baseline!O20*(Baseline!O24-Baseline!O25)-Baseline!O32 -> -0.6365800623 | BF9: =Baseline!P20*(Baseline!P24-Baseline!P25)-Baseline!P32 -> -0.7064939101 | BG9: =Baseline!Q20*(Baseline!Q24-Baseline!Q25)-Baseline!Q32 -> -0.5977537371 | BH9: =Baseline!R20*(Baseline!R24-Baseline!R25)-Baseline!R32 -> -0.6471278689 | BI9: =Baseline!S20*(Baseline!S24-Baseline!S25)-Baseline!S32 -> -0.6503897532 | BJ9: =Baseline!T20*(Baseline!T24-Baseline!T25)-Baseline!T32 -> -0.6316903476 | BK9: =Baseline!U20*(Baseline!U24-Baseline!U25)-Baseline!U32 -> -0.6431865369 | BL9: =Baseline!V20*(Baseline!V24-Baseline!V25)-Baseline!V32 -> -0.6416861176 | BM9: =Baseline!W20*(Baseline!W24-Baseline!W25)-Baseline!W32 -> -0.638787959 | BN9: =Baseline!X20*(Baseline!X24-Baseline!X25)-Baseline!X32 -> -0.6437857588 | BO9: =Baseline!Y20*(Baseline!Y24-Baseline!Y25)-Baseline!Y32 -> -0.6457648507 | BP9: =Baseline!Z20*(Baseline!Z24-Baseline!Z25)-Baseline!Z32 -> -0.6477438087 | FB9: Primary balance (pb) | FG9: Percent of GDP | GX9: =Baseline!C24 -> -4.033543483 | GY9: =Baseline!D24 -> -5.610796375 | GZ9: =Baseline!E24 -> -1.880094999 | HA9: =Baseline!F24 -> -0.3516936022 | HB9: =Baseline!G24 -> -0.1264194147 | HC9: =Baseline!H24 -> 0.01847718413 | HD9: =Baseline!I24 -> 0.8537145611 | HE9: =Baseline!J24 -> 0.564213633 | HF9: =Baseline!K24 -> -3.548590878 | HG9: =Baseline!L24 -> -4.040950675 | HH9: =Baseline!M24 -> -1.054812503 | HI9: =Baseline!N24 -> 0.4523486729 | HJ9: =Baseline!O24 -> 0.2669914016 | HK9: =Baseline!P24 -> 0.1974697979 | HL9: =Baseline!Q24 -> 0.3056032908 | HM9: =Baseline!R24 -> 0.2566881634 | HN9: =Baseline!S24 -> 0.2532537507 | HO9: =Baseline!T24 -> 0.2718484016 | HP9: =Baseline!U24 -> 0.2605967719 | HQ9: =Baseline!V24 -> 0.2618996414 | HR9: =Baseline!W24 -> 0.264781605 | HS9: =Baseline!X24 -> 0.2598072249 | HT9: =Baseline!Y24 -> 0.2578174728 | HU9: =Baseline!Z24 -> 0.2558277208
A10: Real effective interest rate on foreign-currency debt augmented by changes in real exchange rate | B10: Percent | AS10: =IFERROR((Baseline!C40/100+Baseline!C37/100+(Baseline!C40/100)*(Baseline!C37/100))*100,0) -> 0.4712930751 | AT10: =IFERROR((Baseline!D40/100+Baseline!D37/100+(Baseline!D40/100)*(Baseline!D37/100))*100,0) -> 0.7416256011 | AU10: =IFERROR((Baseline!E40/100+Baseline!E37/100+(Baseline!E40/100)*(Baseline!E37/100))*100,0) -> 1.268799903 | AV10: =IFERROR((Baseline!F40/100+Baseline!F37/100+(Baseline!F40/100)*(Baseline!F37/100))*100,0) -> 4.498272544 | AW10: =IFERROR((Baseline!G40/100+Baseline!G37/100+(Baseline!G40/100)*(Baseline!G37/100))*100,0) -> 4.150932844 | AX10: =IFERROR((Baseline!H40/100+Baseline!H37/100+(Baseline!H40/100)*(Baseline!H37/100))*100,0) -> -0.6051967846 | AY10: =IFERROR((Baseline!I40/100+Baseline!I37/100+(Baseline!I40/100)*(Baseline!I37/100))*100,0) -> 1.847464218 | AZ10: =IFERROR((Baseline!J40/100+Baseline!J37/100+(Baseline!J40/100)*(Baseline!J37/100))*100,0) -> 0.5286242032 | BA10: =IFERROR((Baseline!K40/100+Baseline!K37/100+(Baseline!K40/100)*(Baseline!K37/100))*100,0) -> -1.762159161 | BB10: =(Baseline!L40/100+Baseline!L37/100+(Baseline!L40/100)*(Baseline!L37/100))*100 -> 0.3653992616 | BC10: =(Baseline!M40/100+Baseline!M37/100+(Baseline!M40/100)*(Baseline!M37/100))*100 -> 0.7091339036 | BD10: =(Baseline!N40/100+Baseline!N37/100+(Baseline!N40/100)*(Baseline!N37/100))*100 -> 1.433356736 | BE10: =(Baseline!O40/100+Baseline!O37/100+(Baseline!O40/100)*(Baseline!O37/100))*100 -> 1.250907069 | BF10: =(Baseline!P40/100+Baseline!P37/100+(Baseline!P40/100)*(Baseline!P37/100))*100 -> 1.269283491 | BG10: =(Baseline!Q40/100+Baseline!Q37/100+(Baseline!Q40/100)*(Baseline!Q37/100))*100 -> 0.9966611265 | BH10: =(Baseline!R40/100+Baseline!R37/100+(Baseline!R40/100)*(Baseline!R37/100))*100 -> 1.19187611 | BI10: =(Baseline!S40/100+Baseline!S37/100+(Baseline!S40/100)*(Baseline!S37/100))*100 -> 0.9869032714 | BJ10: =(Baseline!T40/100+Baseline!T37/100+(Baseline!T40/100)*(Baseline!T37/100))*100 -> 0.9869032714 | BK10: =(Baseline!U40/100+Baseline!U37/100+(Baseline!U40/100)*(Baseline!U37/100))*100 -> 1.181624581 | BL10: =(Baseline!V40/100+Baseline!V37/100+(Baseline!V40/100)*(Baseline!V37/100))*100 -> 0.9771700855 | BM10: =(Baseline!W40/100+Baseline!W37/100+(Baseline!W40/100)*(Baseline!W37/100))*100 -> 0.9771700855 | BN10: =(Baseline!X40/100+Baseline!X37/100+(Baseline!X40/100)*(Baseline!X37/100))*100 -> 0.876767082 | BO10: =(Baseline!Y40/100+Baseline!Y37/100+(Baseline!Y40/100)*(Baseline!Y37/100))*100 -> 0.8367648681 | BP10: =(Baseline!Z40/100+Baseline!Z37/100+(Baseline!Z40/100)*(Baseline!Z37/100))*100 -> 0.7788667658 | FB10: Real rate at which foreign-currency debt generates gfn (with exchange rate depreciation) | FG10: Percent | GX10: =((1+Baseline!C40/100)*(1+Baseline!C39/100+(1/(1+Baseline!C35/100))*(Baseline!C14/Baseline!C15*Baseline!C34/100-1)))*100 -> 14.71025039 | GY10: =((1+Baseline!D40/100)*(1+Baseline!D39/100+(1/(1+Baseline!D35/100))*(Baseline!D14/Baseline!D15*Baseline!D34/100-1)))*100 -> 16.18711852 | GZ10: =((1+Baseline!E40/100)*(1+Baseline!E39/100+(1/(1+Baseline!E35/100))*(Baseline!E14/Baseline!E15*Baseline!E34/100-1)))*100 -> 18.44131195 | HA10: =((1+Baseline!F40/100)*(1+Baseline!F39/100+(1/(1+Baseline!F35/100))*(Baseline!F14/Baseline!F15*Baseline!F34/100-1)))*100 -> 14.63540958 | HB10: =((1+Baseline!G40/100)*(1+Baseline!G39/100+(1/(1+Baseline!G35/100))*(Baseline!G14/Baseline!G15*Baseline!G34/100-1)))*100 -> 13.3472799 | HC10: =((1+Baseline!H40/100)*(1+Baseline!H39/100+(1/(1+Baseline!H35/100))*(Baseline!H14/Baseline!H15*Baseline!H34/100-1)))*100 -> 12.99370298 | HD10: =((1+Baseline!I40/100)*(1+Baseline!I39/100+(1/(1+Baseline!I35/100))*(Baseline!I14/Baseline!I15*Baseline!I34/100-1)))*100 -> 13.71076239 | HE10: =((1+Baseline!J40/100)*(1+Baseline!J39/100+(1/(1+Baseline!J35/100))*(Baseline!J14/Baseline!J15*Baseline!J34/100-1)))*100 -> 13.11911701 | HF10: =((1+Baseline!K40/100)*(1+Baseline!K39/100+(1/(1+Baseline!K35/100))*(Baseline!K14/Baseline!K15*Baseline!K34/100-1)))*100 -> 14.64711352 | HG10: =((1+Baseline!L40/100)*(1+Baseline!L39/100+(1/(1+Baseline!L35/100))*(Baseline!L14/Baseline!L15*Baseline!L34/100-1)))*100 -> 20.7305343 | HH10: =((1+Baseline!M40/100)*(1+Baseline!M39/100+(1/(1+Baseline!M35/100))*(Baseline!M14/Baseline!M15*Baseline!M34/100-1)))*100 -> 14.65379222 | HI10: =((1+Baseline!N40/100)*(1+Baseline!N39/100+(1/(1+Baseline!N35/100))*(Baseline!N14/Baseline!N15*Baseline!N34/100-1)))*100 -> 14.92613644 | HJ10: =((1+Baseline!O40/100)*(1+Baseline!O39/100+(1/(1+Baseline!O35/100))*(Baseline!O14/Baseline!O15*Baseline!O34/100-1)))*100 -> 15.03385287 | HK10: =((1+Baseline!P40/100)*(1+Baseline!P39/100+(1/(1+Baseline!P35/100))*(Baseline!P14/Baseline!P15*Baseline!P34/100-1)))*100 -> 15.5391126 | HL10: =((1+Baseline!Q40/100)*(1+Baseline!Q39/100+(1/(1+Baseline!Q35/100))*(Baseline!Q14/Baseline!Q15*Baseline!Q34/100-1)))*100 -> 15.68348685 | HM10: =((1+Baseline!R40/100)*(1+Baseline!R39/100+(1/(1+Baseline!R35/100))*(Baseline!R14/Baseline!R15*Baseline!R34/100-1)))*100 -> 15.19179542 | HN10: =((1+Baseline!S40/100)*(1+Baseline!S39/100+(1/(1+Baseline!S35/100))*(Baseline!S14/Baseline!S15*Baseline!S34/100-1)))*100 -> 15.16531127 | HO10: =((1+Baseline!T40/100)*(1+Baseline!T39/100+(1/(1+Baseline!T35/100))*(Baseline!T14/Baseline!T15*Baseline!T34/100-1)))*100 -> 15.26092202 | HP10: =((1+Baseline!U40/100)*(1+Baseline!U39/100+(1/(1+Baseline!U35/100))*(Baseline!U14/Baseline!U15*Baseline!U34/100-1)))*100 -> 15.48239001 | HQ10: =((1+Baseline!V40/100)*(1+Baseline!V39/100+(1/(1+Baseline!V35/100))*(Baseline!V14/Baseline!V15*Baseline!V34/100-1)))*100 -> 15.27505482 | HR10: =((1+Baseline!W40/100)*(1+Baseline!W39/100+(1/(1+Baseline!W35/100))*(Baseline!W14/Baseline!W15*Baseline!W34/100-1)))*100 -> 15.19963928 | HS10: =((1+Baseline!X40/100)*(1+Baseline!X39/100+(1/(1+Baseline!X35/100))*(Baseline!X14/Baseline!X15*Baseline!X34/100-1)))*100 -> 16.15136456 | HT10: =((1+Baseline!Y40/100)*(1+Baseline!Y39/100+(1/(1+Baseline!Y35/100))*(Baseline!Y14/Baseline!Y15*Baseline!Y34/100-1)))*100 -> 17.09895749 | HU10: =((1+Baseline!Z40/100)*(1+Baseline!Z39/100+(1/(1+Baseline!Z35/100))*(Baseline!Z14/Baseline!Z15*Baseline!Z34/100-1)))*100 -> 18.04303065
C12: Moments Calculated Based on Historical Data | K12: Moments Calculated Based on Draws | Q12: Difference Between History and Draws | FH12: Moments Calculated Based on Historical Data | FP12: Moments Calculated Based on Draws | FV12: Difference Between History and Draws
C14: Means (Mu) | K14: Means | Q14: Means | FH14: FanMu_GFN | FP14: Means | FV14: Means
C15: g | D15: =AVERAGE('Fan Chart'!$C7:$BA7) -> 2.229773776 | K15: g | L15: =AVERAGE(B$69:B$12068) -> 2.153812523 | Q15: g | R15: =L15-D15 -> -0.07596125319 | FH15: g | FI15: =AVERAGE($FH7:$HF7) -> 2.229773776 | FP15: g | FQ15: =AVERAGE(FI$69:FI$12068) -> 2.205806366 | FV15: g | FW15: =FQ15-FI15 -> -0.02396741036
C16: rd | D16: =AVERAGE('Fan Chart'!$C8:$BA8) -> 6.568830524 | K16: rd | L16: =AVERAGE(C$69:C$12068) -> 6.57536355 | Q16: rd | R16: =L16-D16 -> 0.006533025548 | FH16: rd,gfn | FI16: =AVERAGE($FH8:$HF8) -> 21.27920246 | FP16: rd,gfn | FQ16: =AVERAGE(FJ$69:FJ$12068) -> 21.28675764 | FV16: rd,gfn | FW16: =FQ16-FI16 -> 0.007555183149
C17: pbaug | D17: =AVERAGE('Fan Chart'!$C9:$BA9) -> -2.16034809 | K17: pbaug | L17: =AVERAGE(D$69:D$12068) -> -2.180689414 | Q17: pbaug | R17: =L17-D17 -> -0.02034132438 | FH17: pb | FI17: =AVERAGE($FH9:$HF9) -> -1.568303708 | FP17: pb | FQ17: =AVERAGE(FK$69:FK$12068) -> -1.604976597 | FV17: pb | FW17: =FQ17-FI17 -> -0.03667288886
C18: rf,aug | D18: =AVERAGE('Fan Chart'!$C10:$BA10) -> 1.237739605 | K18: rf,aug | L18: =AVERAGE(E$69:E$12068) -> 1.237957354 | Q18: rf,aug | R18: =L18-D18 -> 0.0002177488865 | FH18: rf,gfn | FI18: =AVERAGE($FH10:$HF10) -> 14.64356292 | FP18: rf,gfn | FQ18: =AVERAGE(FL$69:FL$12068) -> 14.65740698 | FV18: rf,gfn | FW18: =FQ18-FI18 -> 0.01384406892
C20: Var-Covar (Sigma) | K20: Var-Covar (Sigma) | Q20: Var-Covar (Sigma) | FH20: Var-Covar (Sigma) | FP20: Var-Covar (Sigma) | FV20: Var-Covar (Sigma)
E21: g | F21: r | G21: pb | H21: rf,aug | I21: Obs | L21: g | M21: r | N21: pb | O21: rf,aug | FJ21: g | FK21: r | FL21: pb | FM21: rf,aug | FN21: Obs | FQ21: g | FR21: rd,gfn | FS21: pb | FT21: rf,gfn | FW21: g | FX21: rd,gfn | FY21: pb | FZ21: rf,gfn
D22: g | E22: =VAR('Fan Chart'!$C$7:$BA$7) -> 18.19470005 | F22: =E23 -> 2.544790415 | G22: =E24 -> 5.593595191 | H22: =E25 -> 4.739855925 | I22: =COUNT(C7:BA7) -> 9 | K22: g | L22: =VAR(B$69:B$12068) -> 18.29537219 | M22: =L23 -> 2.541881387 | N22: =L24 -> 5.645476087 | O22: =L25 -> 4.761816465 | Q22: g | R22: =L22-E22 -> 0.1006721357 | S22: -0.002909028036 | T22: =N22-G22 -> 0.05188089596 | U22: 0.02196053986 | FI22: g | FJ22: =VAR('Fan Chart'!$FH7:$HF7) -> 18.19470005 | FK22: =FJ23 -> -1.15973474 | FL22: =FJ24 -> 3.544166951 | FM22: =FJ25 -> -0.5683527395 | FN22: =COUNT(FH7:HF7) -> 9 | FP22: g | FQ22: =VAR(FI$69:FI$12068) -> 18.24259895 | FR22: =FQ23 -> -1.16905034 | FS22: =FQ24 -> 3.66490596 | FT22: =FQ25 -> -0.5330999537 | FV22: g | FW22: =FQ22-FJ22 -> 0.04789889756 | FX22: -0.009315600362 | FY22: 0.1207390087 | FZ22: =FT22-FM22 -> 0.03525278577
D23: rd | E23: =COVAR('Fan Chart'!$C$7:$BA$7,'Fan Chart'!$C8:$BA8)*(MIN($I$22,$I$23))/(MIN($I$22,$I$23)-1) -> 2.544790415 | F23: =VAR('Fan Chart'!$C$8:$BA$8) -> 2.747432655 | G23: =F24 -> 3.465706042 | H23: =F25 -> 3.225522178 | I23: =COUNT(C8:BA8) -> 9 | K23: rd | L23: =(12000/11999)*COVAR($B$69:$B$12068,$C$69:$C$12068) -> 2.541881387 | M23: =VAR(C$69:C$12068) -> 2.75656475 | N23: =M24 -> 3.475216055 | O23: =M25 -> 3.243139807 | Q23: rd | R23: -0.002909028036 | S23: 0.009132094827 | T23: 0.009510013466 | U23: 0.01761762868 | FI23: rd,gfn | FJ23: =COVAR('Fan Chart'!$FH$7:$HF$7,'Fan Chart'!$FH8:$HF8)*(MIN($FN$22,$FN$23))/(MIN($FN$22,$FN$23)-1) -> -1.15973474 | FK23: =VAR('Fan Chart'!$FH8:$HF8) -> 2.318242839 | FL23: =FK24 -> -2.073926795 | FM23: =FK25 -> 2.27994042 | FN23: =COUNT(FH8:HF8) -> 9 | FP23: rd,gfn | FQ23: =(12000/11999)*COVAR($FI$69:$FI$12068,$FJ$69:$FJ$12068) -> -1.16905034 | FR23: =VAR(FJ$69:FJ$12068) -> 2.316952858 | FS23: =FR24 -> -2.094988777 | FT23: =FR25 -> -0.5330999537 | FV23: rd,gfn | FW23: -0.009315600362 | FX23: -0.001289980657 | FY23: -0.02106198268 | FZ23: =FT23-FM23 -> -2.813040373
D24: pbaug | E24: =COVAR('Fan Chart'!$C$7:$BA$7,'Fan Chart'!$C9:$BA9)*(MIN($I$22,$I$24))/(MIN($I$22,$I$24)-1) -> 5.593595191 | F24: =COVAR('Fan Chart'!$C$8:$BA$8,'Fan Chart'!$C9:$BA9)*(MIN($I$24,$I$23))/(MIN($I$24,$I$23)-1) -> 3.465706042 | G24: =VAR('Fan Chart'!$C$9:$BA$9) -> 12.46285901 | H24: =G25 -> 4.184963899 | I24: =COUNT(C9:BA9) -> 9 | K24: pbaug | L24: =(12000/11999)*COVAR($B$69:$B$12068,$D$69:$D$12068) -> 5.645476087 | M24: =(12000/11999)*COVAR($C$69:$C$12068,$D$69:$D$12068) -> 3.475216055 | N24: =VAR(D$69:D$12068) -> 12.51223444 | O24: =N25 -> 4.219224708 | Q24: pbaug | R24: 0.05188089596 | S24: 0.009510013466 | T24: 0.0493754245 | U24: 0.03426080858 | FI24: pb | FJ24: =COVAR('Fan Chart'!$FH$7:$HF$7,'Fan Chart'!$FH9:$HF9)*(MIN($FN$23,$FN$24))/(MIN($FN$23,$FN$24)-1) -> 3.544166951 | FK24: =COVAR('Fan Chart'!$FH$8:$HF$8,'Fan Chart'!$FH9:$HF9)*(MIN($FN$24,$FN$25))/(MIN($FN$24,$FN$25)-1) -> -2.073926795 | FL24: =VAR('Fan Chart'!$FH9:$HF9) -> 5.366093996 | FM24: =FL25 -> -2.200311515 | FN24: =COUNT(FH9:HF9) -> 9 | FP24: pb | FQ24: =(12000/11999)*COVAR($FI$69:$FI$12068,$FK$69:$FK$12068) -> 3.66490596 | FR24: =(12000/11999)*COVAR($FJ$69:$FJ$12068,$FK$69:$FK$12068) -> -2.094988777 | FS24: =VAR(FK$69:FK$12068) -> 5.443313877 | FT24: =FS25 -> -2.200775247 | FV24: pb | FW24: 0.1207390087 | FX24: -0.02106198268 | FY24: 0.07721988023 | FZ24: =FT24-FM24 -> -0.0004637326183
D25: rf,aug | E25: =COVAR('Fan Chart'!$C$7:$BA$7,'Fan Chart'!$C10:$BA10)*(MIN($I$22,$I$25))/(MIN($I$22,$I$25)-1) -> 4.739855925 | F25: =COVAR('Fan Chart'!$C$8:$BA$8,'Fan Chart'!$C10:$BA10)*(MIN($I$23,$I$25))/(MIN($I$23,$I$25)-1) -> 3.225522178 | G25: =COVAR('Fan Chart'!$C$9:$BA$9,'Fan Chart'!$C10:$BA10)*(MIN($I$24,$I$25))/(MIN($I$24,$I$25)-1) -> 4.184963899 | H25: =VAR('Fan Chart'!$C$10:$BA$10) -> 4.152839991 | I25: =COUNT(C10:BA10) -> 9 | K25: rf,aug | L25: =(12000/11999)*COVAR($B$69:$B$12068,$E$69:$E$12068) -> 4.761816465 | M25: =(12000/11999)*COVAR($C$69:$C$12068,$E$69:$E$12068) -> 3.243139807 | N25: =(12000/11999)*COVAR($D$69:$D$12068,$E$69:$E$12068) -> 4.219224708 | O25: =VAR(E$69:E$12068) -> 4.187745353 | Q25: rf,aug | R25: 0.02196053986 | S25: 0.01761762868 | T25: 0.03426080858 | U25: 0.03490536196 | FI25: rf,gfn | FJ25: =COVAR('Fan Chart'!$FH$7:$HF$7,'Fan Chart'!$FH10:$HF10)*(MIN($FN$24,$FN$25))/(MIN($FN$24,$FN$25)-1) -> -0.5683527395 | FK25: =COVAR('Fan Chart'!$FH$10:$HF$10,'Fan Chart'!$FH8:$HF8)*(MIN($FN$23,$FN$25))/(MIN($FN$23,$FN$25)-1) -> 2.27994042 | FL25: =COVAR('Fan Chart'!$FH$10:$HF$10,'Fan Chart'!$FH9:$HF9)*(MIN($FN$24,$FN$25))/(MIN($FN$24,$FN$25)-1) -> -2.200311515 | FM25: =VAR('Fan Chart'!$FH10:$HF10) -> 3.050803441 | FN25: =COUNT(FH10:HF10) -> 9 | FP25: rf,gfn | FQ25: =(12000/11999)*COVAR($FI$69:$FI$12068,$FL$69:$FL$12068) -> -0.5330999537 | FR25: =(12000/11999)*COVAR($FI$69:$FI$12068,$FL$69:$FL$12068) -> -0.5330999537 | FS25: =(12000/11999)*COVAR($FK$69:$FK$12068,$FL$69:$FL$12068) -> -2.200775247 | FT25: =VAR(FL$69:FL$12068) -> 3.073876707 | FV25: rf,gfn | FW25: 0.03525278577 | FX25: -2.813040373 | FY25: -0.0004637326183 | FZ25: =FT25-FM25 -> 0.02307326601
M27: Option A: No restrictions on the distribution | AB27: Chart data | BD27: Option B: Restrictions on the distribution | BS27: Chart data | FO27: Option A: No restrictions on the distribution | GD27: Chart data | HB27: Option B: Restrictions on the distribution | HQ27: Chart data
AB28: Percentile | AC28: =AD28-1 -> 2016 | AD28: =AE28-1 -> 2017 | AE28: =AF28-1 -> 2018 | AF28: =AG28-1 -> 2019 | AG28: =AH28-1 -> 2020 | AH28: =BB6 -> 2021 | AI28: =AH28+1 -> 2022 | AJ28: 2023 | AK28: 2024 | AL28: 2025 | AM28: 2026 | AN28: 2027 | AO28: 2028 | AP28: 2029 | AQ28: 2030 | AR28: 2031 | AS28: 2032 | AT28: =AS28+1 -> 2033 | AU28: =AT28+1 -> 2034 | AV28: =AU28+1 -> 2035 | BS28: Percentile | BT28: =AC28 -> 2016 | BU28: 2017 | BV28: 2018 | BW28: 2019 | BX28: 2020 | BY28: 2021 | BZ28: 2022 | CA28: 2023 | CB28: 2024 | CC28: 2025 | CD28: 2026 | CE28: 2027 | CF28: 2028 | CG28: 2029 | CH28: 2030 | CI28: 2031 | CJ28: 2032 | CK28: =AT28 -> 2033 | CL28: 2034 | CM28: 2035 | GD28: Percentile | GE28: =AD28-1 -> 2016 | GF28: =AE28-1 -> 2017 | GG28: =AF28-1 -> 2018 | GH28: =AG28-1 -> 2019 | GI28: =AH28-1 -> 2020 | GJ28: =BB6 -> 2021 | GK28: =GJ28+1 -> 2022 | GL28: 2023 | GM28: 2024 | GN28: 2025 | GO28: =GN28+1 -> 2026 | GP28: 2027 | GQ28: 2028 | GR28: 2029 | GS28: 2030 | GT28: 2031 | GU28: 2032 | GV28: =GU28+1 -> 2033 | GW28: 2034 | GX28: 2035 | HQ28: Percentile | HR28: =GE28 -> 2016 | HS28: 2017 | HT28: 2018 | HU28: 2019 | HV28: 2020 | HW28: 2021 | HX28: 2022 | HY28: 2023 | HZ28: 2024 | IA28: 2025 | IB28: 2026 | IC28: 2027 | ID28: 2028 | IE28: 2029 | IF28: 2030 | IG28: 2031 | IH28: 2032 | II28: =GV28 -> 2033 | IJ28: 2034 | IK28: 2035
AB29: 0 | AC29: =O$53/100 -> 0.4598041253 | AD29: =P$53/100 -> 0.4743639858 | AE29: =Q$53/100 -> 0.485464043 | AF29: =R$53/100 -> 0.4867164741 | AG29: =S$53/100 -> 0.5886485128 | AH29: =PERCENTILE(BQ$69:BQ$1068,$AB29)/100 -> 0.4678913552 | AI29: 0.4447310294 | AJ29: 0.4082030906 | AK29: 0.3494153499 | AL29: 0.2813524895 | AM29: 0.2688541763 | AN29: 0.2504817785 | AO29: 0.2091407793 | AP29: 0.199628636 | AQ29: 0.2279779473 | AR29: 0.272079856 | AS29: 0.2270447944 | AT29: 0.2495766353 | AU29: 0.2346302585 | AV29: 0.2280121727 | BS29: 0 | BT29: =O$53/100 -> 0.4598041253 | BU29: =P$53/100 -> 0.4743639858 | BV29: =Q$53/100 -> 0.485464043 | BW29: =R$53/100 -> 0.4867164741 | BX29: =S$53/100 -> 0.5886485128 | BY29: =PERCENTILE(EQ$69:EQ$1068,$BS29)/100 -> 0.5641595358 | BZ29: =PERCENTILE(ER$69:ER$1068,$BS29)/100 -> 0.5625427858 | CA29: =PERCENTILE(ES$69:ES$1068,$BS29)/100 -> 0.5478982056 | CB29: =PERCENTILE(ET$69:ET$1068,$BS29)/100 -> 0.5351604851 | CC29: =PERCENTILE(EU$69:EU$1068,$BS29)/100 -> 0.5057028231 | CD29: =PERCENTILE(EV$69:EV$1068,$BS29)/100 -> 0.5026924036 | CE29: 0.5267980627 | CF29: 0.5213786996 | CG29: 0.5239090001 | CH29: 0.5340966479 | CI29: 0.5313812577 | CJ29: 0.517315431 | CK29: 0.5122122963 | CL29: 0.5228581016 | CM29: 0.5763562691 | GD29: 0 | GE29: =FV$65/100 -> 0.06891762938 | GF29: =FW$65/100 -> 0.06499184497 | GG29: =FX$65/100 -> 0.06336069952 | GH29: =FY$65/100 -> 0.06722531908 | GI29: =FZ$65/100 -> 0.1214482022 | GJ29: =PERCENTILE(HX$69:HX$1068,$AB29)/100 -> 0.08264185924 | GK29: =PERCENTILE(HY$69:HY$1068,$AB29)/100 -> 0.01974009394 | GL29: =PERCENTILE(HZ$69:HZ$1068,$AB29)/100 -> -0.005287193722 | GM29: =PERCENTILE(IA$69:IA$1068,$AB29)/100 -> 0.001257627789 | GN29: =PERCENTILE(IB$69:IB$1068,$AB29)/100 -> 0.002735866674 | GO29: =PERCENTILE(IC$69:IC$1068,$AB29)/100 -> 0.02081959039 | GP29: 0.008522485523 | GQ29: -0.0180546654 | GR29: 0.0003215303201 | GS29: -0.01765774357 | GT29: -0.01039428585 | GU29: -0.03198358447 | GV29: -0.009721853963 | GW29: -0.002988760139 | GX29: -0.002914986753 | HQ29: 0 | HR29: =FV$65/100 -> 0.06891762938 | HS29: =FW$65/100 -> 0.06499184497 | HT29: =FX$65/100 -> 0.06336069952 | HU29: =FY$65/100 -> 0.06722531908 | HV29: =FZ$65/100 -> 0.1214482022 | HW29: =PERCENTILE(KX$69:KX$1068,$BS29)/100 -> 0.1362831122 | HX29: 0.0741679759 | HY29: 0.06111837506 | HZ29: 0.06352228878 | IA29: 0.07864309834 | IB29: 0.07503583624 | IC29: 0.07308786115 | ID29: 0.07265921526 | IE29: 0.07243407698 | IF29: 0.06576971546 | IG29: 0.07436837213 | IH29: 0.07139656351 | II29: 0.09120333389 | IJ29: 0.09391328416 | IK29: 0.0992810968
AB30: 0.05 | AC30: =O$53/100 -> 0.4598041253 | AD30: 0.4743639858 | AE30: 0.485464043 | AF30: 0.4867164741 | AG30: 0.5886485128 | AH30: =PERCENTILE(BQ$69:BQ$1068,$AB30)/100 -> 0.5499267788 | AI30: 0.5425119932 | AJ30: 0.519817835 | AK30: 0.5101349677 | AL30: 0.4990081526 | AM30: 0.486254117 | AN30: 0.4790339968 | AO30: 0.4735996199 | AP30: 0.4570325676 | AQ30: 0.4578946941 | AR30: 0.4535691443 | AS30: 0.4446284673 | AT30: 0.4371883497 | AU30: =PERCENTILE(CD$69:CD$1068,$AB30)/100 -> 0.4200183139 | AV30: =PERCENTILE(CE$69:CE$1068,$AB30)/100 -> 0.4310331778 | BS30: 0.05 | BT30: 0.4598041253 | BU30: 0.4743639858 | BV30: 0.485464043 | BW30: 0.4867164741 | BX30: 0.5886485128 | BY30: 0.593596766 | BZ30: 0.6004786652 | CA30: 0.5979618873 | CB30: 0.6027457016 | CC30: 0.6108622378 | CD30: =PERCENTILE(EV$69:EV$1068,$BS30)/100 -> 0.6199360289 | CE30: 0.6252709341 | CF30: 0.6308895623 | CG30: 0.639829072 | CH30: 0.6469179213 | CI30: 0.6607333544 | CJ30: 0.6615083169 | CK30: =PERCENTILE(FC$69:FC$1068,$BS30)/100 -> 0.6710222859 | CL30: =PERCENTILE(FD$69:FD$1068,$BS30)/100 -> 0.6826705484 | CM30: =PERCENTILE(FE$69:FE$1068,$BS30)/100 -> 0.7033602382 | GD30: 0.05 | GE30: =FV$65/100 -> 0.06891762938 | GF30: 0.06499184497 | GG30: 0.06336069952 | GH30: 0.06722531908 | GI30: 0.1214482022 | GJ30: 0.1151241278 | GK30: 0.06131479254 | GL30: 0.04152664186 | GM30: 0.04662941624 | GN30: 0.05260642794 | GO30: =PERCENTILE(IC$69:IC$1068,$AB30)/100 -> 0.05500978881 | GP30: 0.04888084354 | GQ30: 0.05066676761 | GR30: 0.05019095359 | GS30: 0.0477666943 | GT30: 0.05556076972 | GU30: =PERCENTILE(II$69:II$1068,$AB30)/100 -> 0.04943519712 | GV30: =PERCENTILE(IJ$69:IJ$1068,$AB30)/100 -> 0.05671601608 | GW30: =PERCENTILE(IK$69:IK$1068,$AB30)/100 -> 0.05632981676 | GX30: =PERCENTILE(IL$69:IL$1068,$AB30)/100 -> 0.06424759605 | HQ30: 0.05 | HR30: 0.06891762938 | HS30: 0.06499184497 | HT30: 0.06336069952 | HU30: 0.06722531908 | HV30: 0.1214482022 | HW30: =PERCENTILE(KX$69:KX$1068,$BS30)/100 -> 0.1488134775 | HX30: 0.09289399424 | HY30: 0.08040919847 | HZ30: 0.08686854932 | IA30: 0.09529573608 | IB30: 0.09785061841 | IC30: 0.09626740053 | ID30: 0.09677761403 | IE30: 0.09994793204 | IF30: 0.1014493845 | IG30: 0.1029651507 | IH30: =PERCENTILE(LI$69:LI$1068,$BS30)/100 -> 0.1055961162 | II30: =PERCENTILE(LJ$69:LJ$1068,$BS30)/100 -> 0.1151609039 | IJ30: =PERCENTILE(LK$69:LK$1068,$BS30)/100 -> 0.1201366812 | IK30: =PERCENTILE(LL$69:LL$1068,$BS30)/100 -> 0.128244867
AB31: 0.1 | AC31: 0.4598041253 | AD31: 0.4743639858 | AE31: 0.485464043 | AF31: 0.4867164741 | AG31: 0.5886485128 | AH31: 0.568486207 | AI31: 0.5623880132 | AJ31: 0.5450085049 | AK31: 0.5375593557 | AL31: 0.525574943 | AM31: 0.526618127 | AN31: 0.521620427 | AO31: 0.5097073463 | AP31: 0.5082685461 | AQ31: 0.5048989602 | AR31: 0.5006817922 | AS31: 0.4892581042 | AT31: 0.4962195227 | AU31: 0.4897597531 | AV31: 0.4869596341 | BS31: 0.1 | BT31: 0.4598041253 | BU31: 0.4743639858 | BV31: 0.485464043 | BW31: 0.4867164741 | BX31: 0.5886485128 | BY31: 0.6011304768 | BZ31: 0.6089514766 | CA31: 0.6110898546 | CB31: 0.6217225547 | CC31: 0.6292120005 | CD31: 0.6411239952 | CE31: 0.6527824703 | CF31: 0.657623397 | CG31: 0.6627461581 | CH31: 0.6778780886 | CI31: 0.6903580107 | CJ31: 0.6978803966 | CK31: 0.7130102683 | CL31: 0.7213824676 | CM31: 0.7337355035 | GD31: 0.1 | GE31: 0.06891762938 | GF31: 0.06499184497 | GG31: 0.06336069952 | GH31: 0.06722531908 | GI31: 0.1214482022 | GJ31: 0.1265399039 | GK31: 0.0701612919 | GL31: 0.05294232844 | GM31: 0.06049979693 | GN31: 0.06340020106 | GO31: 0.06722859985 | GP31: 0.06230074967 | GQ31: 0.06203804072 | GR31: 0.06328021255 | GS31: 0.06142256698 | GT31: 0.06600351494 | GU31: 0.0643709994 | GV31: 0.06985491849 | GW31: 0.07348720337 | GX31: 0.07918894502 | HQ31: 0.1 | HR31: 0.06891762938 | HS31: 0.06499184497 | HT31: 0.06336069952 | HU31: 0.06722531908 | HV31: 0.1214482022 | HW31: 0.1526250428 | HX31: 0.09676521923 | HY31: 0.08529894407 | HZ31: 0.09238808082 | IA31: 0.1001547654 | IB31: 0.1037547766 | IC31: 0.1020504734 | ID31: 0.1016804996 | IE31: 0.1071860808 | IF31: 0.1076742393 | IG31: 0.112629316 | IH31: 0.1133551625 | II31: 0.1217947719 | IJ31: 0.1293760784 | IK31: 0.138447015
AB32: 0.25 | AC32: 0.4598041253 | AD32: 0.4743639858 | AE32: 0.485464043 | AF32: 0.4867164741 | AG32: 0.5886485128 | AH32: 0.5939223987 | AI32: 0.5946201715 | AJ32: 0.5855537166 | AK32: 0.5837362428 | AL32: 0.5808076763 | AM32: 0.5805090175 | AN32: 0.5802099703 | AO32: 0.5799899519 | AP32: 0.578268157 | AQ32: 0.5802443394 | AR32: 0.5760153435 | AS32: 0.5786269837 | AT32: 0.5780480311 | AU32: 0.5754417944 | AV32: 0.5849559746 | BS32: 0.25 | BT32: 0.4598041253 | BU32: 0.4743639858 | BV32: 0.485464043 | BW32: 0.4867164741 | BX32: 0.5886485128 | BY32: 0.613486327 | BZ32: 0.6303303514 | CA32: 0.6377563245 | CB32: 0.6512941739 | CC32: 0.6675710074 | CD32: 0.6796014702 | CE32: 0.695901515 | CF32: 0.7051307024 | CG32: 0.7228609456 | CH32: 0.7412523395 | CI32: 0.7495201994 | CJ32: 0.7630373961 | CK32: 0.7752796633 | CL32: 0.7917575247 | CM32: 0.8055187958 | GD32: 0.25 | GE32: 0.06891762938 | GF32: 0.06499184497 | GG32: 0.06336069952 | GH32: 0.06722531908 | GI32: 0.1214482022 | GJ32: 0.1461748104 | GK32: 0.09007832026 | GL32: 0.0737944592 | GM32: 0.08053859681 | GN32: 0.08610634035 | GO32: 0.08779021143 | GP32: 0.08383618515 | GQ32: 0.08317001175 | GR32: 0.08583152726 | GS32: 0.08414947686 | GT32: 0.08584340267 | GU32: 0.08711509512 | GV32: 0.09328646377 | GW32: 0.09733739465 | GX32: 0.1034944167 | HQ32: 0.25 | HR32: 0.06891762938 | HS32: 0.06499184497 | HT32: 0.06336069952 | HU32: 0.06722531908 | HV32: 0.1214482022 | HW32: 0.1597113472 | HX32: 0.1042310193 | HY32: 0.09409136262 | HZ32: 0.1023339555 | IA32: 0.1114804962 | IB32: 0.1140306043 | IC32: 0.1122463735 | ID32: 0.1132418339 | IE32: 0.1194322896 | IF32: 0.1219506551 | IG32: 0.1232396143 | IH32: 0.1276318726 | II32: 0.1362580351 | IJ32: 0.1474397421 | IK32: 0.1554541466
AB33: 0.5 | AC33: 0.4598041253 | AD33: 0.4743639858 | AE33: 0.485464043 | AF33: 0.4867164741 | AG33: 0.5886485128 | AH33: 0.6200446219 | AI33: 0.6327427582 | AJ33: 0.6342645395 | AK33: 0.640071381 | AL33: 0.6481049805 | AM33: 0.6482253643 | AN33: 0.6554879775 | AO33: 0.6645140447 | AP33: 0.6618526271 | AQ33: 0.6755007823 | AR33: 0.6770193826 | AS33: 0.6765595435 | AT33: 0.6764701774 | AU33: 0.6796257565 | AV33: 0.6830769569 | BS33: 0.5 | BT33: 0.4598041253 | BU33: 0.4743639858 | BV33: 0.485464043 | BW33: 0.4867164741 | BX33: 0.5886485128 | BY33: 0.6305302152 | BZ33: 0.6563153814 | CA33: 0.6718036202 | CB33: 0.6898723862 | CC33: 0.7088384407 | CD33: 0.7270999922 | CE33: 0.7475588561 | CF33: 0.765319416 | CG33: 0.7851325116 | CH33: 0.8090997931 | CI33: 0.8253886621 | CJ33: 0.8410346789 | CK33: 0.8605860754 | CL33: 0.8790459318 | CM33: 0.8971146866 | GD33: 0.5 | GE33: 0.06891762938 | GF33: 0.06499184497 | GG33: 0.06336069952 | GH33: 0.06722531908 | GI33: 0.1214482022 | GJ33: 0.1650031225 | GK33: 0.1091739957 | GL33: 0.09594051781 | GM33: 0.1044977814 | GN33: =PERCENTILE(IB$69:IB$1068,$AB33)/100 -> 0.1114571715 | GO33: 0.1121405837 | GP33: 0.106915048 | GQ33: 0.108095253 | GR33: 0.1109696494 | GS33: 0.1110996014 | GT33: 0.1108461304 | GU33: 0.1131853647 | GV33: 0.118635328 | GW33: 0.1269209842 | GX33: 0.1331946768 | HQ33: 0.5 | HR33: 0.06891762938 | HS33: 0.06499184497 | HT33: 0.06336069952 | HU33: 0.06722531908 | HV33: 0.1214482022 | HW33: 0.1697334658 | HX33: 0.1151778938 | HY33: 0.10604852 | HZ33: 0.1169990408 | IA33: 0.1259989306 | IB33: 0.1291606349 | IC33: 0.1280924451 | ID33: 0.1305855565 | IE33: 0.1362341675 | IF33: 0.1409638647 | IG33: 0.1416262488 | IH33: 0.1459762079 | II33: 0.1572211969 | IJ33: 0.167551234 | IK33: 0.179434171
AB34: 0.75 | AC34: 0.4598041253 | AD34: 0.4743639858 | AE34: 0.485464043 | AF34: 0.4867164741 | AG34: 0.5886485128 | AH34: 0.6507005262 | AI34: 0.670146734 | AJ34: 0.6807702838 | AK34: 0.6998616906 | AL34: 0.7138680627 | AM34: 0.7221627631 | AN34: 0.7427055493 | AO34: 0.7439576853 | AP34: 0.7529948806 | AQ34: 0.7666001654 | AR34: 0.7813894404 | AS34: 0.784360124 | AT34: 0.7875306262 | AU34: 0.7976602568 | AV34: 0.8031937963 | BS34: 0.75 | BT34: 0.4598041253 | BU34: 0.4743639858 | BV34: 0.485464043 | BW34: 0.4867164741 | BX34: 0.5886485128 | BY34: 0.6516610321 | BZ34: 0.6856511588 | CA34: 0.7068615776 | CB34: 0.7365083749 | CC34: 0.7625080078 | CD34: 0.7853945926 | CE34: 0.8116422026 | CF34: 0.8354410975 | CG34: 0.8537535402 | CH34: 0.887047743 | CI34: 0.9056544638 | CJ34: 0.9279251883 | CK34: 0.9458584868 | CL34: 0.9687266877 | CM34: 0.9877150659 | GD34: 0.75 | GE34: 0.06891762938 | GF34: 0.06499184497 | GG34: 0.06336069952 | GH34: 0.06722531908 | GI34: 0.1214482022 | GJ34: 0.1888001156 | GK34: 0.1299220729 | GL34: 0.1174634813 | GM34: 0.1257055646 | GN34: 0.1361748137 | GO34: 0.1367176118 | GP34: 0.1325100164 | GQ34: 0.134524877 | GR34: 0.1371442236 | GS34: 0.1402477356 | GT34: 0.1399047261 | GU34: 0.1413918872 | GV34: 0.1495715796 | GW34: 0.1584546327 | GX34: 0.165027603 | HQ34: 0.75 | HR34: 0.06891762938 | HS34: 0.06499184497 | HT34: 0.06336069952 | HU34: 0.06722531908 | HV34: 0.1214482022 | HW34: 0.1888001156 | HX34: 0.1325700205 | HY34: 0.1231158778 | HZ34: 0.1329450768 | IA34: 0.1467349074 | IB34: 0.149687257 | IC34: 0.1468398606 | ID34: 0.1522326505 | IE34: 0.156408921 | IF34: 0.1633683522 | IG34: 0.1651675118 | IH34: 0.1690489735 | II34: 0.1800230197 | IJ34: 0.1929568316 | IK34: 0.2089949025
AB35: 0.9 | AC35: 0.4598041253 | AD35: 0.4743639858 | AE35: 0.485464043 | AF35: 0.4867164741 | AG35: 0.5886485128 | AH35: 0.6781900783 | AI35: 0.7079711705 | AJ35: 0.7312456845 | AK35: 0.7502251725 | AL35: 0.7734493789 | AM35: 0.7940762039 | AN35: 0.8127301551 | AO35: 0.8330373272 | AP35: 0.8357344073 | AQ35: 0.8530181661 | AR35: 0.8624845056 | AS35: 0.8837952986 | AT35: 0.8957513292 | AU35: 0.90870342 | AV35: 0.9185945877 | BS35: 0.9 | BT35: 0.4598041253 | BU35: 0.4743639858 | BV35: 0.485464043 | BW35: 0.4867164741 | BX35: 0.5886485128 | BY35: 0.6781900783 | BZ35: 0.7124974843 | CA35: 0.7480089752 | CB35: 0.7807489 | CC35: 0.8165747632 | CD35: 0.8444649213 | CE35: 0.8738777201 | CF35: 0.9053656816 | CG35: 0.9259849469 | CH35: 0.9568752167 | CI35: 0.9794457833 | CJ35: 1.011257974 | CK35: 1.035691945 | CL35: 1.057406369 | CM35: 1.085903257 | GD35: 0.9 | GE35: 0.06891762938 | GF35: 0.06499184497 | GG35: 0.06336069952 | GH35: 0.06722531908 | GI35: 0.1214482022 | GJ35: 0.2075455678 | GK35: 0.1486609985 | GL35: 0.1371401217 | GM35: 0.1447714987 | GN35: 0.1579657064 | GO35: 0.1584682816 | GP35: 0.1573544828 | GQ35: 0.159685959 | GR35: 0.1636724496 | GS35: 0.1669566577 | GT35: 0.1698458855 | GU35: 0.1669833105 | GV35: 0.1784953097 | GW35: 0.1843991764 | GX35: 0.1950305912 | HQ35: 0.9 | HR35: 0.06891762938 | HS35: 0.06499184497 | HT35: 0.06336069952 | HU35: 0.06722531908 | HV35: 0.1214482022 | HW35: 0.2075455678 | HX35: 0.1512252615 | HY35: 0.1407854826 | HZ35: 0.1516141917 | IA35: 0.1668037897 | IB35: 0.1670522897 | IC35: 0.1703024262 | ID35: 0.1726254965 | IE35: 0.1803448839 | IF35: 0.1899371353 | IG35: 0.1922654305 | IH35: 0.1948352444 | II35: 0.2064594476 | IJ35: 0.2160131086 | IK35: 0.2353641633
AB36: 0.95 | AC36: 0.4598041253 | AD36: 0.4743639858 | AE36: 0.485464043 | AF36: 0.4867164741 | AG36: 0.5886485128 | AH36: 0.6929859301 | AI36: 0.7295578669 | AJ36: 0.7627971156 | AK36: 0.7903886727 | AL36: 0.8099129897 | AM36: 0.835476457 | AN36: 0.8544677279 | AO36: 0.8837790009 | AP36: 0.8935824007 | AQ36: 0.9130500815 | AR36: 0.9244728047 | AS36: 0.9500877694 | AT36: 0.972510902 | AU36: 0.9818954848 | AV36: 0.9855505995 | BS36: 0.95 | BT36: 0.4598041253 | BU36: 0.4743639858 | BV36: 0.485464043 | BW36: 0.4867164741 | BX36: 0.5886485128 | BY36: 0.6929859301 | BZ36: 0.732502098 | CA36: 0.7731867772 | CB36: 0.814211617 | CC36: 0.8431958669 | CD36: 0.8783327942 | CE36: 0.9102832021 | CF36: 0.9484212355 | CG36: 0.973895788 | CH36: 1.006070177 | CI36: 1.030866717 | CJ36: 1.066076673 | CK36: 1.08973674 | CL36: 1.123234121 | CM36: 1.138580671 | GD36: 0.95 | GE36: 0.06891762938 | GF36: 0.06499184497 | GG36: 0.06336069952 | GH36: 0.06722531908 | GI36: 0.1214482022 | GJ36: 0.2182789757 | GK36: 0.1625794232 | GL36: 0.1520222558 | GM36: 0.1554512316 | GN36: 0.1716063487 | GO36: 0.171394551 | GP36: 0.1749599498 | GQ36: 0.1761996629 | GR36: 0.1769498062 | GS36: 0.1833802157 | GT36: 0.1868389932 | GU36: 0.1857335929 | GV36: 0.1938450015 | GW36: 0.2021679145 | GX36: 0.2131463333 | HQ36: 0.95 | HR36: 0.06891762938 | HS36: 0.06499184497 | HT36: 0.06336069952 | HU36: 0.06722531908 | HV36: 0.1214482022 | HW36: 0.2182789757 | HX36: 0.1642261209 | HY36: 0.1581519755 | HZ36: 0.1613243198 | IA36: 0.1808472577 | IB36: 0.1791379642 | IC36: 0.1831815858 | ID36: 0.1896422649 | IE36: 0.1933097582 | IF36: 0.2025842787 | IG36: 0.2070108398 | IH36: 0.2092279819 | II36: 0.2222551389 | IJ36: 0.2327460359 | IK36: 0.2501624811
AB37: 1 | AC37: 0.4598041253 | AD37: 0.4743639858 | AE37: 0.485464043 | AF37: 0.4867164741 | AG37: 0.5886485128 | AH37: 0.7664612297 | AI37: 0.8421522677 | AJ37: 0.9049439055 | AK37: 0.9690247861 | AL37: 1.014288731 | AM37: 1.030742068 | AN37: 1.197901311 | AO37: 1.154134827 | AP37: 1.175861979 | AQ37: 1.160371701 | AR37: 1.234513563 | AS37: 1.224450331 | AT37: 1.301745052 | AU37: 1.260514398 | AV37: 1.299803024 | BS37: 1 | BT37: 0.4598041253 | BU37: 0.4743639858 | BV37: 0.485464043 | BW37: 0.4867164741 | BX37: 0.5886485128 | BY37: 0.7664612297 | BZ37: 0.8421522677 | CA37: 0.9049439055 | CB37: 0.9690247861 | CC37: 1.032267462 | CD37: 1.047338253 | CE37: 1.209464882 | CF37: 1.179247699 | CG37: 1.226248859 | CH37: 1.223642308 | CI37: 1.314938627 | CJ37: 1.275734911 | CK37: 1.327390083 | CL37: 1.376563731 | CM37: 1.418816158 | GD37: 1 | GE37: 0.06891762938 | GF37: 0.06499184497 | GG37: 0.06336069952 | GH37: 0.06722531908 | GI37: 0.1214482022 | GJ37: 0.2546916815 | GK37: 0.2300542452 | GL37: 0.2070522858 | GM37: 0.2118687467 | GN37: 0.2545022434 | GO37: 0.2163100773 | GP37: 0.2768429953 | GQ37: 0.2561243499 | GR37: 0.2578136267 | GS37: 0.2230491303 | GT37: 0.2591039287 | GU37: 0.2615168031 | GV37: 0.285729823 | GW37: 0.3001322847 | GX37: 0.280672659 | HQ37: 1 | HR37: 0.06891762938 | HS37: 0.06499184497 | HT37: 0.06336069952 | HU37: 0.06722531908 | HV37: 0.1214482022 | HW37: 0.2546916815 | HX37: 0.2300542452 | HY37: 0.2070522858 | HZ37: 0.2147971661 | IA37: 0.2599573091 | IB37: 0.225355974 | IC37: 0.2791573842 | ID37: 0.2640899776 | IE37: 0.2578136267 | IF37: 0.241362119 | IG37: 0.2760074942 | IH37: 0.2787245758 | II37: 0.2911962214 | IJ37: 0.3401539461 | IK37: 0.3162674494
A40: Turning-off shocks for fan charts | D40: Restrictions on good shocks for fan charts | AB40: Transform for chart | AF40: ="Fan chart width by "&Readme!B10+5&" (p95 - p5)" -> Fan chart width by 2026 (p95 - p5) | AM40: =(AM36-AM30)*100 -> 34.922234 | BS40: Transform for chart | CO40: chart legend | GD40: Transform for chart | HQ40: Transform for chart | IP40: chart legend
B41: for debt | C41: for GFN | D41: for debt | E41: for GFN | AA41: Series Name | AB41: Percentile | AC41: =AC28 -> 2016 | AD41: 2017 | AE41: 2018 | AF41: 2019 | AG41: 2020 | AH41: =AH28 -> 2021 | AI41: 2022 | AJ41: 2023 | AK41: 2024 | AL41: 2025 | AM41: 2026 | AN41: 2027 | AO41: 2028 | AP41: 2029 | AQ41: 2030 | AR41: 2031 | AS41: 2032 | AT41: =AT28 -> 2033 | AU41: 2034 | AV41: 2035 | BR41: Series Name | BS41: Percentile | BT41: =BT28 -> 2016 | BU41: 2017 | BV41: 2018 | BW41: 2019 | BX41: 2020 | BY41: 2021 | BZ41: 2022 | CA41: 2023 | CB41: 2024 | CC41: 2025 | CD41: =CD28 -> 2026 | CE41: =CE28 -> 2027 | CF41: 2028 | CG41: 2029 | CH41: 2030 | CI41: 2031 | CJ41: 2032 | CK41: =CK28 -> 2033 | CL41: 2034 | CM41: 2035 | CO41: Restrictions on upside shocks: | GC41: Series Name | GD41: Percentile | GE41: =GE28 -> 2016 | GF41: 2017 | GG41: 2018 | GH41: 2019 | GI41: 2020 | GJ41: 2021 | GK41: 2022 | GL41: 2023 | GM41: 2024 | GN41: 2025 | GO41: =GO28 -> 2026 | GP41: =GP28 -> 2027 | GQ41: 2028 | GR41: 2029 | GS41: 2030 | GT41: 2031 | GU41: 2032 | GV41: =GV28 -> 2033 | GW41: 2034 | GX41: 2035 | HP41: Series Name | HQ41: Percentile | HR41: =HR28 -> 2016 | HS41: =HS28 -> 2017 | HT41: 2018 | HU41: 2019 | HV41: 2020 | HW41: 2021 | HX41: 2022 | HY41: 2023 | HZ41: 2024 | IA41: 2025 | IB41: 2026 | IC41: =IC28 -> 2027 | ID41: 2028 | IE41: 2029 | IF41: =IF28 -> 2030 | IG41: =IG28 -> 2031 | IH41: =IH28 -> 2032 | II41: =II28 -> 2033 | IJ41: =IJ28 -> 2034 | IK41: 2035 | IP41: Restrictions on upside shocks:
A42: g for debt and GFN | B42: On | C42: On | F42: is the max (+) g shock for debt (left) and for GFN (right) (percent) | AB42: 0.1 | AC42: =AC31*100 -> 45.98041253 | AD42: 47.43639858 | AE42: 48.5464043 | AF42: 48.67164741 | AG42: 58.86485128 | AH42: =AH31*100 -> 56.8486207 | AI42: 56.23880132 | AJ42: 54.50085049 | AK42: 53.75593557 | AL42: 52.5574943 | AM42: 52.6618127 | AN42: =AN31*100 -> 52.1620427 | AO42: 50.97073463 | AP42: 50.82685461 | AQ42: 50.48989602 | AR42: 50.06817922 | AS42: 48.92581042 | AT42: =AT31*100 -> 49.62195227 | AU42: 48.97597531 | AV42: 48.69596341 | BS42: 0.1 | BT42: =BT31*100 -> 45.98041253 | BU42: 47.43639858 | BV42: 48.5464043 | BW42: 48.67164741 | BX42: 58.86485128 | BY42: 60.11304768 | BZ42: 60.89514766 | CA42: 61.10898546 | CB42: 62.17225547 | CC42: 62.92120005 | CD42: =CD31*100 -> 64.11239952 | CE42: =CE31*100 -> 65.27824703 | CF42: 65.7623397 | CG42: 66.27461581 | CH42: 67.78780886 | CI42: 69.03580107 | CJ42: 69.78803966 | CK42: =CK31*100 -> 71.30102683 | CL42: 72.13824676 | CM42: 73.37355035 | GD42: 0.1 | GE42: =GE31*100 -> 6.891762938 | GF42: 6.499184497 | GG42: 6.336069952 | GH42: 6.722531908 | GI42: 12.14482022 | GJ42: 12.65399039 | GK42: 7.01612919 | GL42: 5.294232844 | GM42: 6.049979693 | GN42: 6.340020106 | GO42: =GO31*100 -> 6.722859985 | GP42: =GP31*100 -> 6.230074967 | GQ42: 6.203804072 | GR42: 6.328021255 | GS42: 6.142256698 | GT42: 6.600351494 | GU42: 6.43709994 | GV42: =GV31*100 -> 6.985491849 | GW42: 7.348720337 | GX42: 7.918894502 | HQ42: 0.1 | HR42: =HR31*100 -> 6.891762938 | HS42: =HS31*100 -> 6.499184497 | HT42: 6.336069952 | HU42: 6.722531908 | HV42: 12.14482022 | HW42: 15.26250428 | HX42: 9.676521923 | HY42: 8.529894407 | HZ42: 9.238808082 | IA42: 10.01547654 | IB42: 10.37547766 | IC42: =IC31*100 -> 10.20504734 | ID42: 10.16804996 | IE42: 10.71860808 | IF42: =IF31*100 -> 10.76742393 | IG42: =IG31*100 -> 11.2629316 | IH42: =IH31*100 -> 11.33551625 | II42: =II31*100 -> 12.17947719 | IJ42: 12.93760784 | IK42: 13.8447015
A43: rd for debt and rd,gfn for GFN | B43: On | C43: On | F43: is the max (-) rd shock for debt (left) and rd,gfn for GFN (right) (percent) | AA43: 10th-25th | AB43: 0.25 | AC43: =(AC32-AC31)*100 -> 0 | AD43: 0 | AE43: 0 | AF43: 0 | AG43: 0 | AH43: =(AH32-AH31)*100 -> 2.543619174 | AI43: 3.223215835 | AJ43: 4.054521163 | AK43: 4.617688719 | AL43: 5.523273326 | AM43: 5.389089057 | AN43: =(AN32-AN31)*100 -> 5.858954326 | AO43: 7.028260561 | AP43: 6.999961084 | AQ43: 7.534537926 | AR43: 7.533355127 | AS43: 8.936887956 | AT43: =(AT32-AT31)*100 -> 8.182850841 | AU43: 8.568204127 | AV43: 9.799634049 | BR43: 10th-25th | BS43: 0.25 | BT43: =(BT32-BT31)*100 -> 0 | BU43: 0 | BV43: 0 | BW43: 0 | BX43: 0 | BY43: 1.235585025 | BZ43: 2.137887487 | CA43: 2.666646984 | CB43: 2.957161924 | CC43: 3.835900687 | CD43: =(CD32-CD31)*100 -> 3.847747491 | CE43: =(CE32-CE31)*100 -> 4.311904465 | CF43: 4.750730538 | CG43: 6.011478749 | CH43: 6.337425095 | CI43: 5.916218874 | CJ43: 6.51569994 | CK43: =(CK32-CK31)*100 -> 6.226939491 | CL43: 7.037505711 | CM43: 7.178329237 | CO43: =IF(ISNUMBER(D42),D42&" "&"is the max (+) g shock","no restriction on g shock") -> no restriction on g shock | GC43: 10th-25th | GD43: 0.25 | GE43: =(GE32-GE31)*100 -> 0 | GF43: 0 | GG43: 0 | GH43: 0 | GI43: 0 | GJ43: 1.963490651 | GK43: =(GK32-GK31)*100 -> 1.991702837 | GL43: 2.085213076 | GM43: 2.003879988 | GN43: 2.270613929 | GO43: =(GO32-GO31)*100 -> 2.056161158 | GP43: =(GP32-GP31)*100 -> 2.153543548 | GQ43: 2.113197103 | GR43: 2.255131471 | GS43: 2.272690987 | GT43: 1.983988773 | GU43: 2.274409572 | GV43: =(GV32-GV31)*100 -> 2.343154528 | GW43: 2.385019128 | GX43: 2.430547168 | HP43: 10th-25th | HQ43: 0.25 | HR43: =(HR32-HR31)*100 -> 0 | HS43: =(HS32-HS31)*100 -> 0 | HT43: 0 | HU43: 0 | HV43: 0 | HW43: 0.7086304403 | HX43: 0.7465800108 | HY43: 0.8792418555 | HZ43: 0.9945874642 | IA43: 1.132573076 | IB43: 1.027582775 | IC43: =(IC32-IC31)*100 -> 1.019590002 | ID43: 1.156133422 | IE43: 1.22462088 | IF43: =(IF32-IF31)*100 -> 1.427641575 | IG43: 1.06102983 | IH43: 1.427671006 | II43: =(II32-II31)*100 -> 1.446326326 | IJ43: 1.806366373 | IK43: 1.700713155 | IP43: =IF(ISNUMBER(E42),E42&" "&"is the max (+) g shock","no restriction on g shock") -> no restriction on g shock
A44: pbaug for debt and pb for GFN | B44: On | C44: On | D44: 0 | E44: 0 | F44: is the max (+) pbaug shock for debt (left) and pb shock for GFN (right) (percent GDP) | AA44: 25th-50th | AB44: 0.5 | AC44: =(AC33-AC32)*100 -> 0 | AD44: 0 | AE44: 0 | AF44: 0 | AG44: 0 | AH44: 2.612222322 | AI44: 3.812258669 | AJ44: 4.871082295 | AK44: 5.633513812 | AL44: 6.72973042 | AM44: 6.77163468 | AN44: =(AN33-AN32)*100 -> 7.527800718 | AO44: 8.452409284 | AP44: 8.35844701 | AQ44: 9.525644293 | AR44: 10.10040391 | AS44: 9.793255975 | AT44: =(AT33-AT32)*100 -> 9.842214623 | AU44: 10.41839622 | AV44: 9.812098234 | BR44: 25th-50th | BS44: 0.5 | BT44: =(BT33-BT32)*100 -> 0 | BU44: 0 | BV44: 0 | BW44: 0 | BX44: 0 | BY44: 1.704388815 | BZ44: 2.598502995 | CA44: 3.404729572 | CB44: 3.85782123 | CC44: 4.126743328 | CD44: =(CD33-CD32)*100 -> 4.749852203 | CE44: =(CE33-CE32)*100 -> 5.165734118 | CF44: 6.018871365 | CG44: 6.227156598 | CH44: 6.784745361 | CI44: 7.586846266 | CJ44: 7.799728281 | CK44: =(CK33-CK32)*100 -> 8.530641216 | CL44: 8.728840703 | CM44: 9.159589074 | CO44: =IF(ISNUMBER(D43),D43&" "&"is the max (-) r^d shock","no restriction on r^d shock") -> no restriction on r^d shock | GC44: 25th-50th | GD44: 0.5 | GE44: =(GE33-GE32)*100 -> 0 | GF44: 0 | GG44: 0 | GH44: 0 | GI44: 0 | GJ44: 1.88283121 | GK44: 1.909567541 | GL44: 2.214605861 | GM44: 2.395918456 | GN44: 2.535083115 | GO44: =(GO33-GO32)*100 -> 2.435037222 | GP44: =(GP33-GP32)*100 -> 2.307886281 | GQ44: 2.492524124 | GR44: 2.513812215 | GS44: 2.695012454 | GT44: 2.50027277 | GU44: 2.607026957 | GV44: =(GV33-GV32)*100 -> 2.534886419 | GW44: 2.958358953 | GX44: 2.970026006 | HP44: 25th-50th | HQ44: 0.5 | HR44: =(HR33-HR32)*100 -> 0 | HS44: =(HS33-HS32)*100 -> 0 | HT44: 0 | HU44: 0 | HV44: 0 | HW44: 1.002211862 | HX44: 1.094687449 | HY44: 1.19571574 | HZ44: 1.466508534 | IA44: 1.451843443 | IB44: 1.513003056 | IC44: =(IC33-IC32)*100 -> 1.584607161 | ID44: 1.73437226 | IE44: 1.680187789 | IF44: 1.901320963 | IG44: 1.838663454 | IH44: 1.834433537 | II44: =(II33-II32)*100 -> 2.096316181 | IJ44: 2.011149186 | IK44: 2.398002441 | IP44: =IF(ISNUMBER(E43),E43&" "&"is the max (-) r^d,gfn shock","no restriction on r^d,gfn shock") -> no restriction on r^d,gfn shock
A45: rf,aug for debt and rf,gfn for GFN | B45: On | C45: On | F45: is the max (-) rf,aug shock for debt (left) and rf,gfn shock for GFN (right) (percent) | AA45: 50th-75th | AB45: 0.75 | AC45: =(AC34-AC33)*100 -> 0 | AD45: 0 | AE45: 0 | AF45: 0 | AG45: 0 | AH45: 3.065590427 | AI45: 3.740397575 | AJ45: 4.650574434 | AK45: 5.979030962 | AL45: 6.576308219 | AM45: 7.393739881 | AN45: =(AN34-AN33)*100 -> 8.721757183 | AO45: 7.944364058 | AP45: 9.114225353 | AQ45: 9.109938309 | AR45: 10.43700578 | AS45: 10.78005805 | AT45: =(AT34-AT33)*100 -> 11.10604488 | AU45: 11.80345002 | AV45: 12.01168393 | BR45: 50th-75th | BS45: 0.75 | BT45: =(BT34-BT33)*100 -> 0 | BU45: 0 | BV45: 0 | BW45: 0 | BX45: 0 | BY45: 2.113081688 | BZ45: 2.93357774 | CA45: 3.505795742 | CB45: 4.663598867 | CC45: 5.366956711 | CD45: =(CD34-CD33)*100 -> 5.829460044 | CE45: =(CE34-CE33)*100 -> 6.408334646 | CF45: 7.012168152 | CG45: 6.86210286 | CH45: 7.794794983 | CI45: 8.026580168 | CJ45: 8.689050947 | CK45: =(CK34-CK33)*100 -> 8.52724114 | CL45: 8.968075589 | CM45: 9.060037927 | CO45: =IF(ISNUMBER(D44),D44&" "&"is the max (+) pb^aug shock","no restriction on pb^aug shock") -> 0 is the max (+) pb^aug shock | GC45: 50th-75th | GD45: 0.75 | GE45: =(GE34-GE33)*100 -> 0 | GF45: 0 | GG45: 0 | GH45: 0 | GI45: 0 | GJ45: 2.379699311 | GK45: 2.074807723 | GL45: 2.152296344 | GM45: 2.120778323 | GN45: 2.471764216 | GO45: =(GO34-GO33)*100 -> 2.457702818 | GP45: =(GP34-GP33)*100 -> 2.55949684 | GQ45: 2.642962401 | GR45: 2.617457415 | GS45: 2.914813423 | GT45: 2.905859576 | GU45: 2.820652249 | GV45: =(GV34-GV33)*100 -> 3.09362516 | GW45: 3.153364847 | GX45: 3.183292626 | HP45: 50th-75th | HQ45: 0.75 | HR45: =(HR34-HR33)*100 -> 0 | HS45: =(HS34-HS33)*100 -> 0 | HT45: 0 | HU45: 0 | HV45: 0 | HW45: 1.906664984 | HX45: 1.739212663 | HY45: 1.706735783 | HZ45: 1.594603604 | IA45: 2.07359768 | IB45: 2.052662214 | IC45: =(IC34-IC33)*100 -> 1.874741555 | ID45: 2.1647094 | IE45: 2.017475351 | IF45: 2.240448747 | IG45: 2.354126295 | IH45: 2.307276559 | II45: =(II34-II33)*100 -> 2.280182275 | IJ45: 2.540559764 | IK45: 2.956073155 | IP45: =IF(ISNUMBER(E44),E44&" "&"is the max (+) pb shock","no restriction on pb shock") -> 0 is the max (+) pb shock
AA46: 75th-90th | AB46: 0.9 | AC46: =(AC35-AC34)*100 -> 0 | AD46: 0 | AE46: 0 | AF46: 0 | AG46: 0 | AH46: 2.748955215 | AI46: 3.782443657 | AJ46: 5.047540067 | AK46: 5.036348196 | AL46: 5.958131622 | AM46: 7.191344078 | AN46: =(AN35-AN34)*100 -> 7.002460579 | AO46: 8.907964187 | AP46: 8.273952673 | AQ46: 8.641800064 | AR46: 8.109506521 | AS46: 9.943517459 | AT46: =(AT35-AT34)*100 -> 10.8220703 | AU46: 11.10431633 | AV46: 11.54007915 | BR46: 75th-90th | BS46: 0.9 | BT46: =(BT35-BT34)*100 -> 0 | BU46: 0 | BV46: 0 | BW46: 0 | BX46: 0 | BY46: 2.652904626 | BZ46: 2.684632554 | CA46: 4.114739756 | CB46: 4.424052509 | CC46: 5.406675538 | CD46: =(CD35-CD34)*100 -> 5.907032865 | CE46: =(CE35-CE34)*100 -> 6.223551749 | CF46: 6.992458404 | CG46: 7.22314067 | CH46: 6.982747377 | CI46: 7.379131954 | CJ46: 8.33327859 | CK46: =(CK35-CK34)*100 -> 8.983345788 | CL46: 8.867968155 | CM46: 9.818819068 | CO46: =IF(ISNUMBER(D45),D45&" "&"is the max (-) r^f,aug shock","no restriction on r^f,aug shock") -> no restriction on r^f,aug shock | GC46: 75th-90th | GD46: 0.9 | GE46: =(GE35-GE34)*100 -> 0 | GF46: 0 | GG46: 0 | GH46: 0 | GI46: 0 | GJ46: 1.874545217 | GK46: 1.873892561 | GL46: 1.967664048 | GM46: 1.906593407 | GN46: 2.179089275 | GO46: =(GO35-GO34)*100 -> 2.175066975 | GP46: =(GP35-GP34)*100 -> 2.484446647 | GQ46: 2.516108199 | GR46: 2.6528226 | GS46: 2.670892203 | GT46: 2.994115938 | GU46: 2.559142334 | GV46: =(GV35-GV34)*100 -> 2.892373011 | GW46: 2.594454375 | GX46: 3.000298818 | HP46: 75th-90th | HQ46: 0.9 | HR46: =(HR35-HR34)*100 -> 0 | HS46: =(HS35-HS34)*100 -> 0 | HT46: 0 | HU46: 0 | HV46: 0 | HW46: 1.874545217 | HX46: 1.865524104 | HY46: 1.766960475 | HZ46: 1.866911489 | IA46: 2.006888233 | IB46: 1.73650327 | IC46: =(IC35-IC34)*100 -> 2.346256557 | ID46: 2.039284603 | IE46: 2.393596285 | IF46: 2.656878308 | IG46: 2.709791869 | IH46: 2.57862709 | II46: =(II35-II34)*100 -> 2.643642791 | IJ46: 2.305627698 | IK46: 2.636926073 | IP46: =IF(ISNUMBER(E45),E45&" "&"is the max (-) r^f,gfn shock","no restriction on r^f,gfn shock") -> no restriction on r^f,gfn shock
AB47: ="Safe level using 60 percent by "&Readme!B10+5&" (5 percent risk tolerance)" -> Safe level using 60 percent by 2026 (5 percent risk tolerance) | AF47: 60 | AG47: =AM47/(Baseline!L23*Baseline!M23*Baseline!N23*Baseline!O23*Baseline!P23*Baseline!Q23)+((Baseline!L20*(Baseline!L24-Baseline!L25))/(Baseline!L23)+(Baseline!M20*(Baseline!M24-Baseline!M25))/(Baseline!L23*Baseline!M23)+(Baseline!N20*(Baseline!N24-Baseline!N25))/(Baseline!L23*Baseline!M23*Baseline!N23)+(Baseline!O20*(Baseline!O24-Baseline!O25))/(Baseline!L23*Baseline!M23*Baseline!N23*Baseline!O23)+(Baseline!P20*(Baseline!P24-Baseline!P25))/(Baseline!L23*Baseline!M23*Baseline!N23*Baseline!O23*Baseline!P23)+(Baseline!Q20*(Baseline!Q24-Baseline!Q25))/(Baseline!L23*Baseline!M23*Baseline!N23*Baseline!O23*Baseline!P23*Baseline!Q23)) -> 38.72605843 | AH47: =AM47/(Baseline!M23*Baseline!N23*Baseline!O23*Baseline!P23*Baseline!Q23)+(Baseline!M20*(Baseline!M24-Baseline!M25))/(Baseline!M23)+(Baseline!N20*(Baseline!N24-Baseline!N25))/(Baseline!M23*Baseline!N23)+(Baseline!O20*(Baseline!O24-Baseline!O25))/(Baseline!M23*Baseline!N23*Baseline!O23)+(Baseline!P20*(Baseline!P24-Baseline!P25))/(Baseline!M23*Baseline!N23*Baseline!O23*Baseline!P23)+(Baseline!Q20*(Baseline!Q24-Baseline!Q25))/(Baseline!M23*Baseline!N23*Baseline!O23*Baseline!P23*Baseline!Q23) -> 43.04900848 | AM47: =(1-((AM36-AF47/100)/AM36))*AM33*100 -> 46.5525049
AB48: ="Safe level using 70 percent by "&Readme!B10+5&" (5 percent risk tolerance)" -> Safe level using 70 percent by 2026 (5 percent risk tolerance) | AF48: 70 | AG48: =AM48/(Baseline!L23*Baseline!M23*Baseline!N23*Baseline!O23*Baseline!P23*Baseline!Q23)+((Baseline!L20*(Baseline!L24-Baseline!L25))/(Baseline!L23)+(Baseline!M20*(Baseline!M24-Baseline!M25))/(Baseline!L23*Baseline!M23)+(Baseline!N20*(Baseline!N24-Baseline!N25))/(Baseline!L23*Baseline!M23*Baseline!N23)+(Baseline!O20*(Baseline!O24-Baseline!O25))/(Baseline!L23*Baseline!M23*Baseline!N23*Baseline!O23)+(Baseline!P20*(Baseline!P24-Baseline!P25))/(Baseline!L23*Baseline!M23*Baseline!N23*Baseline!O23*Baseline!P23)+(Baseline!Q20*(Baseline!Q24-Baseline!Q25))/(Baseline!L23*Baseline!M23*Baseline!N23*Baseline!O23*Baseline!P23*Baseline!Q23)) -> 46.7667625 | AH48: =AM48/(Baseline!M23*Baseline!N23*Baseline!O23*Baseline!P23*Baseline!Q23)+(Baseline!M20*(Baseline!M24-Baseline!M25))/(Baseline!M23)+(Baseline!N20*(Baseline!N24-Baseline!N25))/(Baseline!M23*Baseline!N23)+(Baseline!O20*(Baseline!O24-Baseline!O25))/(Baseline!M23*Baseline!N23*Baseline!O23)+(Baseline!P20*(Baseline!P24-Baseline!P25))/(Baseline!M23*Baseline!N23*Baseline!O23*Baseline!P23)+(Baseline!Q20*(Baseline!Q24-Baseline!Q25))/(Baseline!M23*Baseline!N23*Baseline!O23*Baseline!P23*Baseline!Q23) -> 50.95895039 | AM48: =(1-((AM36-AF48/100)/AM36))*AM33*100 -> 54.31125572
AB49: ="Safe level using Covid spike level by "&Readme!B10+5&" (5 percent risk tolerance)" -> Safe level using Covid spike level by 2026 (5 percent risk tolerance) | AF49: =INDEX(Baseline!$B$9:$K$9,MATCH(2021,Baseline!$B$8:$K$8,0)) ->  | AG49: =AM49/(Baseline!L23*Baseline!M23*Baseline!N23*Baseline!O23*Baseline!P23*Baseline!Q23)+((Baseline!L20*(Baseline!L24-Baseline!L25))/(Baseline!L23)+(Baseline!M20*(Baseline!M24-Baseline!M25))/(Baseline!L23*Baseline!M23)+(Baseline!N20*(Baseline!N24-Baseline!N25))/(Baseline!L23*Baseline!M23*Baseline!N23)+(Baseline!O20*(Baseline!O24-Baseline!O25))/(Baseline!L23*Baseline!M23*Baseline!N23*Baseline!O23)+(Baseline!P20*(Baseline!P24-Baseline!P25))/(Baseline!L23*Baseline!M23*Baseline!N23*Baseline!O23*Baseline!P23)+(Baseline!Q20*(Baseline!Q24-Baseline!Q25))/(Baseline!L23*Baseline!M23*Baseline!N23*Baseline!O23*Baseline!P23*Baseline!Q23)) ->  | AH49: =AM49/(Baseline!M23*Baseline!N23*Baseline!O23*Baseline!P23*Baseline!Q23)+(Baseline!M20*(Baseline!M24-Baseline!M25))/(Baseline!M23)+(Baseline!N20*(Baseline!N24-Baseline!N25))/(Baseline!M23*Baseline!N23)+(Baseline!O20*(Baseline!O24-Baseline!O25))/(Baseline!M23*Baseline!N23*Baseline!O23)+(Baseline!P20*(Baseline!P24-Baseline!P25))/(Baseline!M23*Baseline!N23*Baseline!O23*Baseline!P23)+(Baseline!Q20*(Baseline!Q24-Baseline!Q25))/(Baseline!M23*Baseline!N23*Baseline!O23*Baseline!P23*Baseline!Q23) ->  | AM49: =(1-((AM36-AF49/100)/AM36))*AM33*100 -> 
AB50: ="Safe level from user-defined objective by "&Readme!B10+5&" (5 percent risk tolerance)" -> Safe level from user-defined objective by 2026 (5 percent risk tolerance) | AF50: 50 | AG50: =AM50/(Baseline!L23*Baseline!M23*Baseline!N23*Baseline!O23*Baseline!P23*Baseline!Q23)+((Baseline!L20*(Baseline!L24-Baseline!L25))/(Baseline!L23)+(Baseline!M20*(Baseline!M24-Baseline!M25))/(Baseline!L23*Baseline!M23)+(Baseline!N20*(Baseline!N24-Baseline!N25))/(Baseline!L23*Baseline!M23*Baseline!N23)+(Baseline!O20*(Baseline!O24-Baseline!O25))/(Baseline!L23*Baseline!M23*Baseline!N23*Baseline!O23)+(Baseline!P20*(Baseline!P24-Baseline!P25))/(Baseline!L23*Baseline!M23*Baseline!N23*Baseline!O23*Baseline!P23)+(Baseline!Q20*(Baseline!Q24-Baseline!Q25))/(Baseline!L23*Baseline!M23*Baseline!N23*Baseline!O23*Baseline!P23*Baseline!Q23)) -> 30.68535435 | AH50: =AM50/(Baseline!M23*Baseline!N23*Baseline!O23*Baseline!P23*Baseline!Q23)+(Baseline!M20*(Baseline!M24-Baseline!M25))/(Baseline!M23)+(Baseline!N20*(Baseline!N24-Baseline!N25))/(Baseline!M23*Baseline!N23)+(Baseline!O20*(Baseline!O24-Baseline!O25))/(Baseline!M23*Baseline!N23*Baseline!O23)+(Baseline!P20*(Baseline!P24-Baseline!P25))/(Baseline!M23*Baseline!N23*Baseline!O23*Baseline!P23)+(Baseline!Q20*(Baseline!Q24-Baseline!Q25))/(Baseline!M23*Baseline!N23*Baseline!O23*Baseline!P23*Baseline!Q23) -> 35.13906657 | AM50: =(1-((AM36-AF50/100)/AM36))*AM33*100 -> 38.79375408
T51: First Year of projection | GA51: First Year of projection
H52: =I52-1 -> 2009 | I52: 2010 | J52: 2011 | K52: 2012 | L52: 2013 | M52: 2014 | N52: 2015 | O52: 2016 | P52: 2017 | Q52: 2018 | R52: 2019 | S52: =T52-1 -> 2020 | T52: =$BB$6 -> 2021 | U52: =BC6 -> 2022 | V52: 2023 | W52: 2024 | X52: 2025 | Y52: 2026 | Z52: 2027 | AA52: 2028 | AB52: 2029 | AC52: 2030 | AD52: 2031 | AE52: 2032 | AF52: =BN6 -> 2033 | AG52: 2034 | AH52: 2035 | FO52: =FP52-1 -> 2009 | FP52: 2010 | FQ52: 2011 | FR52: 2012 | FS52: 2013 | FT52: 2014 | FU52: 2015 | FV52: 2016 | FW52: 2017 | FX52: 2018 | FY52: =FZ52-1 -> 2019 | FZ52: =GA52-1 -> 2020 | GA52: =$BB$6 -> 2021 | GB52: =BC6 -> 2022 | GC52: 2023 | GD52: 2024 | GE52: 2025 | GF52: 2026 | GG52: 2027 | GH52: 2028 | GI52: 2029 | GJ52: 2030 | GK52: 2031 | GL52: 2032 | GM52: =BN6 -> 2033 | GN52: 2034 | GO52: 2035
A53: d: Public debt/GDP | J53: =Baseline!$B$9 -> 31.5933688 | K53: =Baseline!$C$9 -> 35.33939124 | L53: =Baseline!$D$9 -> 43.11561343 | M53: =Baseline!$E$9 -> 44.44062131 | N53: =Baseline!$F$9 -> 44.32556858 | O53: =Baseline!$G$9 -> 45.98041253 | P53: =Baseline!$H$9 -> 47.43639858 | Q53: =Baseline!$I$9 -> 48.5464043 | R53: =Baseline!$J$9 -> 48.67164741 | S53: =Baseline!$K$9 -> 58.86485128 | T53: =Baseline!$L$9 -> 61.90891752 | U53: =Baseline!$M$9 -> 62.90890638 | V53: =Baseline!$N$9 -> 63.03840961 | W53: =Baseline!$O$9 -> 63.37293275 | X53: =Baseline!$P$9 -> 63.89866909 | Y53: =Baseline!Q$9 -> 64.25224701 | Z53: =Baseline!R$9 -> 64.76442435 | AA53: =Baseline!S$9 -> 65.04051499 | AB53: =Baseline!T$9 -> 65.42870334 | AC53: =Baseline!U$9 -> 65.90467611 | AD53: =Baseline!V$9 -> 66.18568452 | AE53: =Baseline!W$9 -> 66.57381978 | AF53: =Baseline!X$9 -> 66.92956527 | AG53: =Baseline!Y$9 -> 67.27242337 | AH53: =Baseline!Z$9 -> 67.60661844 | FH53: d: Public debt/GDP | FQ53: =Baseline!$B$9 -> 31.5933688 | FR53: =Baseline!$C$9 -> 35.33939124 | FS53: =Baseline!$D$9 -> 43.11561343 | FT53: =Baseline!$E$9 -> 44.44062131 | FU53: =Baseline!$F$9 -> 44.32556858 | FV53: =Baseline!$G$9 -> 45.98041253 | FW53: =Baseline!$H$9 -> 47.43639858 | FX53: =Baseline!$I$9 -> 48.5464043 | FY53: =Baseline!$J$9 -> 48.67164741 | FZ53: =Baseline!$K$9 -> 58.86485128 | GA53: =Baseline!$L$9 -> 61.90891752 | GB53: =Baseline!$M$9 -> 62.90890638 | GC53: =Baseline!$N$9 -> 63.03840961 | GD53: =Baseline!$O$9 -> 63.37293275 | GE53: =Baseline!$P$9 -> 63.89866909 | GF53: =Baseline!Q$9 -> 64.25224701 | GG53: =Baseline!R$9 -> 64.76442435 | GH53: =Baseline!S$9 -> 65.04051499 | GI53: =Baseline!T$9 -> 65.42870334 | GJ53: =Baseline!U$9 -> 65.90467611 | GK53: =Baseline!V$9 -> 66.18568452 | GL53: =Baseline!W$9 -> 66.57381978 | GM53: =Baseline!X$9 -> 66.92956527 | GN53: =Baseline!Y$9 -> 67.27242337 | GO53: =Baseline!Z$9 -> 67.60661844
A54: g: Real GDP growth rate | H54: =$AP$7 -> 0 | I54: =$AQ$7 -> 0 | J54: =$AR$7 -> 0 | K54: =$AS$7 -> 4.128725633 | L54: =$AT$7 -> 2.791554075 | M54: =$AU$7 -> 3.058096332 | N54: =$AV$7 -> 3.840046512 | O54: =$AW$7 -> 3.893003331 | P54: =$AX$7 -> 4.842866705 | Q54: =$AY$7 -> 3.845025913 | R54: =$AZ$7 -> 2.662336047 | S54: =$BA$7 -> -8.993690565 | T54: =$BB$7 -> 4.230933496 | U54: =$BC$7 -> 3.746288693 | V54: =$BD$7 -> 3.408191185 | W54: =$BE$7 -> 3.660486026 | X54: =$BF$7 -> 3.835522081 | Y54: =BG$7 -> 3.835491687 | Z54: 3.835528595 | AA54: 3.835544872 | AB54: 3.83549772 | AC54: 3.835523257 | AD54: 3.835520597 | AE54: 3.83553137 | AF54: =BN$7 -> 3.835542808 | AG54: 3.835552637 | AH54: 3.835562465 | FH54: g: Real GDP growth rate | FO54: =GU$7 -> 0 | FP54: 0 | FQ54: 0 | FR54: 4.128725633 | FS54: 2.791554075 | FT54: 3.058096332 | FU54: 3.840046512 | FV54: 3.893003331 | FW54: 4.842866705 | FX54: 3.845025913 | FY54: 2.662336047 | FZ54: -8.993690565 | GA54: 4.230933496 | GB54: 3.746288693 | GC54: 3.408191185 | GD54: 3.660486026 | GE54: 3.835522081 | GF54: 3.835491687 | GG54: 3.835528595 | GH54: 3.835544872 | GI54: 3.83549772 | GJ54: 3.835523257 | GK54: 3.835520597 | GL54: 3.83553137 | GM54: 3.835542808 | GN54: 3.835552637 | GO54: 3.835562465
A55: rd: Real effective interest rate on local-currency debt | H55: =$AP$8 -> 0 | I55: =$AQ$8 -> 0 | J55: =$AR$8 -> 0 | K55: =$AS$8 -> 5.066250837 | L55: =$AT$8 -> 6.219007502 | M55: =$AU$8 -> 6.528777952 | N55: =$AV$8 -> 9.79609911 | O55: =$AW$8 -> 8.511174111 | P55: =$AX$8 -> 5.015721815 | Q55: =$AY$8 -> 6.862870959 | R55: =$AZ$8 -> 6.221158567 | S55: =$BA$8 -> 4.898413867 | T55: =$BB$8 -> 5.853328268 | U55: =$BC$8 -> 5.758826754 | V55: =$BD$8 -> 6.491691988 | W55: =$BE$8 -> 6.961937313 | X55: =$BF$8 -> 6.981350252 | Y55: =BG$8 -> 6.692261067 | Z55: 6.722398352 | AA55: 6.69075465 | AB55: 6.69075465 | AC55: 6.720815721 | AD55: 6.68925204 | AE55: 6.68925204 | AF55: =BN$8 -> 6.688500752 | AG55: 6.684894714 | AH55: 6.681288919 | FH55: rd,gfn: Real effective cost on local-currency debt that generates financing nedds, gfn | FO55: =GU$8 -> 0 | FP55: 0 | FQ55: 0 | FR55: 20.96540123 | FS55: 22.94831478 | FT55: 23.45772862 | FU55: 22.54184721 | FV55: 21.18779785 | FW55: 19.38673094 | FX55: 19.88097835 | FY55: 19.39383167 | FZ55: 21.75019145 | GA55: 27.46940102 | GB55: 20.41238673 | GC55: 21.10078784 | GD55: 21.91623807 | GE55: 22.53011713 | GF55: 22.63445037 | GG55: 21.92864722 | GH55: 22.06999777 | GI55: 22.1850642 | GJ55: 22.25203319 | GK55: 22.20951787 | GL55: 22.12792226 | GM55: 23.08946072 | GN55: 24.05099918 | GO55: 25.01253764
A56: pbadj: Primary balance adjusted | H56: =$AP$9 -> 0 | I56: =$AQ$9 -> 0 | J56: =$AR$9 -> 0 | K56: =$AS$9 -> -4.227150579 | L56: =$AT$9 -> -7.689768882 | M56: =$AU$9 -> -1.413281372 | N56: =$AV$9 -> 1.092861099 | O56: =$AW$9 -> 0.4633336166 | P56: =$AX$9 -> -3.76899242 | Q56: =$AY$9 -> -1.267586037 | R56: =$AZ$9 -> 3.267492809 | S56: =$BA$9 -> -5.900041043 | T56: =$BB$9 -> -4.952733605 | U56: =$BC$9 -> -1.959240809 | V56: =$BD$9 -> -0.4503107163 | W56: =$BE$9 -> -0.6365800623 | X56: =$BF$9 -> -0.7064939101 | Y56: =BG$9 -> -0.5977537371 | Z56: -0.6471278689 | AA56: -0.6503897532 | AB56: -0.6316903476 | AC56: -0.6431865369 | AD56: -0.6416861176 | AE56: -0.638787959 | AF56: =BN$9 -> -0.6437857588 | AG56: -0.6457648507 | AH56: -0.6477438087 | FH56: pb | FO56: =GU$9 -> 0 | FP56: 0 | FQ56: 0 | FR56: -4.033543483 | FS56: -5.610796375 | FT56: -1.880094999 | FU56: -0.3516936022 | FV56: -0.1264194147 | FW56: 0.01847718413 | FX56: 0.8537145611 | FY56: 0.564213633 | FZ56: -3.548590878 | GA56: -4.040950675 | GB56: -1.054812503 | GC56: 0.4523486729 | GD56: 0.2669914016 | GE56: 0.1974697979 | GF56: 0.3056032908 | GG56: 0.2566881634 | GH56: 0.2532537507 | GI56: 0.2718484016 | GJ56: 0.2605967719 | GK56: 0.2618996414 | GL56: 0.264781605 | GM56: 0.2598072249 | GN56: 0.2578174728 | GO56: 0.2558277208
A57: rf,aug: Real effective interest rate on foreign-currency debt augmented by changes in real exchange rate | H57: =$AP$10 -> 0 | I57: =$AQ$10 -> 0 | J57: =$AR$10 -> 0 | K57: =$AS$10 -> 0.4712930751 | L57: =$AT$10 -> 0.7416256011 | M57: =$AU$10 -> 1.268799903 | N57: =$AV$10 -> 4.498272544 | O57: =$AW$10 -> 4.150932844 | P57: =$AX$10 -> -0.6051967846 | Q57: =$AY$10 -> 1.847464218 | R57: =$AZ$10 -> 0.5286242032 | S57: =$BA$10 -> -1.762159161 | T57: =$BB$10 -> 0.3653992616 | U57: =$BC$10 -> 0.7091339036 | V57: =$BD$10 -> 1.433356736 | W57: =$BE$10 -> 1.250907069 | X57: =$BF$10 -> 1.269283491 | Y57: =BG$10 -> 0.9966611265 | Z57: 1.19187611 | AA57: 0.9869032714 | AB57: 0.9869032714 | AC57: 1.181624581 | AD57: 0.9771700855 | AE57: 0.9771700855 | AF57: =BN$10 -> 0.876767082 | AG57: 0.8367648681 | AH57: 0.7788667658 | FH57: rf,gfn: Real effective cost on foreign-currency debt that generates financing needs, gfn | FO57: =GU$10 -> 0 | FP57: 0 | FQ57: 0 | FR57: 14.71025039 | FS57: 16.18711852 | FT57: 18.44131195 | FU57: 14.63540958 | FV57: 13.3472799 | FW57: 12.99370298 | FX57: 13.71076239 | FY57: 13.11911701 | FZ57: 14.64711352 | GA57: 20.7305343 | GB57: 14.65379222 | GC57: 14.92613644 | GD57: 15.03385287 | GE57: 15.5391126 | GF57: 15.68348685 | GG57: 15.19179542 | GH57: 15.16531127 | GI57: 15.26092202 | GJ57: 15.48239001 | GK57: 15.27505482 | GL57: 15.19963928 | GM57: 16.15136456 | GN57: 17.09895749 | GO57: 18.04303065
A58: Guarantees (uncalled) | J58: =Baseline!B10+Baseline!B11 -> 0 | K58: =Baseline!C10+Baseline!C11 -> 0 | L58: =Baseline!D10+Baseline!D11 -> 0 | M58: =Baseline!E10+Baseline!E11 -> 0 | N58: =Baseline!F10+Baseline!F11 -> 0 | O58: =Baseline!G10+Baseline!G11 -> 1.423454805 | P58: =Baseline!H10+Baseline!H11 -> 0.5406969275 | Q58: =Baseline!I10+Baseline!I11 -> 0.4501946167 | R58: =Baseline!J10+Baseline!J11 -> 3.816298572 | S58: =Baseline!K10+Baseline!K11 -> 3.281773213 | T58: =Baseline!L10+Baseline!L11 -> 2.27702712 | U58: =Baseline!M10+Baseline!M11 -> 2.003280914 | V58: =Baseline!N10+Baseline!N11 -> 1.757363177 | W58: =Baseline!O10+Baseline!O11 -> 1.539391842 | X58: =Baseline!P10+Baseline!P11 -> 1.433826375 | Y58: =Baseline!Q10+Baseline!Q11 -> 1.433826375 | Z58: =Baseline!R10+Baseline!R11 -> 1.469014864 | AA58: =Baseline!S10+Baseline!S11 -> 1.445555872 | AB58: =Baseline!T10+Baseline!T11 -> 1.449465704 | AC58: =Baseline!U10+Baseline!U11 -> 1.454678813 | AD58: =Baseline!V10+Baseline!V11 -> 1.44990013 | AE58: =Baseline!W10+Baseline!W11 -> 1.44990013 | AF58: =Baseline!X10+Baseline!X11 -> 1.450117342 | AG58: =Baseline!Y10+Baseline!Y11 -> 1.449769802 | AH58: =Baseline!Z10+Baseline!Z11 -> 1.449422261 | FH58: Guarantees (uncalled) | FQ58: =Baseline!B10+Baseline!B11 -> 0 | FR58: =Baseline!C10+Baseline!C11 -> 0 | FS58: =Baseline!D10+Baseline!D11 -> 0 | FT58: =Baseline!E10+Baseline!E11 -> 0 | FU58: =Baseline!F10+Baseline!F11 -> 0 | FV58: =Baseline!G10+Baseline!G11 -> 1.423454805 | FW58: =Baseline!H10+Baseline!H11 -> 0.5406969275 | FX58: =Baseline!I10+Baseline!I11 -> 0.4501946167 | FY58: =Baseline!J10+Baseline!J11 -> 3.816298572 | FZ58: =Baseline!K10+Baseline!K11 -> 3.281773213 | GA58: =Baseline!L10+Baseline!L11 -> 2.27702712 | GB58: =Baseline!M10+Baseline!M11 -> 2.003280914 | GC58: =Baseline!N10+Baseline!N11 -> 1.757363177 | GD58: =Baseline!O10+Baseline!O11 -> 1.539391842 | GE58: =Baseline!P10+Baseline!P11 -> 1.433826375 | GF58: =Baseline!Q10+Baseline!Q11 -> 1.433826375 | GG58: =Baseline!R10+Baseline!R11 -> 1.469014864 | GH58: =Baseline!S10+Baseline!S11 -> 1.445555872 | GI58: =Baseline!T10+Baseline!T11 -> 1.449465704 | GJ58: =Baseline!U10+Baseline!U11 -> 1.454678813 | GK58: =Baseline!V10+Baseline!V11 -> 1.44990013 | GL58: =Baseline!W10+Baseline!W11 -> 1.44990013 | GM58: =Baseline!X10+Baseline!X11 -> 1.450117342 | GN58: =Baseline!Y10+Baseline!Y11 -> 1.449769802 | GO58: =Baseline!Z10+Baseline!Z11 -> 1.449422261
A59: pb* | K59: =(Baseline!B9-Baseline!B10-Baseline!B11)*(Baseline!C23-1)/Baseline!C20+Baseline!C25 -> -0.4764958955 | L59: =(Baseline!C9-Baseline!C10-Baseline!C11)*(Baseline!D23-1)/Baseline!D20+Baseline!D25 -> 0.06919466762 | M59: =(Baseline!D9-Baseline!D10-Baseline!D11)*(Baseline!E23-1)/Baseline!E20+Baseline!E25 -> -0.07848829458 | N59: =(Baseline!E9-Baseline!E10-Baseline!E11)*(Baseline!F23-1)/Baseline!F20+Baseline!F25 -> 0.9838382088 | O59: =(Baseline!F9-Baseline!F10-Baseline!F11)*(Baseline!G23-1)/Baseline!G20+Baseline!G25 -> 0.6928839253 | P59: =(Baseline!G9-Baseline!G10-Baseline!G11)*(Baseline!H23-1)/Baseline!H20+Baseline!H25 -> -1.436361964 | Q59: =(Baseline!H9-Baseline!H10-Baseline!H11)*(Baseline!I23-1)/Baseline!I20+Baseline!I25 -> -0.08979044918 | R59: =(Baseline!I9-Baseline!I10-Baseline!I11)*(Baseline!J23-1)/Baseline!J20+Baseline!J25 -> 0.0350225088 | S59: =(Baseline!J9-Baseline!J10-Baseline!J11)*(Baseline!K23-1)/Baseline!K20+Baseline!K25 -> 4.912432818 | T59: =(Baseline!K9-Baseline!K10-Baseline!K11)*(Baseline!L23-1)/Baseline!L20+Baseline!L25 -> -0.00177077972 | U59: =(Baseline!L9-Baseline!L10-Baseline!L11)*(Baseline!M23-1)/Baseline!M20+Baseline!M25 -> 0.2160436533 | V59: =(Baseline!M9-Baseline!M10-Baseline!M11)*(Baseline!N23-1)/Baseline!N20+Baseline!N25 -> 0.8255525244 | W59: =(Baseline!N9-Baseline!N10-Baseline!N11)*(Baseline!O23-1)/Baseline!O20+Baseline!O25 -> 0.8163861683 | X59: =(Baseline!O9-Baseline!O10-Baseline!O11)*(Baseline!P23-1)/Baseline!P20+Baseline!P25 -> 0.8252297523 | Y59: =(Baseline!P9-Baseline!P10-Baseline!P11)*(Baseline!Q23-1)/Baseline!Q20+Baseline!Q25 -> 0.6571954942 | Z59: =(Baseline!Q9-Baseline!Q10-Baseline!Q11)*(Baseline!R23-1)/Baseline!R20+Baseline!R25 -> 0.730864271 | AA59: =(Baseline!R9-Baseline!R10-Baseline!R11)*(Baseline!S23-1)/Baseline!S20+Baseline!S25 -> 0.5511252937 | AB59: =(Baseline!S9-Baseline!S10-Baseline!S11)*(Baseline!T23-1)/Baseline!T20+Baseline!T25 -> 0.653974173 | AC59: =(Baseline!T9-Baseline!T10-Baseline!T11)*(Baseline!U23-1)/Baseline!U20+Baseline!U25 -> 0.7285873711 | AD59: =(Baseline!U9-Baseline!U10-Baseline!U11)*(Baseline!V23-1)/Baseline!V20+Baseline!V25 -> 0.5460897488 | AE59: =(Baseline!V9-Baseline!V10-Baseline!V11)*(Baseline!W23-1)/Baseline!W20+Baseline!W25 -> 0.6507479507 | AF59: =(Baseline!W9-Baseline!W10-Baseline!W11)*(Baseline!X23-1)/Baseline!X20+Baseline!X25 -> 0.6133512853 | AG59: =(Baseline!X9-Baseline!X10-Baseline!X11)*(Baseline!Y23-1)/Baseline!Y20+Baseline!Y25 -> 0.5991192192 | AH59: =(Baseline!Y9-Baseline!Y10-Baseline!Y11)*(Baseline!Z23-1)/Baseline!Z20+Baseline!Z25 -> 0.5885257252
A60: d-1max | J60: =(K59-Baseline!C25)*Baseline!C20/(Baseline!C23-1) -> 31.5933688 | K60: =(L59-Baseline!D25)*Baseline!D20/(Baseline!D23-1) -> 35.33939124 | L60: =(M59-Baseline!E25)*Baseline!E20/(Baseline!E23-1) -> 43.11561343 | M60: =(N59-Baseline!F25)*Baseline!F20/(Baseline!F23-1) -> 44.44062131 | N60: =(O59-Baseline!G25)*Baseline!G20/(Baseline!G23-1) -> 44.32556858 | O60: =(P59-Baseline!H25)*Baseline!H20/(Baseline!H23-1) -> 44.55695772 | P60: =(Q59-Baseline!I25)*Baseline!I20/(Baseline!I23-1) -> 46.89570166 | Q60: =(R59-Baseline!J25)*Baseline!J20/(Baseline!J23-1) -> 48.09620969 | R60: =(S59-Baseline!K25)*Baseline!K20/(Baseline!K23-1) -> 44.85534884 | S60: =(T59-Baseline!L25)*Baseline!L20/(Baseline!L23-1) -> 55.58307807 | T60: =(U59-Baseline!M25)*Baseline!M20/(Baseline!M23-1) -> 59.6318904 | U60: =(V59-Baseline!N25)*Baseline!N20/(Baseline!N23-1) -> 60.90562547 | V60: =(W59-Baseline!O25)*Baseline!O20/(Baseline!O23-1) -> 61.28104643 | W60: =(X59-Baseline!P25)*Baseline!P20/(Baseline!P23-1) -> 61.83354091 | X60: =(Y59-Baseline!Q25)*Baseline!Q20/(Baseline!Q23-1) -> 62.46484272 | Y60: =(Z59-Baseline!R25)*Baseline!R20/(Baseline!R23-1) -> 62.81842064 | Z60: =(AA59-Baseline!S25)*Baseline!S20/(Baseline!S23-1) -> 63.29540949 | AA60: =(AB59-Baseline!T25)*Baseline!T20/(Baseline!T23-1) -> 63.59495912 | AB60: =(AC59-Baseline!U25)*Baseline!U20/(Baseline!U23-1) -> 63.97923763 | AC60: =(AD59-Baseline!V25)*Baseline!V20/(Baseline!V23-1) -> 64.4499973 | AD60: =(AE59-Baseline!W25)*Baseline!W20/(Baseline!W23-1) -> 64.73578439 | AE60: =(AF59-Baseline!X25)*Baseline!X20/(Baseline!X23-1) -> 65.12391965 | AF60: =(AG59-Baseline!Y25)*Baseline!Y20/(Baseline!Y23-1) -> 65.47944792 | AG60: =(AH59-Baseline!Z25)*Baseline!Z20/(Baseline!Z23-1) -> 65.82265357
A61: Calculated debt/GDP ratio (excl. other debt-creating flows) | K61: =(J53-J58)*((1+K55/100)*(1-J62)+(1+K57/100)*J62)/(1+K54/100)-K56+K58 -> 35.33749596 | L61: =(K53-K58)*((1+L55/100)*(1-K62)+(1+L57/100)*K62)/(1+L54/100)-L56+L58 -> 43.09892289 | M61: =(L53-L58)*((1+M55/100)*(1-L62)+(1+M57/100)*L62)/(1+M54/100)-M56+M58 -> 44.44907585 | N61: 44.34434872 | O61: 45.99121038 | P61: 47.42655027 | Q61: 48.52269267 | R61: 48.68014816 | S61: 58.89260762 | T61: =(S53-S58)*((1+T55/100)*(1-S62)+(1+T57/100)*S62)/(1+T54/100)-T56+T58 -> 61.90891752 | U61: 62.90890638 | V61: 63.03840961 | W61: 63.37293275 | X61: 63.89866909 | Y61: 64.25224701 | Z61: 64.76442435 | AA61: 65.04051499 | AB61: 65.42870334 | AC61: 65.90467611 | AD61: 66.18568452 | AE61: 66.57381978 | AF61: =(AE53-AE58)*((1+AF55/100)*(1-AE62)+(1+AF57/100)*AE62)/(1+AF54/100)-AF56+AF58 -> 66.92956527 | AG61: 67.27242337 | AH61: 67.60661844 | FH61: Calculated debt/GDP ratio (excl. other debt-creating flows) | FR61: =(FQ53-FQ58)*((1+FR55/100)*(1-FQ62)+(1+FR57/100)*FQ62)/(1+FR54/100)-FR56+FR58 -> 39.69050549 | FS61: =(FR53-FR58)*((1+FS55/100)*(1-FR62)+(1+FS57/100)*FR62)/(1+FS54/100)-FS56+FS58 -> 46.51159492 | FT61: 52.06925319 | FU61: 50.47931793 | FV61: 50.97985074 | FW61: 49.53867903 | FX61: 51.94557889 | FY61: 57.38776412 | FZ61: =(FY53-FY58)*((1+FZ55/100)*(1-FY62)+(1+FZ57/100)*FY62)/(1+FZ54/100)-FZ56+FZ58 -> 64.7147682 | GA61: 72.12105289 | GB61: 70.1685066 | GC61: 70.32292766 | GD61: 70.89235428 | GE61: 71.81764425 | GF61: 72.50670793 | GG61: 72.64202398 | GH61: 73.07136972 | GI61: 73.58773299 | GJ61: 74.137384 | GK61: 74.46020446 | GL61: 74.86324039 | GM61: =(GL53-GL58)*((1+GM55/100)*(1-GL62)+(1+GM57/100)*GL62)/(1+GM54/100)-GM56+GM58 -> 75.90972734 | GN61: 76.92374693 | GO61: 77.94070014
A62: Foreign currency debt share | J62: =Baseline!$B$13/100 -> 0.5505 | K62: =Baseline!$C$13/100 -> 0.5887 | L62: =Baseline!$D$13/100 -> 0.6961 | M62: =Baseline!$E$13/100 -> 0.6847 | N62: =Baseline!$F$13/100 -> 0.6799 | O62: =Baseline!$G$13/100 -> 0.6336 | P62: =Baseline!$H$13/100 -> 0.6418 | Q62: =Baseline!$I$13/100 -> 0.612 | R62: =Baseline!$J$13/100 -> 0.6067 | S62: =Baseline!$K$13/100 -> 0.6045 | T62: =Baseline!$L$13/100 -> 0.634725 | U62: =Baseline!$M$13/100 -> 0.634725 | V62: =Baseline!$N$13/100 -> 0.60298875 | W62: =Baseline!$O$13/100 -> 0.5728393125 | X62: =Baseline!$P$13/100 -> 0.5728393125 | Y62: =Baseline!Q$13/100 -> 0.5728393125 | Z62: =Baseline!R$13/100 -> 0.6014812781 | AA62: =Baseline!S$13/100 -> 0.5714072142 | AB62: =Baseline!T$13/100 -> 0.5714072142 | AC62: =Baseline!U$13/100 -> 0.5999775749 | AD62: =Baseline!V$13/100 -> 0.5699786962 | AE62: =Baseline!W$13/100 -> 0.5699786962 | AF62: =Baseline!X$13/100 -> 0.5692644372 | AG62: =Baseline!Y$13/100 -> 0.5658359939 | AH62: =Baseline!Z$13/100 -> 0.5624075506 | FH62: Foreign currency debt share | FQ62: =Baseline!$B$13/100 -> 0.5505 | FR62: =Baseline!$C$13/100 -> 0.5887 | FS62: =Baseline!$D$13/100 -> 0.6961 | FT62: =Baseline!$E$13/100 -> 0.6847 | FU62: =Baseline!$F$13/100 -> 0.6799 | FV62: =Baseline!$G$13/100 -> 0.6336 | FW62: =Baseline!$H$13/100 -> 0.6418 | FX62: =Baseline!$I$13/100 -> 0.612 | FY62: =Baseline!$J$13/100 -> 0.6067 | FZ62: =Baseline!$K$13/100 -> 0.6045 | GA62: =Baseline!$L$13/100 -> 0.634725 | GB62: =Baseline!$M$13/100 -> 0.634725 | GC62: =Baseline!$N$13/100 -> 0.60298875 | GD62: =Baseline!$O$13/100 -> 0.5728393125 | GE62: =Baseline!$P$13/100 -> 0.5728393125 | GF62: =Baseline!Q$13/100 -> 0.5728393125 | GG62: =Baseline!R$13/100 -> 0.6014812781 | GH62: =Baseline!S$13/100 -> 0.5714072142 | GI62: =Baseline!T$13/100 -> 0.5714072142 | GJ62: =Baseline!U$13/100 -> 0.5999775749 | GK62: =Baseline!V$13/100 -> 0.5699786962 | GL62: =Baseline!W$13/100 -> 0.5699786962 | GM62: =Baseline!X$13/100 -> 0.5692644372 | GN62: =Baseline!Y$13/100 -> 0.5658359939 | GO62: =Baseline!Z$13/100 -> 0.5624075506
FH63: rf,gfn | FR63: =(1+Baseline!C16/100)*(Baseline!C14/Baseline!C15)*(Baseline!C34/100+Baseline!C18/100)/(1+Baseline!C19/100)*100 -> 14.71025039 | FS63: =(1+Baseline!D16/100)*(Baseline!D14/Baseline!D15)*(Baseline!D34/100+Baseline!D18/100)/(1+Baseline!D19/100)*100 -> 16.18711852 | FT63: =(1+Baseline!E16/100)*(Baseline!E14/Baseline!E15)*(Baseline!E34/100+Baseline!E18/100)/(1+Baseline!E19/100)*100 -> 18.44131195 | FU63: =(1+Baseline!F16/100)*(Baseline!F14/Baseline!F15)*(Baseline!F34/100+Baseline!F18/100)/(1+Baseline!F19/100)*100 -> 14.63540958 | FV63: =(1+Baseline!G16/100)*(Baseline!G14/Baseline!G15)*(Baseline!G34/100+Baseline!G18/100)/(1+Baseline!G19/100)*100 -> 13.3472799 | FW63: =(1+Baseline!H16/100)*(Baseline!H14/Baseline!H15)*(Baseline!H34/100+Baseline!H18/100)/(1+Baseline!H19/100)*100 -> 12.99370298 | FX63: =(1+Baseline!I16/100)*(Baseline!I14/Baseline!I15)*(Baseline!I34/100+Baseline!I18/100)/(1+Baseline!I19/100)*100 -> 13.71076239 | FY63: =(1+Baseline!J16/100)*(Baseline!J14/Baseline!J15)*(Baseline!J34/100+Baseline!J18/100)/(1+Baseline!J19/100)*100 -> 13.11911701 | FZ63: =(1+Baseline!K16/100)*(Baseline!K14/Baseline!K15)*(Baseline!K34/100+Baseline!K18/100)/(1+Baseline!K19/100)*100 -> 14.64711352 | GA63: =(1+Baseline!L16/100)*(Baseline!L14/Baseline!L15)*(Baseline!L34/100+Baseline!L18/100)/(1+Baseline!L19/100)*100 -> 20.7305343 | GB63: =(1+Baseline!M16/100)*(Baseline!M14/Baseline!M15)*(Baseline!M34/100+Baseline!M18/100)/(1+Baseline!M19/100)*100 -> 14.65379222 | GC63: =(1+Baseline!N16/100)*(Baseline!N14/Baseline!N15)*(Baseline!N34/100+Baseline!N18/100)/(1+Baseline!N19/100)*100 -> 14.92613644 | GD63: =(1+Baseline!O16/100)*(Baseline!O14/Baseline!O15)*(Baseline!O34/100+Baseline!O18/100)/(1+Baseline!O19/100)*100 -> 15.03385287 | GE63: =(1+Baseline!P16/100)*(Baseline!P14/Baseline!P15)*(Baseline!P34/100+Baseline!P18/100)/(1+Baseline!P19/100)*100 -> 15.5391126 | GF63: =(1+Baseline!Q16/100)*(Baseline!Q14/Baseline!Q15)*(Baseline!Q34/100+Baseline!Q18/100)/(1+Baseline!Q19/100)*100 -> 15.68348685 | GG63: =(1+Baseline!R16/100)*(Baseline!R14/Baseline!R15)*(Baseline!R34/100+Baseline!R18/100)/(1+Baseline!R19/100)*100 -> 15.19179542 | GH63: =(1+Baseline!S16/100)*(Baseline!S14/Baseline!S15)*(Baseline!S34/100+Baseline!S18/100)/(1+Baseline!S19/100)*100 -> 15.16531127 | GI63: =(1+Baseline!T16/100)*(Baseline!T14/Baseline!T15)*(Baseline!T34/100+Baseline!T18/100)/(1+Baseline!T19/100)*100 -> 15.26092202 | GJ63: =(1+Baseline!U16/100)*(Baseline!U14/Baseline!U15)*(Baseline!U34/100+Baseline!U18/100)/(1+Baseline!U19/100)*100 -> 15.48239001 | GK63: =(1+Baseline!V16/100)*(Baseline!V14/Baseline!V15)*(Baseline!V34/100+Baseline!V18/100)/(1+Baseline!V19/100)*100 -> 15.27505482 | GL63: =(1+Baseline!W16/100)*(Baseline!W14/Baseline!W15)*(Baseline!W34/100+Baseline!W18/100)/(1+Baseline!W19/100)*100 -> 15.19963928 | GM63: =(1+Baseline!X16/100)*(Baseline!X14/Baseline!X15)*(Baseline!X34/100+Baseline!X18/100)/(1+Baseline!X19/100)*100 -> 16.15136456 | GN63: =(1+Baseline!Y16/100)*(Baseline!Y14/Baseline!Y15)*(Baseline!Y34/100+Baseline!Y18/100)/(1+Baseline!Y19/100)*100 -> 17.09895749 | GO63: =(1+Baseline!Z16/100)*(Baseline!Z14/Baseline!Z15)*(Baseline!Z34/100+Baseline!Z18/100)/(1+Baseline!Z19/100)*100 -> 18.04303065
FH64: rd,gfn | FR64: =(Baseline!C33/100+Baseline!C17/100)/(1+Baseline!C19/100)*100 -> 20.96540123 | FS64: =(Baseline!D33/100+Baseline!D17/100)/(1+Baseline!D19/100)*100 -> 22.94831478 | FT64: =(Baseline!E33/100+Baseline!E17/100)/(1+Baseline!E19/100)*100 -> 23.45772862 | FU64: =(Baseline!F33/100+Baseline!F17/100)/(1+Baseline!F19/100)*100 -> 22.54184721 | FV64: =(Baseline!G33/100+Baseline!G17/100)/(1+Baseline!G19/100)*100 -> 21.18779785 | FW64: =(Baseline!H33/100+Baseline!H17/100)/(1+Baseline!H19/100)*100 -> 19.38673094 | FX64: =(Baseline!I33/100+Baseline!I17/100)/(1+Baseline!I19/100)*100 -> 19.88097835 | FY64: =(Baseline!J33/100+Baseline!J17/100)/(1+Baseline!J19/100)*100 -> 19.39383167 | FZ64: =(Baseline!K33/100+Baseline!K17/100)/(1+Baseline!K19/100)*100 -> 21.75019145 | GA64: =(Baseline!L33/100+Baseline!L17/100)/(1+Baseline!L19/100)*100 -> 27.46940102 | GB64: =(Baseline!M33/100+Baseline!M17/100)/(1+Baseline!M19/100)*100 -> 20.41238673 | GC64: =(Baseline!N33/100+Baseline!N17/100)/(1+Baseline!N19/100)*100 -> 21.10078784 | GD64: =(Baseline!O33/100+Baseline!O17/100)/(1+Baseline!O19/100)*100 -> 21.91623807 | GE64: =(Baseline!P33/100+Baseline!P17/100)/(1+Baseline!P19/100)*100 -> 22.53011713 | GF64: =(Baseline!Q33/100+Baseline!Q17/100)/(1+Baseline!Q19/100)*100 -> 22.63445037 | GG64: =(Baseline!R33/100+Baseline!R17/100)/(1+Baseline!R19/100)*100 -> 21.92864722 | GH64: =(Baseline!S33/100+Baseline!S17/100)/(1+Baseline!S19/100)*100 -> 22.06999777 | GI64: =(Baseline!T33/100+Baseline!T17/100)/(1+Baseline!T19/100)*100 -> 22.1850642 | GJ64: =(Baseline!U33/100+Baseline!U17/100)/(1+Baseline!U19/100)*100 -> 22.25203319 | GK64: =(Baseline!V33/100+Baseline!V17/100)/(1+Baseline!V19/100)*100 -> 22.20951787 | GL64: =(Baseline!W33/100+Baseline!W17/100)/(1+Baseline!W19/100)*100 -> 22.12792226 | GM64: =(Baseline!X33/100+Baseline!X17/100)/(1+Baseline!X19/100)*100 -> 23.08946072 | GN64: =(Baseline!Y33/100+Baseline!Y17/100)/(1+Baseline!Y19/100)*100 -> 24.05099918 | GO64: =(Baseline!Z33/100+Baseline!Z17/100)/(1+Baseline!Z19/100)*100 -> 25.01253764
A65: For z, Use RER if 0, REER if 1 | BK65: d prob. (medium-term indicator) | BQ65: =ROUND(IFERROR(PERCENTRANK(BQ$69:BQ$1068,Readme!$B$24)*100,IF(Readme!$B$24<MIN(BQ$69:BQ$1068),0,100)),1) -> 0.4 | BR65: =ROUND(IFERROR(PERCENTRANK(BR$69:BR$1068,Readme!$B$24)*100,IF(Readme!$B$24<MIN(BR$69:BR$1068),0,100)),1) -> 1.1 | BS65: =ROUND(IFERROR(PERCENTRANK(BS$69:BS$1068,Readme!$B$24)*100,IF(Readme!$B$24<MIN(BS$69:BS$1068),0,100)),1) -> 2.2 | BT65: =ROUND(IFERROR(PERCENTRANK(BT$69:BT$1068,Readme!$B$24)*100,IF(Readme!$B$24<MIN(BT$69:BT$1068),0,100)),1) -> 3.6 | BU65: =ROUND(IFERROR(PERCENTRANK(BU$69:BU$1068,Readme!$B$24)*100,IF(Readme!$B$24<MIN(BU$69:BU$1068),0,100)),1) -> 5 | BV65: =ROUND(IFERROR(PERCENTRANK(BV$69:BV$1068,Readme!$B$24)*100,IF(Readme!$B$24<MIN(BV$69:BV$1068),0,100)),1) -> 6.7 | BW65: =ROUND(IFERROR(PERCENTRANK(BW$69:BW$1068,Readme!$B$24)*100,IF(Readme!$B$24<MIN(BW$69:BW$1068),0,100)),1) -> 6.9 | BX65: =ROUND(IFERROR(PERCENTRANK(BX$69:BX$1068,Readme!$B$24)*100,IF(Readme!$B$24<MIN(BX$69:BX$1068),0,100)),1) -> 8.7 | BY65: =ROUND(IFERROR(PERCENTRANK(BY$69:BY$1068,Readme!$B$24)*100,IF(Readme!$B$24<MIN(BY$69:BY$1068),0,100)),1) -> 9.2 | BZ65: =ROUND(IFERROR(PERCENTRANK(BZ$69:BZ$1068,Readme!$B$24)*100,IF(Readme!$B$24<MIN(BZ$69:BZ$1068),0,100)),1) -> 9.2 | CA65: =ROUND(IFERROR(PERCENTRANK(CA$69:CA$1068,Readme!$B$24)*100,IF(Readme!$B$24<MIN(CA$69:CA$1068),0,100)),1) -> 9.7 | CB65: =ROUND(IFERROR(PERCENTRANK(CB$69:CB$1068,Readme!$B$24)*100,IF(Readme!$B$24<MIN(CB$69:CB$1068),0,100)),1) -> 11.5 | CC65: =ROUND(IFERROR(PERCENTRANK(CC$69:CC$1068,Readme!$B$24)*100,IF(Readme!$B$24<MIN(CC$69:CC$1068),0,100)),1) -> 10.5 | CD65: =ROUND(IFERROR(PERCENTRANK(CD$69:CD$1068,Readme!$B$24)*100,IF(Readme!$B$24<MIN(CD$69:CD$1068),0,100)),1) -> 11.5 | CE65: =ROUND(IFERROR(PERCENTRANK(CE$69:CE$1068,Readme!$B$24)*100,IF(Readme!$B$24<MIN(CE$69:CE$1068),0,100)),1) -> 11.8 | FH65: gfn (baseline) | FR65: =(Baseline!B9-Baseline!B10-Baseline!B11)*((Baseline!B13/100)*('Fan Chart'!FR63/100)+(Baseline!B12/100)*('Fan Chart'!FR64/100))/(1+Baseline!C22/100)-Baseline!C24 -> 9.34982034 | FS65: =(Baseline!C9-Baseline!C10-Baseline!C11)*((Baseline!C13/100)*('Fan Chart'!FS63/100)+(Baseline!C12/100)*('Fan Chart'!FS64/100))/(1+Baseline!D22/100)-Baseline!D24 -> 12.1319306 | FT65: =(Baseline!D9-Baseline!D10-Baseline!D11)*((Baseline!D13/100)*('Fan Chart'!FT63/100)+(Baseline!D12/100)*('Fan Chart'!FT64/100))/(1+Baseline!E22/100)-Baseline!E24 -> 10.23303171 | FU65: =(Baseline!E9-Baseline!E10-Baseline!E11)*((Baseline!E13/100)*('Fan Chart'!FU63/100)+(Baseline!E12/100)*('Fan Chart'!FU64/100))/(1+Baseline!F22/100)-Baseline!F24 -> 7.682128592 | FV65: =(Baseline!F9-Baseline!F10-Baseline!F11)*((Baseline!F13/100)*('Fan Chart'!FV63/100)+(Baseline!F12/100)*('Fan Chart'!FV64/100))/(1+Baseline!G22/100)-Baseline!G24 -> 6.891762938 | FW65: =(Baseline!G9-Baseline!G10-Baseline!G11)*((Baseline!G13/100)*('Fan Chart'!FW63/100)+(Baseline!G12/100)*('Fan Chart'!FW64/100))/(1+Baseline!H22/100)-Baseline!H24 -> 6.499184497 | FX65: =(Baseline!H9-Baseline!H10-Baseline!H11)*((Baseline!H13/100)*('Fan Chart'!FX63/100)+(Baseline!H12/100)*('Fan Chart'!FX64/100))/(1+Baseline!I22/100)-Baseline!I24 -> 6.336069952 | FY65: =(Baseline!I9-Baseline!I10-Baseline!I11)*((Baseline!I13/100)*('Fan Chart'!FY63/100)+(Baseline!I12/100)*('Fan Chart'!FY64/100))/(1+Baseline!J22/100)-Baseline!J24 -> 6.722531908 | FZ65: =(Baseline!J9-Baseline!J10-Baseline!J11)*((Baseline!J13/100)*('Fan Chart'!FZ63/100)+(Baseline!J12/100)*('Fan Chart'!FZ64/100))/(1+Baseline!K22/100)-Baseline!K24 -> 12.14482022 | GA65: =(Baseline!K9-Baseline!K10-Baseline!K11)*((Baseline!K13/100)*('Fan Chart'!GA63/100)+(Baseline!K12/100)*('Fan Chart'!GA64/100))/(1+Baseline!L22/100)-Baseline!L24 -> 16.51717144 | GB65: =(Baseline!L9-Baseline!L10-Baseline!L11)*((Baseline!L13/100)*('Fan Chart'!GB63/100)+(Baseline!L12/100)*('Fan Chart'!GB64/100))/(1+Baseline!M22/100)-Baseline!M24 -> 10.68664872 | GC65: =(Baseline!M9-Baseline!M10-Baseline!M11)*((Baseline!M13/100)*('Fan Chart'!GC63/100)+(Baseline!M12/100)*('Fan Chart'!GC64/100))/(1+Baseline!N22/100)-Baseline!N24 -> 9.667304329 | GD65: =(Baseline!N9-Baseline!N10-Baseline!N11)*((Baseline!N13/100)*('Fan Chart'!GD63/100)+(Baseline!N12/100)*('Fan Chart'!GD64/100))/(1+Baseline!O22/100)-Baseline!O24 -> 10.23588824 | GE65: =(Baseline!O9-Baseline!O10-Baseline!O11)*((Baseline!O13/100)*('Fan Chart'!GE63/100)+(Baseline!O12/100)*('Fan Chart'!GE64/100))/(1+Baseline!P22/100)-Baseline!P24 -> 10.83431143 | GF65: =(Baseline!P9-Baseline!P10-Baseline!P11)*((Baseline!P13/100)*('Fan Chart'!GF63/100)+(Baseline!P12/100)*('Fan Chart'!GF64/100))/(1+Baseline!Q22/100)-Baseline!Q24 -> 10.915375 | GG65: =(Baseline!Q9-Baseline!Q10-Baseline!Q11)*((Baseline!Q13/100)*('Fan Chart'!GG63/100)+(Baseline!Q12/100)*('Fan Chart'!GG64/100))/(1+Baseline!R22/100)-Baseline!R24 -> 10.67500666 | GH65: =(Baseline!R9-Baseline!R10-Baseline!R11)*((Baseline!R13/100)*('Fan Chart'!GH63/100)+(Baseline!R12/100)*('Fan Chart'!GH64/100))/(1+Baseline!S22/100)-Baseline!S24 -> 10.66845135 | GI65: =(Baseline!S9-Baseline!S10-Baseline!S11)*((Baseline!S13/100)*('Fan Chart'!GI63/100)+(Baseline!S12/100)*('Fan Chart'!GI64/100))/(1+Baseline!T22/100)-Baseline!T24 -> 10.8923923 | GJ65: =(Baseline!T9-Baseline!T10-Baseline!T11)*((Baseline!T13/100)*('Fan Chart'!GJ63/100)+(Baseline!T12/100)*('Fan Chart'!GJ64/100))/(1+Baseline!U22/100)-Baseline!U24 -> 11.06676141 | GK65: =(Baseline!U9-Baseline!U10-Baseline!U11)*((Baseline!U13/100)*('Fan Chart'!GK63/100)+(Baseline!U12/100)*('Fan Chart'!GK64/100))/(1+Baseline!V22/100)-Baseline!V24 -> 10.94098842 | GL65: =(Baseline!V9-Baseline!V10-Baseline!V11)*((Baseline!V13/100)*('Fan Chart'!GL63/100)+(Baseline!V12/100)*('Fan Chart'!GL64/100))/(1+Baseline!W22/100)-Baseline!W24 -> 11.06880025 | GM65: =(Baseline!W9-Baseline!W10-Baseline!W11)*((Baseline!W13/100)*('Fan Chart'!GM63/100)+(Baseline!W12/100)*('Fan Chart'!GM64/100))/(1+Baseline!X22/100)-Baseline!X24 -> 11.74127879 | GN65: =(Baseline!X9-Baseline!X10-Baseline!X11)*((Baseline!X13/100)*('Fan Chart'!GN63/100)+(Baseline!X12/100)*('Fan Chart'!GN64/100))/(1+Baseline!Y22/100)-Baseline!Y24 -> 12.41325635 | GO65: =(Baseline!Y9-Baseline!Y10-Baseline!Y11)*((Baseline!Y13/100)*('Fan Chart'!GO63/100)+(Baseline!Y12/100)*('Fan Chart'!GO64/100))/(1+Baseline!Z22/100)-Baseline!Z24 -> 13.10003503 | HQ65: GFN prob. (medium-term indicator) | HX65: =ROUND(IFERROR(PERCENTRANK(HX$69:HX$1068,Readme!$B$28)*100,IF(Readme!$B$28<MIN(HX$69:HX$1068),0,100)),1) -> 0.3 | HY65: =ROUND(IFERROR(PERCENTRANK(HY$69:HY$1068,Readme!$B$28)*100,IF(Readme!$B$28<MIN(HY$69:HY$1068),0,100)),1) -> 24.9 | HZ65: =ROUND(IFERROR(PERCENTRANK(HZ$69:HZ$1068,Readme!$B$28)*100,IF(Readme!$B$28<MIN(HZ$69:HZ$1068),0,100)),1) -> 42.3 | IA65: =ROUND(IFERROR(PERCENTRANK(IA$69:IA$1068,Readme!$B$28)*100,IF(Readme!$B$28<MIN(IA$69:IA$1068),0,100)),1) -> 32.4 | IB65: =ROUND(IFERROR(PERCENTRANK(IB$69:IB$1068,Readme!$B$28)*100,IF(Readme!$B$28<MIN(IB$69:IB$1068),0,100)),1) -> 28.2 | IC65: =ROUND(IFERROR(PERCENTRANK(IC$69:IC$1068,Readme!$B$28)*100,IF(Readme!$B$28<MIN(IC$69:IC$1068),0,100)),1) -> 27.3 | ID65: =ROUND(IFERROR(PERCENTRANK(ID$69:ID$1068,Readme!$B$28)*100,IF(Readme!$B$28<MIN(ID$69:ID$1068),0,100)),1) -> 30.2 | IE65: =ROUND(IFERROR(PERCENTRANK(IE$69:IE$1068,Readme!$B$28)*100,IF(Readme!$B$28<MIN(IE$69:IE$1068),0,100)),1) -> 33 | IF65: =ROUND(IFERROR(PERCENTRANK(IF$69:IF$1068,Readme!$B$28)*100,IF(Readme!$B$28<MIN(IF$69:IF$1068),0,100)),1) -> 28.6 | IG65: =ROUND(IFERROR(PERCENTRANK(IG$69:IG$1068,Readme!$B$28)*100,IF(Readme!$B$28<MIN(IG$69:IG$1068),0,100)),1) -> 29.5 | IH65: =ROUND(IFERROR(PERCENTRANK(IH$69:IH$1068,Readme!$B$28)*100,IF(Readme!$B$28<MIN(IH$69:IH$1068),0,100)),1) -> 28.5 | II65: =ROUND(IFERROR(PERCENTRANK(II$69:II$1068,Readme!$B$28)*100,IF(Readme!$B$28<MIN(II$69:II$1068),0,100)),1) -> 28.2 | IJ65: =ROUND(IFERROR(PERCENTRANK(IJ$69:IJ$1068,Readme!$B$28)*100,IF(Readme!$B$28<MIN(IJ$69:IJ$1068),0,100)),1) -> 22.5 | IK65: =ROUND(IFERROR(PERCENTRANK(IK$69:IK$1068,Readme!$B$28)*100,IF(Readme!$B$28<MIN(IK$69:IK$1068),0,100)),1) -> 19.3 | IL65: =ROUND(IFERROR(PERCENTRANK(IL$69:IL$1068,Readme!$B$28)*100,IF(Readme!$B$28<MIN(IL$69:IL$1068),0,100)),1) -> 16.3
BK66: d prob. (last historical year) | BQ66: =ROUND(IFERROR(PERCENTRANK(BQ$69:BQ$1068,'Output - Baseline'!$L$9)*100,IF('Output - Baseline'!$L$9<MIN(BQ$69:BQ$1068),0,100)),1) -> 20.6 | BR66: =ROUND(IFERROR(PERCENTRANK(BR$69:BR$1068,'Output - Baseline'!$L$9)*100,IF('Output - Baseline'!$L$9<MIN(BR$69:BR$1068),0,100)),1) -> 21.2 | BS66: =ROUND(IFERROR(PERCENTRANK(BS$69:BS$1068,'Output - Baseline'!$L$9)*100,IF('Output - Baseline'!$L$9<MIN(BS$69:BS$1068),0,100)),1) -> 25.8 | BT66: =ROUND(IFERROR(PERCENTRANK(BT$69:BT$1068,'Output - Baseline'!$L$9)*100,IF('Output - Baseline'!$L$9<MIN(BT$69:BT$1068),0,100)),1) -> 26.9 | BU66: =ROUND(IFERROR(PERCENTRANK(BU$69:BU$1068,'Output - Baseline'!$L$9)*100,IF('Output - Baseline'!$L$9<MIN(BU$69:BU$1068),0,100)),1) -> 26.9 | BV66: =ROUND(IFERROR(PERCENTRANK(BV$69:BV$1068,'Output - Baseline'!$L$9)*100,IF('Output - Baseline'!$L$9<MIN(BV$69:BV$1068),0,100)),1) -> 27.8 | BW66: =ROUND(IFERROR(PERCENTRANK(BW$69:BW$1068,'Output - Baseline'!$L$9)*100,IF('Output - Baseline'!$L$9<MIN(BW$69:BW$1068),0,100)),1) -> 27.3 | BX66: =ROUND(IFERROR(PERCENTRANK(BX$69:BX$1068,'Output - Baseline'!$L$9)*100,IF('Output - Baseline'!$L$9<MIN(BX$69:BX$1068),0,100)),1) -> 28.3 | BY66: =ROUND(IFERROR(PERCENTRANK(BY$69:BY$1068,'Output - Baseline'!$L$9)*100,IF('Output - Baseline'!$L$9<MIN(BY$69:BY$1068),0,100)),1) -> 28.2 | BZ66: =ROUND(IFERROR(PERCENTRANK(BZ$69:BZ$1068,'Output - Baseline'!$L$9)*100,IF('Output - Baseline'!$L$9<MIN(BZ$69:BZ$1068),0,100)),1) -> 26.9 | CA66: =ROUND(IFERROR(PERCENTRANK(CA$69:CA$1068,'Output - Baseline'!$L$9)*100,IF('Output - Baseline'!$L$9<MIN(CA$69:CA$1068),0,100)),1) -> 27.5 | CB66: =ROUND(IFERROR(PERCENTRANK(CB$69:CB$1068,'Output - Baseline'!$L$9)*100,IF('Output - Baseline'!$L$9<MIN(CB$69:CB$1068),0,100)),1) -> 27.3 | CC66: =ROUND(IFERROR(PERCENTRANK(CC$69:CC$1068,'Output - Baseline'!$L$9)*100,IF('Output - Baseline'!$L$9<MIN(CC$69:CC$1068),0,100)),1) -> 28 | CD66: =ROUND(IFERROR(PERCENTRANK(CD$69:CD$1068,'Output - Baseline'!$L$9)*100,IF('Output - Baseline'!$L$9<MIN(CD$69:CD$1068),0,100)),1) -> 27.8 | CE66: =ROUND(IFERROR(PERCENTRANK(CE$69:CE$1068,'Output - Baseline'!$L$9)*100,IF('Output - Baseline'!$L$9<MIN(CE$69:CE$1068),0,100)),1) -> 26.5 | FH66: (of + residual/mu) (baseline, needed for fan chart) | FR66: =(Baseline!C25+Baseline!C32/Baseline!C20) -> 0.1364818754 | FS66: =(Baseline!D25+Baseline!D32/Baseline!D20) -> 2.016352217 | FT66: =(Baseline!E25+Baseline!E32/Baseline!E20) -> -0.4903743372 | FU66: =(Baseline!F25+Baseline!F32/Baseline!F20) -> -1.430572693 | FV66: =(Baseline!G25+Baseline!G32/Baseline!G20) -> -0.5814541959 | FW66: =(Baseline!H25+Baseline!H32/Baseline!H20) -> 3.777694879 | FX66: =(Baseline!I25+Baseline!I32/Baseline!I20) -> 2.107350094 | FY66: =(Baseline!J25+Baseline!J32/Baseline!J20) -> -2.693029693 | FZ66: =(Baseline!K25+Baseline!K32/Baseline!K20) -> 2.420698875 | GA66: =(Baseline!L25+Baseline!L32/Baseline!L20) -> 0.9 | GB66: =(Baseline!M25+Baseline!M32/Baseline!M20) -> 0.9 | GC66: =(Baseline!N25+Baseline!N32/Baseline!N20) -> 0.9 | GD66: =(Baseline!O25+Baseline!O32/Baseline!O20) -> 0.9 | GE66: =(Baseline!P25+Baseline!P32/Baseline!P20) -> 0.9 | GF66: =(Baseline!Q25+Baseline!Q32/Baseline!Q20) -> 0.9 | GG66: =(Baseline!R25+Baseline!R32/Baseline!R20) -> 0.9 | GH66: =(Baseline!S25+Baseline!S32/Baseline!S20) -> 0.9 | GI66: =(Baseline!T25+Baseline!T32/Baseline!T20) -> 0.9 | GJ66: =(Baseline!U25+Baseline!U32/Baseline!U20) -> 0.9 | GK66: =(Baseline!V25+Baseline!V32/Baseline!V20) -> 0.9 | GL66: =(Baseline!W25+Baseline!W32/Baseline!W20) -> 0.9 | GM66: =(Baseline!X25+Baseline!X32/Baseline!X20) -> 0.9 | GN66: =(Baseline!Y25+Baseline!Y32/Baseline!Y20) -> 0.9 | GO66: =(Baseline!Z25+Baseline!Z32/Baseline!Z20) -> 0.9 | HQ66: GFN prob. (last historical year) | HX66: =ROUND(IFERROR(PERCENTRANK(HX$69:HX$1068,'Output - Baseline'!$L$11)*100,IF('Output - Baseline'!$L$11<MIN(HX$69:HX$1068),0,100)),1) -> 7 | HY66: =ROUND(IFERROR(PERCENTRANK(HY$69:HY$1068,'Output - Baseline'!$L$11)*100,IF('Output - Baseline'!$L$11<MIN(HY$69:HY$1068),0,100)),1) -> 66.5 | HZ66: =ROUND(IFERROR(PERCENTRANK(HZ$69:HZ$1068,'Output - Baseline'!$L$11)*100,IF('Output - Baseline'!$L$11<MIN(HZ$69:HZ$1068),0,100)),1) -> 78.5 | IA66: =ROUND(IFERROR(PERCENTRANK(IA$69:IA$1068,'Output - Baseline'!$L$11)*100,IF('Output - Baseline'!$L$11<MIN(IA$69:IA$1068),0,100)),1) -> 70.5 | IB66: =ROUND(IFERROR(PERCENTRANK(IB$69:IB$1068,'Output - Baseline'!$L$11)*100,IF('Output - Baseline'!$L$11<MIN(IB$69:IB$1068),0,100)),1) -> 59.7 | IC66: =ROUND(IFERROR(PERCENTRANK(IC$69:IC$1068,'Output - Baseline'!$L$11)*100,IF('Output - Baseline'!$L$11<MIN(IC$69:IC$1068),0,100)),1) -> 59.6 | ID66: =ROUND(IFERROR(PERCENTRANK(ID$69:ID$1068,'Output - Baseline'!$L$11)*100,IF('Output - Baseline'!$L$11<MIN(ID$69:ID$1068),0,100)),1) -> 65.3 | IE66: =ROUND(IFERROR(PERCENTRANK(IE$69:IE$1068,'Output - Baseline'!$L$11)*100,IF('Output - Baseline'!$L$11<MIN(IE$69:IE$1068),0,100)),1) -> 64.9 | IF66: =ROUND(IFERROR(PERCENTRANK(IF$69:IF$1068,'Output - Baseline'!$L$11)*100,IF('Output - Baseline'!$L$11<MIN(IF$69:IF$1068),0,100)),1) -> 59.8 | IG66: =ROUND(IFERROR(PERCENTRANK(IG$69:IG$1068,'Output - Baseline'!$L$11)*100,IF('Output - Baseline'!$L$11<MIN(IG$69:IG$1068),0,100)),1) -> 59.8 | IH66: =ROUND(IFERROR(PERCENTRANK(IH$69:IH$1068,'Output - Baseline'!$L$11)*100,IF('Output - Baseline'!$L$11<MIN(IH$69:IH$1068),0,100)),1) -> 60.6 | II66: =ROUND(IFERROR(PERCENTRANK(II$69:II$1068,'Output - Baseline'!$L$11)*100,IF('Output - Baseline'!$L$11<MIN(II$69:II$1068),0,100)),1) -> 56.9 | IJ66: =ROUND(IFERROR(PERCENTRANK(IJ$69:IJ$1068,'Output - Baseline'!$L$11)*100,IF('Output - Baseline'!$L$11<MIN(IJ$69:IJ$1068),0,100)),1) -> 52.4 | IK66: =ROUND(IFERROR(PERCENTRANK(IK$69:IK$1068,'Output - Baseline'!$L$11)*100,IF('Output - Baseline'!$L$11<MIN(IK$69:IK$1068),0,100)),1) -> 45.3 | IL66: =ROUND(IFERROR(PERCENTRANK(IL$69:IL$1068,'Output - Baseline'!$L$11)*100,IF('Output - Baseline'!$L$11<MIN(IL$69:IL$1068),0,100)),1) -> 40.2
B67: g | C67: rd | D67: pbadj | E67: rf,aug | H67: g shocks | W67: rd shocks | AL67: pbadj shocks | BA67: rf,aug shocks | BQ67: d projections | CH67: g shocks | CW67: rd shocks | DL67: pbadj shocks | EA67: rf,aug shocks | EQ67: d projections | FI67: g | FJ67: rd,gfn | FK67: pb | FL67: rf,gfn | FO67: g shocks | GD67: rd,gfn shocks | GS67: pb shocks | HH67: rf,gfn shocks | HX67: GFN projections | IO67: g shocks | JD67: rd,gfn shocks | JS67: pb shocks | KH67: rf,gfn shocks | KX67: GFN projections
A68: 15000 random draws from joint normal distribution. | H68: =$BB$6 -> 2021 | I68: =H68+1 -> 2022 | J68: 2023 | K68: 2024 | L68: 2025 | M68: 2026 | N68: 2027 | O68: 2028 | P68: 2029 | Q68: 2030 | R68: 2031 | S68: 2032 | T68: =S68+1 -> 2033 | U68: =T68+1 -> 2034 | V68: 2035 | W68: =$BB$6 -> 2021 | X68: =W68+1 -> 2022 | Y68: 2023 | Z68: 2024 | AA68: 2025 | AB68: 2026 | AC68: 2027 | AD68: 2028 | AE68: 2029 | AF68: 2030 | AG68: 2031 | AH68: =AG68+1 -> 2032 | AI68: =AH68+1 -> 2033 | AJ68: =AI68+1 -> 2034 | AK68: 2035 | AL68: =$BB$6 -> 2021 | AM68: =AL68+1 -> 2022 | AN68: 2023 | AO68: 2024 | AP68: 2025 | AQ68: 2026 | AR68: 2027 | AS68: 2028 | AT68: 2029 | AU68: 2030 | AV68: 2031 | AW68: =AV68+1 -> 2032 | AX68: =AW68+1 -> 2033 | AY68: =AX68+1 -> 2034 | AZ68: =AY68+1 -> 2035 | BA68: =$BB$6 -> 2021 | BB68: =BA68+1 -> 2022 | BC68: 2023 | BD68: 2024 | BE68: 2025 | BF68: 2026 | BG68: 2027 | BH68: 2028 | BI68: 2029 | BJ68: 2030 | BK68: 2031 | BL68: =BK68+1 -> 2032 | BM68: =BL68+1 -> 2033 | BN68: =BM68+1 -> 2034 | BO68: =BN68+1 -> 2035 | BQ68: =$BB$6 -> 2021 | BR68: =BQ68+1 -> 2022 | BS68: 2023 | BT68: 2024 | BU68: 2025 | BV68: 2026 | BW68: 2027 | BX68: 2028 | BY68: 2029 | BZ68: 2030 | CA68: 2031 | CB68: 2032 | CC68: =CB68+1 -> 2033 | CD68: =CC68+1 -> 2034 | CE68: =CD68+1 -> 2035 | CH68: =$BB$6 -> 2021 | CI68: =CH68+1 -> 2022 | CJ68: 2023 | CK68: 2024 | CL68: 2025 | CM68: 2026 | CN68: 2027 | CO68: 2028 | CP68: 2029 | CQ68: 2030 | CR68: 2031 | CS68: =CR68+1 -> 2032 | CT68: =CS68+1 -> 2033 | CU68: =CT68+1 -> 2034 | CV68: =CU68+1 -> 2035 | CW68: =$BB$6 -> 2021 | CX68: =CW68+1 -> 2022 | CY68: 2023 | CZ68: 2024 | DA68: 2025 | DB68: 2026 | DC68: 2027 | DD68: 2028 | DE68: 2029 | DF68: 2030 | DG68: 2031 | DH68: =DG68+1 -> 2032 | DI68: =DH68+1 -> 2033 | DJ68: =DI68+1 -> 2034 | DK68: =DJ68+1 -> 2035 | DL68: =$BB$6 -> 2021 | DM68: =DL68+1 -> 2022 | DN68: 2023 | DO68: 2024 | DP68: 2025 | DQ68: 2026 | DR68: 2027 | DS68: 2028 | DT68: 2029 | DU68: 2030 | DV68: 2031 | DW68: =DV68+1 -> 2032 | DX68: =DW68+1 -> 2033 | DY68: =DX68+1 -> 2034 | DZ68: =DY68+1 -> 2035 | EA68: =$BB$6 -> 2021 | EB68: =EA68+1 -> 2022 | EC68: 2023 | ED68: 2024 | EE68: 2025 | EF68: 2026 | EG68: 2027 | EH68: 2028 | EI68: 2029 | EJ68: 2030 | EK68: 2031 | EL68: =EK68+1 -> 2032 | EM68: =EL68+1 -> 2033 | EN68: =EM68+1 -> 2034 | EO68: =EN68+1 -> 2035 | EQ68: =$BB$6 -> 2021 | ER68: =EQ68+1 -> 2022 | ES68: 2023 | ET68: 2024 | EU68: 2025 | EV68: 2026 | EW68: 2027 | EX68: 2028 | EY68: 2029 | EZ68: 2030 | FA68: 2031 | FB68: 2032 | FC68: =FB68+1 -> 2033 | FD68: =FC68+1 -> 2034 | FE68: =FD68+1 -> 2035 | FO68: =$BB$6 -> 2021 | FP68: =FO68+1 -> 2022 | FQ68: 2023 | FR68: 2024 | FS68: 2025 | FT68: 2026 | FU68: 2027 | FV68: 2028 | FW68: 2029 | FX68: 2030 | FY68: 2031 | FZ68: =FY68+1 -> 2032 | GA68: =FZ68+1 -> 2033 | GB68: =GA68+1 -> 2034 | GC68: =GB68+1 -> 2035 | GD68: =$BB$6 -> 2021 | GE68: =GD68+1 -> 2022 | GF68: 2023 | GG68: 2024 | GH68: 2025 | GI68: 2026 | GJ68: 2027 | GK68: 2028 | GL68: 2029 | GM68: 2030 | GN68: 2031 | GO68: =GN68+1 -> 2032 | GP68: =GO68+1 -> 2033 | GQ68: =GP68+1 -> 2034 | GR68: =GQ68+1 -> 2035 | GS68: =$BB$6 -> 2021 | GT68: =GS68+1 -> 2022 | GU68: 2023 | GV68: 2024 | GW68: 2025 | GX68: 2026 | GY68: 2027 | GZ68: 2028 | HA68: 2029 | HB68: 2030 | HC68: 2031 | HD68: =HC68+1 -> 2032 | HE68: =HD68+1 -> 2033 | HF68: =HE68+1 -> 2034 | HG68: =HF68+1 -> 2035 | HH68: =$BB$6 -> 2021 | HI68: =HH68+1 -> 2022 | HJ68: 2023 | HK68: 2024 | HL68: 2025 | HM68: 2026 | HN68: 2027 | HO68: 2028 | HP68: 2029 | HQ68: 2030 | HR68: 2031 | HS68: =HR68+1 -> 2032 | HT68: =HS68+1 -> 2033 | HU68: =HT68+1 -> 2034 | HV68: =HU68+1 -> 2035 | HX68: =$BB$6 -> 2021 | HY68: =HX68+1 -> 2022 | HZ68: 2023 | IA68: 2024 | IB68: 2025 | IC68: 2026 | ID68: 2027 | IE68: 2028 | IF68: 2029 | IG68: 2030 | IH68: 2031 | II68: =IH68+1 -> 2032 | IJ68: =II68+1 -> 2033 | IK68: =IJ68+1 -> 2034 | IL68: =IK68+1 -> 2035 | IO68: =$BB$6 -> 2021 | IP68: =IO68+1 -> 2022 | IQ68: 2023 | IR68: 2024 | IS68: 2025 | IT68: 2026 | IU68: 2027 | IV68: 2028 | IW68: 2029 | IX68: 2030 | IY68: 2031 | IZ68: =IY68+1 -> 2032 | JA68: =IZ68+1 -> 2033 | JB68: =JA68+1 -> 2034 | JC68: =JB68+1 -> 2035 | JD68: =$BB$6 -> 2021 | JE68: =JD68+1 -> 2022 | JF68: 2023 | JG68: 2024 | JH68: 2025 | JI68: 2026 | JJ68: 2027 | JK68: 2028 | JL68: 2029 | JM68: 2030 | JN68: 2031 | JO68: =JN68+1 -> 2032 | JP68: =JO68+1 -> 2033 | JQ68: =JP68+1 -> 2034 | JR68: =JQ68+1 -> 2035 | JS68: =$BB$6 -> 2021 | JT68: =JS68+1 -> 2022 | JU68: 2023 | JV68: 2024 | JW68: 2025 | JX68: 2026 | JY68: 2027 | JZ68: 2028 | KA68: 2029 | KB68: 2030 | KC68: 2031 | KD68: =KC68+1 -> 2032 | KE68: =KD68+1 -> 2033 | KF68: =KE68+1 -> 2034 | KG68: =KF68+1 -> 2035 | KH68: =$BB$6 -> 2021 | KI68: =KH68+1 -> 2022 | KJ68: 2023 | KK68: 2024 | KL68: 2025 | KM68: 2026 | KN68: 2027 | KO68: 2028 | KP68: 2029 | KQ68: 2030 | KR68: 2031 | KS68: =KR68+1 -> 2032 | KT68: =KS68+1 -> 2033 | KU68: =KT68+1 -> 2034 | KV68: =KU68+1 -> 2035 | KX68: =$BB$6 -> 2021 | KY68: =KX68+1 -> 2022 | KZ68: 2023 | LA68: 2024 | LB68: 2025 | LC68: 2026 | LD68: 2027 | LE68: 2028 | LF68: 2029 | LG68: 2030 | LH68: 2031 | LI68: =LH68+1 -> 2032 | LJ68: =LI68+1 -> 2033 | LK68: =LJ68+1 -> 2034 | LL68: =LK68+1 -> 2035
A69: 1 | B69: 6.008257761 | C69: 6.094812779 | D69: -5.075821917 | E69: 1.922080843 | H69: =IF($B$42="On",$B69-$D$15,0) -> 3.778483985 | I69: =IF($B$42="On",$B1069-$D$15,0) -> -0.03644009834 | J69: =IF($B$42="On",$B2069-$D$15,0) -> -1.250184254 | K69: =IF($B$42="On",$B3069-$D$15,0) -> 4.748248167 | L69: =IF($B$42="On",$B4069-$D$15,0) -> 1.292886986 | M69: =IF($B$42="On",$B5069-$D$15,0) -> 4.549435199 | N69: =IF($B$42="On",$B6069-$D$15,0) -> 8.037397424 | O69: =IF($B$42="On",$B7069-$D$15,0) -> 8.369810788 | P69: =IF($B$42="On",$B8069-$D$15,0) -> -5.916971246 | Q69: =IF($B$42="On",$B9069-$D$15,0) -> -4.711148063 | R69: =IF($B$42="On",$B10069-$D$15,0) -> 0.001699280113 | S69: =IF($B$42="On",$B11069-$D$15,0) -> -7.737609555 | T69: =IF($B$42="On",$B12069-$D$15,0) -> -1.461530506 | U69: =IF($B$42="On",$B13069-$D$15,0) -> 1.535014936 | V69: =IF($B$42="On",$B14069-$D$15,0) -> -1.344622698 | W69: =IF($B$43="On",$C69-$D$16,0) -> -0.4740177457 | X69: =IF($B$43="On",$C1069-$D$16,0) -> 1.813594558 | Y69: =IF($B$43="On",$C2069-$D$16,0) -> -2.854105112 | Z69: =IF($B$43="On",$C3069-$D$16,0) -> -0.5784559392 | AA69: =IF($B$43="On",$C4069-$D$16,0) -> 0.8265071531 | AB69: =IF($B$43="On",$C5069-$D$16,0) -> 0.1228533602 | AC69: =IF($B$43="On",$C6069-$D$16,0) -> 1.230714873 | AD69: =IF($B$43="On",$C7069-$D$16,0) -> -0.1166673935 | AE69: =IF($B$43="On",$C8069-$D$16,0) -> 1.787153121 | AF69: =IF($B$43="On",$C9069-$D$16,0) -> 0.1414695557 | AG69: =IF($B$43="On",$C10069-$D$16,0) -> 2.498776729 | AH69: =IF($B$43="On",$C11069-$D$16,0) -> -1.976816991 | AI69: =IF($B$43="On",$C12069-$D$16,0) -> 1.301440306 | AJ69: =IF($B$43="On",$C13069-$D$16,0) -> 0.3295441002 | AK69: =IF($B$43="On",$C14069-$D$16,0) -> -1.798634271 | AL69: =IF($B$44="On",$D69-$D$17,0) -> -2.915473827 | AM69: =IF($B$44="On",$D1069-$D$17,0) -> 4.332458807 | AN69: =IF($B$44="On",$D2069-$D$17,0) -> -2.12284551 | AO69: =IF($B$44="On",$D3069-$D$17,0) -> -2.277809458 | AP69: =IF($B$44="On",$D4069-$D$17,0) -> 5.585743021 | AQ69: =IF($B$44="On",$D5069-$D$17,0) -> 3.188793 | AR69: =IF($B$44="On",$D6069-$D$17,0) -> 5.713192087 | AS69: =IF($B$44="On",$D7069-$D$17,0) -> 2.62552337 | AT69: =IF($B$44="On",$D8069-$D$17,0) -> 3.907346856 | AU69: =IF($B$44="On",$D9069-$D$17,0) -> 0.1314419352 | AV69: =IF($B$44="On",$D10069-$D$17,0) -> 1.3042641 | AW69: =IF($B$44="On",$D11069-$D$17,0) -> 0.8405714264 | AX69: =IF($B$44="On",$D12069-$D$17,0) -> -4.054267205 | AY69: =IF($B$44="On",$D13069-$D$17,0) -> 1.241333694 | AZ69: =IF($B$44="On",$D14069-$D$17,0) -> -2.118800774 | BA69: =IF($B$45="On",$E69-$D$18,0) -> 0.684341238 | BB69: =IF($B$45="On",$E1069-$D$18,0) -> 2.203534606 | BC69: =IF($B$45="On",$E2069-$D$18,0) -> -3.248914174 | BD69: =IF($B$45="On",$E3069-$D$18,0) -> -0.312022645 | BE69: =IF($B$45="On",$E4069-$D$18,0) -> 0.5876018296 | BF69: =IF($B$45="On",$E5069-$D$18,0) -> 1.154082529 | BG69: =IF($B$45="On",$E6069-$D$18,0) -> 2.095869468 | BH69: =IF($B$45="On",$E7069-$D$18,0) -> 0.6825210962 | BI69: =IF($B$45="On",$E8069-$D$18,0) -> 0.9372436823 | BJ69: =IF($B$45="On",$E9069-$D$18,0) -> -0.5018823635 | BK69: =IF($B$45="On",$E10069-$D$18,0) -> 2.486598285 | BL69: =IF($B$45="On",$E11069-$D$18,0) -> -2.734038845 | BM69: =IF($B$45="On",$E12069-$D$18,0) -> 0.9408901099 | BN69: =IF($B$45="On",$E13069-$D$18,0) -> 1.20365665 | BO69: =IF($B$45="On",$E14069-$D$18,0) -> -2.011932899 | BQ69: =(S$53-S$58)*((1-S$62)*(1+(T$55+W69)/100)+S$62*((1+(T$57+BA69)/100)))/(1+(T$54+H69)/100)-(T$56+AL69)+T$58 -> 63.02796599 | BR69: =(BQ69-T$58)*((1-T$62)*(1+(U$55+X69)/100)+T$62*((1+(U$57+BB69)/100)))/(1+(U$54+I69)/100)-(U$56+AM69)+U$58 -> 60.91107874 | BS69: =(BR69-U$58)*((1-U$62)*(1+(V$55+Y69)/100)+U$62*((1+(V$57+BC69)/100)))/(1+(V$54+J69)/100)-(V$56+AN69)+V$58 -> 62.09562027 | BT69: =(BS69-V$58)*((1-V$62)*(1+(W$55+Z69)/100)+V$62*((1+(W$57+BD69)/100)))/(1+(W$54+K69)/100)-(W$56+AO69)+W$58 -> 61.83754795 | BU69: =(BT69-W$58)*((1-W$62)*(1+(X$55+AA69)/100)+W$62*((1+(X$57+BE69)/100)))/(1+(X$54+L69)/100)-(X$56+AP69)+X$58 -> 56.43431506 | BV69: =(BU69-X$58)*((1-X$62)*(1+(Y$55+AB69)/100)+X$62*((1+(Y$57+BF69)/100)))/(1+(Y$54+M69)/100)-(Y$56+AQ69)+Y$58 -> 51.69077926 | BW69: =(BV69-Y$58)*((1-Y$62)*(1+(Z$55+AC69)/100)+Y$62*((1+(Z$57+BG69)/100)))/(1+(Z$54+N69)/100)-(Z$56+AR69)+Z$58 -> 43.69841976 | BX69: =(BW69-Z$58)*((1-Z$62)*(1+(AA$55+AD69)/100)+Z$62*((1+(AA$57+BH69)/100)))/(1+(AA$54+O69)/100)-(AA$56+AS69)+AA$58 -> 38.47017281 | BY69: =(BX69-AA$58)*((1-AA$62)*(1+(AB$55+AE69)/100)+AA$62*((1+(AB$57+BI69)/100)))/(1+(AB$54+P69)/100)-(AB$56+AT69)+AB$58 -> 37.77510717 | BZ69: =(BY69-AB$58)*((1-AB$62)*(1+(AC$55+AF69)/100)+AB$62*((1+(AC$57+BJ69)/100)))/(1+(AC$54+Q69)/100)-(AC$56+AU69)+AC$58 -> 39.83311014 | CA69: =(BZ69-AC$58)*((1-AC$62)*(1+(AD$55+AG69)/100)+AC$62*((1+(AD$57+BK69)/100)))/(1+(AD$54+R69)/100)-(AD$56+AV69)+AD$58 -> 39.87405149 | CB69: =(CA69-AD$58)*((1-AD$62)*(1+(AE$55+AH69)/100)+AD$62*((1+(AE$57+BL69)/100)))/(1+(AE$54+S69)/100)-(AE$56+AW69)+AE$58 -> 41.64235721 | CC69: =(CB69-AE$58)*((1-AE$62)*(1+(AF$55+AI69)/100)+AE$62*((1+(AF$57+BM69)/100)))/(1+(AF$54+T69)/100)-(AF$56+AX69)+AF$58 -> 47.16425521 | CD69: =(CC69-AF$58)*((1-AF$62)*(1+(AG$55+AJ69)/100)+AF$62*((1+(AG$57+BN69)/100)))/(1+(AG$54+U69)/100)-(AG$56+AY69)+AG$58 -> 46.05308253 | CE69: =(CD69-AG$58)*((1-AG$62)*(1+(AH$55+AK69)/100)+AG$62*((1+(AH$57+BO69)/100)))/(1+(AH$54+V69)/100)-(AH$56+AZ69)+AH$58 -> 48.35415424 | CH69: =IF($B$42="On",MIN($B69-$D$15,$D$42),0) -> 3.778483985 | CI69: =IF($B$42="On",MIN($B1069-$D$15,$D$42),0) -> -0.03644009834 | CJ69: =IF($B$42="On",MIN($B2069-$D$15,$D$42),0) -> -1.250184254 | CK69: =IF($B$42="On",MIN($B3069-$D$15,$D$42),0) -> 4.748248167 | CL69: =IF($B$42="On",MIN($B4069-$D$15,$D$42),0) -> 1.292886986 | CM69: =IF($B$42="On",MIN($B5069-$D$15,$D$42),0) -> 4.549435199 | CN69: =IF($B$42="On",MIN($B6069-$D$15,$D$42),0) -> 8.037397424 | CO69: =IF($B$42="On",MIN($B7069-$D$15,$D$42),0) -> 8.369810788 | CP69: =IF($B$42="On",MIN($B8069-$D$15,$D$42),0) -> -5.916971246 | CQ69: =IF($B$42="On",MIN($B9069-$D$15,$D$42),0) -> -4.711148063 | CR69: =IF($B$42="On",MIN($B10069-$D$15,$D$42),0) -> 0.001699280113 | CS69: =IF($B$42="On",MIN($B11069-$D$15,$D$42),0) -> -7.737609555 | CT69: =IF($B$42="On",MIN($B12069-$D$15,$D$42),0) -> -1.461530506 | CU69: =IF($B$42="On",MIN($B13069-$D$15,$D$42),0) -> 1.535014936 | CV69: =IF($B$42="On",MIN($B14069-$D$15,$D$42),0) -> -1.344622698 | CW69: =IF($B$43="On",MAX($C69-$D$16,$D$43),0) -> -0.4740177457 | CX69: =IF($B$43="On",MAX($C1069-$D$16,$D$43),0) -> 1.813594558 | CY69: =IF($B$43="On",MAX($C2069-$D$16,$D$43),0) -> -2.854105112 | CZ69: =IF($B$43="On",MAX($C3069-$D$16,$D$43),0) -> -0.5784559392 | DA69: =IF($B$43="On",MAX($C4069-$D$16,$D$43),0) -> 0.8265071531 | DB69: =IF($B$43="On",MAX($C5069-$D$16,$D$43),0) -> 0.1228533602 | DC69: =IF($B$43="On",MAX($C6069-$D$16,$D$43),0) -> 1.230714873 | DD69: =IF($B$43="On",MAX($C7069-$D$16,$D$43),0) -> -0.1166673935 | DE69: =IF($B$43="On",MAX($C8069-$D$16,$D$43),0) -> 1.787153121 | DF69: =IF($B$43="On",MAX($C9069-$D$16,$D$43),0) -> 0.1414695557 | DG69: =IF($B$43="On",MAX($C10069-$D$16,$D$43),0) -> 2.498776729 | DH69: =IF($B$43="On",MAX($C11069-$D$16,$D$43),0) -> -1.976816991 | DI69: =IF($B$43="On",MAX($C12069-$D$16,$D$43),0) -> 1.301440306 | DJ69: =IF($B$43="On",MAX($C13069-$D$16,$D$43),0) -> 0.3295441002 | DK69: =IF($B$43="On",MAX($C14069-$D$16,$D$43),0) -> -1.798634271 | DL69: =IF($B$44="On",MIN($D69-$D$17,$D$44),0) -> -2.915473827 | DM69: =IF($B$44="On",MIN($D1069-$D$17,$D$44),0) -> 0 | DN69: =IF($B$44="On",MIN($D2069-$D$17,$D$44),0) -> -2.12284551 | DO69: =IF($B$44="On",MIN($D3069-$D$17,$D$44),0) -> -2.277809458 | DP69: =IF($B$44="On",MIN($D4069-$D$17,$D$44),0) -> 0 | DQ69: =IF($B$44="On",MIN($D5069-$D$17,$D$44),0) -> 0 | DR69: =IF($B$44="On",MIN($D6069-$D$17,$D$44),0) -> 0 | DS69: =IF($B$44="On",MIN($D7069-$D$17,$D$44),0) -> 0 | DT69: =IF($B$44="On",MIN($D8069-$D$17,$D$44),0) -> 0 | DU69: =IF($B$44="On",MIN($D9069-$D$17,$D$44),0) -> 0 | DV69: =IF($B$44="On",MIN($D10069-$D$17,$D$44),0) -> 0 | DW69: =IF($B$44="On",MIN($D11069-$D$17,$D$44),0) -> 0 | DX69: =IF($B$44="On",MIN($D12069-$D$17,$D$44),0) -> -4.054267205 | DY69: =IF($B$44="On",MIN($D13069-$D$17,$D$44),0) -> 0 | DZ69: =IF($B$44="On",MIN($D14069-$D$17,$D$44),0) -> -2.118800774 | EA69: =IF($B$45="On",MAX($E69-$D$18,$D$45),0) -> 0.684341238 | EB69: =IF($B$45="On",MAX($E1069-$D$18,$D$45),0) -> 2.203534606 | EC69: =IF($B$45="On",MAX($E2069-$D$18,$D$45),0) -> -3.248914174 | ED69: =IF($B$45="On",MAX($E3069-$D$18,$D$45),0) -> -0.312022645 | EE69: =IF($B$45="On",MAX($E4069-$D$18,$D$45),0) -> 0.5876018296 | EF69: =IF($B$45="On",MAX($E5069-$D$18,$D$45),0) -> 1.154082529 | EG69: =IF($B$45="On",MAX($E6069-$D$18,$D$45),0) -> 2.095869468 | EH69: =IF($B$45="On",MAX($E7069-$D$18,$D$45),0) -> 0.6825210962 | EI69: =IF($B$45="On",MAX($E8069-$D$18,$D$45),0) -> 0.9372436823 | EJ69: =IF($B$45="On",MAX($E9069-$D$18,$D$45),0) -> -0.5018823635 | EK69: =IF($B$45="On",MAX($E10069-$D$18,$D$45),0) -> 2.486598285 | EL69: =IF($B$45="On",MAX($E11069-$D$18,$D$45),0) -> -2.734038845 | EM69: =IF($B$45="On",MAX($E12069-$D$18,$D$45),0) -> 0.9408901099 | EN69: =IF($B$45="On",MAX($E13069-$D$18,$D$45),0) -> 1.20365665 | EO69: =IF($B$45="On",MAX($E14069-$D$18,$D$45),0) -> -2.011932899 | EQ69: =(S$53-S$58)*((1-S$62)*(1+(T$55+CW69)/100)+S$62*((1+(T$57+EA69)/100)))/(1+(T$54+CH69)/100)-(T$56+DL69)+T$58 -> 63.02796599 | ER69: =(EQ69-T$58)*((1+(U$55+CX69)/100)*(1-T$62)+T$62*((1+(U$57+EB69)/100)))/(1+(U$54+CI69)/100)-(U$56+DM69)+U$58 -> 65.24353754 | ES69: =(ER69-U$58)*((1+(V$55+CY69)/100)*(1-U$62)+U$62*((1+(V$57+EC69)/100)))/(1+(V$54+CJ69)/100)-(V$56+DN69)+V$58 -> 66.34403778 | ET69: =(ES69-V$58)*((1+(W$55+CZ69)/100)*(1-V$62)+V$62*((1+(W$57+ED69)/100)))/(1+(W$54+CK69)/100)-(W$56+DO69)+W$58 -> 65.87793974 | EU69: =(ET69-W$58)*((1+(X$55+DA69)/100)*(1-W$62)+W$62*((1+(X$57+EE69)/100)))/(1+(X$54+CL69)/100)-(X$56+DP69)+X$58 -> 66.03241297 | EV69: =(EU69-X$58)*((1+(Y$55+DB69)/100)*(1-X$62)+X$62*((1+(Y$57+EF69)/100)))/(1+(Y$54+CM69)/100)-(Y$56+DQ69)+Y$58 -> 64.10203946 | EW69: =(EV69-Y$58)*((1+(Z$55+DC69)/100)*(1-Y$62)+Y$62*((1+(Z$57+EG69)/100)))/(1+(Z$54+CN69)/100)-(Z$56+DR69)+Z$58 -> 61.09151562 | EX69: =(EW69-Z$58)*((1+(AA$55+DD69)/100)*(1-Z$62)+Z$62*((1+(AA$57+EH69)/100)))/(1+(AA$54+CO69)/100)-(AA$56+DS69)+AA$58 -> 57.15858888 | EY69: =(EX69-AA$58)*((1+(AB$55+DE69)/100)*(1-AA$62)+AA$62*((1+(AB$57+EI69)/100)))/(1+(AB$54+CP69)/100)-(AB$56+DT69)+AB$58 -> 61.6714666 | EZ69: =(EY69-AB$58)*((1+(AC$55+DF69)/100)*(1-AB$62)+AB$62*((1+(AC$57+EJ69)/100)))/(1+(AC$54+CQ69)/100)-(AC$56+DU69)+AC$58 -> 64.87466845 | FA69: =(EZ69-AC$58)*((1+(AD$55+DG69)/100)*(1-AC$62)+AC$62*((1+(AD$57+EK69)/100)))/(1+(AD$54+CR69)/100)-(AD$56+DV69)+AD$58 -> 66.68203157 | FB69: =(FA69-AD$58)*((1+(AE$55+DH69)/100)*(1-AD$62)+AD$62*((1+(AE$57+EL69)/100)))/(1+(AE$54+CS69)/100)-(AE$56+DW69)+AE$58 -> 70.66541172 | FC69: =(FB69-AE$58)*((1+(AF$55+DI69)/100)*(1-AE$62)+AE$62*((1+(AF$57+EM69)/100)))/(1+(AF$54+CT69)/100)-(AF$56+DX69)+AF$58 -> 76.78205304 | FD69: =(FC69-AF$58)*((1+(AG$55+DJ69)/100)*(1-AF$62)+AF$62*((1+(AG$57+EN69)/100)))/(1+(AG$54+CU69)/100)-(AG$56+DY69)+AG$58 -> 76.57838391 | FE69: =(FD69-AG$58)*((1+(AH$55+DK69)/100)*(1-AG$62)+AG$62*((1+(AH$57+EO69)/100)))/(1+(AH$54+CV69)/100)-(AH$56+DZ69)+AH$58 -> 78.56113643 | FI69: -0.4383125888 | FJ69: 22.78370834 | FK69: -5.911095878 | FL69: 16.09580024 | FO69: =IF($C$42="On",$FI69-$FI$15,0) -> -2.668086365 | FP69: =IF($C$42="On",$FI1069-$FI$15,0) -> -2.387701792 | FQ69: =IF($C$42="On",$FI2069-$FI$15,0) -> 2.221559911 | FR69: =IF($C$42="On",$FI3069-$FI$15,0) -> -3.985926531 | FS69: =IF($C$42="On",$FI4069-$FI$15,0) -> -7.424796682 | FT69: =IF($C$42="On",$FI5069-$FI$15,0) -> 1.258457132 | FU69: =IF($C$42="On",$FI6069-$FI$15,0) -> -4.542314566 | FV69: =IF($C$42="On",$FI7069-$FI$15,0) -> -5.723751486 | FW69: =IF($C$42="On",$FI8069-$FI$15,0) -> 1.673943222 | FX69: =IF($C$42="On",$FI9069-$FI$15,0) -> -0.04110814593 | FY69: =IF($C$42="On",$FI10069-$FI$15,0) -> 6.619387456 | FZ69: =IF($C$42="On",$FI11069-$FI$15,0) -> 4.274762794 | GA69: =IF($C$42="On",$FI12069-$FI$15,0) -> 5.253988248 | GB69: =IF($C$42="On",$FI13069-$FI$15,0) -> -2.321748878 | GC69: =IF($C$42="On",$FI14069-$FI$15,0) -> -0.7557523281 | GD69: =IF($C$42="On",$FJ69-$FI$16,0) -> 1.504505883 | GE69: =IF($C$42="On",$FJ1069-$FI$16,0) -> 0.4655073375 | GF69: =IF($C$42="On",$FJ2069-$FI$16,0) -> 1.136609961 | GG69: =IF($C$42="On",$FJ3069-$FI$16,0) -> -2.187879013 | GH69: =IF($C$42="On",$FJ4069-$FI$16,0) -> -0.367623819 | GI69: =IF($C$42="On",$FJ5069-$FI$16,0) -> -1.403487731 | GJ69: =IF($C$42="On",$FJ6069-$FI$16,0) -> -1.353618794 | GK69: =IF($C$42="On",$FJ7069-$FI$16,0) -> -0.7937378183 | GL69: =IF($C$42="On",$FJ8069-$FI$16,0) -> 2.188273883 | GM69: =IF($C$42="On",$FJ9069-$FI$16,0) -> 1.555754661 | GN69: =IF($C$42="On",$FJ10069-$FI$16,0) -> 0.698494365 | GO69: =IF($C$42="On",$FJ11069-$FI$16,0) -> -2.954768405 | GP69: =IF($C$42="On",$FJ12069-$FI$16,0) -> -0.04293495061 | GQ69: =IF($C$42="On",$FJ13069-$FI$16,0) -> -0.6963859559 | GR69: =IF($C$42="On",$FJ14069-$FI$16,0) -> 0.1525980861 | GS69: =IF($C$44="On",$FK69-$FI$17,0) -> -4.342792169 | GT69: =IF($C$44="On",$FK1069-$FI$17,0) -> 0.5463826493 | GU69: =IF($C$44="On",$FK2069-$FI$17,0) -> -4.016101759 | GV69: =IF($C$44="On",$FK3069-$FI$17,0) -> -0.5047873432 | GW69: =IF($C$44="On",$FK4069-$FI$17,0) -> 2.12565317 | GX69: =IF($C$44="On",$FK5069-$FI$17,0) -> 2.154471054 | GY69: =IF($C$44="On",$FK6069-$FI$17,0) -> 3.056376877 | GZ69: =IF($C$44="On",$FK7069-$FI$17,0) -> 0.420245608 | HA69: =IF($C$44="On",$FK8069-$FI$17,0) -> -2.11300291 | HB69: =IF($C$44="On",$FK9069-$FI$17,0) -> -2.696953621 | HC69: =IF($C$44="On",$FK10069-$FI$17,0) -> -2.169166347 | HD69: =IF($C$44="On",$FK11069-$FI$17,0) -> 2.226956663 | HE69: =IF($C$44="On",$FK12069-$FI$17,0) -> -0.3741256338 | HF69: =IF($C$44="On",$FK13069-$FI$17,0) -> -2.049188596 | HG69: =IF($C$44="On",$FK14069-$FI$17,0) -> -2.487198845 | HH69: =IF($C$45="On",$FL69-$FI$18,0) -> 1.452237326 | HI69: =IF($C$45="On",$FL1069-$FI$18,0) -> -0.3336752956 | HJ69: =IF($C$45="On",$FL2069-$FI$18,0) -> 2.657612052 | HK69: =IF($C$45="On",$FL3069-$FI$18,0) -> -2.449678772 | HL69: =IF($C$45="On",$FL4069-$FI$18,0) -> 0.2954495395 | HM69: =IF($C$45="On",$FL5069-$FI$18,0) -> -1.180492902 | HN69: =IF($C$45="On",$FL6069-$FI$18,0) -> -3.321335802 | HO69: =IF($C$45="On",$FL7069-$FI$18,0) -> -1.104454903 | HP69: =IF($C$45="On",$FL8069-$FI$18,0) -> 1.907828543 | HQ69: =IF($C$45="On",$FL9069-$FI$18,0) -> 1.962431055 | HR69: =IF($C$45="On",$FL10069-$FI$18,0) -> 1.262984929 | HS69: =IF($C$45="On",$FL11069-$FI$18,0) -> -2.728149607 | HT69: =IF($C$45="On",$FL12069-$FI$18,0) -> 1.058835536 | HU69: =IF($C$45="On",$FL13069-$FI$18,0) -> 0.9659841821 | HV69: =IF($C$45="On",$FL4069-$FI$18,0) -> 0.2954495395 | HX69: =(FZ$53-FZ$58)*((GA$64+GD69)/100*(1-FZ$62)+FZ$62*(GA$63+HH69)/100)/(1+(GA$54+FO69)/100)-(GA$56+GS69) -> 21.99380816 | HY69: =(BQ69-GA$58)*((GB$64+GE69)/100*(1-GA$62)+GA$62*(GB$63+HI69)/100)/(1+(GB$54+FP69)/100)-(GB$56+GT69) -> 10.52714553 | HZ69: =(BR69-GB$58)*((GC$64+GF69)/100*(1-GB$62)+GB$62*(GC$63+HJ69)/100)/(1+(GC$54+FQ69)/100)-(GC$56+GU69) -> 14.31787304 | IA69: =(BS69-GC$58)*((GD$64+GG69)/100*(1-GC$62)+GC$62*(GD$63+HK69)/100)/(1+(GD$54+FR69)/100)-(GD$56+GV69) -> 9.572633747 | IB69: =(BT69-GD$58)*((GE$64+GH69)/100*(1-GD$62)+GD$62*(GE$63+HL69)/100)/(1+(GE$54+FS69)/100)-(GE$56+GW69) -> 9.270850935 | IC69: =(BU69-GE$58)*((GF$64+GI69)/100*(1-GE$62)+GE$62*(GF$63+HM69)/100)/(1+(GF$54+FT69)/100)-(GF$56+GX69) -> 6.634064519 | ID69: =(BV69-GF$58)*((GG$64+GJ69)/100*(1-GF$62)+GF$62*(GG$63+HN69)/100)/(1+(GG$54+FU69)/100)-(GG$56+GY69) -> 4.577111869 | IE69: =(BW69-GG$58)*((GH$64+GK69)/100*(1-GG$62)+GG$62*(GH$63+HO69)/100)/(1+(GH$54+FV69)/100)-(GH$56+GZ69) -> 6.616257593 | IF69: =(BX69-GH$58)*((GI$64+GL69)/100*(1-GH$62)+GH$62*(GI$63+HP69)/100)/(1+(GI$54+FW69)/100)-(GI$56+HA69) -> 8.949450087 | IG69: =(BY69-GI$58)*((GJ$64+GM69)/100*(1-GI$62)+GI$62*(GJ$63+HQ69)/100)/(1+(GJ$54+FX69)/100)-(GJ$56+HB69) -> 9.496069631 | IH69: =(BZ69-GJ$58)*((GK$64+GN69)/100*(1-GJ$62)+GJ$62*(GK$63+HR69)/100)/(1+(GK$54+FY69)/100)-(GK$56+HC69) -> 8.538907965 | II69: =(CA69-GK$58)*((GL$64+GO69)/100*(1-GK$62)+GK$62*(GL$63+HS69)/100)/(1+(GL$54+FZ69)/100)-(GL$56+HD69) -> 2.965090554 | IJ69: =(CB69-GL$58)*((GM$64+GP69)/100*(1-GL$62)+GL$62*(GM$63+HT69)/100)/(1+(GM$54+GA69)/100)-(GM$56+HE69) -> 7.379846219 | IK69: =(CC69-GM$58)*((GN$64+GQ69)/100*(1-GM$62)+GM$62*(GN$63+HU69)/100)/(1+(GN$54+GB69)/100)-(GN$56+HF69) -> 10.95249564 | IL69: =(CD69-GN$58)*((GO$64+GR69)/100*(1-GN$62)+GN$62*(GO$63+HV69)/100)/(1+(GO$54+GC69)/100)-(GO$56+HG69) -> 11.44904619 | IO69: =IF($C$42="On",MIN($FI69-$FI$15,$E$42),0) -> -2.668086365 | IP69: =IF($C$42="On",MIN($FI1069-$FI$15,$E$42),0) -> -2.387701792 | IQ69: =IF($C$42="On",MIN($FI2069-$FI$15,$E$42),0) -> 2.221559911 | IR69: =IF($C$42="On",MIN($FI3069-$FI$15,$E$42),0) -> -3.985926531 | IS69: =IF($C$42="On",MIN($FI4069-$FI$15,$E$42),0) -> -7.424796682 | IT69: =IF($C$42="On",MIN($FI5069-$FI$15,$E$42),0) -> 1.258457132 | IU69: =IF($C$42="On",MIN($FI6069-$FI$15,$E$42),0) -> -4.542314566 | IV69: =IF($C$42="On",MIN($FI7069-$FI$15,$E$42),0) -> -5.723751486 | IW69: =IF($C$42="On",MIN($FI8069-$FI$15,$E$42),0) -> 1.673943222 | IX69: =IF($C$42="On",MIN($FI9069-$FI$15,$E$42),0) -> -0.04110814593 | IY69: =IF($C$42="On",MIN($FI10069-$FI$15,$E$42),0) -> 6.619387456 | IZ69: 6.619387456 | JA69: =IF($C$42="On",MIN($FI12069-$FI$15,$E$42),0) -> 5.253988248 | JB69: =IF($C$42="On",MIN($FI13069-$FI$15,$E$42),0) -> -2.321748878 | JC69: =IF($C$42="On",MIN($FI14069-$FI$15,$E$42),0) -> -0.7557523281 | JD69: =IF($C$43="On",MAX($FJ69-$FI$16,$E$43),0) -> 1.504505883 | JE69: =IF($C$43="On",MAX($FJ1069-$FI$16,$E$43),0) -> 0.4655073375 | JF69: =IF($C$43="On",MAX($FJ2069-$FI$16,$E$43),0) -> 1.136609961 | JG69: =IF($C$43="On",MAX($FJ3069-$FI$16,$E$43),0) -> -2.187879013 | JH69: =IF($C$43="On",MAX($FJ4069-$FI$16,$E$43),0) -> -0.367623819 | JI69: =IF($C$43="On",MAX($FJ5069-$FI$16,$E$43),0) -> -1.403487731 | JJ69: =IF($C$43="On",MAX($FJ6069-$FI$16,$E$43),0) -> -1.353618794 | JK69: =IF($C$43="On",MAX($FJ7069-$FI$16,$E$43),0) -> -0.7937378183 | JL69: =IF($C$43="On",MAX($FJ8069-$FI$16,$E$43),0) -> 2.188273883 | JM69: =IF($C$43="On",MAX($FJ9069-$FI$16,$E$43),0) -> 1.555754661 | JN69: =IF($C$43="On",MAX($FJ10069-$FI$16,$E$43),0) -> 0.698494365 | JO69: =IF($C$43="On",MAX($FJ11069-$FI$16,$E$43),0) -> -2.954768405 | JP69: =IF($C$43="On",MAX($FJ12069-$FI$16,$E$43),0) -> -0.04293495061 | JQ69: =IF($C$43="On",MAX($FJ13069-$FI$16,$E$43),0) -> -0.6963859559 | JR69: =IF($C$43="On",MAX($FJ14069-$FI$16,$E$43),0) -> 0.1525980861 | JS69: =IF($C$44="On",MIN($FK69-$FI$17,$E$44),0) -> -4.342792169 | JT69: =IF($C$44="On",MIN($FK1069-$FI$17,$E$44),0) -> 0 | JU69: =IF($C$44="On",MIN($FK2069-$FI$17,$E$44),0) -> -4.016101759 | JV69: =IF($C$44="On",MIN($FK3069-$FI$17,$E$44),0) -> -0.5047873432 | JW69: =IF($C$44="On",MIN($FK4069-$FI$17,$E$44),0) -> 0 | JX69: =IF($C$44="On",MIN($FK5069-$FI$17,$E$44),0) -> 0 | JY69: =IF($C$44="On",MIN($FK6069-$FI$17,$E$44),0) -> 0 | JZ69: =IF($C$44="On",MIN($FK7069-$FI$17,$E$44),0) -> 0 | KA69: =IF($C$44="On",MIN($FK8069-$FI$17,$E$44),0) -> -2.11300291 | KB69: =IF($C$44="On",MIN($FK9069-$FI$17,$E$44),0) -> -2.696953621 | KC69: =IF($C$44="On",MIN($FK10069-$FI$17,$E$44),0) -> -2.169166347 | KD69: =IF($C$44="On",MIN($FK11069-$FI$17,$E$44),0) -> 0 | KE69: =IF($C$44="On",MIN($FK12069-$FI$17,$E$44),0) -> -0.3741256338 | KF69: =IF($C$44="On",MIN($FK13069-$FI$17,$E$44),0) -> -2.049188596 | KG69: =IF($C$44="On",MIN($FK14069-$FI$17,$E$44),0) -> -2.487198845 | KH69: =IF($C$45="On",MAX($FL69-$FI$18,$E$45),0) -> 1.452237326 | KI69: =IF($C$45="On",MAX($FL1069-$FI$18,$E$45),0) -> -0.3336752956 | KJ69: =IF($C$45="On",MAX($FL2069-$FI$18,$E$45),0) -> 2.657612052 | KK69: =IF($C$45="On",MAX($FL3069-$FI$18,$E$45),0) -> -2.449678772 | KL69: =IF($C$45="On",MAX($FL4069-$FI$18,$E$45),0) -> 0.2954495395 | KM69: =IF($C$45="On",MAX($FL5069-$FI$18,$E$45),0) -> -1.180492902 | KN69: =IF($C$45="On",MAX($FL6069-$FI$18,$E$45),0) -> -3.321335802 | KO69: =IF($C$45="On",MAX($FL7069-$FI$18,$E$45),0) -> -1.104454903 | KP69: =IF($C$45="On",MAX($FL8069-$FI$18,$E$45),0) -> 1.907828543 | KQ69: =IF($C$45="On",MAX($FL9069-$FI$18,$E$45),0) -> 1.962431055 | KR69: =IF($C$45="On",MAX($FL10069-$FI$18,$E$45),0) -> 1.262984929 | KS69: =IF($C$45="On",MAX($FL11069-$FI$18,$E$45),0) -> -2.728149607 | KT69: =IF($C$45="On",MAX($FL12069-$FI$18,$E$45),0) -> 1.058835536 | KU69: =IF($C$45="On",MAX($FL13069-$FI$18,$E$45),0) -> 0.9659841821 | KV69: =IF($C$45="On",MAX($FL14069-$FI$18,$E$45),0) -> 1.282288371 | KX69: =(FZ$53-FZ$58)*((GA$64+JD69)/100*(1-FZ$62)+FZ$62*(GA$63+KH69)/100)/(1+(GA$54+IO69)/100)-(GA$56+JS69) -> 21.99380816 | KY69: =(EQ69-GA$58)*((GB$64+JE69)/100*(1-GA$62)+GA$62*(GB$63+KI69)/100)/(1+(GB$54+IP69)/100)-(GB$56+JT69) -> 11.07352818 | KZ69: =(ER69-GB$58)*((GC$64+JF69)/100*(1-GB$62)+GB$62*(GC$63+KJ69)/100)/(1+(GC$54+IQ69)/100)-(GC$56+JU69) -> 15.10880027 | LA69: =(ES69-GC$58)*((GD$64+JG69)/100*(1-GC$62)+GC$62*(GD$63+KK69)/100)/(1+(GD$54+IR69)/100)-(GD$56+JV69) -> 10.22989981 | LB69: =(ET69-GD$58)*((GE$64+JH69)/100*(1-GD$62)+GD$62*(GE$63+KL69)/100)/(1+(GE$54+IS69)/100)-(GE$56+JW69) -> 12.17338022 | LC69: =(EU69-GE$58)*((GF$64+JI69)/100*(1-GE$62)+GE$62*(GF$63+KM69)/100)/(1+(GF$54+IT69)/100)-(GF$56+JX69) -> 10.37554757 | LD69: =(EV69-GF$58)*((GG$64+JJ69)/100*(1-GF$62)+GF$62*(GG$63+KN69)/100)/(1+(GG$54+IU69)/100)-(GG$56+JY69) -> 9.582015925 | LE69: =(EW69-GG$58)*((GH$64+JK69)/100*(1-GG$62)+GG$62*(GH$63+KO69)/100)/(1+(GH$54+IV69)/100)-(GH$56+JZ69) -> 10.03894763 | LF69: =(EX69-GH$58)*((GI$64+JL69)/100*(1-GH$62)+GH$62*(GI$63+KP69)/100)/(1+(GI$54+IW69)/100)-(GI$56+KA69) -> 12.53740849 | LG69: =(EY69-GI$58)*((GJ$64+JM69)/100*(1-GI$62)+GI$62*(GJ$63+KQ69)/100)/(1+(GJ$54+IX69)/100)-(GJ$56+KB69) -> 14.14021155 | LH69: =(EZ69-GJ$58)*((GK$64+JN69)/100*(1-GJ$62)+GJ$62*(GK$63+KR69)/100)/(1+(GK$54+IY69)/100)-(GK$56+KC69) -> 12.86599028 | LI69: =(FA69-GK$58)*((GL$64+JO69)/100*(1-GK$62)+GK$62*(GL$63+KS69)/100)/(1+(GL$54+IZ69)/100)-(GL$56+KD69) -> 8.802552184 | LJ69: =(FB69-GL$58)*((GM$64+JP69)/100*(1-GL$62)+GL$62*(GM$63+KT69)/100)/(1+(GM$54+JA69)/100)-(GM$56+KE69) -> 12.62629854 | LK69: =(FC69-GM$58)*((GN$64+JQ69)/100*(1-GM$62)+GM$62*(GN$63+KU69)/100)/(1+(GN$54+JB69)/100)-(GN$56+KF69) -> 16.88790963 | LL69: =(FD69-GN$58)*((GO$64+JR69)/100*(1-GN$62)+GN$62*(GO$63+KV69)/100)/(1+(GO$54+JC69)/100)-(GO$56+KG69) -> 18.16434958
A70: =A69+1 -> 2 | B70: 7.220420596 | C70: 3.898121361 | D70: -1.890098233 | E70: -1.268323536 | H70: =IF($B$42="On",$B70-$D$15,0) -> 4.99064682 | I70: =IF($B$42="On",$B1070-$D$15,0) -> 7.065075979 | J70: =IF($B$42="On",$B2070-$D$15,0) -> 0.3964292882 | K70: 0.4085275197 | L70: -0.4573857417 | M70: 0.8587521645 | N70: 4.266903517 | O70: -3.149389433 | P70: 4.159233536 | Q70: -1.728017594 | R70: -0.4687345956 | S70: =IF($B$42="On",$B11070-$D$15,0) -> 2.979687479 | T70: =IF($B$42="On",$B12070-$D$15,0) -> -4.281588914 | U70: =IF($B$42="On",$B13070-$D$15,0) -> 4.579187527 | V70: =IF($B$42="On",$B14070-$D$15,0) -> 4.866075681 | W70: =IF($B$43="On",$C70-$D$16,0) -> -2.670709163 | X70: =IF($B$43="On",$C1070-$D$16,0) -> 1.96865239 | Y70: =IF($B$43="On",$C2070-$D$16,0) -> 0.8609325014 | Z70: 0.8223412659 | AA70: -0.1158483672 | AB70: -0.5917779196 | AC70: 0.2793270562 | AD70: -1.469971031 | AE70: -0.5889270432 | AF70: 1.816096203 | AG70: -2.255854358 | AH70: =IF($B$43="On",$C11070-$D$16,0) -> -1.387115964 | AI70: =IF($B$43="On",$C12070-$D$16,0) -> 0.5738488145 | AJ70: =IF($B$43="On",$C13070-$D$16,0) -> 1.815083046 | AK70: =IF($B$43="On",$C14070-$D$16,0) -> -0.7076749763 | AL70: =IF($B$44="On",$D70-$D$17,0) -> 0.2702498567 | AM70: =IF($B$44="On",$D1070-$D$17,0) -> 2.113080697 | AN70: =IF($B$44="On",$D2070-$D$17,0) -> 4.21269836 | AO70: -1.020398646 | AP70: -0.4359966044 | AQ70: -1.108785662 | AR70: 4.290300083 | AS70: -2.617120107 | AT70: -4.016264752 | AU70: 4.967986288 | AV70: -3.737722885 | AW70: =IF($B$44="On",$D11070-$D$17,0) -> -1.009557723 | AX70: =IF($B$44="On",$D12070-$D$17,0) -> 2.050782445 | AY70: =IF($B$44="On",$D13070-$D$17,0) -> 0.3982429435 | AZ70: =IF($B$44="On",$D14070-$D$17,0) -> 2.092377845 | BA70: =IF($B$45="On",$E70-$D$18,0) -> -2.50606314 | BB70: =IF($B$45="On",$E1070-$D$18,0) -> 3.315611005 | BC70: =IF($B$45="On",$E2070-$D$18,0) -> 1.473752671 | BD70: 0.9925804938 | BE70: 0.05614400209 | BF70: -0.6808722386 | BG70: 0.9934341421 | BH70: -2.081538114 | BI70: -0.1908575045 | BJ70: 1.854765038 | BK70: -2.438746713 | BL70: =IF($B$45="On",$E11070-$D$18,0) -> -1.002740842 | BM70: =IF($B$45="On",$E12070-$D$18,0) -> -0.1167859028 | BN70: =IF($B$45="On",$E13070-$D$18,0) -> 2.634346987 | BO70: =IF($B$45="On",$E14070-$D$18,0) -> 0.05714803203 | BQ70: =(S$53-S$58)*((1+(T$55+W70)/100)*(1-S$62)+S$62*((1+(T$57+BA70)/100)))/(1+(T$54+H70)/100)-(T$56+AL70)+T$58 -> 57.83174147 | BR70: 54.67979521 | BS70: 51.04006918 | BT70: 52.65629632 | BU70: 53.8483812 | BV70: 54.59996152 | BW70: 49.0937098 | BX70: 52.68590023 | BY70: 55.0011552 | BZ70: 52.40514965 | CA70: 55.56217485 | CB70: 54.90562444 | CC70: 55.64782698 | CD70: 54.50649038 | CE70: 50.31106315 | CH70: =IF($B$42="On",MIN($B70-$D$15,$D$42),0) -> 4.99064682 | CI70: =IF($B$42="On",MIN($B1070-$D$15,$D$42),0) -> 7.065075979 | CJ70: =IF($B$42="On",MIN($B2070-$D$15,$D$42),0) -> 0.3964292882 | CK70: =IF($B$42="On",MIN($B3070-$D$15,$D$42),0) -> 0.4085275197 | CL70: =IF($B$42="On",MIN($B4070-$D$15,$D$42),0) -> -0.4573857417 | CM70: =IF($B$42="On",MIN($B5070-$D$15,$D$42),0) -> 0.8587521645 | CN70: =IF($B$42="On",MIN($B6070-$D$15,$D$42),0) -> 4.266903517 | CO70: =IF($B$42="On",MIN($B7070-$D$15,$D$42),0) -> -3.149389433 | CP70: =IF($B$42="On",MIN($B8070-$D$15,$D$42),0) -> 4.159233536 | CQ70: =IF($B$42="On",MIN($B9070-$D$15,$D$42),0) -> -1.728017594 | CR70: =IF($B$42="On",MIN($B10070-$D$15,$D$42),0) -> -0.4687345956 | CS70: =IF($B$42="On",MIN($B11070-$D$15,$D$42),0) -> 2.979687479 | CT70: =IF($B$42="On",MIN($B12070-$D$15,$D$42),0) -> -4.281588914 | CU70: =IF($B$42="On",MIN($B13070-$D$15,$D$42),0) -> 4.579187527 | CV70: =IF($B$42="On",MIN($B14070-$D$15,$D$42),0) -> 4.866075681 | CW70: =IF($B$43="On",MAX($C70-$D$16,$D$43),0) -> -2.670709163 | CX70: =IF($B$43="On",MAX($C1070-$D$16,$D$43),0) -> 1.96865239 | CY70: =IF($B$43="On",MAX($C2070-$D$16,$D$43),0) -> 0.8609325014 | CZ70: =IF($B$43="On",MAX($C3070-$D$16,$D$43),0) -> 0.8223412659 | DA70: =IF($B$43="On",MAX($C4070-$D$16,$D$43),0) -> -0.1158483672 | DB70: =IF($B$43="On",MAX($C5070-$D$16,$D$43),0) -> -0.5917779196 | DC70: =IF($B$43="On",MAX($C6070-$D$16,$D$43),0) -> 0.2793270562 | DD70: =IF($B$43="On",MAX($C7070-$D$16,$D$43),0) -> -1.469971031 | DE70: =IF($B$43="On",MAX($C8070-$D$16,$D$43),0) -> -0.5889270432 | DF70: =IF($B$43="On",MAX($C9070-$D$16,$D$43),0) -> 1.816096203 | DG70: =IF($B$43="On",MAX($C10070-$D$16,$D$43),0) -> -2.255854358 | DH70: =IF($B$43="On",MAX($C11070-$D$16,$D$43),0) -> -1.387115964 | DI70: =IF($B$43="On",MAX($C12070-$D$16,$D$43),0) -> 0.5738488145 | DJ70: =IF($B$43="On",MAX($C13070-$D$16,$D$43),0) -> 1.815083046 | DK70: =IF($B$43="On",MAX($C14070-$D$16,$D$43),0) -> -0.7076749763 | DL70: =IF($B$44="On",MIN($D70-$D$17,$D$44),0) -> 0 | DM70: =IF($B$44="On",MIN($D1070-$D$17,$D$44),0) -> 0 | DN70: =IF($B$44="On",MIN($D2070-$D$17,$D$44),0) -> 0 | DO70: =IF($B$44="On",MIN($D3070-$D$17,$D$44),0) -> -1.020398646 | DP70: =IF($B$44="On",MIN($D4070-$D$17,$D$44),0) -> -0.4359966044 | DQ70: =IF($B$44="On",MIN($D5070-$D$17,$D$44),0) -> -1.108785662 | DR70: =IF($B$44="On",MIN($D6070-$D$17,$D$44),0) -> 0 | DS70: =IF($B$44="On",MIN($D7070-$D$17,$D$44),0) -> -2.617120107 | DT70: =IF($B$44="On",MIN($D8070-$D$17,$D$44),0) -> -4.016264752 | DU70: =IF($B$44="On",MIN($D9070-$D$17,$D$44),0) -> 0 | DV70: =IF($B$44="On",MIN($D10070-$D$17,$D$44),0) -> -3.737722885 | DW70: =IF($B$44="On",MIN($D11070-$D$17,$D$44),0) -> -1.009557723 | DX70: =IF($B$44="On",MIN($D12070-$D$17,$D$44),0) -> 0 | DY70: =IF($B$44="On",MIN($D13070-$D$17,$D$44),0) -> 0 | DZ70: =IF($B$44="On",MIN($D14070-$D$17,$D$44),0) -> 0 | EA70: =IF($B$45="On",MAX($E70-$D$18,$D$45),0) -> -2.50606314 | EB70: =IF($B$45="On",MAX($E1070-$D$18,$D$45),0) -> 3.315611005 | EC70: =IF($B$45="On",MAX($E2070-$D$18,$D$45),0) -> 1.473752671 | ED70: =IF($B$45="On",MAX($E3070-$D$18,$D$45),0) -> 0.9925804938 | EE70: =IF($B$45="On",MAX($E4070-$D$18,$D$45),0) -> 0.05614400209 | EF70: =IF($B$45="On",MAX($E5070-$D$18,$D$45),0) -> -0.6808722386 | EG70: =IF($B$45="On",MAX($E6070-$D$18,$D$45),0) -> 0.9934341421 | EH70: =IF($B$45="On",MAX($E7070-$D$18,$D$45),0) -> -2.081538114 | EI70: =IF($B$45="On",MAX($E8070-$D$18,$D$45),0) -> -0.1908575045 | EJ70: =IF($B$45="On",MAX($E9070-$D$18,$D$45),0) -> 1.854765038 | EK70: =IF($B$45="On",MAX($E10070-$D$18,$D$45),0) -> -2.438746713 | EL70: =IF($B$45="On",MAX($E11070-$D$18,$D$45),0) -> -1.002740842 | EM70: =IF($B$45="On",MAX($E12070-$D$18,$D$45),0) -> -0.1167859028 | EN70: =IF($B$45="On",MAX($E13070-$D$18,$D$45),0) -> 2.634346987 | EO70: =IF($B$45="On",MAX($E14070-$D$18,$D$45),0) -> 0.05714803203 | EQ70: 58.10199133 | ER70: 57.04987292 | ES70: 57.63942877 | ET70: 59.27938709 | EU70: 60.49157564 | EV70: 61.12212128 | EW70: 59.67329948 | EX70: 63.34282737 | EY70: 65.17211601 | EZ70: 67.87145292 | FA70: 70.65886721 | FB70: 69.35927772 | FC70: 72.73331631 | FD70: 71.55250324 | FE70: 68.56579328 | FI70: 9.095369489 | FJ70: 19.35019275 | FK70: 1.358713673 | FL70: 13.71926357 | FO70: 6.865595712 | FP70: -4.809063501 | FQ70: -0.1202420926 | FR70: -3.369711536 | FS70: 7.970610924 | FT70: 2.328494543 | FU70: 4.243470862 | FV70: 8.019109213 | FW70: -6.604439632 | FX70: 8.623789625 | FY70: -0.644928508 | FZ70: -1.759720284 | GA70: 4.152494346 | GB70: -3.143794318 | GC70: 0.1870916438 | GD70: -1.929009704 | GE70: -0.2869784974 | GF70: -2.86720205 | GG70: 1.407507449 | GH70: 0.8736478428 | GI70: -1.604353427 | GJ70: 1.755070803 | GK70: -0.2735095399 | GL70: 0.1517755387 | GM70: -1.038060591 | GN70: -0.5268495134 | GO70: 0.3293182515 | GP70: -1.27837668 | GQ70: 0.03684405048 | GR70: 1.17824312 | GS70: 2.927017382 | GT70: 0.3679240646 | GU70: 0.9685448453 | GV70: -3.274412113 | GW70: 2.788803273 | GX70: 1.263559237 | GY70: -2.780444858 | GZ70: 0.3894351032 | HA70: -2.005892696 | HB70: 1.764711445 | HC70: -1.473447586 | HD70: -2.901765059 | HE70: 1.498481711 | HF70: -1.221586098 | HG70: 1.004289972 | HH70: -0.9242993433 | HI70: -0.05637831941 | HJ70: -3.882335148 | HK70: 1.756972235 | HL70: 0.8826118867 | HM70: -0.5045382049 | HN70: 0.7741199847 | HO70: -0.7542781403 | HP70: 0.6308837898 | HQ70: 1.315814667 | HR70: -1.25056787 | HS70: 1.622139753 | HT70: -2.453636501 | HU70: 1.029455039 | HV70: 0.8826118867 | HX70: 12.15789738 | HY70: 10.01738417 | HZ70: 5.550786928 | IA70: 12.53291339 | IB70: 5.8851678 | IC70: 7.15886085 | ID70: 11.99942769 | IE70: 6.746293499 | IF70: 11.56467424 | IG70: 6.874998362 | IH70: 9.648733205 | II70: 12.83919198 | IJ70: 6.749361786 | IK70: 12.10311764 | IL70: 10.00173012 | IO70: 6.865595712 | IP70: -4.809063501 | IQ70: -0.1202420926 | IR70: -3.369711536 | IS70: 7.970610924 | IT70: 2.328494543 | IU70: 4.243470862 | IV70: 8.019109213 | IW70: -6.604439632 | IX70: 8.623789625 | IY70: -0.644928508 | IZ70: -0.644928508 | JA70: 4.152494346 | JB70: -3.143794318 | JC70: 0.1870916438 | JD70: -1.929009704 | JE70: -0.2869784974 | JF70: -2.86720205 | JG70: 1.407507449 | JH70: 0.8736478428 | JI70: -1.604353427 | JJ70: 1.755070803 | JK70: -0.2735095399 | JL70: 0.1517755387 | JM70: -1.038060591 | JN70: -0.5268495134 | JO70: 0.3293182515 | JP70: -1.27837668 | JQ70: 0.03684405048 | JR70: 1.17824312 | JS70: 0 | JT70: 0 | JU70: 0 | JV70: -3.274412113 | JW70: 0 | JX70: 0 | JY70: -2.780444858 | JZ70: 0 | KA70: -2.005892696 | KB70: 0 | KC70: -1.473447586 | KD70: -2.901765059 | KE70: 0 | KF70: -1.221586098 | KG70: 0 | KH70: -0.9242993433 | KI70: -0.05637831941 | KJ70: -3.882335148 | KK70: 1.756972235 | KL70: 0.8826118867 | KM70: -0.5045382049 | KN70: 0.7741199847 | KO70: -0.7542781403 | KP70: 0.6308837898 | KQ70: 1.315814667 | KR70: -1.25056787 | KS70: 1.622139753 | KT70: -2.453636501 | KU70: 1.029455039 | KV70: 0.8838620119 | KX70: 15.08491476 | KY70: 10.43069709 | KZ70: 6.833009029 | LA70: 13.80845519 | LB70: 9.823421704 | LC70: 9.528638706 | LD70: 13.16185636 | LE70: 8.777154368 | LF70: 13.60924105 | LG70: 10.33012649 | LH70: 12.20988846 | LI70: 15.54452295 | LJ70: 10.54818898 | LK70: 15.61472782 | LL70: 14.62469258
A71: =A70+1 -> 3 | B71: 1.748169635 | C71: 8.113981864 | D71: -4.410341499 | E71: 2.606098182 | H71: =IF($B$42="On",$B71-$D$15,0) -> -0.4816041416 | I71: =IF($B$42="On",$B1071-$D$15,0) -> -4.375432938 | J71: =IF($B$42="On",$B2071-$D$15,0) -> -11.74388858 | K71: -2.443947348 | L71: -0.1733277606 | M71: -3.763770424 | N71: 2.294147058 | O71: 6.371239075 | P71: -5.625943435 | Q71: 3.59901396 | R71: -6.866681074 | S71: -2.586221403 | T71: -6.149053783 | U71: -2.291696602 | V71: -0.6628760422 | W71: 1.545151339 | X71: -0.9681660401 | Y71: -0.4407456355 | Z71: 2.440305973 | AA71: -0.1483103167 | AB71: -0.2222171816 | AC71: -0.06624791581 | AD71: 3.600381917 | AE71: -3.563146516 | AF71: -0.7286692889 | AG71: 0.1719648424 | AH71: 0.6438764524 | AI71: -0.4401124063 | AJ71: 0.762561792 | AK71: 0.5882906342 | AL71: -2.249993409 | AM71: 0.7799465468 | AN71: -3.490380992 | AO71: -2.361244028 | AP71: -2.009679878 | AQ71: 0.8789818404 | AR71: 2.506819929 | AS71: 4.669103435 | AT71: -7.45865928 | AU71: 1.110447811 | AV71: -0.6946756325 | AW71: -2.164989355 | AX71: -0.07554106383 | AY71: -2.216752628 | AZ71: 2.894100875 | BA71: 1.368358577 | BB71: -1.362928161 | BC71: -2.1290041 | BD71: 2.985751383 | BE71: -0.4001046819 | BF71: -1.110018554 | BG71: 0.3995491461 | BH71: 5.33978864 | BI71: -4.3731301 | BJ71: 0.05279041373 | BK71: -0.4095820299 | BL71: -0.08362765733 | BM71: -1.571456071 | BN71: 0.4020610002 | BO71: 0.3574341538 | BQ71: 65.18328135 | BR71: 67.33217678 | BS71: 78.22833737 | BT71: 84.83936061 | BU71: 87.25270142 | BV71: 89.22439789 | BW71: 85.43545834 | BX71: 79.64077568 | BY71: 88.68730099 | BZ71: 84.84648825 | CA71: 91.43803691 | CB71: 96.3867831 | CC71: 101.5812165 | CD71: 106.7796714 | CE71: 105.1725287 | CH71: -0.4816041416 | CI71: -4.375432938 | CJ71: -11.74388858 | CK71: -2.443947348 | CL71: -0.1733277606 | CM71: -3.763770424 | CN71: 2.294147058 | CO71: 6.371239075 | CP71: -5.625943435 | CQ71: 3.59901396 | CR71: -6.866681074 | CS71: -2.586221403 | CT71: -6.149053783 | CU71: -2.291696602 | CV71: -0.6628760422 | CW71: 1.545151339 | CX71: -0.9681660401 | CY71: -0.4407456355 | CZ71: 2.440305973 | DA71: -0.1483103167 | DB71: -0.2222171816 | DC71: -0.06624791581 | DD71: 3.600381917 | DE71: -3.563146516 | DF71: -0.7286692889 | DG71: 0.1719648424 | DH71: 0.6438764524 | DI71: -0.4401124063 | DJ71: 0.762561792 | DK71: 0.5882906342 | DL71: -2.249993409 | DM71: 0 | DN71: -3.490380992 | DO71: -2.361244028 | DP71: -2.009679878 | DQ71: 0 | DR71: 0 | DS71: 0 | DT71: -7.45865928 | DU71: 0 | DV71: -0.6946756325 | DW71: -2.164989355 | DX71: -0.07554106383 | DY71: -2.216752628 | DZ71: 0 | EA71: 1.368358577 | EB71: -1.362928161 | EC71: -2.1290041 | ED71: 2.985751383 | EE71: -0.4001046819 | EF71: -1.110018554 | EG71: 0.3995491461 | EH71: 5.33978864 | EI71: -4.3731301 | EJ71: 0.05279041373 | EK71: -0.4095820299 | EL71: -0.08362765733 | EM71: -1.571456071 | EN71: 0.4020610002 | EO71: 0.3574341538 | EQ71: 65.18328135 | ER71: 68.11212333 | ES71: 79.09425961 | ET71: 85.74866526 | EU71: 88.15985269 | EV71: 91.03434562 | EW71: 89.7117259 | EX71: 88.49689433 | EY71: 97.65126996 | EZ71: 94.57372607 | FA71: 101.7788234 | FB71: 106.9740539 | FC71: 112.6675227 | FD71: 118.1246463 | FE71: 119.480491 | FI71: 14.97536132 | FJ71: 24.39166041 | FK71: -0.7735833793 | FL71: 19.18876253 | FO71: 12.74558755 | FP71: 6.102143331 | FQ71: -3.395361432 | FR71: 0.8318732887 | FS71: -1.002096539 | FT71: 6.988200698 | FU71: -4.910723248 | FV71: -1.377126273 | FW71: 2.062011792 | FX71: -2.368103013 | FY71: -0.8391807412 | FZ71: 5.328342426 | GA71: 5.107658216 | GB71: -1.816355616 | GC71: -1.059466412 | GD71: 3.112457954 | GE71: 2.070301593 | GF71: -1.883942493 | GG71: 0.6865121472 | GH71: -0.1933030661 | GI71: -0.5275671993 | GJ71: 3.514029317 | GK71: 0.1740755927 | GL71: -0.2818330161 | GM71: 1.693059149 | GN71: -1.099118097 | GO71: 0.07473157099 | GP71: -0.6267973717 | GQ71: -1.436693519 | GR71: -0.3523841916 | GS71: 0.7947203289 | GT71: -0.6793084164 | GU71: -1.155795917 | GV71: 0.006917194658 | GW71: -1.315181346 | GX71: -1.179845507 | GY71: -5.571554612 | GZ71: -1.177479013 | HA71: -0.02096518589 | HB71: -1.164518753 | HC71: 2.046154139 | HD71: 0.5140541245 | HE71: -0.5756332132 | HF71: 1.355373482 | HG71: -4.794809419 | HH71: 4.545199619 | HI71: 1.007585147 | HJ71: -2.999481697 | HK71: -0.09140508664 | HL71: 0.747587669 | HM71: 0.4288794497 | HN71: 3.372880457 | HO71: 0.9270148367 | HP71: -1.379598979 | HQ71: 1.184059984 | HR71: -0.309872089 | HS71: 0.3562126228 | HT71: 1.173683171 | HU71: -0.9646916376 | HV71: 0.747587669 | HX71: 16.25352612 | HY71: 12.12971062 | HZ71: 10.23343552 | IA71: 12.88714052 | IB71: 16.4041772 | IC71: 15.33410013 | ID71: 24.39737267 | IE71: 16.12128186 | IF71: 12.53788393 | IG71: 17.91519381 | IH71: 11.79894718 | II71: 14.40065673 | IJ71: 17.33872015 | IK71: 16.96199989 | IL71: 26.40817658 | IO71: 12.74558755 | IP71: 6.102143331 | IQ71: -3.395361432 | IR71: 0.8318732887 | IS71: -1.002096539 | IT71: 6.988200698 | IU71: -4.910723248 | IV71: -1.377126273 | IW71: 2.062011792 | IX71: -2.368103013 | IY71: -0.8391807412 | IZ71: -0.8391807412 | JA71: 5.107658216 | JB71: -1.816355616 | JC71: -1.059466412 | JD71: 3.112457954 | JE71: 2.070301593 | JF71: -1.883942493 | JG71: 0.6865121472 | JH71: -0.1933030661 | JI71: -0.5275671993 | JJ71: 3.514029317 | JK71: 0.1740755927 | JL71: -0.2818330161 | JM71: 1.693059149 | JN71: -1.099118097 | JO71: 0.07473157099 | JP71: -0.6267973717 | JQ71: -1.436693519 | JR71: -0.3523841916 | JS71: 0 | JT71: -0.6793084164 | JU71: -1.155795917 | JV71: 0 | JW71: -1.315181346 | JX71: -1.179845507 | JY71: -5.571554612 | JZ71: -1.177479013 | KA71: -0.02096518589 | KB71: -1.164518753 | KC71: 0 | KD71: 0 | KE71: -0.5756332132 | KF71: 0 | KG71: -4.794809419 | KH71: 4.545199619 | KI71: 1.007585147 | KJ71: -2.999481697 | KK71: -0.09140508664 | KL71: 0.747587669 | KM71: 0.4288794497 | KN71: 3.372880457 | KO71: 0.9270148367 | KP71: -1.379598979 | KQ71: 1.184059984 | KR71: -0.309872089 | KS71: 0.3562126228 | KT71: 1.173683171 | KU71: -0.9646916376 | KV71: -0.2777231691 | KX71: 17.04824645 | KY71: 12.12971062 | KZ71: 10.34721184 | LA71: 13.04308739 | LB71: 16.57104467 | LC71: 15.48694854 | LD71: 24.79079007 | LE71: 16.89524199 | LF71: 13.98629522 | LG71: 19.66315686 | LH71: 15.49061249 | LI71: 17.67244292 | LJ71: 19.23709711 | LK71: 20.37397973 | LL71: 28.10507036
A72: 4 | B72: -0.7862312923 | C72: 6.632824346 | D72: -4.254821176 | E72: 0.9073595388 | H72: =IF($B$42="On",$B72-$D$15,0) -> -3.016005068 | I72: =IF($B$42="On",$B1072-$D$15,0) -> 3.009142937 | J72: =IF($B$42="On",$B2072-$D$15,0) -> 5.914954082 | K72: 2.404636627 | L72: -0.5470372552 | M72: 1.361194475 | N72: -2.362510753 | O72: 0.1028387458 | P72: 3.546580598 | Q72: -0.1168750949 | R72: -7.286111307 | S72: -0.06605151826 | T72: 4.060058051 | U72: 1.667236114 | V72: 5.105184091 | W72: 0.06399382118 | X72: -1.361256426 | Y72: 3.718873875 | Z72: 2.076075208 | AA72: -2.385431154 | AB72: 0.3738846353 | AC72: -2.07157932 | AD72: -1.960243099 | AE72: 3.370646409 | AF72: -2.729544036 | AG72: -0.8659780881 | AH72: 0.2132912549 | AI72: 1.068375763 | AJ72: 2.006103095 | AK72: -0.01355460786 | AL72: -2.094473086 | AM72: -0.9351633393 | AN72: 7.241015903 | AO72: 2.517069049 | AP72: 1.33766028 | AQ72: 2.276302986 | AR72: -1.482397485 | AS72: 3.172390304 | AT72: 4.350932049 | AU72: -5.403269042 | AV72: 0.9319045093 | AW72: -6.549528539 | AX72: -0.3381515768 | AY72: -2.309782222 | AZ72: 0.1140591127 | BA72: -0.330380066 | BB72: -1.665624775 | BC72: 4.83673272 | BD72: 2.086601329 | BE72: -2.989922769 | BF72: 0.2380461876 | BG72: -2.781859909 | BH72: -2.094179923 | BI72: 3.689974192 | BJ72: -2.664018922 | BK72: -1.367455789 | BL72: 0.5007775302 | BM72: 2.472369975 | BN72: 2.603974339 | BO72: 1.206032616 | BQ72: 65.53694537 | BR72: 64.74664931 | BS72: 56.78388338 | BT72: 54.44446669 | BU72: 52.52405611 | BV72: 50.13108675 | BW72: 52.10519442 | BX72: 48.2350124 | BY72: 44.3465076 | BZ72: 49.21734714 | CA72: 51.66587243 | CB72: 58.87410676 | CC72: 58.44532352 | CD72: 61.50825657 | CE72: 59.32771805 | CH72: -3.016005068 | CI72: 3.009142937 | CJ72: 5.914954082 | CK72: 2.404636627 | CL72: -0.5470372552 | CM72: 1.361194475 | CN72: -2.362510753 | CO72: 0.1028387458 | CP72: 3.546580598 | CQ72: -0.1168750949 | CR72: -7.286111307 | CS72: -0.06605151826 | CT72: 4.060058051 | CU72: 1.667236114 | CV72: 5.105184091 | CW72: 0.06399382118 | CX72: -1.361256426 | CY72: 3.718873875 | CZ72: 2.076075208 | DA72: -2.385431154 | DB72: 0.3738846353 | DC72: -2.07157932 | DD72: -1.960243099 | DE72: 3.370646409 | DF72: -2.729544036 | DG72: -0.8659780881 | DH72: 0.2132912549 | DI72: 1.068375763 | DJ72: 2.006103095 | DK72: -0.01355460786 | DL72: -2.094473086 | DM72: -0.9351633393 | DN72: 0 | DO72: 0 | DP72: 0 | DQ72: 0 | DR72: -1.482397485 | DS72: 0 | DT72: 0 | DU72: -5.403269042 | DV72: 0 | DW72: -6.549528539 | DX72: -0.3381515768 | DY72: -2.309782222 | DZ72: 0 | EA72: -0.330380066 | EB72: -1.665624775 | EC72: 4.83673272 | ED72: 2.086601329 | EE72: -2.989922769 | EF72: 0.2380461876 | EG72: -2.781859909 | EH72: -2.094179923 | EI72: 3.689974192 | EJ72: -2.664018922 | EK72: -1.367455789 | EL72: 0.5007775302 | EM72: 2.472369975 | EN72: 2.603974339 | EO72: 1.206032616 | EQ72: 65.53694537 | ER72: 64.74664931 | ES72: 64.02489928 | ET72: 64.17084386 | EU72: 63.37047916 | EV72: 63.10214186 | EW72: 65.02547946 | EX72: 63.98967267 | EY72: 64.39379019 | EZ72: 68.71278711 | FA72: 73.21304915 | FB72: 80.42983002 | FC72: 79.47141327 | FD72: 82.57409027 | FE72: 79.55570453 | FI72: -1.654945313 | FJ72: 20.80854367 | FK72: -2.717004633 | FL72: 14.45871971 | FO72: -3.884719089 | FP72: -2.457956714 | FQ72: -4.504766682 | FR72: -4.768711905 | FS72: -0.5029097875 | FT72: -4.174587364 | FU72: 1.728115979 | FV72: -0.8659698148 | FW72: 0.2035235864 | FX72: -5.496679598 | FY72: -0.8121656724 | FZ72: 7.009974213 | GA72: -2.274143048 | GB72: 1.069564678 | GC72: -5.214590045 | GD72: -0.4706587822 | GE72: -1.011484554 | GF72: 1.716923322 | GG72: 1.129198974 | GH72: -0.4997447356 | GI72: 1.46848322 | GJ72: 0.1961940292 | GK72: -0.648178519 | GL72: -1.928924525 | GM72: -0.6013049867 | GN72: 0.5071883731 | GO72: -3.269000205 | GP72: 0.8184152884 | GQ72: -1.536732734 | GR72: -0.2687935053 | GS72: -1.148700924 | GT72: 0.884257276 | GU72: -1.092914129 | GV72: 0.5451615633 | GW72: -0.00350878806 | GX72: -1.584187261 | GY72: -0.2305061109 | GZ72: -0.004349924714 | HA72: -0.08001909207 | HB72: 2.488989601 | HC72: -5.876844681 | HD72: 4.787533469 | HE72: 1.617672743 | HF72: 0.8961021364 | HG72: -1.919524983 | HH72: -0.1848432032 | HI72: -0.8396257184 | HJ72: 0.7578077833 | HK72: 0.9131790981 | HL72: -1.064254284 | HM72: 1.757510015 | HN72: -0.4075381704 | HO72: -0.6365687641 | HP72: -2.082493404 | HQ72: -1.695346679 | HR72: -0.7273916767 | HS72: -1.872406337 | HT72: 0.6537159522 | HU72: -3.085459596 | HV72: -1.064254284 | HX72: 17.98386487 | HY72: 10.07275437 | HZ72: 12.24339248 | IA72: 9.629387709 | IB72: 8.869395308 | IC72: 11.67837818 | ID72: 8.240379714 | IE72: 8.246601945 | IF72: 7.099139561 | IG72: 4.73474074 | IH72: 13.87437396 | II72: 2.062911721 | IJ72: 9.351315992 | IK72: 8.448995143 | IL72: 14.05652742 | IO72: -3.884719089 | IP72: -2.457956714 | IQ72: -4.504766682 | IR72: -4.768711905 | IS72: -0.5029097875 | IT72: -4.174587364 | IU72: 1.728115979 | IV72: -0.8659698148 | IW72: 0.2035235864 | IX72: -5.496679598 | IY72: -0.8121656724 | IZ72: -0.8121656724 | JA72: -2.274143048 | JB72: 1.069564678 | JC72: -5.214590045 | JD72: -0.4706587822 | JE72: -1.011484554 | JF72: 1.716923322 | JG72: 1.129198974 | JH72: -0.4997447356 | JI72: 1.46848322 | JJ72: 0.1961940292 | JK72: -0.648178519 | JL72: -1.928924525 | JM72: -0.6013049867 | JN72: 0.5071883731 | JO72: -3.269000205 | JP72: 0.8184152884 | JQ72: -1.536732734 | JR72: -0.2687935053 | JS72: -1.148700924 | JT72: 0 | JU72: -1.092914129 | JV72: 0 | JW72: -0.00350878806 | JX72: -1.584187261 | JY72: -0.2305061109 | JZ72: -0.004349924714 | KA72: -0.08001909207 | KB72: 0 | KC72: -5.876844681 | KD72: 0 | KE72: 0 | KF72: 0 | KG72: -1.919524983 | KH72: -0.1848432032 | KI72: -0.8396257184 | KJ72: 0.7578077833 | KK72: 0.9131790981 | KL72: -1.064254284 | KM72: 1.757510015 | KN72: -0.4075381704 | KO72: -0.6365687641 | KP72: -2.082493404 | KQ72: -1.695346679 | KR72: -0.7273916767 | KS72: -1.872406337 | KT72: 0.6537159522 | KU72: -3.085459596 | KV72: -0.2569910224 | KX72: 17.98386487 | KY72: 10.95701165 | KZ72: 12.24339248 | LA72: 11.54856605 | LB72: 10.53565553 | LC72: 13.88624784 | LD72: 10.44227008 | LE72: 10.41430806 | LF72: 9.554110106 | LG72: 10.72141722 | LH72: 17.24565129 | LI72: 10.67555575 | LJ72: 15.18401986 | LK72: 12.88770658 | LL72: 18.77911862
A73: 5 | B73: -2.880593847 | C73: 3.658659937 | D73: -4.382168559 | E73: -2.504875215 | H73: -5.110367623 | I73: -3.918039335 | J73: -6.685067282 | K73: -3.204296856 | L73: 2.979033956 | M73: -0.1863938462 | N73: -0.227508469 | O73: 4.445753425 | P73: 5.394291008 | Q73: -0.597266491 | R73: 4.42297818 | S73: 4.424811517 | T73: -3.01985328 | U73: 4.105790239 | V73: -4.61169679 | W73: -2.910170587 | X73: -2.575634051 | Y73: 0.3347177265 | Z73: -0.3322040366 | AA73: 1.09132401 | AB73: -0.6450719417 | AC73: -1.840022728 | AD73: 1.827266456 | AE73: -0.09896448983 | AF73: -4.084365888 | AG73: 2.265555727 | AH73: 0.6377040335 | AI73: -1.714394653 | AJ73: -1.444816482 | AK73: -3.132397516 | AL73: -2.221820469 | AM73: -6.433074541 | AN73: 2.955023152 | AO73: -2.137002576 | AP73: -0.02591298482 | AQ73: -0.9669864255 | AR73: -4.933645671 | AS73: 4.163869989 | AT73: 6.161848006 | AU73: -3.907769178 | AV73: 6.617994695 | AW73: 7.023824145 | AX73: 2.19316623 | AY73: -1.011904947 | AZ73: -3.309150249 | BA73: -3.74261482 | BB73: -3.546511446 | BC73: -0.8890541752 | BD73: -0.955366909 | BE73: 2.179940721 | BF73: -1.061350507 | BG73: -2.641084598 | BH73: 1.828234079 | BI73: 1.124438017 | BJ73: -4.84603484 | BK73: 2.771709339 | BL73: 1.257145506 | BM73: -1.638813767 | BN73: -0.8506774766 | BO73: -3.635576448 | BQ73: 65.03573939 | BR73: 72.86105864 | BS73: 74.59081866 | BT73: 78.85321394 | BU73: 78.47368259 | BV73: 79.21856512 | BW73: 83.06827098 | BX73: 77.12478919 | BY73: 67.99702642 | BZ73: 69.84447309 | CA73: 62.33010197 | CB73: 53.78784436 | CC73: 52.70016539 | CD73: 51.65486951 | CE73: 55.96585674 | CH73: -5.110367623 | CI73: -3.918039335 | CJ73: -6.685067282 | CK73: -3.204296856 | CL73: 2.979033956 | CM73: -0.1863938462 | CN73: -0.227508469 | CO73: 4.445753425 | CP73: 5.394291008 | CQ73: -0.597266491 | CR73: 4.42297818 | CS73: 4.424811517 | CT73: -3.01985328 | CU73: 4.105790239 | CV73: -4.61169679 | CW73: -2.910170587 | CX73: -2.575634051 | CY73: 0.3347177265 | CZ73: -0.3322040366 | DA73: 1.09132401 | DB73: -0.6450719417 | DC73: -1.840022728 | DD73: 1.827266456 | DE73: -0.09896448983 | DF73: -4.084365888 | DG73: 2.265555727 | DH73: 0.6377040335 | DI73: -1.714394653 | DJ73: -1.444816482 | DK73: -3.132397516 | DL73: -2.221820469 | DM73: -6.433074541 | DN73: 0 | DO73: -2.137002576 | DP73: -0.02591298482 | DQ73: -0.9669864255 | DR73: -4.933645671 | DS73: 0 | DT73: 0 | DU73: -3.907769178 | DV73: 0 | DW73: 0 | DX73: 0 | DY73: -1.011904947 | DZ73: -3.309150249 | EA73: -3.74261482 | EB73: -3.546511446 | EC73: -0.8890541752 | ED73: -0.955366909 | EE73: 2.179940721 | EF73: -1.061350507 | EG73: -2.641084598 | EH73: 1.828234079 | EI73: 1.124438017 | EJ73: -4.84603484 | EK73: 2.771709339 | EL73: 1.257145506 | EM73: -1.638813767 | EN73: -0.8506774766 | EO73: -3.635576448 | EQ73: 65.03573939 | ER73: 72.86105864 | ES73: 77.54584182 | ET73: 81.87748529 | EU73: 81.45858784 | EV73: 82.17170503 | EW73: 85.95435401 | EX73: 84.08962524 | EY73: 80.79225943 | EZ73: 82.11889465 | FA73: 80.94732845 | FB73: 78.76921452 | FC73: 80.09497237 | FD73: 77.60503975 | FE73: 82.09923141 | FI73: 10.33499405 | FJ73: 19.41560339 | FK73: 0.4713535573 | FL73: 14.67845227 | FO73: 8.105220273 | FP73: -1.566099073 | FQ73: 0.3468521779 | FR73: 2.637264178 | FS73: -4.206806108 | FT73: -2.520974965 | FU73: 1.559128632 | FV73: -4.055808544 | FW73: -4.004763496 | FX73: -8.682612529 | FY73: -6.471877129 | FZ73: -3.940784739 | GA73: 4.303771703 | GB73: 8.987003432 | GC73: -7.697693077 | GD73: -1.863599065 | GE73: 0.2207626106 | GF73: 0.7641688985 | GG73: -0.8908512729 | GH73: 0.1577900775 | GI73: -1.093782881 | GJ73: -0.9340462565 | GK73: -0.1334634546 | GL73: -2.670322353 | GM73: 2.62545547 | GN73: 4.429841709 | GO73: 2.681124204 | GP73: -0.1405217564 | GQ73: -1.107295002 | GR73: -0.4116235229 | GS73: 2.039657266 | GT73: 0.8563301369 | GU73: -3.161604673 | GV73: 2.183685657 | GW73: -3.813998117 | GX73: 2.406487503 | GY73: 1.135734753 | GZ73: -2.553773836 | HA73: 0.2103305166 | HB73: -5.428272264 | HC73: -6.627433685 | HD73: -1.762509419 | HE73: 0.2586987605 | HF73: 1.894886229 | HG73: 0.8521878351 | HH73: 0.03488935797 | HI73: -1.137352762 | HJ73: 1.309493393 | HK73: -0.3585500367 | HL73: -0.4526084264 | HM73: -0.2314992152 | HN73: 0.02698868504 | HO73: 0.09077834319 | HP73: -1.000911801 | HQ73: 3.689215411 | HR73: 3.423972258 | HS73: 2.086173432 | HT73: -0.3949569356 | HU73: -0.5647704351 | HV73: -0.4526084264 | HX73: 13.22308335 | HY73: 10.09687009 | HZ73: 15.20139212 | IA73: 9.331981973 | IB73: 17.84370022 | IC73: 11.01533594 | ID73: 11.66041901 | IE73: 16.95405468 | IF73: 12.03527759 | IG73: 20.28613746 | IH73: 21.73112454 | II73: 14.00409519 | IJ73: 8.60432042 | IK73: 6.612116076 | IL73: 9.667533487 | IO73: 8.105220273 | IP73: -1.566099073 | IQ73: 0.3468521779 | IR73: 2.637264178 | IS73: -4.206806108 | IT73: -2.520974965 | IU73: 1.559128632 | IV73: -4.055808544 | IW73: -4.004763496 | IX73: -8.682612529 | IY73: -6.471877129 | IZ73: -6.471877129 | JA73: 4.303771703 | JB73: 8.987003432 | JC73: -7.697693077 | JD73: -1.863599065 | JE73: 0.2207626106 | JF73: 0.7641688985 | JG73: -0.8908512729 | JH73: 0.1577900775 | JI73: -1.093782881 | JJ73: -0.9340462565 | JK73: -0.1334634546 | JL73: -2.670322353 | JM73: 2.62545547 | JN73: 4.429841709 | JO73: 2.681124204 | JP73: -0.1405217564 | JQ73: -1.107295002 | JR73: -0.4116235229 | JS73: 0 | JT73: 0 | JU73: -3.161604673 | JV73: 0 | JW73: -3.813998117 | JX73: 0 | JY73: 0 | JZ73: -2.553773836 | KA73: 0 | KB73: -5.428272264 | KC73: -6.627433685 | KD73: -1.762509419 | KE73: 0 | KF73: 0 | KG73: 0 | KH73: 0.03488935797 | KI73: -1.137352762 | KJ73: 1.309493393 | KK73: -0.3585500367 | KL73: -0.4526084264 | KM73: -0.2314992152 | KN73: 0.02698868504 | KO73: 0.09077834319 | KP73: -1.000911801 | KQ73: 3.689215411 | KR73: 3.423972258 | KS73: 2.086173432 | KT73: -0.3949569356 | KU73: -0.5647704351 | KV73: -0.8117452598 | KX73: 15.26274061 | KY73: 10.95320023 | KZ73: 15.20139212 | LA73: 11.99371759 | LB73: 18.40022203 | LC73: 13.95369188 | LD73: 13.29171201 | LE73: 17.47233535 | LF73: 13.39760224 | LG73: 23.19299447 | LH73: 24.48890057 | LI73: 18.25309549 | LJ73: 13.21742604 | LK73: 13.19208174 | LL73: 15.928447
A74: 6 | B74: 1.111798879 | C74: 6.336370626 | D74: -0.9349309975 | E74: 0.8341910809 | H74: -1.117974897 | I74: 2.717902303 | J74: 3.648641853 | K74: =IF($B$42="On",$B3074-$D$15,0) -> -2.828744544 | L74: -7.408716736 | M74: -3.324186175 | N74: -3.504637015 | O74: 0.7763594716 | P74: 5.272600504 | Q74: -9.977581766 | R74: -6.714482981 | S74: 4.798350536 | T74: -7.69139206 | U74: -1.589692152 | V74: 0.382127255 | W74: -0.2324598989 | X74: -2.468742253 | Y74: -0.1201415464 | Z74: -0.3659159083 | AA74: -2.116131859 | AB74: -0.4935494357 | AC74: 3.503500446 | AD74: -1.789761777 | AE74: -1.956320376 | AF74: 0.01349764767 | AG74: 0.3789703114 | AH74: 4.201479159 | AI74: -2.450704526 | AJ74: -0.3393154923 | AK74: 0.5263433222 | AL74: 1.225417092 | AM74: -0.4088700079 | AN74: 0.4520680121 | AO74: 0.6704786758 | AP74: -7.029025789 | AQ74: -1.648003965 | AR74: 2.036492362 | AS74: -2.184324485 | AT74: -0.1546825602 | AU74: 1.156462583 | AV74: -1.377846653 | AW74: 4.244278538 | AX74: -4.059249573 | AY74: -0.06773547535 | AZ74: -0.4782228196 | BA74: -0.4035485238 | BB74: -3.342222203 | BC74: 0.3421256813 | BD74: -0.9278577952 | BE74: -3.228442955 | BF74: -1.078052812 | BG74: 3.096350568 | BH74: -1.769130781 | BI74: -0.9271268591 | BJ74: -1.168889056 | BK74: -0.113040427 | BL74: 4.300961408 | BM74: -3.104864575 | BN74: -0.3831490744 | BO74: 0.9115599753 | BQ74: 61.09528683 | BR74: 59.35899521 | BS74: 57.18126854 | BT74: 58.01870072 | BU74: 68.30147291 | BV74: 71.93759926 | BW74: 75.14661007 | BX74: 75.75394302 | BY74: 71.74634618 | BZ74: 78.00569636 | CA74: 84.92690542 | CB74: 80.59739471 | CC74: 88.92957182 | CD74: 90.28067328 | CE74: 91.29387391 | CH74: -1.117974897 | CI74: 2.717902303 | CJ74: 3.648641853 | CK74: -2.828744544 | CL74: -7.408716736 | CM74: -3.324186175 | CN74: -3.504637015 | CO74: 0.7763594716 | CP74: 5.272600504 | CQ74: -9.977581766 | CR74: -6.714482981 | CS74: 4.798350536 | CT74: -7.69139206 | CU74: -1.589692152 | CV74: 0.382127255 | CW74: -0.2324598989 | CX74: -2.468742253 | CY74: -0.1201415464 | CZ74: -0.3659159083 | DA74: -2.116131859 | DB74: -0.4935494357 | DC74: 3.503500446 | DD74: -1.789761777 | DE74: -1.956320376 | DF74: 0.01349764767 | DG74: 0.3789703114 | DH74: 4.201479159 | DI74: -2.450704526 | DJ74: -0.3393154923 | DK74: 0.5263433222 | DL74: 0 | DM74: -0.4088700079 | DN74: 0 | DO74: 0 | DP74: -7.029025789 | DQ74: -1.648003965 | DR74: 0 | DS74: -2.184324485 | DT74: -0.1546825602 | DU74: 0 | DV74: -1.377846653 | DW74: 0 | DX74: -4.059249573 | DY74: -0.06773547535 | DZ74: -0.4782228196 | EA74: -0.4035485238 | EB74: -3.342222203 | EC74: 0.3421256813 | ED74: -0.9278577952 | EE74: -3.228442955 | EF74: -1.078052812 | EG74: 3.096350568 | EH74: -1.769130781 | EI74: -0.9271268591 | EJ74: -1.168889056 | EK74: -0.113040427 | EL74: 4.300961408 | EM74: -3.104864575 | EN74: -0.3831490744 | EO74: 0.9115599753 | EQ74: 62.32070393 | ER74: 60.50460457 | ES74: 58.74039553 | ET74: 60.27894948 | EU74: 70.66788495 | EV74: 74.35321574 | EW74: 79.75506386 | EX74: 80.22454386 | EY74: 75.92829314 | EZ74: 83.74669791 | FA74: 91.03587029 | FB74: 90.89765331 | FC74: 99.70209882 | FD74: 101.1317595 | FE74: 102.1312277 | FI74: 4.565837453 | FJ74: 22.99064514 | FK74: -2.24329581 | FL74: 16.07564175 | FO74: 2.336063677 | FP74: -0.09795138671 | FQ74: 3.708988466 | FR74: 2.296247583 | FS74: 5.160081515 | FT74: 1.180602382 | FU74: 7.420445175 | FV74: 0.9188485864 | FW74: -1.069480818 | FX74: -8.891487407 | FY74: -1.644480966 | FZ74: 1.924939779 | GA74: -0.4379271847 | GB74: -2.101109522 | GC74: 4.349103147 | GD74: 1.711442686 | GE74: 0.450417333 | GF74: -1.232352664 | GG74: -0.2793169092 | GH74: 1.361070759 | GI74: 0.817698545 | GJ74: -1.006556097 | GK74: 1.03984246 | GL74: 1.512107574 | GM74: 2.530511264 | GN74: -0.2544684425 | GO74: -1.725788583 | GP74: -0.8985677249 | GQ74: -2.11752332 | GR74: -3.551628658 | GS74: -0.6749921022 | GT74: 0.7541820912 | GU74: 1.977859594 | GV74: -0.2514420416 | GW74: -3.861021132 | GX74: -3.323417641 | GY74: 3.992812598 | GZ74: -0.8517282997 | HA74: -1.402718665 | HB74: -2.066221672 | HC74: -0.01047757181 | HD74: 0.4439094955 | HE74: 0.3686681747 | HF74: 6.260197988 | HG74: -0.9904191888 | HH74: 1.432078836 | HI74: 1.320173781 | HJ74: -0.1921608329 | HK74: -1.999193357 | HL74: 2.000180119 | HM74: 2.18919382 | HN74: -2.101024108 | HO74: 2.630540794 | HP74: 2.165356794 | HQ74: 1.408132335 | HR74: -0.06788887978 | HS74: -3.120928476 | HT74: 0.7446079299 | HU74: -3.204671727 | HV74: 2.000180119 | HX74: 17.72324156 | HY74: 10.37890866 | HZ74: 6.463302103 | IA74: 8.58904923 | IB74: 14.15802329 | IC74: 15.91556816 | ID74: 6.166121898 | IE74: 14.60442056 | IF74: 15.67492246 | IG74: 16.81581134 | IH74: 13.16226424 | II74: 11.65017599 | IJ74: 14.04775362 | IK74: 8.406972498 | IL74: 17.69756061 | IO74: 2.336063677 | IP74: -0.09795138671 | IQ74: 3.708988466 | IR74: 2.296247583 | IS74: 5.160081515 | IT74: 1.180602382 | IU74: 7.420445175 | IV74: 0.9188485864 | IW74: -1.069480818 | IX74: -8.891487407 | IY74: -1.644480966 | IZ74: -1.644480966 | JA74: -0.4379271847 | JB74: -2.101109522 | JC74: 4.349103147 | JD74: 1.711442686 | JE74: 0.450417333 | JF74: -1.232352664 | JG74: -0.2793169092 | JH74: 1.361070759 | JI74: 0.817698545 | JJ74: -1.006556097 | JK74: 1.03984246 | JL74: 1.512107574 | JM74: 2.530511264 | JN74: -0.2544684425 | JO74: -1.725788583 | JP74: -0.8985677249 | JQ74: -2.11752332 | JR74: -3.551628658 | JS74: -0.6749921022 | JT74: 0 | JU74: 0 | JV74: -0.2514420416 | JW74: -3.861021132 | JX74: -3.323417641 | JY74: 0 | JZ74: -0.8517282997 | KA74: -1.402718665 | KB74: -2.066221672 | KC74: -0.01047757181 | KD74: 0 | KE74: 0 | KF74: 0 | KG74: -0.9904191888 | KH74: 1.432078836 | KI74: 1.320173781 | KJ74: -0.1921608329 | KK74: -1.999193357 | KL74: 2.000180119 | KM74: 2.18919382 | KN74: -2.101024108 | KO74: 2.630540794 | KP74: 2.165356794 | KQ74: 1.408132335 | KR74: -0.06788887978 | KS74: -3.120928476 | KT74: 0.7446079299 | KU74: -3.204671727 | KV74: -4.259089705 | KX74: 17.72324156 | KY74: 11.34306117 | KZ74: 8.618798552 | LA74: 8.831104743 | LB74: 14.57800217 | LC74: 16.37201312 | LD74: 10.51579696 | LE74: 15.48047732 | LF74: 16.5499334 | LG74: 17.70876425 | LH74: 14.16823381 | LI74: 13.46179747 | LJ74: 16.32638691 | LK74: 16.50508588 | LL74: 16.50630016
